Workbook

Sheet CAPA

Sheet DADOS
B2: DATA | D2: 2023-08-30
B4: CLIENTE | E4: 1
B6: REVISÃO | D6: R00
B8: PROJETO | D8: MANUTENÇÃO DA SUPERINTENDÊNCIA DE RECURSOS MATERIAIS
B10: BDI TIPO 1 | D10: 0.2652
B12: BDI TIPO 2 | D12: 0.2025
B14: BANCOS DE DADOS | D14: SINAPI: 07/2023 Minas Gerais SETOP: 04/2023 Minas Gerais SICRO : 04/2023 Minas Gerais SUDECAP: 05/2023 Minas Gerais
B16: RESPONSÁVEL | D16: FLÁVIA CRISTINA BARBOSA
B18: CREA | D18: CREA - MG 187.842/D
B20: TIPO | D20: PROJETO EXECUTIVO

Sheet CLIENTES (hidden)
B1: PREFEITURA MUNICIPAL DE POUSO ALEGRE
B2: PREFEITURA MUNICIPAL DE CACHOEIRA DE MINAS
B3: PREFEITURA MUNICIPAL DE ITAJUBÁ
B4: PREFEITURA MUNICIPAL DE SANTA RITA DO SAPUCAÍ
B5: RYZA
B6: FAPEPE
B7: PREFEITURA MUNICIPAL DE DELFIM MOREIRA
B8: PREFEITURA MUNICIPAL DE PIRANGUINHO

Sheet ORC
A3: 1000 | D3: A | E3: ADMINISTRAÇÃO DE OBRA | M3: =SUMIF(A:A,D3,M:M) -> 0 | N3: =SUMIF(A:A,D3,N:N) -> 0
D4: A.B | M4: =IFERROR(SUMIFS(M:M,A:A,LEFT(D4,SEARCH(".",D4)-1),B:B,RIGHT(D4,LEN(D4)-SEARCH(".",D4))),"") -> 0 | N4: =IFERROR(SUMIFS(N:N,A:A,LEFT(D4,SEARCH(".",D4)-1),B:B,RIGHT(D4,LEN(D4)-SEARCH(".",D4))),"") -> 0
D5: A.B.C | M5: =IFERROR(SUMIFS(M:M,A:A,LEFT(D5,SEARCH(".",D5)-1),B:B,LEFT(RIGHT(D5,LEN(D5)-SEARCH(".",D5)),SEARCH(".",RIGHT(D5,LEN(D5)-SEARCH(".",D5)))-1),C:C,RIGHT(D5,LEN(D5)-SEARCH(".",D5,SEARCH(".",D5)+1))),"") -> 0 | N5: =IFERROR(SUMIFS(N:N,A:A,LEFT(D5,SEARCH(".",D5)-1),B:B,LEFT(RIGHT(D5,LEN(D5)-SEARCH(".",D5)),SEARCH(".",RIGHT(D5,LEN(D5)-SEARCH(".",D5)))-1),C:C,RIGHT(D5,LEN(D5)-SEARCH(".",D5,SEARCH(".",D5)+1))),"") -> 0
A6: =IFERROR(LEFT(D6,SEARCH(".",D6)-1),"") -> a | B6: =IFERROR(LEFT(RIGHT(D6,LEN(D6)-SEARCH(".",D6)),SEARCH(".",RIGHT(D6,LEN(D6)-SEARCH(".",D6)))-1),"") -> a/a | C6: =IFERROR(IF(LEN(D6)-LEN(SUBSTITUTE(D6,".",""))<>3,"",MID(D6,SEARCH(".",D6,SEARCH(".",D6)+1)+1,LEN(D6)-SEARCH(".",D6,SEARCH(".",D6)+1)-(LEN(D6)-(SEARCH(".",D6,SEARCH(".",D6,SEARCH(".",D6)+1)+1)-1)))),"") ->  | D6: a.a/a.a.a/a.a.a.a | E6: =IF($G6="SINAPI",VLOOKUP($F6,DADOS_SINAPI,2,0),IF(G6="SETOP",VLOOKUP($F6,DADOS_SETOP,2,0),IF(G6="CPU",VLOOKUP($F6,DADOS_COMPOSICAO,2,0),IF(G6="SICRO",VLOOKUP($F6,DADOS_SICRO,2,0),IF(G6="SUDECAP",VLOOKUP(F6,DADOS_SUDECAP,2,0),IF(G6="COTAÇÃO",VLOOKUP($F6,DADOS_COTACAO,2,0),"")))))) ->  | H6: =IF(G6="SINAPI",VLOOKUP($F6,DADOS_SINAPI,3,0),IF(G6="SETOP",VLOOKUP($F6,DADOS_SETOP,3,0),IF(G6="CPU",VLOOKUP($F6,DADOS_COMPOSICAO,10,0),IF(G6="SICRO",VLOOKUP($F6,DADOS_SICRO,3,0),IF(G6="SUDECAP",VLOOKUP(F6,DADOS_SUDECAP,3,0),IF(G6="COTAÇÃO",VLOOKUP($F6,DADOS_COTACAO,9,0),"")))))) ->  | J6: =TRUNC(IF(G6="SINAPI",VLOOKUP($F6,DADOS_SINAPI,4,0),IF(G6="SETOP",VLOOKUP($F6,DADOS_SETOP,4,0),IF(G6="CPU",VLOOKUP($F6,DADOS_COMPOSICAO,13,0),IF(G6="SICRO",VLOOKUP($F6,DADOS_SICRO,4,0),IF(G6="SUDECAP",VLOOKUP(F6,DADOS_SUDECAP,4,0),IF(G6="COTAÇÃO",VLOOKUP(F6,DADOS_COTACAO,12,0),"")))))),2) ->  | K6: BDI 1 | L6: =TRUNC(J6*(1+$N$17),2) ->  | M6: =IFERROR(TRUNC(I6*J6,2),"") ->  | N6: =IFERROR(TRUNC(L6*I6,2),"") -> 
A7: =IFERROR(LEFT(D7,SEARCH(".",D7)-1),"") -> a | B7: =IFERROR(LEFT(RIGHT(D7,LEN(D7)-SEARCH(".",D7)),SEARCH(".",RIGHT(D7,LEN(D7)-SEARCH(".",D7)))-1),"") -> a/a | C7: =IFERROR(IF(LEN(D7)-LEN(SUBSTITUTE(D7,".",""))<>3,"",MID(D7,SEARCH(".",D7,SEARCH(".",D7)+1)+1,LEN(D7)-SEARCH(".",D7,SEARCH(".",D7)+1)-(LEN(D7)-(SEARCH(".",D7,SEARCH(".",D7,SEARCH(".",D7)+1)+1)-1)))),"") ->  | D7: a.a/a.a.a/a.a.a.a | E7: =VLOOKUP($F7,DADOS_COTACAO,2,0) ->  | G7: COTAÇÃO | H7: =VLOOKUP($F7,DADOS_COTACAO,9,0) ->  | J7: =TRUNC(VLOOKUP($F7,DADOS_COTACAO,12,0),2) ->  | K7: BDI 2 | L7: =TRUNC(J7*(1+$N$18),2) ->  | M7: =IFERROR(TRUNC(I7*J7,2),"") ->  | N7: =IFERROR(TRUNC(L7*I7,2),"") -> 
A8: 2000
E11: PLANILHA ORÇAMENTÁRIA | M11: Revisão: | N11: =DADOS!D6 -> R00 | O11: a
M12: Data: | N12: =DADOS!D2 -> 2023-08-30
D13: Projeto: | E13: =DADOS!D8 -> MANUTENÇÃO DA SUPERINTENDÊNCIA DE RECURSOS MATERIAIS | M13: Bancos:
D14: Responsável: | F14: Cliente: | M14: =DADOS!D14 -> SINAPI: 07/2023 Minas Gerais SETOP: 04/2023 Minas Gerais SICRO : 04/2023 Minas Gerais SUDECAP: 05/2023 Minas Gerais
M17: BDI 1: | N17: =DADOS!D10 -> 0.2652
M18: BDI 2: | N18: =DADOS!D12 -> 0.2025
D20: =E11&" DE "&DADOS!D20&" - "&E13 -> PLANILHA ORÇAMENTÁRIA DE PROJETO EXECUTIVO - MANUTENÇÃO DA SUPERINTENDÊNCIA DE RECURSOS MATERIAIS
D22: Item | E22: Descrição | F22: Código | G22: Banco | H22: Unidade | I22: Quantidade | J22: Valor Unitário | K22: BDI | L22: Valor Unit. com BDI | M22: Total | N22: Total com BDI
M23: =ROUND(I23*J23,2) -> 0 | N23: =ROUND(L23*I23,2) -> 0
A24: 1000 | D24: 1 | E24: CANTEIRO DE OBRA | M24: =SUMIF(A:A,D24,M:M) -> 4008.84 | N24: =SUMIF(A:A,D24,N:N) -> 5071.97
A25: =IFERROR(LEFT(D25,SEARCH(".",D25)-1),"") -> 1 | B25: =IFERROR(LEFT(RIGHT(D25,LEN(D25)-SEARCH(".",D25)),SEARCH(".",RIGHT(D25,LEN(D25)-SEARCH(".",D25)))-1),"") ->  | C25: =IFERROR(IF(LEN(D25)-LEN(SUBSTITUTE(D25,".",""))<>3,"",MID(D25,SEARCH(".",D25,SEARCH(".",D25)+1)+1,LEN(D25)-SEARCH(".",D25,SEARCH(".",D25)+1)-(LEN(D25)-(SEARCH(".",D25,SEARCH(".",D25,SEARCH(".",D25)+1)+1)-1)))),"") ->  | D25: 1.1 | E25: =IF($G25="SINAPI",VLOOKUP($F25,DADOS_SINAPI,2,0),IF(G25="SETOP",VLOOKUP($F25,DADOS_SETOP,2,0),IF(G25="CPU",VLOOKUP($F25,DADOS_COMPOSICAO,2,0),IF(G25="SICRO",VLOOKUP($F25,DADOS_SICRO,2,0),IF(G25="SUDECAP",VLOOKUP(F25,DADOS_SUDECAP,2,0),IF(G25="COTAÇÃO",VLOOKUP($F25,DADOS_COTACAO,2,0),"")))))) -> LOCAÇÃO DE CONTAINER COM ISOLAMENTO TÉRMICO, TIPO 3, PARA DEPÓSITO/FERRAMENTARIA DE OBRA, COM MEDIDAS REFERENCIAIS DE (6) METROS COMPRIMENTO, (2,3) METROS LARGURA E (2,5) METROS ALTURA ÚTIL INTERNA, INCLUSIVE LIGAÇÕES ELÉTRICAS INTERNAS, EXCLUSIVE MOBILIZAÇÃO/DESMOBILIZAÇÃO E LIGAÇÕES PROVISÓRIAS EXTERNAS | F25: ED-16350 | G25: SETOP | H25: =IF(G25="SINAPI",VLOOKUP($F25,DADOS_SINAPI,3,0),IF(G25="SETOP",VLOOKUP($F25,DADOS_SETOP,3,0),IF(G25="CPU",VLOOKUP($F25,DADOS_COMPOSICAO,10,0),IF(G25="SICRO",VLOOKUP($F25,DADOS_SICRO,3,0),IF(G25="SUDECAP",VLOOKUP(F25,DADOS_SUDECAP,3,0),IF(G25="COTAÇÃO",VLOOKUP($F25,DADOS_COTACAO,9,0),"")))))) -> mês | I25: =F27 -> 3 | J25: =TRUNC(IF(G25="SINAPI",VLOOKUP($F25,DADOS_SINAPI,4,0),IF(G25="SETOP",VLOOKUP($F25,DADOS_SETOP,4,0),IF(G25="CPU",VLOOKUP($F25,DADOS_COMPOSICAO,13,0),IF(G25="SICRO",VLOOKUP($F25,DADOS_SICRO,4,0),IF(G25="SUDECAP",VLOOKUP(F25,DADOS_SUDECAP,4,0),IF(G25="COTAÇÃO",VLOOKUP(F25,DADOS_COTACAO,12,0),"")))))),2) -> 750.27 | K25: BDI 1 | L25: =TRUNC(J25*(1+$N$17),2) -> 949.24 | M25: =IFERROR(TRUNC(I25*J25,2),"") -> 2250.81 | N25: =IFERROR(TRUNC(L25*I25,2),"") -> 2847.72
A26: 2000
A27: 2000 | E27: Quantidade | F27: 3 | G27: meses
A28: 2000
A29: 1 | D29: 1.2 | E29: LIGAÇÕES PROVISÓRIAS PARA CONTAINER TIPO 3 (CORRESPONDENTE AO CÓDIGO ED-16350) | F29: ED-16358 | G29: SETOP | H29: un | I29: =F31 -> 1 | J29: 326.05 | K29: BDI 1 | L29: 412.51 | M29: 326.05 | N29: 412.51
A30: 2000
A31: 2000 | E31: Quantidade | F31: 1 | G31: un
A32: 2000
A33: 1 | D33: 1.3 | E33: MOBILIZAÇÃO E DESMOBILIZAÇÃO DE CONTAINER, INCLUSIVE CARGA, DESCARGA E TRANSPORTE EM CAMINHÃO CARROCERIA COM GUINDAUTO (MUNCK), EXCLUSIVE LOCAÇÃO DO CONTAINER | F33: ED-50137 | G33: SETOP | H33: un | I33: =F35 -> 1 | J33: 1431.98 | K33: BDI 1 | L33: 1811.74 | M33: 1431.98 | N33: 1811.74
A34: 2000
A35: 2000 | E35: Quantidade | F35: 1 | G35: un
A36: 2000
A37: 1000 | D37: 2 | E37: SERVIÇOS PRELIMINARES | M37: =SUMIF(A:A,D37,M:M) -> 1429.69 | N37: =SUMIF(A:A,D37,N:N) -> 1808.84
A38: =IFERROR(LEFT(D38,SEARCH(".",D38)-1),"") -> 2 | B38: =IFERROR(LEFT(RIGHT(D38,LEN(D38)-SEARCH(".",D38)),SEARCH(".",RIGHT(D38,LEN(D38)-SEARCH(".",D38)))-1),"") ->  | C38: =IFERROR(IF(LEN(D38)-LEN(SUBSTITUTE(D38,".",""))<>3,"",MID(D38,SEARCH(".",D38,SEARCH(".",D38)+1)+1,LEN(D38)-SEARCH(".",D38,SEARCH(".",D38)+1)-(LEN(D38)-(SEARCH(".",D38,SEARCH(".",D38,SEARCH(".",D38)+1)+1)-1)))),"") ->  | D38: 2.1 | E38: =IF($G38="SINAPI",VLOOKUP($F38,DADOS_SINAPI,2,0),IF(G38="SETOP",VLOOKUP($F38,DADOS_SETOP,2,0),IF(G38="CPU",VLOOKUP($F38,DADOS_COMPOSICAO,2,0),IF(G38="SICRO",VLOOKUP($F38,DADOS_SICRO,2,0),IF(G38="SUDECAP",VLOOKUP(F38,DADOS_SUDECAP,2,0),IF(G38="COTAÇÃO",VLOOKUP($F38,DADOS_COTACAO,2,0),"")))))) -> FORNECIMENTO E COLOCAÇÃO DE PLACA DE OBRA EM CHAPA GALVANIZADA #26, ESP. 0,45MM, DIMENSÃO (3X1,5)M, PLOTADA COM ADESIVO VINÍLICO, AFIXADA COM REBITES 4,8X40MM, EM ESTRUTURA METÁLICA DE METALON 20X20MM, ESP. 1,25MM, INCLUSIVE SUPORTE EM EUCALIPTO AUTOCLAVADO PINTADO COM TINTA PVA DUAS (2) DEMÃOS | F38: ED-28427 | G38: SETOP | H38: =IF(G38="SINAPI",VLOOKUP($F38,DADOS_SINAPI,3,0),IF(G38="SETOP",VLOOKUP($F38,DADOS_SETOP,3,0),IF(G38="CPU",VLOOKUP($F38,DADOS_COMPOSICAO,10,0),IF(G38="SICRO",VLOOKUP($F38,DADOS_SICRO,3,0),IF(G38="SUDECAP",VLOOKUP(F38,DADOS_SUDECAP,3,0),IF(G38="COTAÇÃO",VLOOKUP($F38,DADOS_COTACAO,9,0),"")))))) -> un | I38: =F40 -> 1 | J38: =TRUNC(IF(G38="SINAPI",VLOOKUP($F38,DADOS_SINAPI,4,0),IF(G38="SETOP",VLOOKUP($F38,DADOS_SETOP,4,0),IF(G38="CPU",VLOOKUP($F38,DADOS_COMPOSICAO,13,0),IF(G38="SICRO",VLOOKUP($F38,DADOS_SICRO,4,0),IF(G38="SUDECAP",VLOOKUP(F38,DADOS_SUDECAP,4,0),IF(G38="COTAÇÃO",VLOOKUP(F38,DADOS_COTACAO,12,0),"")))))),2) -> 1429.69 | K38: BDI 1 | L38: =TRUNC(J38*(1+$N$17),2) -> 1808.84 | M38: =IFERROR(TRUNC(I38*J38,2),"") -> 1429.69 | N38: =IFERROR(TRUNC(L38*I38,2),"") -> 1808.84
A39: 2000
A40: 2000 | E40: Quantidade | F40: 1 | G40: un
A41: 2000
A42: 1000 | D42: 3 | E42: LIMPEZAS E DEMOLIÇÕES | M42: =SUMIF(A:A,D42,M:M) -> 1764.28 | N42: =SUMIF(A:A,D42,N:N) -> 2229.47
A43: =IFERROR(LEFT(D43,SEARCH(".",D43)-1),"") -> 3 | B43: =IFERROR(LEFT(RIGHT(D43,LEN(D43)-SEARCH(".",D43)),SEARCH(".",RIGHT(D43,LEN(D43)-SEARCH(".",D43)))-1),"") ->  | C43: =IFERROR(IF(LEN(D43)-LEN(SUBSTITUTE(D43,".",""))<>3,"",MID(D43,SEARCH(".",D43,SEARCH(".",D43)+1)+1,LEN(D43)-SEARCH(".",D43,SEARCH(".",D43)+1)-(LEN(D43)-(SEARCH(".",D43,SEARCH(".",D43,SEARCH(".",D43)+1)+1)-1)))),"") ->  | D43: 3.1 | E43: =IF($G43="SINAPI",VLOOKUP($F43,DADOS_SINAPI,2,0),IF(G43="SETOP",VLOOKUP($F43,DADOS_SETOP,2,0),IF(G43="CPU",VLOOKUP($F43,DADOS_COMPOSICAO,2,0),IF(G43="SICRO",VLOOKUP($F43,DADOS_SICRO,2,0),IF(G43="SUDECAP",VLOOKUP(F43,DADOS_SUDECAP,2,0),IF(G43="COTAÇÃO",VLOOKUP($F43,DADOS_COTACAO,2,0),"")))))) -> REMOÇÃO DE TELHAS, DE FIBROCIMENTO, METÁLICA E CERÂMICA, DE FORMA MANUAL, SEM REAPROVEITAMENTO. AF_12/2017 | F43: 97647 | G43: SINAPI | H43: =IF(G43="SINAPI",VLOOKUP($F43,DADOS_SINAPI,3,0),IF(G43="SETOP",VLOOKUP($F43,DADOS_SETOP,3,0),IF(G43="CPU",VLOOKUP($F43,DADOS_COMPOSICAO,10,0),IF(G43="SICRO",VLOOKUP($F43,DADOS_SICRO,3,0),IF(G43="SUDECAP",VLOOKUP(F43,DADOS_SUDECAP,3,0),IF(G43="COTAÇÃO",VLOOKUP($F43,DADOS_COTACAO,9,0),"")))))) -> M2 | I43: =F45 -> 162.18 | J43: =TRUNC(IF(G43="SINAPI",VLOOKUP($F43,DADOS_SINAPI,4,0),IF(G43="SETOP",VLOOKUP($F43,DADOS_SETOP,4,0),IF(G43="CPU",VLOOKUP($F43,DADOS_COMPOSICAO,13,0),IF(G43="SICRO",VLOOKUP($F43,DADOS_SICRO,4,0),IF(G43="SUDECAP",VLOOKUP(F43,DADOS_SUDECAP,4,0),IF(G43="COTAÇÃO",VLOOKUP(F43,DADOS_COTACAO,12,0),"")))))),2) -> 2.89 | K43: BDI 1 | L43: =TRUNC(J43*(1+$N$17),2) -> 3.65 | M43: =IFERROR(TRUNC(I43*J43,2),"") -> 468.7 | N43: =IFERROR(TRUNC(L43*I43,2),"") -> 591.95
A44: 2000
A45: 2000 | E45: REMOÇÃO DE TELHAS DETERIORADAS | F45: 162.18 | G45: m²
A46: 2000
A47: =IFERROR(LEFT(D47,SEARCH(".",D47)-1),"") -> 3 | B47: =IFERROR(LEFT(RIGHT(D47,LEN(D47)-SEARCH(".",D47)),SEARCH(".",RIGHT(D47,LEN(D47)-SEARCH(".",D47)))-1),"") ->  | C47: =IFERROR(IF(LEN(D47)-LEN(SUBSTITUTE(D47,".",""))<>3,"",MID(D47,SEARCH(".",D47,SEARCH(".",D47)+1)+1,LEN(D47)-SEARCH(".",D47,SEARCH(".",D47)+1)-(LEN(D47)-(SEARCH(".",D47,SEARCH(".",D47,SEARCH(".",D47)+1)+1)-1)))),"") ->  | D47: 3.2 | E47: =IF($G47="SINAPI",VLOOKUP($F47,DADOS_SINAPI,2,0),IF(G47="SETOP",VLOOKUP($F47,DADOS_SETOP,2,0),IF(G47="CPU",VLOOKUP($F47,DADOS_COMPOSICAO,2,0),IF(G47="SICRO",VLOOKUP($F47,DADOS_SICRO,2,0),IF(G47="SUDECAP",VLOOKUP(F47,DADOS_SUDECAP,2,0),IF(G47="COTAÇÃO",VLOOKUP($F47,DADOS_COTACAO,2,0),"")))))) -> REMOÇÃO DE FORROS DE DRYWALL, PVC E FIBROMINERAL, DE FORMA MANUAL, SEM REAPROVEITAMENTO. AF_12/2017 | F47: 97640 | G47: SINAPI | H47: =IF(G47="SINAPI",VLOOKUP($F47,DADOS_SINAPI,3,0),IF(G47="SETOP",VLOOKUP($F47,DADOS_SETOP,3,0),IF(G47="CPU",VLOOKUP($F47,DADOS_COMPOSICAO,10,0),IF(G47="SICRO",VLOOKUP($F47,DADOS_SICRO,3,0),IF(G47="SUDECAP",VLOOKUP(F47,DADOS_SUDECAP,3,0),IF(G47="COTAÇÃO",VLOOKUP($F47,DADOS_COTACAO,9,0),"")))))) -> M2 | I47: =F49 -> 95.26 | J47: =TRUNC(IF(G47="SINAPI",VLOOKUP($F47,DADOS_SINAPI,4,0),IF(G47="SETOP",VLOOKUP($F47,DADOS_SETOP,4,0),IF(G47="CPU",VLOOKUP($F47,DADOS_COMPOSICAO,13,0),IF(G47="SICRO",VLOOKUP($F47,DADOS_SICRO,4,0),IF(G47="SUDECAP",VLOOKUP(F47,DADOS_SUDECAP,4,0),IF(G47="COTAÇÃO",VLOOKUP(F47,DADOS_COTACAO,12,0),"")))))),2) -> 1.63 | K47: BDI 1 | L47: =TRUNC(J47*(1+$N$17),2) -> 2.06 | M47: =IFERROR(TRUNC(I47*J47,2),"") -> 155.27 | N47: =IFERROR(TRUNC(L47*I47,2),"") -> 196.23
A48: 2000
A49: 2000 | E49: REMOÇÃO DE FORROS DETERIORDADOS | F49: =F72 -> 95.26 | G49: m²
A50: 2000
A51: =IFERROR(LEFT(D51,SEARCH(".",D51)-1),"") -> 3 | B51: =IFERROR(LEFT(RIGHT(D51,LEN(D51)-SEARCH(".",D51)),SEARCH(".",RIGHT(D51,LEN(D51)-SEARCH(".",D51)))-1),"") ->  | C51: =IFERROR(IF(LEN(D51)-LEN(SUBSTITUTE(D51,".",""))<>3,"",MID(D51,SEARCH(".",D51,SEARCH(".",D51)+1)+1,LEN(D51)-SEARCH(".",D51,SEARCH(".",D51)+1)-(LEN(D51)-(SEARCH(".",D51,SEARCH(".",D51,SEARCH(".",D51)+1)+1)-1)))),"") ->  | D51: 3.3 | E51: =IF($G51="SINAPI",VLOOKUP($F51,DADOS_SINAPI,2,0),IF(G51="SETOP",VLOOKUP($F51,DADOS_SETOP,2,0),IF(G51="CPU",VLOOKUP($F51,DADOS_COMPOSICAO,2,0),IF(G51="SICRO",VLOOKUP($F51,DADOS_SICRO,2,0),IF(G51="SUDECAP",VLOOKUP(F51,DADOS_SUDECAP,2,0),IF(G51="COTAÇÃO",VLOOKUP($F51,DADOS_COTACAO,2,0),"")))))) -> LIXAMENTO MANUAL EM PAREDE PARA REMOÇÃO DE TINTA | F51: ED-50505 | G51: SETOP | H51: M2 | I51: =F56 -> 423.91 | J51: =TRUNC(IF(G51="SINAPI",VLOOKUP($F51,DADOS_SINAPI,4,0),IF(G51="SETOP",VLOOKUP($F51,DADOS_SETOP,4,0),IF(G51="CPU",VLOOKUP($F51,DADOS_COMPOSICAO,13,0),IF(G51="SICRO",VLOOKUP($F51,DADOS_SICRO,4,0),IF(G51="SUDECAP",VLOOKUP(F51,DADOS_SUDECAP,4,0),IF(G51="COTAÇÃO",VLOOKUP(F51,DADOS_COTACAO,12,0),"")))))),2) -> 2.69 | K51: BDI 1 | L51: =TRUNC(J51*(1+$N$17),2) -> 3.4 | M51: =IFERROR(TRUNC(I51*J51,2),"") -> 1140.31 | N51: =IFERROR(TRUNC(L51*I51,2),"") -> 1441.29
A52: 2000
A53: 2000 | E53: SALAS DE TRABALHO | F53: 191.75 | G53: m²
A54: 2000 | E54: CIRCULAÇÃO/ESCADA | F54: 82.35 | G54: m²
A55: 2000 | E55: PAREDE DANIFICADA DO DEPÓSITO DE MATERIAIS | F55: 149.81 | G55: m²
A56: 2000 | E56: TOTAL | F56: =SUM(F53:F55) -> 423.91 | G56: m²
A57: 2000
A58: 1000 | D58: 4 | E58: SISTEMA DE COBERTURA | M58: =SUMIF(A:A,D58,M:M) -> 55091.96 | N58: =SUMIF(A:A,D58,N:N) -> 69700.4
A59: =IFERROR(LEFT(D59,SEARCH(".",D59)-1),"") -> 4 | B59: =IFERROR(LEFT(RIGHT(D59,LEN(D59)-SEARCH(".",D59)),SEARCH(".",RIGHT(D59,LEN(D59)-SEARCH(".",D59)))-1),"") ->  | C59: =IFERROR(IF(LEN(D59)-LEN(SUBSTITUTE(D59,".",""))<>3,"",MID(D59,SEARCH(".",D59,SEARCH(".",D59)+1)+1,LEN(D59)-SEARCH(".",D59,SEARCH(".",D59)+1)-(LEN(D59)-(SEARCH(".",D59,SEARCH(".",D59,SEARCH(".",D59)+1)+1)-1)))),"") ->  | D59: 4.1 | E59: =IF($G59="SINAPI",VLOOKUP($F59,DADOS_SINAPI,2,0),IF(G59="SETOP",VLOOKUP($F59,DADOS_SETOP,2,0),IF(G59="CPU",VLOOKUP($F59,DADOS_COMPOSICAO,2,0),IF(G59="SICRO",VLOOKUP($F59,DADOS_SICRO,2,0),IF(G59="SUDECAP",VLOOKUP(F59,DADOS_SUDECAP,2,0),IF(G59="COTAÇÃO",VLOOKUP($F59,DADOS_COTACAO,2,0),"")))))) -> TELHAMENTO COM TELHA METÁLICA TERMOACÚSTICA E = 30 MM, COM ATÉ 2 ÁGUAS, INCLUSO IÇAMENTO. AF_07/2019 | F59: 94216 | G59: SINAPI | H59: =IF(G59="SINAPI",VLOOKUP($F59,DADOS_SINAPI,3,0),IF(G59="SETOP",VLOOKUP($F59,DADOS_SETOP,3,0),IF(G59="CPU",VLOOKUP($F59,DADOS_COMPOSICAO,10,0),IF(G59="SICRO",VLOOKUP($F59,DADOS_SICRO,3,0),IF(G59="SUDECAP",VLOOKUP(F59,DADOS_SUDECAP,3,0),IF(G59="COTAÇÃO",VLOOKUP($F59,DADOS_COTACAO,9,0),"")))))) -> M2 | I59: 308 | J59: =TRUNC(IF(G59="SINAPI",VLOOKUP($F59,DADOS_SINAPI,4,0),IF(G59="SETOP",VLOOKUP($F59,DADOS_SETOP,4,0),IF(G59="CPU",VLOOKUP($F59,DADOS_COMPOSICAO,13,0),IF(G59="SICRO",VLOOKUP($F59,DADOS_SICRO,4,0),IF(G59="SUDECAP",VLOOKUP(F59,DADOS_SUDECAP,4,0),IF(G59="COTAÇÃO",VLOOKUP(F59,DADOS_COTACAO,12,0),"")))))),2) -> 178.87 | K59: BDI 1 | L59: =TRUNC(J59*(1+$N$17),2) -> 226.3 | M59: =IFERROR(TRUNC(I59*J59,2),"") -> 55091.96 | N59: =IFERROR(TRUNC(L59*I59,2),"") -> 69700.4
A60: 2000
A61: 2000 | E61: IGUAL A REMOÇÃO DE TELHAS | F61: =F45 -> 162.18 | G61: m²
A62: 2000
A63: 1000 | D63: 5 | E63: ACABAMENTOS | M63: =SUMIF(A:A,D63,M:M) -> 33715.37 | N63: =SUMIF(A:A,D63,N:N) -> 42655.52
A64: =IFERROR(LEFT(D64,SEARCH(".",D64)-1),"") -> 5 | B64: =IFERROR(LEFT(RIGHT(D64,LEN(D64)-SEARCH(".",D64)),SEARCH(".",RIGHT(D64,LEN(D64)-SEARCH(".",D64)))-1),"") ->  | C64: =IFERROR(IF(LEN(D64)-LEN(SUBSTITUTE(D64,".",""))<>3,"",MID(D64,SEARCH(".",D64,SEARCH(".",D64)+1)+1,LEN(D64)-SEARCH(".",D64,SEARCH(".",D64)+1)-(LEN(D64)-(SEARCH(".",D64,SEARCH(".",D64,SEARCH(".",D64)+1)+1)-1)))),"") ->  | D64: 5.1 | E64: =IF($G64="SINAPI",VLOOKUP($F64,DADOS_SINAPI,2,0),IF(G64="SETOP",VLOOKUP($F64,DADOS_SETOP,2,0),IF(G64="CPU",VLOOKUP($F64,DADOS_COMPOSICAO,2,0),IF(G64="SICRO",VLOOKUP($F64,DADOS_SICRO,2,0),IF(G64="SUDECAP",VLOOKUP(F64,DADOS_SUDECAP,2,0),IF(G64="COTAÇÃO",VLOOKUP($F64,DADOS_COTACAO,2,0),"")))))) -> FORRO METÁLICO, PARA AMBIENTES COMERCIAIS, INCLUSIVE ESTRUTURA DE FIXAÇÃO, CHAPA 625 x 625 MM | F64: COT-ARQ-001 | G64: COTAÇÃO | H64: M2 | I64: =F72 -> 95.26 | J64: =TRUNC(IF(G64="SINAPI",VLOOKUP($F64,DADOS_SINAPI,4,0),IF(G64="SETOP",VLOOKUP($F64,DADOS_SETOP,4,0),IF(G64="CPU",VLOOKUP($F64,DADOS_COMPOSICAO,13,0),IF(G64="SICRO",VLOOKUP($F64,DADOS_SICRO,4,0),IF(G64="SUDECAP",VLOOKUP(F64,DADOS_SUDECAP,4,0),IF(G64="COTAÇÃO",VLOOKUP(F64,DADOS_COTACAO,12,0),"")))))),2) -> 292 | K64: BDI 1 | L64: =TRUNC(J64*(1+$N$17),2) -> 369.43 | M64: =IFERROR(TRUNC(I64*J64,2),"") -> 27815.92 | N64: =IFERROR(TRUNC(L64*I64,2),"") -> 35191.9
A65: 2000
A66: 2000 | E66: Banheiros | F66: =2*3.65 -> 7.3 | G66: m²
A67: 2000 | E67: Salas de trabalho | F67: =3*10.4+12.6 -> 43.8 | G67: m²
A68: 2000 | E68: Escada | F68: 14.16 | G68: m²
A69: 2000 | E69: Circulação 1 | F69: 18.75 | G69: m²
A70: 2000 | E70: Circulação 2 | F70: 6.15 | G70: m²
A71: 2000 | E71: Circulação 3 | F71: 5.1 | G71: m²
A72: 2000 | E72: Total | F72: =SUM(F66:F71) -> 95.26 | G72: m²
A73: 2000
A74: =IFERROR(LEFT(D74,SEARCH(".",D74)-1),"") -> 5 | B74: =IFERROR(LEFT(RIGHT(D74,LEN(D74)-SEARCH(".",D74)),SEARCH(".",RIGHT(D74,LEN(D74)-SEARCH(".",D74)))-1),"") ->  | C74: =IFERROR(IF(LEN(D74)-LEN(SUBSTITUTE(D74,".",""))<>3,"",MID(D74,SEARCH(".",D74,SEARCH(".",D74)+1)+1,LEN(D74)-SEARCH(".",D74,SEARCH(".",D74)+1)-(LEN(D74)-(SEARCH(".",D74,SEARCH(".",D74,SEARCH(".",D74)+1)+1)-1)))),"") ->  | D74: 5.2 | E74: =IF($G74="SINAPI",VLOOKUP($F74,DADOS_SINAPI,2,0),IF(G74="SETOP",VLOOKUP($F74,DADOS_SETOP,2,0),IF(G74="CPU",VLOOKUP($F74,DADOS_COMPOSICAO,2,0),IF(G74="SICRO",VLOOKUP($F74,DADOS_SICRO,2,0),IF(G74="SUDECAP",VLOOKUP(F74,DADOS_SUDECAP,2,0),IF(G74="COTAÇÃO",VLOOKUP($F74,DADOS_COTACAO,2,0),"")))))) -> INSTALAÇÃO DE FORRO METÁLICO | F74: DAC-5.1 | G74: CPU | H74: =IF(G74="SINAPI",VLOOKUP($F74,DADOS_SINAPI,3,0),IF(G74="SETOP",VLOOKUP($F74,DADOS_SETOP,3,0),IF(G74="CPU",VLOOKUP($F74,DADOS_COMPOSICAO,10,0),IF(G74="SICRO",VLOOKUP($F74,DADOS_SICRO,3,0),IF(G74="SUDECAP",VLOOKUP(F74,DADOS_SUDECAP,3,0),IF(G74="COTAÇÃO",VLOOKUP($F74,DADOS_COTACAO,9,0),"")))))) -> M2 | I74: =F76 -> 95.26 | J74: =TRUNC(IF(G74="SINAPI",VLOOKUP($F74,DADOS_SINAPI,4,0),IF(G74="SETOP",VLOOKUP($F74,DADOS_SETOP,4,0),IF(G74="CPU",VLOOKUP($F74,DADOS_COMPOSICAO,13,0),IF(G74="SICRO",VLOOKUP($F74,DADOS_SICRO,4,0),IF(G74="SUDECAP",VLOOKUP(F74,DADOS_SUDECAP,4,0),IF(G74="COTAÇÃO",VLOOKUP(F74,DADOS_COTACAO,12,0),"")))))),2) -> 61.93 | K74: BDI 1 | L74: =TRUNC(J74*(1+$N$17),2) -> 78.35 | M74: =IFERROR(TRUNC(I74*J74,2),"") -> 5899.45 | N74: =IFERROR(TRUNC(L74*I74,2),"") -> 7463.62
A75: 2000
A76: 2000 | E76: Quantidade | F76: =F72 -> 95.26 | G76: m²
A77: 2000
A78: 1000 | D78: 6 | E78: PINTURA | M78: =SUMIF(A:A,D78,M:M) -> 4641.81 | N78: =SUMIF(A:A,D78,N:N) -> 5871.15
A79: =IFERROR(LEFT(D79,SEARCH(".",D79)-1),"") -> 6 | B79: =IFERROR(LEFT(RIGHT(D79,LEN(D79)-SEARCH(".",D79)),SEARCH(".",RIGHT(D79,LEN(D79)-SEARCH(".",D79)))-1),"") ->  | C79: =IFERROR(IF(LEN(D79)-LEN(SUBSTITUTE(D79,".",""))<>3,"",MID(D79,SEARCH(".",D79,SEARCH(".",D79)+1)+1,LEN(D79)-SEARCH(".",D79,SEARCH(".",D79)+1)-(LEN(D79)-(SEARCH(".",D79,SEARCH(".",D79,SEARCH(".",D79)+1)+1)-1)))),"") ->  | D79: 6.1 | E79: =IF($G79="SINAPI",VLOOKUP($F79,DADOS_SINAPI,2,0),IF(G79="SETOP",VLOOKUP($F79,DADOS_SETOP,2,0),IF(G79="CPU",VLOOKUP($F79,DADOS_COMPOSICAO,2,0),IF(G79="SICRO",VLOOKUP($F79,DADOS_SICRO,2,0),IF(G79="SUDECAP",VLOOKUP(F79,DADOS_SUDECAP,2,0),IF(G79="COTAÇÃO",VLOOKUP($F79,DADOS_COTACAO,2,0),"")))))) -> PINTURA LÁTEX ACRÍLICA PREMIUM, APLICAÇÃO MANUAL EM PAREDES, DUAS DEMÃOS. AF_04/2023 | F79: 88489 | G79: SINAPI | H79: =IF(G79="SINAPI",VLOOKUP($F79,DADOS_SINAPI,3,0),IF(G79="SETOP",VLOOKUP($F79,DADOS_SETOP,3,0),IF(G79="CPU",VLOOKUP($F79,DADOS_COMPOSICAO,10,0),IF(G79="SICRO",VLOOKUP($F79,DADOS_SICRO,3,0),IF(G79="SUDECAP",VLOOKUP(F79,DADOS_SUDECAP,3,0),IF(G79="COTAÇÃO",VLOOKUP($F79,DADOS_COTACAO,9,0),"")))))) -> M2 | I79: =F81 -> 423.91 | J79: =TRUNC(IF(G79="SINAPI",VLOOKUP($F79,DADOS_SINAPI,4,0),IF(G79="SETOP",VLOOKUP($F79,DADOS_SETOP,4,0),IF(G79="CPU",VLOOKUP($F79,DADOS_COMPOSICAO,13,0),IF(G79="SICRO",VLOOKUP($F79,DADOS_SICRO,4,0),IF(G79="SUDECAP",VLOOKUP(F79,DADOS_SUDECAP,4,0),IF(G79="COTAÇÃO",VLOOKUP(F79,DADOS_COTACAO,12,0),"")))))),2) -> 10.95 | K79: BDI 1 | L79: =TRUNC(J79*(1+$N$17),2) -> 13.85 | M79: =IFERROR(TRUNC(I79*J79,2),"") -> 4641.81 | N79: =IFERROR(TRUNC(L79*I79,2),"") -> 5871.15
A80: 2000
A81: 2000 | E81: IGUAL AO LIXAMENTO DE PAREDES | F81: =F56 -> 423.91 | G81: m²
A82: 2000
A83: 1000 | D83: 7 | E83: SERVIÇOS FINAIS | M83: =SUMIF(A:A,D83,M:M) -> 751.61 | N83: =SUMIF(A:A,D83,N:N) -> 950.27
A84: =IFERROR(LEFT(D84,SEARCH(".",D84)-1),"") -> 7 | B84: =IFERROR(LEFT(RIGHT(D84,LEN(D84)-SEARCH(".",D84)),SEARCH(".",RIGHT(D84,LEN(D84)-SEARCH(".",D84)))-1),"") ->  | C84: =IFERROR(IF(LEN(D84)-LEN(SUBSTITUTE(D84,".",""))<>3,"",MID(D84,SEARCH(".",D84,SEARCH(".",D84)+1)+1,LEN(D84)-SEARCH(".",D84,SEARCH(".",D84)+1)-(LEN(D84)-(SEARCH(".",D84,SEARCH(".",D84,SEARCH(".",D84)+1)+1)-1)))),"") ->  | D84: 7.1 | E84: =IF($G84="SINAPI",VLOOKUP($F84,DADOS_SINAPI,2,0),IF(G84="SETOP",VLOOKUP($F84,DADOS_SETOP,2,0),IF(G84="CPU",VLOOKUP($F84,DADOS_COMPOSICAO,2,0),IF(G84="SICRO",VLOOKUP($F84,DADOS_SICRO,2,0),IF(G84="SUDECAP",VLOOKUP(F84,DADOS_SUDECAP,2,0),IF(G84="COTAÇÃO",VLOOKUP($F84,DADOS_COTACAO,2,0),"")))))) -> LIMPEZA FINAL PARA ENTREGA DA OBRA | F84: ED-50266 | G84: SETOP | H84: =IF(G84="SINAPI",VLOOKUP($F84,DADOS_SINAPI,3,0),IF(G84="SETOP",VLOOKUP($F84,DADOS_SETOP,3,0),IF(G84="CPU",VLOOKUP($F84,DADOS_COMPOSICAO,10,0),IF(G84="SICRO",VLOOKUP($F84,DADOS_SICRO,3,0),IF(G84="SUDECAP",VLOOKUP(F84,DADOS_SUDECAP,3,0),IF(G84="COTAÇÃO",VLOOKUP($F84,DADOS_COTACAO,9,0),"")))))) -> m2 | I84: =F87 -> 116.17 | J84: =TRUNC(IF(G84="SINAPI",VLOOKUP($F84,DADOS_SINAPI,4,0),IF(G84="SETOP",VLOOKUP($F84,DADOS_SETOP,4,0),IF(G84="CPU",VLOOKUP($F84,DADOS_COMPOSICAO,13,0),IF(G84="SICRO",VLOOKUP($F84,DADOS_SICRO,4,0),IF(G84="SUDECAP",VLOOKUP(F84,DADOS_SUDECAP,4,0),IF(G84="COTAÇÃO",VLOOKUP(F84,DADOS_COTACAO,12,0),"")))))),2) -> 6.47 | K84: BDI 1 | L84: =TRUNC(J84*(1+$N$17),2) -> 8.18 | M84: =IFERROR(TRUNC(I84*J84,2),"") -> 751.61 | N84: =IFERROR(TRUNC(L84*I84,2),"") -> 950.27
A85: 2000
A86: 2000 | E86: Área para limpeza | F86: 116.17 | G86: m²
A87: 2000 | E87: Total | F87: =F86 -> 116.17 | G87: m²
A88: 2000
D90: TOTAL INCLUINDO ADMINISTRAÇÃO | M90: =IFERROR(SUMIF(A:A,1000,M:M),"") -> 101403.56
D91: BDI | M91: =IFERROR(M92-M90,"") -> 26884.06
D92: TOTAL GERAL | M92: =IFERROR(SUMIF(A:A,1000,N:N),"") -> 128287.62
E96: RESPONSÁVEL TÉCNICO: | F96: =DADOS!D16 -> FLÁVIA CRISTINA BARBOSA
F97: =DADOS!D18 -> CREA - MG 187.842/D

Sheet ABC
A2: CURVA ABC DE SERVIÇOS | H2: Revisão: | I2: =DADOS!D6 -> R00
H3: Data: | I3: =DADOS!D2 -> 2023-08-30
A4: Projeto: | C4: Responsável: | D4: Cliente: | H4: Bancos:
A5: =DADOS!D8 -> MANUTENÇÃO DA SUPERINTENDÊNCIA DE RECURSOS MATERIAIS | H5: =DADOS!D14 -> SINAPI: 07/2023 Minas Gerais SETOP: 04/2023 Minas Gerais SICRO : 04/2023 Minas Gerais SUDECAP: 05/2023 Minas Gerais
H8: BDI 1: | I8: =DADOS!D10 -> 0.2652
H9: BDI 2: | I9: =DADOS!D12 -> 0.2025
A11: =A2&" DE "&DADOS!D20&" - "&A5 -> CURVA ABC DE SERVIÇOS DE PROJETO EXECUTIVO - MANUTENÇÃO DA SUPERINTENDÊNCIA DE RECURSOS MATERIAIS
A13: Código | B13: Banco | C13: Descrição | D13: Unidade | E13: Quantidade | F13: Valor Unitário | G13: Total | H13: Peso (%) | I13: Peso Acumulado (%)
A15: 94216 | B15: SINAPI | C15: TELHAMENTO COM TELHA METÁLICA TERMOACÚSTICA E = 30 MM, COM ATÉ 2 ÁGUAS, INCLUSO IÇAMENTO. AF_07/2019 | D15: M2 | E15: 308 | F15: 226.3 | G15: 69700.4 | H15: 0.5433135325 | I15: 0.5433135325
A16: COT-ARQ-001 | B16: COTAÇÃO | C16: FORRO METÁLICO, PARA AMBIENTES COMERCIAIS, INCLUSIVE ESTRUTURA DE FIXAÇÃO, CHAPA 625 x 625 MM | D16: M2 | E16: 95.26 | F16: 369.43 | G16: 35191.9 | H16: 0.2743203124 | I16: 0.8176338449
A17: DAC-5.1 | B17: CPU | C17: INSTALAÇÃO DE FORRO METÁLICO | D17: M2 | E17: 95.26 | F17: 78.35 | G17: 7463.62 | H17: 0.05817880166 | I17: 0.8758126466
A18: 88489 | B18: SINAPI | C18: PINTURA LÁTEX ACRÍLICA PREMIUM, APLICAÇÃO MANUAL EM PAREDES, DUAS DEMÃOS. AF_04/2023 | D18: M2 | E18: 423.91 | F18: 13.85 | G18: 5871.15 | H18: 0.04576552282 | I18: 0.9215781694
A19: ED-16350 | B19: SETOP | C19: LOCAÇÃO DE CONTAINER COM ISOLAMENTO TÉRMICO, TIPO 3, PARA DEPÓSITO/FERRAMENTARIA DE OBRA, COM MEDIDAS REFERENCIAIS DE (6) METROS COMPRIMENTO, (2,3) METROS LARGURA E (2,5) METROS ALTURA ÚTIL INTERNA, INCLUSIVE LIGAÇÕES ELÉTRICAS INTERNAS, EXCLUSIVE MOBILIZAÇÃO/DESMOBILIZAÇÃO E LIGAÇÕES PROVISÓRIAS EXTERNAS | D19: mês | E19: 3 | F19: 949.24 | G19: 2847.72 | H19: 0.02219793305 | I19: 0.9437761025
A20: ED-50137 | B20: SETOP | C20: MOBILIZAÇÃO E DESMOBILIZAÇÃO DE CONTAINER, INCLUSIVE CARGA, DESCARGA E TRANSPORTE EM CAMINHÃO CARROCERIA COM GUINDAUTO (MUNCK), EXCLUSIVE LOCAÇÃO DO CONTAINER | D20: un | E20: 1 | F20: 1811.74 | G20: 1811.74 | H20: 0.01412248508 | I20: 0.9578985876
A21: ED-28427 | B21: SETOP | C21: FORNECIMENTO E COLOCAÇÃO DE PLACA DE OBRA EM CHAPA GALVANIZADA #26, ESP. 0,45MM, DIMENSÃO (3X1,5)M, PLOTADA COM ADESIVO VINÍLICO, AFIXADA COM REBITES 4,8X40MM, EM ESTRUTURA METÁLICA DE METALON 20X20MM, ESP. 1,25MM, INCLUSIVE SUPORTE EM EUCALIPTO AUTOCLAVADO PINTADO COM TINTA PVA DUAS (2) DEMÃOS | D21: un | E21: 1 | F21: 1808.84 | G21: 1808.84 | H21: 0.01409987963 | I21: 0.9719984672
A22: ED-50505 | B22: SETOP | C22: LIXAMENTO MANUAL EM PAREDE PARA REMOÇÃO DE TINTA | D22: M2 | E22: 423.91 | F22: 3.4 | G22: 1441.29 | H22: 0.0112348331 | I22: 0.9832333003
A23: ED-50266 | B23: SETOP | C23: LIMPEZA FINAL PARA ENTREGA DA OBRA | D23: m2 | E23: 116.17 | F23: 8.18 | G23: 950.27 | H23: 0.007407339851 | I23: 0.9906406401
A24: 97647 | B24: SINAPI | C24: REMOÇÃO DE TELHAS, DE FIBROCIMENTO, METÁLICA E CERÂMICA, DE FORMA MANUAL, SEM REAPROVEITAMENTO. AF_12/2017 | D24: M2 | E24: 162.18 | F24: 3.65 | G24: 591.95 | H24: 0.004614241031 | I24: 0.9952548812
A25: ED-16358 | B25: SETOP | C25: LIGAÇÕES PROVISÓRIAS PARA CONTAINER TIPO 3 (CORRESPONDENTE AO CÓDIGO ED-16350) | D25: un | E25: 1 | F25: 412.51 | G25: 412.51 | H25: 0.003215509026 | I25: 0.9984703902
A26: 97640 | B26: SINAPI | C26: REMOÇÃO DE FORROS DE DRYWALL, PVC E FIBROMINERAL, DE FORMA MANUAL, SEM REAPROVEITAMENTO. AF_12/2017 | D26: M2 | E26: 95.26 | F26: 2.06 | G26: 196.23 | H26: 0.001529609794 | I26: 1
A28: TOTAL INCLUINDO ADMINISTRAÇÃO | H28: =ORC!M90 -> 101403.56
A29: BDI | H29: =ORC!M91 -> 26884.06
A30: TOTAL GERAL | H30: =IF(ORC!M92=SUM(G:G),ORC!M92,"ERRO") -> 128287.62
D34: RESPONSÁVEL TÉCNICO: | F34: =DADOS!D16 -> FLÁVIA CRISTINA BARBOSA
F35: =DADOS!D18 -> CREA - MG 187.842/D

Sheet Auxiliar_ABC (hidden)
A1: 94216 | B1: SINAPI | C1: TELHAMENTO COM TELHA METÁLICA TERMOACÚSTICA E = 30 MM, COM ATÉ 2 ÁGUAS, INCLUSO IÇAMENTO. AF_07/2019 | D1: M2 | E1: 308 | F1: 226.3 | G1: 69700.4 | H1: 0.5433135325 | I1: 0.5433135325 | R1: QUANTIDADE TOTAL | V1: VALOR TOTAL | W1: % | X1: =W1 -> %
A2: COT-ARQ-001 | B2: COTAÇÃO | C2: FORRO METÁLICO, PARA AMBIENTES COMERCIAIS, INCLUSIVE ESTRUTURA DE FIXAÇÃO, CHAPA 625 x 625 MM | D2: M2 | E2: 95.26 | F2: 369.43 | G2: 35191.9 | H2: 0.2743203124 | I2: 0.8176338449 | R2: =SUMIF(ORC!$F:$F,O2,ORC!$I:$I) -> 0 | V2: =SUMIF(ORC!$F:$F,O2,ORC!$N:$N) -> 0 | W2: =V2/SUM($I:$I) -> 0 | X2: =W2+X1 -> 
A3: DAC-5.1 | B3: CPU | C3: INSTALAÇÃO DE FORRO METÁLICO | D3: M2 | E3: 95.26 | F3: 78.35 | G3: 7463.62 | H3: 0.05817880166 | I3: 0.8758126466
A4: 88489 | B4: SINAPI | C4: PINTURA LÁTEX ACRÍLICA PREMIUM, APLICAÇÃO MANUAL EM PAREDES, DUAS DEMÃOS. AF_04/2023 | D4: M2 | E4: 423.91 | F4: 13.85 | G4: 5871.15 | H4: 0.04576552282 | I4: 0.9215781694
A5: ED-16350 | B5: SETOP | C5: LOCAÇÃO DE CONTAINER COM ISOLAMENTO TÉRMICO, TIPO 3, PARA DEPÓSITO/FERRAMENTARIA DE OBRA, COM MEDIDAS REFERENCIAIS DE (6) METROS COMPRIMENTO, (2,3) METROS LARGURA E (2,5) METROS ALTURA ÚTIL INTERNA, INCLUSIVE LIGAÇÕES ELÉTRICAS INTERNAS, EXCLUSIVE MOBILIZAÇÃO/DESMOBILIZAÇÃO E LIGAÇÕES PROVISÓRIAS EXTERNAS | D5: mês | E5: 3 | F5: 949.24 | G5: 2847.72 | H5: 0.02219793305 | I5: 0.9437761025
A6: ED-50137 | B6: SETOP | C6: MOBILIZAÇÃO E DESMOBILIZAÇÃO DE CONTAINER, INCLUSIVE CARGA, DESCARGA E TRANSPORTE EM CAMINHÃO CARROCERIA COM GUINDAUTO (MUNCK), EXCLUSIVE LOCAÇÃO DO CONTAINER | D6: un | E6: 1 | F6: 1811.74 | G6: 1811.74 | H6: 0.01412248508 | I6: 0.9578985876
A7: ED-28427 | B7: SETOP | C7: FORNECIMENTO E COLOCAÇÃO DE PLACA DE OBRA EM CHAPA GALVANIZADA #26, ESP. 0,45MM, DIMENSÃO (3X1,5)M, PLOTADA COM ADESIVO VINÍLICO, AFIXADA COM REBITES 4,8X40MM, EM ESTRUTURA METÁLICA DE METALON 20X20MM, ESP. 1,25MM, INCLUSIVE SUPORTE EM EUCALIPTO AUTOCLAVADO PINTADO COM TINTA PVA DUAS (2) DEMÃOS | D7: un | E7: 1 | F7: 1808.84 | G7: 1808.84 | H7: 0.01409987963 | I7: 0.9719984672
A8: ED-50505 | B8: SETOP | C8: LIXAMENTO MANUAL EM PAREDE PARA REMOÇÃO DE TINTA | D8: M2 | E8: 423.91 | F8: 3.4 | G8: 1441.29 | H8: 0.0112348331 | I8: 0.9832333003
A9: ED-50266 | B9: SETOP | C9: LIMPEZA FINAL PARA ENTREGA DA OBRA | D9: m2 | E9: 116.17 | F9: 8.18 | G9: 950.27 | H9: 0.007407339851 | I9: 0.9906406401
A10: 97647 | B10: SINAPI | C10: REMOÇÃO DE TELHAS, DE FIBROCIMENTO, METÁLICA E CERÂMICA, DE FORMA MANUAL, SEM REAPROVEITAMENTO. AF_12/2017 | D10: M2 | E10: 162.18 | F10: 3.65 | G10: 591.95 | H10: 0.004614241031 | I10: 0.9952548812
A11: ED-16358 | B11: SETOP | C11: LIGAÇÕES PROVISÓRIAS PARA CONTAINER TIPO 3 (CORRESPONDENTE AO CÓDIGO ED-16350) | D11: un | E11: 1 | F11: 412.51 | G11: 412.51 | H11: 0.003215509026 | I11: 0.9984703902
A12: 97640 | B12: SINAPI | C12: REMOÇÃO DE FORROS DE DRYWALL, PVC E FIBROMINERAL, DE FORMA MANUAL, SEM REAPROVEITAMENTO. AF_12/2017 | D12: M2 | E12: 95.26 | F12: 2.06 | G12: 196.23 | H12: 0.001529609794 | I12: 1

Sheet Auxiliar_ABC2 (hidden)
A1: 1 | D1: 1.1 | E1: LOCAÇÃO DE CONTAINER COM ISOLAMENTO TÉRMICO, TIPO 3, PARA DEPÓSITO/FERRAMENTARIA DE OBRA, COM MEDIDAS REFERENCIAIS DE (6) METROS COMPRIMENTO, (2,3) METROS LARGURA E (2,5) METROS ALTURA ÚTIL INTERNA, INCLUSIVE LIGAÇÕES ELÉTRICAS INTERNAS, EXCLUSIVE MOBILIZAÇÃO/DESMOBILIZAÇÃO E LIGAÇÕES PROVISÓRIAS EXTERNAS | F1: ED-16350 | G1: SETOP | H1: mês | I1: 3 | J1: 750.27 | K1: BDI 1 | L1: 949.24 | M1: 2250.81 | N1: 2847.72
A2: 1 | D2: 1.2 | E2: LIGAÇÕES PROVISÓRIAS PARA CONTAINER TIPO 3 (CORRESPONDENTE AO CÓDIGO ED-16350) | F2: ED-16358 | G2: SETOP | H2: un | I2: 1 | J2: 326.05 | K2: BDI 1 | L2: 412.51 | M2: 326.05 | N2: 412.51
A3: 1 | D3: 1.3 | E3: MOBILIZAÇÃO E DESMOBILIZAÇÃO DE CONTAINER, INCLUSIVE CARGA, DESCARGA E TRANSPORTE EM CAMINHÃO CARROCERIA COM GUINDAUTO (MUNCK), EXCLUSIVE LOCAÇÃO DO CONTAINER | F3: ED-50137 | G3: SETOP | H3: un | I3: 1 | J3: 1431.98 | K3: BDI 1 | L3: 1811.74 | M3: 1431.98 | N3: 1811.74
A4: 2 | D4: 2.1 | E4: FORNECIMENTO E COLOCAÇÃO DE PLACA DE OBRA EM CHAPA GALVANIZADA #26, ESP. 0,45MM, DIMENSÃO (3X1,5)M, PLOTADA COM ADESIVO VINÍLICO, AFIXADA COM REBITES 4,8X40MM, EM ESTRUTURA METÁLICA DE METALON 20X20MM, ESP. 1,25MM, INCLUSIVE SUPORTE EM EUCALIPTO AUTOCLAVADO PINTADO COM TINTA PVA DUAS (2) DEMÃOS | F4: ED-28427 | G4: SETOP | H4: un | I4: 1 | J4: 1429.69 | K4: BDI 1 | L4: 1808.84 | M4: 1429.69 | N4: 1808.84
A5: 3 | D5: 3.1 | E5: REMOÇÃO DE TELHAS, DE FIBROCIMENTO, METÁLICA E CERÂMICA, DE FORMA MANUAL, SEM REAPROVEITAMENTO. AF_12/2017 | F5: 97647 | G5: SINAPI | H5: M2 | I5: 162.18 | J5: 2.89 | K5: BDI 1 | L5: 3.65 | M5: 468.7 | N5: 591.95
A6: 3 | D6: 3.2 | E6: REMOÇÃO DE FORROS DE DRYWALL, PVC E FIBROMINERAL, DE FORMA MANUAL, SEM REAPROVEITAMENTO. AF_12/2017 | F6: 97640 | G6: SINAPI | H6: M2 | I6: 95.26 | J6: 1.63 | K6: BDI 1 | L6: 2.06 | M6: 155.27 | N6: 196.23
A7: 3 | D7: 3.3 | E7: LIXAMENTO MANUAL EM PAREDE PARA REMOÇÃO DE TINTA | F7: ED-50505 | G7: SETOP | H7: M2 | I7: 423.91 | J7: 2.69 | K7: BDI 1 | L7: 3.4 | M7: 1140.31 | N7: 1441.29
A8: 4 | D8: 4.1 | E8: TELHAMENTO COM TELHA METÁLICA TERMOACÚSTICA E = 30 MM, COM ATÉ 2 ÁGUAS, INCLUSO IÇAMENTO. AF_07/2019 | F8: 94216 | G8: SINAPI | H8: M2 | I8: 308 | J8: 178.87 | K8: BDI 1 | L8: 226.3 | M8: 55091.96 | N8: 69700.4
A9: 5 | D9: 5.1 | E9: FORRO METÁLICO, PARA AMBIENTES COMERCIAIS, INCLUSIVE ESTRUTURA DE FIXAÇÃO, CHAPA 625 x 625 MM | F9: COT-ARQ-001 | G9: COTAÇÃO | H9: M2 | I9: 95.26 | J9: 292 | K9: BDI 1 | L9: 369.43 | M9: 27815.92 | N9: 35191.9
A10: 5 | D10: 5.2 | E10: INSTALAÇÃO DE FORRO METÁLICO | F10: DAC-5.1 | G10: CPU | H10: M2 | I10: 95.26 | J10: 61.93 | K10: BDI 1 | L10: 78.35 | M10: 5899.45 | N10: 7463.62
A11: 6 | D11: 6.1 | E11: PINTURA LÁTEX ACRÍLICA PREMIUM, APLICAÇÃO MANUAL EM PAREDES, DUAS DEMÃOS. AF_04/2023 | F11: 88489 | G11: SINAPI | H11: M2 | I11: 423.91 | J11: 10.95 | K11: BDI 1 | L11: 13.85 | M11: 4641.81 | N11: 5871.15
A12: 7 | D12: 7.1 | E12: LIMPEZA FINAL PARA ENTREGA DA OBRA | F12: ED-50266 | G12: SETOP | H12: m2 | I12: 116.17 | J12: 6.47 | K12: BDI 1 | L12: 8.18 | M12: 751.61 | N12: 950.27

Sheet CPU
A2: COMPOSIÇÕES DE CUSTO | L2: Revisão: | M2: =DADOS!D6 -> R00
L3: Data: | M3: =DADOS!D2 -> 2023-08-30
A4: Projeto: | D4: Cliente: | H4: Cliente: | L4: Bancos:
A5: =DADOS!D8 -> MANUTENÇÃO DA SUPERINTENDÊNCIA DE RECURSOS MATERIAIS | L5: =DADOS!D14 -> SINAPI: 07/2023 Minas Gerais SETOP: 04/2023 Minas Gerais SICRO : 04/2023 Minas Gerais SUDECAP: 05/2023 Minas Gerais
L8: BDI 1: | M8: =DADOS!D10 -> 0.2652
L9: BDI 2: | M9: =DADOS!D12 -> 0.2025
A11: =A2&" DE "&DADOS!D20&" - "&A5 -> COMPOSIÇÕES DE CUSTO DE PROJETO EXECUTIVO - MANUTENÇÃO DA SUPERINTENDÊNCIA DE RECURSOS MATERIAIS
A13: CÓDIGO | B13: DESCRIÇÃO | I13: Banco | J13: Unid. | K13: Coeficiente | L13: Preço Unit. | M13: Total
A15: 5 | B15: =VLOOKUP(A15,ORC!$D$24:$N$92,2,0) -> ACABAMENTOS
A16: DAC-5.1 | B16: INSTALAÇÃO DE FORRO METÁLICO | I16: CPU | J16: M2 | M16: =SUM(M17:M18) -> 61.93
B17: 88315 | C17: =IF(I17="SINAPI",VLOOKUP(B17,DADOS_SINAPI,2,0),IF(I17="SETOP",VLOOKUP(B17,DADOS_SETOP,2,0),IF(I17="SICRO",VLOOKUP(B17,DADOS_SICRO,2,0),IF(I17="SUDECAP",VLOOKUP(B17,DADOS_SUDECAP,2,0),IF(I17="COTAÇÃO",VLOOKUP(B17,DADOS_COTACAO,2,0),VLOOKUP(B17,DADOS_COMPOSICAO,2,0)))))) -> SERRALHEIRO COM ENCARGOS COMPLEMENTARES | I17: SINAPI | J17: =IF(I17="SINAPI",VLOOKUP(B17,DADOS_SINAPI,3,0),IF(I17="SETOP",VLOOKUP(B17,DADOS_SETOP,3,0),IF(I17="SICRO",VLOOKUP(B17,DADOS_SICRO,3,0),IF(I17="SUDECAP",VLOOKUP(B17,DADOS_SUDECAP,3,0),IF(I17="COTAÇÃO",VLOOKUP(B17,DADOS_COTACAO,9,0),VLOOKUP(B17,DADOS_COMPOSICAO,10,0)))))) -> H | K17: 1 | L17: =IF(I17="SINAPI",VLOOKUP(B17,DADOS_SINAPI,4,0),IF(I17="SETOP",VLOOKUP(B17,DADOS_SETOP,4,0),IF(I17="SICRO",VLOOKUP(B17,DADOS_SICRO,4,0),IF(I17="SUDECAP",VLOOKUP(B17,DADOS_SUDECAP,4,0),IF(I17="COTAÇÃO",VLOOKUP(B17,DADOS_COTACAO,12,0),VLOOKUP(B17,DADOS_COMPOSICAO,13,0)))))) -> 24.25 | M17: =K17*L17 -> 24.25
B18: 88265 | C18: =IF(I18="SINAPI",VLOOKUP(B18,DADOS_SINAPI,2,0),IF(I18="SETOP",VLOOKUP(B18,DADOS_SETOP,2,0),IF(I18="SICRO",VLOOKUP(B18,DADOS_SICRO,2,0),IF(I18="SUDECAP",VLOOKUP(B18,DADOS_SUDECAP,2,0),IF(I18="COTAÇÃO",VLOOKUP(B18,DADOS_COTACAO,2,0),VLOOKUP(B18,DADOS_COMPOSICAO,2,0)))))) -> ELETRICISTA INDUSTRIAL COM ENCARGOS COMPLEMENTARES | I18: SINAPI | J18: =IF(I18="SINAPI",VLOOKUP(B18,DADOS_SINAPI,3,0),IF(I18="SETOP",VLOOKUP(B18,DADOS_SETOP,3,0),IF(I18="SICRO",VLOOKUP(B18,DADOS_SICRO,3,0),IF(I18="SUDECAP",VLOOKUP(B18,DADOS_SUDECAP,3,0),IF(I18="COTAÇÃO",VLOOKUP(B18,DADOS_COTACAO,9,0),VLOOKUP(B18,DADOS_COMPOSICAO,10,0)))))) -> H | K18: 1.5 | L18: =IF(I18="SINAPI",VLOOKUP(B18,DADOS_SINAPI,4,0),IF(I18="SETOP",VLOOKUP(B18,DADOS_SETOP,4,0),IF(I18="SICRO",VLOOKUP(B18,DADOS_SICRO,4,0),IF(I18="SUDECAP",VLOOKUP(B18,DADOS_SUDECAP,4,0),IF(I18="COTAÇÃO",VLOOKUP(B18,DADOS_COTACAO,12,0),VLOOKUP(B18,DADOS_COMPOSICAO,13,0)))))) -> 25.12 | M18: 37.68
D27: RESPONSÁVEL TÉCNICO: | G27: =DADOS!D16 -> FLÁVIA CRISTINA BARBOSA
G28: =DADOS!D18 -> CREA - MG 187.842/D

Sheet COT
A2: PLANILHA DE COTAÇÕES | K2: Revisão: | L2: =DADOS!D6 -> R00
K3: Data: | L3: =DADOS!D2 -> 2023-08-30
A4: Projeto: | D4: Responsável: | G4: Cliente: | K4: Bancos:
A5: =DADOS!D8 -> MANUTENÇÃO DA SUPERINTENDÊNCIA DE RECURSOS MATERIAIS | D5: =DADOS!G8 -> 0 | K5: =DADOS!D14 -> SINAPI: 07/2023 Minas Gerais SETOP: 04/2023 Minas Gerais SICRO : 04/2023 Minas Gerais SUDECAP: 05/2023 Minas Gerais
K8: BDI 1: | L8: =DADOS!D10 -> 0.2652
K9: BDI 2: | L9: =DADOS!D12 -> 0.2025
A11: =A2&" DE "&DADOS!D20&" - "&A5 -> PLANILHA DE COTAÇÕES DE PROJETO EXECUTIVO - MANUTENÇÃO DA SUPERINTENDÊNCIA DE RECURSOS MATERIAIS
A13: COT-ARQ-001 | B13: FORRO METÁLICO, PARA AMBIENTES COMERCIAIS, INCLUSIVE ESTRUTURA DE FIXAÇÃO, CHAPA 625 x 625 MM | I13: UN | L13: =MEDIAN(L15:XFD17) -> 292
A14: EMPRESA | B14: CIDADE | C14: LOCAL / LINK | G14: CNPJ | H14: CONTATO | I14: UN | J14: VALOR | K14: FRETE | L14: TOTAL
A15: REFAX FACHADAS E FORROS | B15: BRAGANÇA PAULISTA/SP | G15: 54.982.152/0001-66 | H15: (11) 4035-0000 | I15: UN | J15: 230.61 | K15: 0 | L15: =J15+K15 -> 230.61
A16: BEPEX | B16: IRACEMÁPOLIS/SP | G16: 39.905.862/0001-07 | H16: (19) 98958-3735 | I16: UN | J16: 316.06 | K16: 0 | L16: =J16+K16 -> 316.06
A17: HUNTER DOUGLAS DO BRASIL | B17: SÃO PAULO/SP | G17: 48.775.191-0001-90 | H17: (11) 2135-1026 | I17: UN | J17: 292 | K17: 0 | L17: =J17+K17 -> 292
C21: RESPONSÁVEL TÉCNICO: | F21: =DADOS!D16 -> FLÁVIA CRISTINA BARBOSA
F22: =DADOS!D18 -> CREA - MG 187.842/D

Sheet SINAPI
B1: SINAPI JULHO 2023
A2: CÓDIGO | B2: DESCRIÇÃO | C2: UNIDADE | D2: PREÇO
A3: 38605 | B3: ABERTURA PARA ENCAIXE DE CUBA OU LAVATORIO EM BANCADA DE MARMORE/ GRANITO OU OUTRO TIPO DE PEDRA NATURAL | C3: UN | D3: 109.28
A4: 11270 | B4: ABRACADEIRA DE LATAO PARA FIXACAO DE CABO PARA-RAIO, DIMENSOES 32 X 24 X 24 MM | C4: UN | D4: 3.36
A5: 412 | B5: ABRACADEIRA DE NYLON PARA AMARRACAO DE CABOS, COMPRIMENTO DE *230* X *7,6* MM | C5: UN | D5: 0.92
A6: 414 | B6: ABRACADEIRA DE NYLON PARA AMARRACAO DE CABOS, COMPRIMENTO DE 100 X 2,5 MM | C6: UN | D6: 0.05
A7: 410 | B7: ABRACADEIRA DE NYLON PARA AMARRACAO DE CABOS, COMPRIMENTO DE 150 X *3,6* MM | C7: UN | D7: 0.14
A8: 411 | B8: ABRACADEIRA DE NYLON PARA AMARRACAO DE CABOS, COMPRIMENTO DE 200 X *4,6* MM | C8: UN | D8: 0.18
A9: 408 | B9: ABRACADEIRA DE NYLON PARA AMARRACAO DE CABOS, COMPRIMENTO DE 390 X *4,6* MM | C9: UN | D9: 0.89
A10: 39131 | B10: ABRACADEIRA EM ACO PARA AMARRACAO DE ELETRODUTOS, TIPO D, COM 1 1/2" E CUNHA DE FIXACAO | C10: UN | D10: 3.82
A11: 394 | B11: ABRACADEIRA EM ACO PARA AMARRACAO DE ELETRODUTOS, TIPO D, COM 1 1/2" E PARAFUSO DE FIXACAO | C11: UN | D11: 3.87
A12: 39130 | B12: ABRACADEIRA EM ACO PARA AMARRACAO DE ELETRODUTOS, TIPO D, COM 1 1/4" E CUNHA DE FIXACAO | C12: UN | D12: 3.49
A13: 395 | B13: ABRACADEIRA EM ACO PARA AMARRACAO DE ELETRODUTOS, TIPO D, COM 1 1/4" E PARAFUSO DE FIXACAO | C13: UN | D13: 3.73
A14: 39127 | B14: ABRACADEIRA EM ACO PARA AMARRACAO DE ELETRODUTOS, TIPO D, COM 1/2" E CUNHA DE FIXACAO | C14: UN | D14: 1.84
A15: 392 | B15: ABRACADEIRA EM ACO PARA AMARRACAO DE ELETRODUTOS, TIPO D, COM 1/2" E PARAFUSO DE FIXACAO | C15: UN | D15: 1.89
A16: 39129 | B16: ABRACADEIRA EM ACO PARA AMARRACAO DE ELETRODUTOS, TIPO D, COM 1" E CUNHA DE FIXACAO | C16: UN | D16: 2.15
A17: 393 | B17: ABRACADEIRA EM ACO PARA AMARRACAO DE ELETRODUTOS, TIPO D, COM 1" E PARAFUSO DE FIXACAO | C17: UN | D17: 2.25
A18: 39133 | B18: ABRACADEIRA EM ACO PARA AMARRACAO DE ELETRODUTOS, TIPO D, COM 2 1/2" E CUNHA DE FIXACAO | C18: UN | D18: 5.02
A19: 397 | B19: ABRACADEIRA EM ACO PARA AMARRACAO DE ELETRODUTOS, TIPO D, COM 2 1/2" E PARAFUSO DE FIXACAO | C19: UN | D19: 5.55
A20: 39132 | B20: ABRACADEIRA EM ACO PARA AMARRACAO DE ELETRODUTOS, TIPO D, COM 2" E CUNHA DE FIXACAO | C20: UN | D20: 4.02
A21: 396 | B21: ABRACADEIRA EM ACO PARA AMARRACAO DE ELETRODUTOS, TIPO D, COM 2" E PARAFUSO DE FIXACAO | C21: UN | D21: 4.3
A22: 39135 | B22: ABRACADEIRA EM ACO PARA AMARRACAO DE ELETRODUTOS, TIPO D, COM 3 1/2" E CUNHA DE FIXACAO | C22: UN | D22: 8.04
A23: 39128 | B23: ABRACADEIRA EM ACO PARA AMARRACAO DE ELETRODUTOS, TIPO D, COM 3/4" E CUNHA DE FIXACAO | C23: UN | D23: 2.01
A24: 400 | B24: ABRACADEIRA EM ACO PARA AMARRACAO DE ELETRODUTOS, TIPO D, COM 3/4" E PARAFUSO DE FIXACAO | C24: UN | D24: 1.96
A25: 39125 | B25: ABRACADEIRA EM ACO PARA AMARRACAO DE ELETRODUTOS, TIPO D, COM 3/8" E PARAFUSO DE FIXACAO | C25: UN | D25: 2.01
A26: 39134 | B26: ABRACADEIRA EM ACO PARA AMARRACAO DE ELETRODUTOS, TIPO D, COM 3" E CUNHA DE FIXACAO | C26: UN | D26: 6.7
A27: 398 | B27: ABRACADEIRA EM ACO PARA AMARRACAO DE ELETRODUTOS, TIPO D, COM 3" E PARAFUSO DE FIXACAO | C27: UN | D27: 6.17
A28: 39126 | B28: ABRACADEIRA EM ACO PARA AMARRACAO DE ELETRODUTOS, TIPO D, COM 4" E CUNHA DE FIXACAO | C28: UN | D28: 9.04
A29: 399 | B29: ABRACADEIRA EM ACO PARA AMARRACAO DE ELETRODUTOS, TIPO D, COM 4" E PARAFUSO DE FIXACAO | C29: UN | D29: 7.97
A30: 39158 | B30: ABRACADEIRA EM ACO PARA AMARRACAO DE ELETRODUTOS, TIPO ECONOMICA (GOTA), COM 8" | C30: UN | D30: 21.39
A31: 39141 | B31: ABRACADEIRA EM ACO PARA AMARRACAO DE ELETRODUTOS, TIPO U SIMPLES, COM 1 1/2" | C31: UN | D31: 1.55
A32: 39140 | B32: ABRACADEIRA EM ACO PARA AMARRACAO DE ELETRODUTOS, TIPO U SIMPLES, COM 1 1/4" | C32: UN | D32: 1.41
A33: 39137 | B33: ABRACADEIRA EM ACO PARA AMARRACAO DE ELETRODUTOS, TIPO U SIMPLES, COM 1/2" | C33: UN | D33: 0.81
A34: 39139 | B34: ABRACADEIRA EM ACO PARA AMARRACAO DE ELETRODUTOS, TIPO U SIMPLES, COM 1" | C34: UN | D34: 1.17
A35: 39143 | B35: ABRACADEIRA EM ACO PARA AMARRACAO DE ELETRODUTOS, TIPO U SIMPLES, COM 2 1/2" | C35: UN | D35: 3.2
A36: 39142 | B36: ABRACADEIRA EM ACO PARA AMARRACAO DE ELETRODUTOS, TIPO U SIMPLES, COM 2" | C36: UN | D36: 2.29
A37: 39138 | B37: ABRACADEIRA EM ACO PARA AMARRACAO DE ELETRODUTOS, TIPO U SIMPLES, COM 3/4" | C37: UN | D37: 0.86
A38: 39136 | B38: ABRACADEIRA EM ACO PARA AMARRACAO DE ELETRODUTOS, TIPO U SIMPLES, COM 3/8" | C38: UN | D38: 0.57
A39: 39144 | B39: ABRACADEIRA EM ACO PARA AMARRACAO DE ELETRODUTOS, TIPO U SIMPLES, COM 3" | C39: UN | D39: 3.73
A40: 39145 | B40: ABRACADEIRA EM ACO PARA AMARRACAO DE ELETRODUTOS, TIPO U SIMPLES, COM 4" | C40: UN | D40: 6.15
A41: 12615 | B41: ABRACADEIRA PVC, PARA CALHA PLUVIAL, DIAMETRO ENTRE *80 E 100* MM, PARA DRENAGEM PLUVIAL PREDIAL | C41: UN | D41: 13.26
A42: 11927 | B42: ABRACADEIRA, GALVANIZADA/ZINCADA, ROSCA SEM FIM, PARAFUSO INOX, LARGURA FITA *12,6 A *14 MM, D = 2" A 2 1/2" | C42: UN | D42: 10.03
A43: 11928 | B43: ABRACADEIRA, GALVANIZADA/ZINCADA, ROSCA SEM FIM, PARAFUSO INOX, LARGURA FITA *12,6 A *14 MM, D = 3" A 3 3/4" | C43: UN | D43: 11.49
A44: 11929 | B44: ABRACADEIRA, GALVANIZADA/ZINCADA, ROSCA SEM FIM, PARAFUSO INOX, LARGURA FITA *12,6 A *14 MM, D = 4" A 4 3/4" | C44: UN | D44: 17.77
A45: 36801 | B45: ACABAMENTO DE METAL CROMADO PARA REGISTRO PEQUENO, DE PAREDE, 1/2 " OU 3/4 " | C45: UN | D45: 28.95
A46: 36246 | B46: ACABAMENTO SIMPLES/CONVENCIONAL PARA FORRO PVC, TIPO "U" OU "C", COR BRANCA, COMPRIMENTO 6 M | C46: M | D46: 4.03
A47: 37600 | B47: ACESSORIO DE LIGACAO NAO ELETRICO PARA CARGAS EXPLOSIVAS, TUBO DE 6 M | C47: UN | D47: 110.28
A48: 37599 | B48: ACESSORIO INICIADOR NAO ELETRICO, TUBO DE 6 M, TEMPO DE RETARDO DE *160* MS | C48: UN | D48: 102.64
A49: 1 | B49: ACETILENO (RECARGA DE GAS ACETILENO PARA CILINDRO DE CONJUNTO OXICORTE GRANDE) NAO INCLUI TROCA/MANUTENCAO DO CILINDRO | C49: KG | D49: 85.68
A50: 3 | B50: ACIDO CLORIDRICO / ACIDO MURIATICO, DILUICAO 10% A 12% PARA USO EM LIMPEZA | C50: L | D50: 20.32
A51: 43054 | B51: ACO CA-25, 10,0 MM, OU 12,5 MM, OU 16,0 MM, OU 20,0 MM, OU 25,0 MM, VERGALHAO | C51: KG | D51: 8.4
A52: 42402 | B52: ACO CA-25, 16,0 MM, BARRA DE TRANSFERENCIA | C52: KG | D52: 8.02
A53: 42403 | B53: ACO CA-25, 20,0 MM, BARRA DE TRANSFERENCIA | C53: KG | D53: 10.29
A54: 42404 | B54: ACO CA-25, 25,0 MM, BARRA DE TRANSFERENCIA | C54: KG | D54: 10.24
A55: 42405 | B55: ACO CA-25, 32,0 MM, BARRA DE TRANSFERENCIA | C55: KG | D55: 10.9
A56: 34341 | B56: ACO CA-25, 32,0 MM, VERGALHAO | C56: KG | D56: 9.46
A57: 43053 | B57: ACO CA-25, 6,3 MM OU 8,0 MM, VERGALHAO | C57: KG | D57: 7.5
A58: 43058 | B58: ACO CA-50, 10,0 MM, OU 12,5 MM, OU 16,0 MM, OU 20,0 MM, DOBRADO E CORTADO | C58: KG | D58: 7.78
A59: 34 | B59: ACO CA-50, 10,0 MM, VERGALHAO | C59: KG | D59: 7.81
A60: 43055 | B60: ACO CA-50, 12,5 MM OU 16,0 MM, VERGALHAO | C60: KG | D60: 6.77
A61: 43056 | B61: ACO CA-50, 20,0 MM OU 25,0 MM, VERGALHAO | C61: KG | D61: 7.8
A62: 43057 | B62: ACO CA-50, 32,0 MM, VERGALHAO | C62: KG | D62: 8.58
A63: 34449 | B63: ACO CA-50, 6,3 MM, DOBRADO E CORTADO | C63: KG | D63: 9.17
A64: 32 | B64: ACO CA-50, 6,3 MM, VERGALHAO | C64: KG | D64: 8.24
A65: 33 | B65: ACO CA-50, 8,0 MM, VERGALHAO | C65: KG | D65: 8.29
A66: 43061 | B66: ACO CA-60, 4,2 MM OU 5,0 MM, DOBRADO E CORTADO | C66: KG | D66: 7.75
A67: 43059 | B67: ACO CA-60, 4,2 MM, OU 5,0 MM, OU 6,0 MM, OU 7,0 MM, VERGALHAO | C67: KG | D67: 7.39
A68: 43062 | B68: ACO CA-60, 6,0 MM OU 7,0 MM, DOBRADO E CORTADO | C68: KG | D68: 8.2
A69: 43060 | B69: ACO CA-60, 8,0 MM OU 9,5 MM, VERGALHAO | C69: KG | D69: 6.44
A70: 40410 | B70: ACOPLAMENTO RIGIDO EM FERRO FUNDIDO PARA SISTEMA DE TUBULACAO RANHURADA, DN 50 MM (2") | C70: UN | D70: 23.71
A71: 40411 | B71: ACOPLAMENTO RIGIDO EM FERRO FUNDIDO PARA SISTEMA DE TUBULACAO RANHURADA, DN 65 MM (2 1/2") | C71: UN | D71: 25.73
A72: 40412 | B72: ACOPLAMENTO RIGIDO EM FERRO FUNDIDO PARA SISTEMA DE TUBULACAO RANHURADA, DN 80 MM (3") | C72: UN | D72: 28.88
A73: 44254 | B73: ADAPTADOR CPVC, ROSCAVEL, COM FLANGES E ANEL DE VEDACAO, 15 MM, CAIXA D'AGUA PARA AGUA QUENTE | C73: UN | D73: 29.72
A74: 44255 | B74: ADAPTADOR CPVC, ROSCAVEL, COM FLANGES E ANEL DE VEDACAO, 22 MM, CAIXA D'AGUA PARA AGUA QUENTE | C74: UN | D74: 32.95
A75: 44256 | B75: ADAPTADOR CPVC, ROSCAVEL, COM FLANGES E ANEL DE VEDACAO, 28 MM, CAIXA D'AGUA PARA AGUA QUENTE | C75: UN | D75: 37.21
A76: 44257 | B76: ADAPTADOR CPVC, ROSCAVEL, COM FLANGES E ANEL DE VEDACAO, 35 MM, CAIXA D'AGUA PARA AGUA QUENTE | C76: UN | D76: 58.87
A77: 44258 | B77: ADAPTADOR CPVC, ROSCAVEL, COM FLANGES E ANEL DE VEDACAO, 42 MM, CAIXA D'AGUA PARA AGUA QUENTE | C77: UN | D77: 67.28
A78: 44259 | B78: ADAPTADOR CPVC, ROSCAVEL, COM FLANGES E ANEL DE VEDACAO, 54 MM, CAIXA D'AGUA PARA AGUA QUENTE | C78: UN | D78: 92.35
A79: 37997 | B79: ADAPTADOR CPVC, SOLDAVEL, 15 MM, PARA AGUA QUENTE | C79: UN | D79: 17.71
A80: 37998 | B80: ADAPTADOR CPVC, SOLDAVEL, 22 MM, PARA AGUA QUENTE | C80: UN | D80: 23.71
A81: 55 | B81: ADAPTADOR DE COMPRESSAO EM POLIPROPILENO (PP), PARA TUBO EM PEAD, 20 MM X 1/2", PARA LIGACAO PREDIAL DE AGUA (NTS 179) | C81: UN | D81: 3.88
A82: 61 | B82: ADAPTADOR DE COMPRESSAO EM POLIPROPILENO (PP), PARA TUBO EM PEAD, 20 MM X 3/4", PARA LIGACAO PREDIAL DE AGUA (NTS 179) | C82: UN | D82: 3.67
A83: 62 | B83: ADAPTADOR DE COMPRESSAO EM POLIPROPILENO (PP), PARA TUBO EM PEAD, 32 MM X 1", PARA LIGACAO PREDIAL DE AGUA (NTS 179) | C83: UN | D83: 7.6
A84: 10899 | B84: ADAPTADOR EM LATAO, ENGATE RAPIDO 2 1/2" X ROSCA INTERNA 5 FIOS 2 1/2", PARA INSTALACAO PREDIAL DE COMBATE A INCENDIO | C84: UN | D84: 78.85
A85: 10900 | B85: ADAPTADOR EM LATAO, ENGATE RAPIDO1 1/2" X ROSCA INTERNA 5 FIOS 2 1/2", PARA INSTALACAO PREDIAL DE COMBATE A INCENDIO | C85: UN | D85: 61.71
A86: 103 | B86: ADAPTADOR PVC SOLDAVEL CURTO COM BOLSA E ROSCA, 110 MM X 4", PARA AGUA FRIA | C86: UN | D86: 44.89
A87: 107 | B87: ADAPTADOR PVC SOLDAVEL CURTO COM BOLSA E ROSCA, 20 MM X 1/2", PARA AGUA FRIA | C87: UN | D87: 0.84
A88: 65 | B88: ADAPTADOR PVC SOLDAVEL CURTO COM BOLSA E ROSCA, 25 MM X 3/4", PARA AGUA FRIA | C88: UN | D88: 0.92
A89: 108 | B89: ADAPTADOR PVC SOLDAVEL CURTO COM BOLSA E ROSCA, 32 MM X 1", PARA AGUA FRIA | C89: UN | D89: 1.86
A90: 110 | B90: ADAPTADOR PVC SOLDAVEL CURTO COM BOLSA E ROSCA, 40 MM X 1 1/2", PARA AGUA FRIA | C90: UN | D90: 6.46
A91: 109 | B91: ADAPTADOR PVC SOLDAVEL CURTO COM BOLSA E ROSCA, 40 MM X 1 1/4", PARA AGUA FRIA | C91: UN | D91: 3.84
A92: 111 | B92: ADAPTADOR PVC SOLDAVEL CURTO COM BOLSA E ROSCA, 50 MM X 1 1/4", PARA AGUA FRIA | C92: UN | D92: 8.74
A93: 112 | B93: ADAPTADOR PVC SOLDAVEL CURTO COM BOLSA E ROSCA, 50 MM X1 1/2", PARA AGUA FRIA | C93: UN | D93: 4.63
A94: 113 | B94: ADAPTADOR PVC SOLDAVEL CURTO COM BOLSA E ROSCA, 60 MM X 2", PARA AGUA FRIA | C94: UN | D94: 11.59
A95: 104 | B95: ADAPTADOR PVC SOLDAVEL CURTO COM BOLSA E ROSCA, 75 MM X 2 1/2", PARA AGUA FRIA | C95: UN | D95: 20.17
A96: 102 | B96: ADAPTADOR PVC SOLDAVEL CURTO COM BOLSA E ROSCA, 85 MM X 3", PARA AGUA FRIA | C96: UN | D96: 27.81
A97: 95 | B97: ADAPTADOR PVC SOLDAVEL, COM FLANGE E ANEL DE VEDACAO, 20 MM X 1/2", PARA CAIXA D'AGUA | C97: UN | D97: 11.75
A98: 96 | B98: ADAPTADOR PVC SOLDAVEL, COM FLANGE E ANEL DE VEDACAO, 25 MM X 3/4", PARA CAIXA D'AGUA | C98: UN | D98: 12.79
A99: 97 | B99: ADAPTADOR PVC SOLDAVEL, COM FLANGE E ANEL DE VEDACAO, 32 MM X 1", PARA CAIXA D'AGUA | C99: UN | D99: 19.24
A100: 98 | B100: ADAPTADOR PVC SOLDAVEL, COM FLANGE E ANEL DE VEDACAO, 40 MM X 1 1/4", PARA CAIXA D'AGUA | C100: UN | D100: 28.79
A101: 99 | B101: ADAPTADOR PVC SOLDAVEL, COM FLANGE E ANEL DE VEDACAO, 50 MM X 1 1/2", PARA CAIXA D'AGUA | C101: UN | D101: 27.21
A102: 100 | B102: ADAPTADOR PVC SOLDAVEL, COM FLANGES E ANEL DE VEDACAO, 60 MM X 2", PARA CAIXA D' AGUA | C102: UN | D102: 47.55
A103: 75 | B103: ADAPTADOR PVC SOLDAVEL, COM FLANGES LIVRES, 110 MM X 4", PARA CAIXA D' AGUA | C103: UN | D103: 277.22
A104: 83 | B104: ADAPTADOR PVC SOLDAVEL, COM FLANGES LIVRES, 75 MM X 2 1/2", PARA CAIXA D' AGUA | C104: UN | D104: 221.63
A105: 74 | B105: ADAPTADOR PVC SOLDAVEL, COM FLANGES LIVRES, 85 MM X 3", PARA CAIXA D' AGUA | C105: UN | D105: 316.87
A106: 106 | B106: ADAPTADOR PVC SOLDAVEL, LONGO, COM FLANGE LIVRE, 110 MM X 4", PARA CAIXA D' AGUA | C106: UN | D106: 400.69
A107: 88 | B107: ADAPTADOR PVC SOLDAVEL, LONGO, COM FLANGE LIVRE, 32 MM X 1", PARA CAIXA D' AGUA | C107: UN | D107: 11.26
A108: 82 | B108: ADAPTADOR PVC SOLDAVEL, LONGO, COM FLANGE LIVRE, 75 MM X 2 1/2", PARA CAIXA D' AGUA | C108: UN | D108: 210.86
A109: 105 | B109: ADAPTADOR PVC SOLDAVEL, LONGO, COM FLANGE LIVRE, 85 MM X 3", PARA CAIXA D' AGUA | C109: UN | D109: 298.79
A110: 60 | B110: ADAPTADOR PVC, COM REGISTRO, PARA PEAD, 20 MM X 3/4", PARA LIGACAO PREDIAL DE AGUA | C110: UN | D110: 5.03
A111: 72 | B111: ADAPTADOR PVC, ROSCAVEL, COM FLANGES E ANEL DE VEDACAO, 1 1/2", PARA CAIXA D'AGUA | C111: UN | D111: 52.19
A112: 67 | B112: ADAPTADOR PVC, ROSCAVEL, COM FLANGES E ANEL DE VEDACAO, 1/2", PARA CAIXA D' AGUA | C112: UN | D112: 16.87
A113: 71 | B113: ADAPTADOR PVC, ROSCAVEL, COM FLANGES E ANEL DE VEDACAO, 1", PARA CAIXA D' AGUA | C113: UN | D113: 32.24
A114: 73 | B114: ADAPTADOR PVC, ROSCAVEL, COM FLANGES E ANEL DE VEDACAO, 3/4", PARA CAIXA D' AGUA | C114: UN | D114: 16.15
A115: 46 | B115: ADAPTADOR, PVC PBA, BOLSA/ROSCA, JE, DN 75 / DE 85 MM | C115: UN | D115: 42.91
A116: 47 | B116: ADAPTADOR, PVC PBA, BOLSA/ROSCA, JE, DN 100 / DE 110 MM | C116: UN | D116: 73.38
A117: 48 | B117: ADAPTADOR, PVC PBA, BOLSA/ROSCA, JE, DN 50 / DE 60 MM | C117: UN | D117: 19.14
A118: 52 | B118: ADAPTADOR, PVC PBA, PONTA/ROSCA, JE, DN 50 / DE 60 MM | C118: UN | D118: 14.54
A119: 43 | B119: ADAPTADOR, PVC PBA, PONTA/ROSCA, JE, DN 75 / DE 85 MM | C119: UN | D119: 49.07
A120: 39719 | B120: ADESIVO / COLA DE CONTATO LIQUIDO, A BASE DE RESINAS, PARA COLAGEM DE ESPUMA PARA ISOLAMENTO TERMICO FLEXIVEL | C120: L | D120: 149.11
A121: 3410 | B121: ADESIVO / COLA PARA EPS (ISOPOR) E OUTROS MATERIAIS | C121: KG | D121: 33.54
A122: 4791 | B122: ADESIVO ACRILICO DE BASE AQUOSA / COLA DE CONTATO | C122: KG | D122: 46.7
A123: 157 | B123: ADESIVO ESTRUTURAL A BASE DE RESINA EPOXI PARA INJECAO EM TRINCAS, BICOMPONENTE, BAIXA VISCOSIDADE | C123: KG | D123: 126.97
A124: 156 | B124: ADESIVO ESTRUTURAL A BASE DE RESINA EPOXI, BICOMPONENTE, FLUIDO | C124: KG | D124: 45.21
A125: 131 | B125: ADESIVO ESTRUTURAL A BASE DE RESINA EPOXI, BICOMPONENTE, PASTOSO (TIXOTROPICO) | C125: KG | D125: 38.66
A126: 21114 | B126: ADESIVO PARA TUBOS CPVC, *75* G | C126: UN | D126: 29.39
A127: 119 | B127: ADESIVO PLASTICO PARA PVC, BISNAGA COM 75 GR | C127: UN | D127: 7.45
A128: 122 | B128: ADESIVO PLASTICO PARA PVC, FRASCO COM *850* GR | C128: UN | D128: 57.32
A129: 20080 | B129: ADESIVO PLASTICO PARA PVC, FRASCO COM 175 GR | C129: UN | D129: 18.71
A130: 124 | B130: ADITIVO ACELERADOR DE PEGA E ENDURECIMENTO PARA ARGAMASSAS E CONCRETOS, LIQUIDO E ISENTO DE CLORETOS | C130: L | D130: 14.91
A131: 7334 | B131: ADITIVO ADESIVO LIQUIDO PARA ARGAMASSAS DE REVESTIMENTOS CIMENTICIOS | C131: L | D131: 14.15
A132: 123 | B132: ADITIVO IMPERMEABILIZANTE DE PEGA NORMAL PARA ARGAMASSAS E CONCRETOS SEM ARMACAO, LIQUIDO E ISENTO DE CLORETOS | C132: L | D132: 6.1
A133: 127 | B133: ADITIVO IMPERMEABILIZANTE DE PEGA ULTRARRAPIDA, LIQUIDO E ISENTO DE CLORETOS | C133: L | D133: 14.56
A134: 41373 | B134: ADITIVO LIQUIDO IMPERMEABILIZANTE CRISTALIZANTE | C134: L | D134: 20.29
A135: 133 | B135: ADITIVO LIQUIDO INCORPORADOR DE AR PARA CONCRETO E ARGAMASSA, LIQUIDO E ISENTO DE CLORETOS | C135: L | D135: 6.05
A136: 43617 | B136: ADITIVO PLASTIFICANTE E ESTABILIZADOR PARA ARGAMASSAS DE ASSENTAMENTO E REBOCO, LIQUIDO E ISENTO DE CLORETOS | C136: L | D136: 6.76
A137: 132 | B137: ADITIVO PLASTIFICANTE RETARDADOR DE PEGA E REDUTOR DE AGUA PARA CONCRETO, LIQUIDO E ISENTO DE CLORETOS | C137: L | D137: 6.27
A138: 43618 | B138: ADITIVO SUPERPLASTIFICANTE DE PEGA NORMAL PARA CONCRETO, LIQUIDO E ISENTO DE CLORETOS | C138: KG | D138: 15.78
A139: 37476 | B139: ADUELA/ GALERIA PRE-MOLDADA DE CONCRETO ARMADO, SECAO QUADRADA INTERNA DE 1,50 X 1,50 M (L X A), MISULA DE 20 X 20 CM, C = 1,00 M, ESPESSURA MIN = 15 CM, TB-45 E FCK DO CONCRETO = 30 MPA | C139: UN | D139: 4342.68
A140: 37478 | B140: ADUELA/ GALERIA PRE-MOLDADA DE CONCRETO ARMADO, SECAO RETANGULAR INTERNA DE 2,00 X 2,00 M (L X A), MISULA DE 20 X 20 CM, C = 1,00 M, ESPESSURA MIN = 15 CM, TB-45 E FCK DO CONCRETO = 30 MPA | C140: UN | D140: 5439.32
A141: 37477 | B141: ADUELA/ GALERIA PRE-MOLDADA DE CONCRETO ARMADO, SECAO RETANGULAR INTERNA DE 2,50 X 2,50 M (L X A), MISULA DE 20 X 20 CM, C = 1,00 M, ESPESSURA MIN = 15 CM, TB-45 E FCK DO CONCRETO = 30 MPA | C141: UN | D141: 7369.41
A142: 37479 | B142: ADUELA/ GALERIA PRE-MOLDADA DE CONCRETO ARMADO, SECAO RETANGULAR INTERNA DE 3,00 X 3,00 M (L X A), MISULA DE 20 X 20 CM, C = 1.00 M, ESPESSURA MIN = 20 CM, TB-45 E FCK DO CONCRETO = 30 MPA | C142: UN | D142: 8740.21
A143: 4319 | B143: AFASTADOR PARA TELHA DE FIBROCIMENTO CANALETE 90 OU KALHETAO | C143: UN | D143: 2.37
A144: 42409 | B144: AGENTE DE CURA, PROTETOR DA EVAPORACAO DA AGUA DE HIDRATACAO DO CONCRETO | C144: KG | D144: 9.94
A145: 40553 | B145: AGREGADO RECICLADO, TIPO RACHAO RECICLADO CINZA, CLASSE A | C145: M3 | D145: 48.5
A146: 6114 | B146: AJUDANTE DE ARMADOR (HORISTA) | C146: H | D146: 12.39
A147: 40912 | B147: AJUDANTE DE ARMADOR (MENSALISTA) | C147: MES | D147: 2185.38
A148: 247 | B148: AJUDANTE DE ELETRICISTA (HORISTA) | C148: H | D148: 13.86
A149: 40919 | B149: AJUDANTE DE ELETRICISTA (MENSALISTA) | C149: MES | D149: 2446
A150: 40984 | B150: AJUDANTE DE ESTRUTURAS METALICAS (MENSALISTA) | C150: MES | D150: 3076.31
A151: 44499 | B151: AJUDANTE DE ESTRUTURAS METALICAS HORISTA | C151: H | D151: 17.43
A152: 248 | B152: AJUDANTE DE OPERACAO EM GERAL (HORISTA) | C152: H | D152: 13.86
A153: 41086 | B153: AJUDANTE DE OPERACAO EM GERAL (MENSALISTA) | C153: MES | D153: 2446
A154: 34466 | B154: AJUDANTE DE PINTOR (HORISTA) | C154: H | D154: 13.86
A155: 41083 | B155: AJUDANTE DE PINTOR (MENSALISTA) | C155: MES | D155: 2446
A156: 252 | B156: AJUDANTE DE SERRALHEIRO (HORISTA) | C156: H | D156: 13.86
A157: 40909 | B157: AJUDANTE DE SERRALHEIRO (MENSALISTA) | C157: MES | D157: 2446
A158: 242 | B158: AJUDANTE ESPECIALIZADO (HORISTA) | C158: H | D158: 13.88
A159: 41085 | B159: AJUDANTE ESPECIALIZADO (MENSALISTA) | C159: MES | D159: 2449.4
A160: 427 | B160: ALCA PREFORMADA DE CONTRA POSTE, EM ACO GALVANIZADO, PARA CABO 3/16", COMPRIMENTO *860* MM | C160: UN | D160: 6.31
A161: 417 | B161: ALCA PREFORMADA DE DISTRIBUICAO, EM ACO GALVANIZADO, PARA CABO DE ALUMINIO DIAMETRO 16 A 25 MM | C161: UN | D161: 2.97
A162: 11273 | B162: ALCA PREFORMADA DE DISTRIBUICAO, EM ACO GALVANIZADO, PARA CONDUTORES DE ALUMINIO AWG 1/0 (CAA 6/1 OU CA 7 FIOS) | C162: UN | D162: 9.22
A163: 11272 | B163: ALCA PREFORMADA DE DISTRIBUICAO, EM ACO GALVANIZADO, PARA CONDUTORES DE ALUMINIO AWG 2 (CAA 6/1 OU CA 7 FIOS) | C163: UN | D163: 5.57
A164: 11275 | B164: ALCA PREFORMADA DE SERVICO, EM ACO GALVANIZADO, PARA CONDUTORES DE ALUMINIO AWG 4 (CAA 6/1) | C164: UN | D164: 2.23
A165: 11274 | B165: ALCA PREFORMADA DE SERVICO, EM ACO GALVANIZADO, PARA CONDUTORES DE ALUMINIO AWG 6 (CAA 6/1) | C165: UN | D165: 1.7
A166: 38470 | B166: ALICATE DE CORTE DIAGONAL 6 " COM ISOLAMENTO | C166: UN | D166: 34.45
A167: 38547 | B167: ALICATE DE CRIMPAR RJ11, RJ12 E RJ45 | C167: UN | D167: 94.01
A168: 38469 | B168: ALICATE DE PRESSAO PARA SOLDA DE CHAPA 18 " | C168: UN | D168: 101.08
A169: 38467 | B169: ALICATE DE PRESSAO 11 " PARA SOLDA, TIPO C | C169: UN | D169: 56.87
A170: 38468 | B170: ALICATE DE PRESSAO 11 " PARA SOLDA, TIPO U | C170: UN | D170: 62.59
A171: 38471 | B171: ALICATE PARA ANEIS DE PISTAO, CAPACIDADE 50 A 100 MM | C171: UN | D171: 81.28
A172: 37370 | B172: ALIMENTACAO - HORISTA (COLETADO CAIXA - ENCARGOS COMPLEMENTARES) | C172: H | D172: 1.69
A173: 40862 | B173: ALIMENTACAO - MENSALISTA (COLETADO CAIXA - ENCARGOS COMPLEMENTARES) | C173: MES | D173: 319.56
A174: 10658 | B174: ALISADORA DE CONCRETO COM MOTOR A GASOLINA DE 5,5 HP, PESO COM MOTOR DE 78 KG, 4 PAS | C174: UN | D174: 8189.5
A175: 253 | B175: ALMOXARIFE (HORISTA) | C175: H | D175: 22.58
A176: 40809 | B176: ALMOXARIFE (MENSALISTA) | C176: MES | D176: 3981.55
A177: 42428 | B177: ALONGADOR COM TRES ALTURAS, EM TUBO DE ACO CARBONO, PINTURA NO PROCESSO ELETROSTATICO - EQUIPAMENTO DE GINASTICA PARA ACADEMIA AO AR LIVRE / ACADEMIA DA TERCEIRA IDADE - ATI | C177: UN | D177: 2271
A178: 583 | B178: ALUMINIO ANODIZADO | C178: KG | D178: 65
A179: 301 | B179: ANEL BORRACHA PARA TUBO ESGOTO PREDIAL, DN 100 MM (NBR 5688) | C179: UN | D179: 2.9
A180: 296 | B180: ANEL BORRACHA PARA TUBO ESGOTO PREDIAL, DN 50 MM (NBR 5688) | C180: UN | D180: 1.64
A181: 297 | B181: ANEL BORRACHA PARA TUBO ESGOTO PREDIAL, DN 75 MM (NBR 5688) | C181: UN | D181: 2.41
A182: 299 | B182: ANEL BORRACHA, DN 100 MM, PARA TUBO SERIE REFORCADA ESGOTO PREDIAL | C182: UN | D182: 3.4
A183: 300 | B183: ANEL BORRACHA, DN 150 MM, PARA TUBO SERIE REFORCADA ESGOTO PREDIAL | C183: UN | D183: 11.77
A184: 20085 | B184: ANEL BORRACHA, DN 50 MM, PARA TUBO SERIE REFORCADA ESGOTO PREDIAL | C184: UN | D184: 2.15
A185: 298 | B185: ANEL BORRACHA, DN 75 MM, PARA TUBO SERIE REFORCADA ESGOTO PREDIAL | C185: UN | D185: 2.61
A186: 311 | B186: ANEL BORRACHA, PARA TUBO PVC DEFOFO, DN 100 MM (NBR 7665) | C186: UN | D186: 9.71
A187: 318 | B187: ANEL BORRACHA, PARA TUBO PVC DEFOFO, DN 150 MM (NBR 7665) | C187: UN | D187: 19.55
A188: 319 | B188: ANEL BORRACHA, PARA TUBO PVC DEFOFO, DN 200 MM (NBR 7665) | C188: UN | D188: 30.65
A189: 303 | B189: ANEL BORRACHA, PARA TUBO PVC, REDE COLETOR ESGOTO, DN 100 MM (NBR 7362) | C189: UN | D189: 3.21
A190: 305 | B190: ANEL BORRACHA, PARA TUBO PVC, REDE COLETOR ESGOTO, DN 150 MM (NBR 7362) | C190: UN | D190: 10.1
A191: 306 | B191: ANEL BORRACHA, PARA TUBO PVC, REDE COLETOR ESGOTO, DN 200 MM (NBR 7362) | C191: UN | D191: 15.32
A192: 307 | B192: ANEL BORRACHA, PARA TUBO PVC, REDE COLETOR ESGOTO, DN 250 MM (NBR 7362) | C192: UN | D192: 38.72
A193: 309 | B193: ANEL BORRACHA, PARA TUBO PVC, REDE COLETOR ESGOTO, DN 350 MM (NBR 7362) | C193: UN | D193: 63.43
A194: 310 | B194: ANEL BORRACHA, PARA TUBO PVC, REDE COLETOR ESGOTO, DN 400 MM (NBR 7362) | C194: UN | D194: 87.91
A195: 328 | B195: ANEL BORRACHA, PARA TUBO/CONEXAO PVC PBA, DN 100 MM, PARA REDE AGUA | C195: UN | D195: 7.68
A196: 325 | B196: ANEL BORRACHA, PARA TUBO/CONEXAO PVC PBA, DN 50 MM, PARA REDE AGUA | C196: UN | D196: 2.27
A197: 20326 | B197: ANEL BORRACHA, PARA TUBO/CONEXAO PVC PBA, DN 60 MM, PARA REDE AGUA | C197: UN | D197: 4.15
A198: 329 | B198: ANEL BORRACHA, PARA TUBO/CONEXAO PVC PBA, DN 75 MM, PARA REDE AGUA | C198: UN | D198: 6.42
A199: 308 | B199: ANEL BORRACHA, PARA TUBO, PVC REDE COLETOR ESGOTO, DN 300 MM (NBR 7362) | C199: UN | D199: 86.42
A200: 39642 | B200: ANEL DE BORRACHA PARA VEDACAO DE DUTO PEAD CORRUGADO PARA ELETRICA, DN 1 1/2" (NBR 15715) | C200: UN | D200: 2.85
... 12284 more rows

Sheet SETOP
B1: SETOP ABRIL 2023
A2: CÓDIGO | B2: DESCRIÇÃO | C2: UNIDADE | D2: PREÇO
A3: 8662 | B3: MOBILIZAÇÃO E DESMOBILIZAÇÃO DE OBRA
A4: 8700 | B4: OBRAS EM CENTRO URBANO OU REGIÃO LIMÍTROFE
A5: ED-50394 | B5: MOBILIZAÇÃO E DESMOBILIZAÇÃO DE OBRA EM CENTRO URBANO OU REGIÃO LIMÍTROFE COM VALOR ACIMA DE 3.000.000,01 | C5: % | D5: 0.2
A6: ED-50392 | B6: MOBILIZAÇÃO E DESMOBILIZAÇÃO DE OBRA EM CENTRO URBANO OU REGIÃO LIMÍTROFE COM VALOR ATÉ O VALOR DE 1.000.000,00 | C6: % | D6: 0.5
A7: ED-50393 | B7: MOBILIZAÇÃO E DESMOBILIZAÇÃO DE OBRA EM CENTRO URBANO OU REGIÃO LIMÍTROFE COM VALOR ENTRE 1.000.000,01 E 3.000.000,00 | C7: % | D7: 0.3
A8: 8701 | B8: OBRA DISTANTE DE CENTRO URBANO
A9: ED-50391 | B9: MOBILIZAÇÃO E DESMOBILIZAÇÃO OBRA DISTANTE DE CENTRO URBANO COM ACIMA DE 3.000.000,01 | C9: % | D9: 1
A10: ED-50390 | B10: MOBILIZAÇÃO E DESMOBILIZAÇÃO OBRA DISTANTE DE CENTRO URBANO COM ENTRE 1.000.000,01 E 3.000.000,00 | C10: % | D10: 1.5
A11: ED-50389 | B11: MOBILIZAÇÃO E DESMOBILIZAÇÃO OBRA DISTANTE DE CENTRO URBANO COM VALOR ATÉ O VALOR DE 1.000.000,00 | C11: % | D11: 2
A12: 8663 | B12: SERVIÇOS PRELIMINARES
A13: 8702 | B13: LIMPEZA DO TERRENO
A14: ED-50701 | B14: CAPINA MANUAL DO TERRENO, EXCLUSIVE RASTELAMENTO E QUEIMA | C14: m2 | D14: 1.18
A15: ED-28163 | B15: DESTOCAMENTO E AFASTAMENTO DE REMANESCENTE ARBÓREO, INCLUSIVE TRANSPORTE E RETIRADA DO MATERIAL ESCAVADO (EM CAÇAMBA) | C15: un | D15: 394.45
A16: ED-50703 | B16: LIMPEZA DE TERRENO, INCLUSIVE CAPINA, RASTELAMENTO COM AFASTAMENTO ATÉ VINTE (20) METROS E QUEIMA CONTROLADA | C16: m2 | D16: 2.08
A17: ED-8143 | B17: RASTELAMENTO DE ÁREA COM AFASTAMENTO DE ATÉ VINTE (20) METROS, EXCLUSIVE CAPINA OU ROÇADA MANUAL | C17: m2 | D17: 0.78
A18: ED-28162 | B18: ROÇADA MANUAL DE TERRENO COM ROÇADEIRA COSTAL, EXCLUSIVE RASTELAMENTO E QUEIMA | C18: m2 | D18: 0.17
A19: 8703 | B19: DESMATAMENTO E DESTOCAMENTO
A20: ED-50702 | B20: DESMATAMENTO, DESTOCAMENTO E LIMPEZA, INCLUSIVE TRANSPORTE ATÉ CINQUENTA (50) METROS | C20: m2 | D20: 0.48
A21: 8704 | B21: SUPRESSÃO DE ÁRVORE
A22: ED-50699 | B22: CORTE DE ÁRVORE COM MOTOSSERRA, DIÂMETRO DO TRONCO ACIMA DE TRINTA (30) CENTÍMETROS ATÉ CINQUENTA (50) CENTÍMETROS, EXCLUSIVE DESTOCAMENTO E AFASTAMENTO | C22: un | D22: 81.44
A23: ED-50697 | B23: CORTE DE ÁRVORE COM MOTOSSERRA, DIÂMETRO DO TRONCO DE QUINZE (15) CENTÍMETROS ATÉ TRINTA (30) CENTÍMETROS, EXCLUSIVE DESTOCAMENTO E AFASTAMENTO | C23: un | D23: 48.86
A24: 8706 | B24: REMOÇÃO DE TELHADO
A25: ED-48438 | B25: REMOÇÃO DE CALHA EM CHAPA GALVANIZADA OU EM PVC, COM REAPROVEITAMENTO, INCLUSIVE AFASTAMENTO E EMPILHAMENTO, EXCLUSIVE TRANSPORTE E RETIRADA DO MATERIAL REMOVIDO NÃO REAPROVEITÁVEL | C25: m | D25: 4.11
A26: ED-48446 | B26: REMOÇÃO MANUAL DE CONDUTOR EM PVC OU METÁLICO, COM REAPROVEITAMENTO, INCLUSIVE AFASTAMENTO E EMPILHAMENTO, EXCLUSIVE TRANSPORTE E RETIRADA DO MATERIAL REMOVIDO NÃO REAPROVEITÁVEL | C26: m | D26: 4.93
A27: ED-48455 | B27: REMOÇÃO MANUAL DE ENGRADAMENTO PARA TELHA TIPO CALHA ESTRUTURAL EM FIBROCIMENTO, COM REAPROVEITAMENTO, INCLUSIVE AFASTAMENTO E EMPILHAMENTO, EXCLUSIVE TRANSPORTE E RETIRADA DO MATERIAL REMOVIDO NÃO REAPROVEITÁVEL | C27: m2 | D27: 9.93
A28: ED-48457 | B28: REMOÇÃO MANUAL DE ENGRADAMENTO PARA TELHA TIPO CERÂMICA OU CONCRETO, INCLUSIVE AFASTAMENTO E EMPILHAMENTO, EXCLUSIVE TRANSPORTE E RETIRADA DO MATERIAL REMOVIDO NÃO REAPROVEITÁVEL | C28: m2 | D28: 19.86
A29: ED-48454 | B29: REMOÇÃO MANUAL DE ENGRADAMENTO PARA TELHA TIPO METÁLICA, PVC OU FIBROCIMENTO, COM REAPROVEITAMENTO, INCLUSIVE AFASTAMENTO E EMPILHAMENTO, EXCLUSIVE TRANSPORTE E RETIRADA DO MATERIAL REMOVIDO NÃO REAPROVEITÁVEL | C29: m2 | D29: 13.24
A30: ED-48506 | B30: REMOÇÃO MANUAL DE RUFO METÁLICO, COM REAPROVEITAMENTO, INCLUSIVE AFASTAMENTO E EMPILHAMENTO, EXCLUSIVE TRANSPORTE E RETIRADA DO MATERIAL REMOVIDO NÃO REAPROVEITÁVEL | C30: m | D30: 6.05
A31: ED-48512 | B31: REMOÇÃO MANUAL DE TELHA EM FIBROCIMENTO, TIPO ONDULADA, COM REAPROVEITAMENTO, INCLUSIVE AFASTAMENTO E EMPILHAMENTO, EXCLUSIVE TRANSPORTE E RETIRADA DO MATERIAL REMOVIDO NÃO REAPROVEITÁVEL | C31: m2 | D31: 11.35
A32: ED-48514 | B32: REMOÇÃO MANUAL DE TELHA CERÂMICA, COM REAPROVEITAMENTO, INCLUSIVE AFASTAMENTO E EMPILHAMENTO, EXCLUSIVE TRANSPORTE E RETIRADA DO MATERIAL REMOVIDO NÃO REAPROVEITÁVEL | C32: m2 | D32: 21.41
A33: ED-48510 | B33: REMOÇÃO MANUAL DE TELHA EM FIBROCIMENTO, TIPO CALHA ESTRUTURAL, COM REAPROVEITAMENTO, INCLUSIVE IÇAMENTO, AFASTAMENTO E EMPILHAMENTO, EXCLUSIVE TRANSPORTE E RETIRADA DO MATERIAL REMOVIDO NÃO REAPROVEITÁVEL | C33: m2 | D33: 22.53
A34: ED-48509 | B34: REMOÇÃO MANUAL DE TELHA METÁLICA OU PVC, COM REAPROVEITAMENTO, INCLUSIVE AFASTAMENTO E EMPILHAMENTO, EXCLUSIVE TRANSPORTE E RETIRADA DO MATERIAL REMOVIDO NÃO REAPROVEITÁVEL | C34: m2 | D34: 7.94
A35: 8707 | B35: DEMOLIÇÃO E REMOÇÃO DE INSTALAÇÃO
A36: ED-48500 | B36: DEMOLIÇÃO MANUAL DE TUBULAÇÕES EMBUTIDAS DE REDE (ÁGUA, ELÉTRICA, GASES, ETC.), INCLUSIVE RASGO EM ALVENARIA, REMOÇÃO DE ACESSÓRIOS DE FIXAÇÃO, AFASTAMENTO E EMPILHAMENTO, EXCLUSIVE TRANSPORTE E RETIRADA DO MATERIAL DEMOLIDO | C36: m | D36: 7.4
A37: ED-48466 | B37: REMOÇÃO MANUAL DE INTERFONE, COM REAPROVEITAMENTO, INCLUSIVE AFASTAMENTO E EMPILHAMENTO, EXCLUSIVE TRANSPORTE E RETIRADA DO MATERIAL REMOVIDO NÃO REAPROVEITÁVEL | C37: un | D37: 38.95
A38: ED-48468 | B38: REMOÇÃO MANUAL DE LUMINÁRIA COMERCIAL, EMBUTIDA OU SOBREPOR, COM REAPROVEITAMENTO, INCLUSIVE AFASTAMENTO E EMPILHAMENTO, EXCLUSIVE TRANSPORTE E RETIRADA DO MATERIAL REMOVIDO NÃO REAPROVEITÁVEL | C38: un | D38: 9.37
A39: ED-48469 | B39: REMOÇÃO MANUAL DE LUMINÁRIA COMPACTA (PLAFON, PAINEL LED, ETC.) EMBUTIDA OU SOBREPOR, COM REAPROVEITAMENTO, INCLUSIVE AFASTAMENTO E EMPILHAMENTO, EXCLUSIVE TRANSPORTE E RETIRADA DO MATERIAL REMOVIDO NÃO REAPROVEITÁVEL | C39: un | D39: 5.46
A40: ED-48499 | B40: REMOÇÃO MANUAL DE REDES DE DUTOS PARA CLIMATIZAÇÃO, INCLUSIVE AFASTAMENTO E EMPILHAMENTO, EXCLUSIVE TRANSPORTE E RETIRADA DO MATERIAL REMOVIDO NÃO REAPROVEITÁVEL | C40: m | D40: 8.22
A41: ED-48515 | B41: REMOÇÃO MANUAL DE TUBULAÇÕES EMBUTIDAS DE REDE (ÁGUA, ELÉTRICA, GASES, ETC.), COM REAPROVEITAMENTO, INCLUSIVE RASGO EM ALVENARIA, REMOÇÃO DE ACESSÓRIOS DE FIXAÇÃO, AFASTAMENTO E EMPILHAMENTO, EXCLUSIVE TRANSPORTE E RETIRADA DO MATERIAL REMOVIDO NÃO REAPROVEITÁVEL | C41: m | D41: 10.66
A42: 8708 | B42: DEMOLIÇÃO DE FORRO
A43: ED-48463 | B43: DEMOLIÇÃO MANUAL DE FORRO DE CHAPA OU PLACA DE GESSO, INCLUSIVE DEMOLIÇÃO DA ESTRUTURA DE SUSTENTAÇÃO, AFASTAMENTO E EMPILHAMENTO, EXCLUSIVE TRANSPORTE E RETIRADA DO MATERIAL DEMOLIDO | C43: m2 | D43: 4.88
A44: 8709 | B44: REMOÇÃO DE FORRO
A45: ED-48460 | B45: REMOÇÃO MANUAL DE FORRO DE PLACAS (GESSO, MINERAL, FIBRA, ISOPOR, COLMEIA, PVC, ETC.), COM REAPROVEITAMENTO, INCLUSIVE AFASTAMENTO E EMPILHAMENTO, EXCLUSIVE DEMOLIÇÃO DA ESTRUTURA DE SUSTENTAÇÃO, TRANSPORTE E RETIRADA DO MATERIAL REMOVIDO NÃO REAPROVEITÁVEL | C45: m2 | D45: 1.84
A46: ED-48459 | B46: REMOÇÃO MANUAL DE FORRO DE PLACAS (GESSO, MINERAL, FIBRA, ISOPOR, COLMEIA, PVC, ETC.), COM REAPROVEITAMENTO, INCLUSIVE DEMOLIÇÃO ESTRUTURA DE SUSTENTAÇÃO, AFASTAMENTO E EMPILHAMENTO, EXCLUSIVE TRANSPORTE E RETIRADA DO MATERIAL REMOVIDO NÃO REAPROVEITÁVEL | C46: m2 | D46: 5.53
A47: ED-48464 | B47: REMOÇÃO MANUAL DE FORRO DE TÁBUAS DE PINHO, COM REAPROVEITAMENTO, INCLUSIVE AFASTAMENTO E EMPILHAMENTO, EXCLUSIVE REMOÇÃO DA ESTRUTURA DE SUSTENTAÇÃO, TRANSPORTE E RETIRADA DO MATERIAL REMOVIDO NÃO REAPROVEITÁVEL | C47: m2 | D47: 8.71
A48: ED-28355 | B48: REMOÇÃO MANUAL ESTRUTURA OU TRAMA DE SUSTENTAÇÃO DE MADEIRA OU METÁLICA PARA FORRO, COM REAPROVEITAMENTO, INCLUSIVE AFASTAMENTO E EMPILHAMENTO, EXCLUSIVE TRANSPORTE E RETIRADA DO MATERIAL REMOVIDO NÃO REAPROVEITÁVEL | C48: m2 | D48: 3.69
A49: 8710 | B49: REMOÇÃO DE ESQUADRIA
A50: ED-48496 | B50: REMOÇÃO MANUAL DE CONJUNTO DE ALIZARES, COM REAPROVEITAMENTO, INCLUSIVE AFASTAMENTO E EMPILHAMENTO, EXCLUSIVE TRANSPORTE E RETIRADA DO MATERIAL REMOVIDO NÃO REAPROVEITÁVEL | C50: cj | D50: 3.09
A51: ED-48458 | B51: REMOÇÃO MANUAL DE CONJUNTO DE FERRAGENS (DOBRADIÇAS, FECHADURA E MAÇANETAS), COM REAPROVEITAMENTO, INCLUSIVE AFASTAMENTO E EMPILHAMENTO, EXCLUSIVE TRANSPORTE E RETIRADA DO MATERIAL REMOVIDO NÃO REAPROVEITÁVEL | C51: un | D51: 18.85
A52: ED-48493 | B52: REMOÇÃO MANUAL DE ESQUADRIA EM MADEIRA, COM REAPROVEITAMENTO, INCLUSIVE REMOÇÃO DE MARCO/ALIZAR/GUARNIÇÕES, AFASTAMENTO E EMPILHAMENTO, EXCLUSIVE TRANSPORTE E RETIRADA DO MATERIAL REMOVIDO NÃO REAPROVEITÁVEL | C52: m2 | D52: 11.85
A53: ED-48497 | B53: REMOÇÃO MANUAL DE ESQUADRIA METÁLICA, COM REAPROVEITAMENTO, INCLUSIVE MARCO/ALIZAR/GUARNIÇÕES, AFASTAMENTO E EMPILHAMENTO, EXCLUSIVE TRANSPORTE E RETIRADA DO MATERIAL REMOVIDO NÃO REAPROVEITÁVEL | C53: m2 | D53: 16.46
A54: ED-48494 | B54: REMOÇÃO MANUAL DE FOLHA DE PORTA OU JANELA DE MADEIRA OU METÁLICA, COM REAPROVEITAMENTO, INCLUSIVE AFASTAMENTO E EMPILHAMENTO, EXCLUSIVE TRANSPORTE E RETIRADA DO MATERIAL REMOVIDO NÃO REAPROVEITÁVEL | C54: m2 | D54: 8
A55: ED-48495 | B55: REMOÇÃO MANUAL DE MARCO EM MADEIRA OU METÁLICO, COM REAPROVEITAMENTO, INCLUSIVE AFASTAMENTO E EMPILHAMENTO, EXCLUSIVE TRANSPORTE E RETIRADA DO MATERIAL REMOVIDO NÃO REAPROVEITÁVEL | C55: un | D55: 16
A56: 8711 | B56: DEMOLIÇÃO DE IMPERMEABILIZAÇÃO
A57: ED-48465 | B57: DEMOLIÇÃO MANUAL DE IMPERMEABILIZAÇÃO E PROTEÇÃO MECÂNICA, INCLUSIVE AFASTAMENTO E EMPILHAMENTO, EXCLUSIVE TRANSPORTE E RETIRADA DO MATERIAL DEMOLIDO | C57: m2 | D57: 24.42
A58: 8712 | B58: REMOÇÃO DE LOUÇA E ACESSÓRIOS
A59: ED-48467 | B59: REMOÇÃO DE LOUÇAS (LAVATÓRIO, BANHEIRA, PIA, VASO SANITÁRIO, TANQUE), COM REAPROVEITAMENTO, INCLUSIVE AFASTAMENTO E EMPILHAMENTO, EXCLUSIVE TRANSPORTE E RETIRADA DO MATERIAL REMOVIDO NÃO REAPROVEITÁVEL | C59: un | D59: 37.99
A60: ED-48470 | B60: REMOÇÃO MANUAL DE METAIS COMUNS E ACABAMENTOS (TORNEIRA, ACABAMENTO PARA REGISTRO, SIFÃO, ENGATE FLEXÍVEL, ETC.), COM REAPROVEITAMENTO, INCLUSIVE AFASTAMENTO E EMPILHAMENTO, EXCLUSIVE TRANSPORTE E RETIRADA DO MATERIAL REMOVIDO NÃO REAPROVEITÁVEL | C60: un | D60: 5.66
A61: ED-48471 | B61: REMOÇÃO MANUAL DE METAIS EMBUTIDOS (BASE DE REGISTRO, VÁLVULA DE DESCARGA, TORNEIRA ANTIVANDALISMO, ETC.), COM REAPROVEITAMENTO, INCLUSIVE AFASTAMENTO E EMPILHAMENTO, EXCLUSIVE TRANSPORTE E RETIRADA DO MATERIAL REMOVIDO NÃO REAPROVEITÁVEL | C61: un | D61: 18.08
A62: 8713 | B62: DEMOLIÇÃO E REMOÇÃO DE DIVISÓRIA E BANCADA
A63: ED-48452 | B63: DEMOLIÇÃO MANUAL DE ALVENARIA/DIVISÓRIA DE ELEMENTOS VAZADOS (COBOGÓ, ETC. ), INCLUSIVE AFASTAMENTO E EMPILHAMENTO, EXCLUSIVE TRANSPORTE E RETIRADA DO MATERIAL DEMOLIDO | C63: m2 | D63: 15.59
A64: ED-48453 | B64: DEMOLIÇÃO MANUAL DE DIVISÓRIA COMERCIAL EM LAMINADO, INCLUSIVE AFASTAMENTO E EMPILHAMENTO, EXCLUSIVE TRANSPORTE E RETIRADA DO MATERIAL DEMOLIDO | C64: m2 | D64: 6.27
A65: ED-8024 | B65: DEMOLIÇÃO MANUAL DE DIVISÓRIA DE MADEIRA, INCLUSIVE AFASTAMENTO E EMPILHAMENTO, EXCLUSIVE TRANSPORTE E RETIRADA DO MATERIAL DEMOLIDO | C65: m2 | D65: 9.56
A66: ED-48437 | B66: REMOÇÃO MANUAL DE BANCADA DE PEDRA (MÁRMORE, GRANITO, ARDÓSIA, MARMORITE, ETC.), COM REAPROVEITAMENTO, INCLUSIVE RASGO EM ALVENARIA, REMOÇÃO DE ACESSÓRIOS DE FIXAÇÃO, AFASTAMENTO E EMPILHAMENTO, EXCLUSIVE TRANSPORTE E RETIRADA DO MATERIAL REMOVIDO NÃO REAPROVEITÁVEL | C66: m2 | D66: 47.42
A67: ED-28348 | B67: REMOÇÃO MANUAL DE DIVISÓRIA EM PEDRA (MÁRMORE, GRANITO, ARDÓSIA, MARMORITE, ETC.), COM REAPROVEITAMENTO, INCLUSIVE RASGO EM ALVENARIA, REMOÇÃO DE ACESSÓRIOS DE FIXAÇÃO, AFASTAMENTO E EMPILHAMENTO, EXCLUSIVE TRANSPORTE E RETIRADA DO MATERIAL REMOVIDO NÃO REAPROVEITÁVEL | C67: m2 | D67: 39.57
A68: 8714 | B68: DEMOLIÇÃO DE ALVENARIA
A69: ED-48436 | B69: DEMOLIÇÃO MANUAL DE ALVENARIA DE TIJOLO CERÂMICO MACIÇO, INCLUSIVE AFASTAMENTO E EMPILHAMENTO, EXCLUSIVE TRANSPORTE E RETIRADA DO MATERIAL DEMOLIDO | C69: m3 | D69: 134.74
A70: ED-48435 | B70: DEMOLIÇÃO MANUAL DE ALVENARIA DE TIJOLO CERÂMICO OU BLOCO DE CONCRETO, INCLUSIVE AFASTAMENTO E EMPILHAMENTO, EXCLUSIVE TRANSPORTE E RETIRADA DO MATERIAL DEMOLIDO | C70: m3 | D70: 92.63
A71: ED-28338 | B71: DEMOLIÇÃO MANUAL DE CONSTRUÇÃO EM ALVENARIAS DE VEDAÇÃO, COM ESPESSURA MÁXIMA DE 15CM, INCLUSIVE REMOÇÃO COM REAPROVEITAMENTO DE ESQUADRIAS, AFASTAMENTO E EMPILHAMENTO, EXCLUSIVE TRANSPORTE E RETIRADA DO MATERIAL DEMOLIDO/REMOVIDO NÃO REAPROVEITÁVEL | C71: m2 | D71: 14.71
A72: 8715 | B72: DEMOLIÇÃO DE CONCRETO
A73: ED-48441 | B73: DEMOLIÇÃO MANUAL DE CONCRETO ARMADO, INCLUSIVE AFASTAMENTO E EMPILHAMENTO, EXCLUSIVE TRANSPORTE E RETIRADA DO MATERIAL DEMOLIDO | C73: m3 | D73: 423.5
A74: ED-48440 | B74: DEMOLIÇÃO MANUAL DE CONCRETO, SEM ARMAÇÃO, INCLUSIVE AFASTAMENTO E EMPILHAMENTO, EXCLUSIVE TRANSPORTE E RETIRADA DO MATERIAL DEMOLIDO | C74: m3 | D74: 256.67
A75: ED-48443 | B75: DEMOLIÇÃO MECANIZADA DE CONCRETO ARMADO, COM EQUIPAMENTO ELÉTRICO, INCLUSIVE AFASTAMENTO E EMPILHAMENTO, EXCLUSIVE TRANSPORTE E RETIRADA DO MATERIAL DEMOLIDO | C75: m3 | D75: 219.22
A76: ED-48445 | B76: DEMOLIÇÃO MECANIZADA DE CONCRETO ARMADO, COM EQUIPAMENTO PNEUMÁTICO, INCLUSIVE AFASTAMENTO E EMPILHAMENTO, EXCLUSIVE TRANSPORTE E RETIRADA DO MATERIAL DEMOLIDO | C76: m3 | D76: 286.69
A77: ED-48442 | B77: DEMOLIÇÃO MECANIZADA DE CONCRETO, SEM ARMAÇÃO, COM EQUIPAMENTO ELÉTRICO, INCLUSIVE AFASTAMENTO E EMPILHAMENTO, EXCLUSIVE TRANSPORTE E RETIRADA DO MATERIAL DEMOLIDO | C77: m3 | D77: 135.11
A78: ED-48444 | B78: DEMOLIÇÃO MECANIZADA DE CONCRETO, SEM ARMAÇÃO, COM EQUIPAMENTO PNEUMÁTICO, INCLUSIVE AFASTAMENTO E EMPILHAMENTO, EXCLUSIVE TRANSPORTE E RETIRADA DO MATERIAL DEMOLIDO | C78: m3 | D78: 176
A79: 8716 | B79: REMOÇÃO DE PADRÃO CONCESSIONÁRIA
A80: ED-48475 | B80: REMOÇÃO MANUAL DE PADRÃO DE ENTRADA DE ÁGUA, COM REAPROVEITAMENTO, INCLUSIVE AFASTAMENTO E EMPILHAMENTO, EXCLUSIVE TRANSPORTE E RETIRADA DO MATERIAL REMOVIDO NÃO REAPROVEITÁVEL | C80: un | D80: 86.86
A81: ED-48474 | B81: REMOÇÃO MANUAL DE PADRÃO DE ENTRADA DE ENERGIA, COM REAPROVEITAMENTO, INCLUSIVE AFASTAMENTO E EMPILHAMENTO, EXCLUSIVE TRANSPORTE E RETIRADA DO MATERIAL REMOVIDO NÃO REAPROVEITÁVEL | C81: un | D81: 218.82
A82: 8717 | B82: DEMOLIÇÃO E REMOÇÃO DE PAVIMENTAÇÃO
A83: ED-48487 | B83: DEMOLIÇÃO MANUAL DE LAJE DE CONCRETO ARMADO, COM ESPESSURA DE ATÉ 15CM, INCLUSIVE AFASTAMENTO E EMPILHAMENTO, EXCLUSIVE TRANSPORTE E RETIRADA DO MATERIAL DEMOLIDO | C83: m2 | D83: 37.04
A84: ED-48507 | B84: DEMOLIÇÃO MANUAL DE SARJETA OU SARJETÃO DE CONCRETO, INCLUSIVE AFASTAMENTO E EMPILHAMENTO, EXCLUSIVE TRANSPORTE E RETIRADA DO MATERIAL DEMOLIDO | C84: m2 | D84: 9.25
A85: ED-48489 | B85: DEMOLIÇÃO MECANIZADA DE LAJE DE CONCRETO ARMADO, COM ESPESSURA DE ATÉ 15CM, , COM EQUIPAMENTO ELÉTRICO, INCLUSIVE AFASTAMENTO E EMPILHAMENTO, EXCLUSIVE TRANSPORTE E RETIRADA DO MATERIAL DEMOLIDO | C85: m2 | D85: 19.91
A86: ED-48486 | B86: DEMOLIÇÃO MECANIZADA DE LAJE DE CONCRETO ARMADO, COM ESPESSURA DE ATÉ 15CM, , COM EQUIPAMENTO PNEUMÁTICO, INCLUSIVE AFASTAMENTO E EMPILHAMENTO, EXCLUSIVE TRANSPORTE E RETIRADA DO MATERIAL DEMOLIDO | C86: m2 | D86: 25.58
A87: ED-48492 | B87: DEMOLIÇÃO MECANIZADA DE REVESTIMENTO ASFÁLTICO, COM EQUIPAMENTO PNEUMÁTICO, INCLUSIVE AFASTAMENTO E EMPILHAMENTO, EXCLUSIVE TRANSPORTE E RETIRADA DO MATERIAL DEMOLIDO | C87: m2 | D87: 8.52
A88: ED-48490 | B88: REMOÇÃO MANUAL DE ALVENARIA POLIÉDRICA, COM REAPROVEITAMENTO, INCLUSIVE AFASTAMENTO E EMPILHAMENTO, EXCLUSIVE TRANSPORTE E RETIRADA DO MATERIAL REMOVIDO NÃO REAPROVEITÁVEL | C88: m2 | D88: 12.73
A89: ED-48488 | B89: REMOÇÃO MANUAL DE CALÇADA PORTUGUESA, COM REAPROVEITAMENTO, INCLUSIVE AFASTAMENTO E EMPILHAMENTO, EXCLUSIVE TRANSPORTE E RETIRADA DO MATERIAL REMOVIDO NÃO REAPROVEITÁVEL | C89: m2 | D89: 7.68
A90: ED-48473 | B90: REMOÇÃO MANUAL DE GUIA DE MEIO-FIO EM PEDRA (GNAISSE, BASALTO, ETC.), COM REAPROVEITAMENTO, INCLUSIVE AFASTAMENTO E EMPILHAMENTO, EXCLUSIVE TRANSPORTE E RETIRADA DO MATERIAL REMOVIDO NÃO REAPROVEITÁVEL | C90: m | D90: 18.51
A91: ED-48472 | B91: REMOÇÃO MANUAL DE GUIA DE MEIO-FIO PRÉ-MOLDADA EM CONCRETO, COM REAPROVEITAMENTO, INCLUSIVE AFASTAMENTO E EMPILHAMENTO, EXCLUSIVE TRANSPORTE E RETIRADA DO MATERIAL REMOVIDO NÃO REAPROVEITÁVEL | C91: m | D91: 9.87
A92: ED-48476 | B92: REMOÇÃO MANUAL DE PAVIMENTAÇÃO INTERTRAVADA OU SEXTAVADO EM PRÉ-MOLDADO DE CONCRETO, COM REAPROVEITAMENTO, INCLUSIVE AFASTAMENTO E EMPILHAMENTO, EXCLUSIVE TRANSPORTE E RETIRADA DO MATERIAL REMOVIDO NÃO REAPROVEITÁVEL | C92: m2 | D92: 12.73
A93: ED-48491 | B93: REMOÇÃO MANUAL DE PAVIMENTO PARALELEPÍPEDO, COM REAPROVEITAMENTO, INCLUSIVE AFASTAMENTO E EMPILHAMENTO, EXCLUSIVE TRANSPORTE E RETIRADA DO MATERIAL REMOVIDO NÃO REAPROVEITÁVEL | C93: m2 | D93: 14.14
A94: 8718 | B94: DEMOLIÇÃO E REMOÇÃO DE REVESTIMENTO
A95: ED-48504 | B95: DEMOLIÇÃO MANUAL DE LAMINADO MELAMÍNICO EM SUPERFÍCIE DE MADEIRA OU PAREDE, INCLUSIVE AFASTAMENTO E EMPILHAMENTO, EXCLUSIVE TRANSPORTE E RETIRADA DO MATERIAL DEMOLIDO | C95: m2 | D95: 9.25
A96: ED-48501 | B96: DEMOLIÇÃO MANUAL DE REBOCO OU EMBOÇO, COM ESPESSURA DE ATÉ 55MM, INCLUSIVE AFASTAMENTO E EMPILHAMENTO, EXCLUSIVE TRANSPORTE E RETIRADA DO MATERIAL DEMOLIDO | C96: m2 | D96: 8.79
A97: ED-48502 | B97: DEMOLIÇÃO MANUAL DE REVESTIMENTO CERÂMICO, AZULEJO OU LADRILHO HIDRÁULICO, INCLUSIVE AFASTAMENTO E EMPILHAMENTO, EXCLUSIVE DEMOLIÇÃO DO REBOCO OU EMBOÇO, TRANSPORTE E RETIRADA DO MATERIAL DEMOLIDO | C97: m2 | D97: 18.31
A98: ED-48503 | B98: DEMOLIÇÃO MANUAL DE REVESTIMENTO DE PEDRA (MÁRMORE, GRANITO, ARDÓSIA, ETC.), INCLUSIVE AFASTAMENTO E EMPILHAMENTO, EXCLUSIVE DEMOLIÇÃO DO REBOCO OU EMBOÇO, TRANSPORTE E RETIRADA DO MATERIAL DEMOLIDO | C98: m2 | D98: 21.98
A99: ED-48478 | B99: REMOÇÃO MANUAL DE PEITORIL DE MÁRMORE OU GRANITO, COM REAPROVEITAMENTO, INCLUSIVE AFASTAMENTO E EMPILHAMENTO, EXCLUSIVE TRANSPORTE E RETIRADA DO MATERIAL REMOVIDO NÃO REAPROVEITÁVEL | C99: m | D99: 7.2
A100: 8719 | B100: DEMOLIÇÃO E REMOÇÃO DE PISO
A101: ED-48480 | B101: DEMOLIÇÃO MANUAL DE PISO CERÂMICO OU LADRILHO HIDRÁULICO, INCLUSIVE AFASTAMENTO E EMPILHAMENTO, EXCLUSIVE DEMOLIÇÃO DE CONTRAPISO, TRANSPORTE E RETIRADA DO MATERIAL DEMOLIDO | C101: m2 | D101: 14.65
A102: ED-48479 | B102: DEMOLIÇÃO MANUAL DE PISO CIMENTADO OU CONTRAPISO DE ARGAMASSA, COM ESPESSURA MÁXIMA DE 10CM, INCLUSIVE AFASTAMENTO E EMPILHAMENTO, EXCLUSIVE TRANSPORTE E RETIRADA DO MATERIAL DEMOLIDO | C102: m2 | D102: 15.69
A103: ED-48481 | B103: DEMOLIÇÃO MANUAL DE PISO DE PEDRAS (MÁRMORE, GRANITO, ARDÓSIA, ETC.), INCLUSIVE AFASTAMENTO E EMPILHAMENTO, EXCLUSIVE DEMOLIÇÃO DE CONTRAPISO, TRANSPORTE E RETIRADA DO MATERIAL DEMOLIDO | C103: m2 | D103: 18.31
A104: ED-48483 | B104: DEMOLIÇÃO MANUAL DE PISO EM GRANILITE/MARMORITE, INCLUSIVE AFASTAMENTO E EMPILHAMENTO, EXCLUSIVE TRANSPORTE E RETIRADA DO MATERIAL DEMOLIDO | C104: m2 | D104: 19.98
A105: ED-48482 | B105: DEMOLIÇÃO MANUAL DE PISO VINÍLICO, INCLUSIVE AFASTAMENTO E EMPILHAMENTO, EXCLUSIVE TRANSPORTE E RETIRADA DO MATERIAL DEMOLIDO | C105: m2 | D105: 7.79
A106: ED-48505 | B106: DEMOLIÇÃO MANUAL DE RODAPÉ, INCLUSIVE ARGAMASSA DE ASSENTAMENTO E AFASTAMENTO, EXCLUSIVE TRANSPORTE E RETIRADA DO MATERIAL DEMOLIDO | C106: m | D106: 2.42
A107: ED-48485 | B107: REMOÇÃO MANUAL DE PISO DE TÁBUAS, COM REAPROVEITAMENTO, INCLUSIVE AFASTAMENTO E EMPILHAMENTO, EXCLUSIVE TRANSPORTE E RETIRADA DO MATERIAL REMOVIDO NÃO REAPROVEITÁVEL | C107: m2 | D107: 21.98
A108: ED-48484 | B108: REMOÇÃO MANUAL DE PISO DE TACO DE MADEIRA, COM REAPROVEITAMENTO, INCLUSIVE AFASTAMENTO E EMPILHAMENTO, EXCLUSIVE TRANSPORTE E RETIRADA DO MATERIAL REMOVIDO NÃO REAPROVEITÁVEL | C108: m2 | D108: 19.11
A109: ED-48508 | B109: REMOÇÃO MANUAL DE SOLEIRA DE MÁRMORE OU GRANITO, COM REAPROVEITAMENTO, INCLUSIVE AFASTAMENTO E EMPILHAMENTO, EXCLUSIVE TRANSPORTE E RETIRADA DO MATERIAL REMOVIDO NÃO REAPROVEITÁVEL | C109: m | D109: 7.7
A110: 8720 | B110: REMOÇÃO DE CERCA E ALAMBRADO
A111: ED-48434 | B111: REMOÇÃO MANUAL DE ALAMBRADO METÁLICO, COM REAPROVEITAMENTO, INCLUSIVE AFASTAMENTO E EMPILHAMENTO, EXCLUSIVE TRANSPORTE E RETIRADA DO MATERIAL REMOVIDO NÃO REAPROVEITÁVEL | C111: m2 | D111: 16.91
A112: ED-48439 | B112: REMOÇÃO MANUAL DE CERCA, COM REAPROVEITAMENTO, INCLUSIVE AFASTAMENTO E EMPILHAMENTO, EXCLUSIVE TRANSPORTE E RETIRADA DO MATERIAL REMOVIDO NÃO REAPROVEITÁVEL | C112: m2 | D112: 14.65
A113: ED-48449 | B113: REMOÇÃO MANUAL DE CONCERTINA, COM DIÂMETRO DE ATÉ 730MM, COM REAPROVEITAMENTO, INCLUSIVE AFASTAMENTO E EMPILHAMENTO, EXCLUSIVE TRANSPORTE E RETIRADA DO MATERIAL REMOVIDO NÃO REAPROVEITÁVEL | C113: m | D113: 2.45
A114: 8721 | B114: REMOÇÃO DE VIDRO
A115: ED-48516 | B115: REMOÇÃO MANUAL DE VIDRO EM ESQUADRIAS, COM REAPROVEITAMENTO, INCLUSIVE LIMPEZA DO ENCAIXE, AFASTAMENTO E EMPILHAMENTO, EXCLUSIVE TRANSPORTE E RETIRADA DO MATERIAL REMOVIDO NÃO REAPROVEITÁVEL | C115: m2 | D115: 5.78
A116: 8722 | B116: REMOÇÃO DE ITEM ESCOLAR
A117: ED-48498 | B117: REMOÇÃO MANUAL DE QUADRO NEGRO, COM REAPROVEITAMENTO, INCLUSIVE AFASTAMENTO E EMPILHAMENTO, EXCLUSIVE TRANSPORTE E RETIRADA DO MATERIAL REMOVIDO NÃO REAPROVEITÁVEL | C117: m2 | D117: 24.69
A118: 8664 | B118: INSTALAÇÕES PROVISÓRIAS
A119: 8723 | B119: PLACA DE OBRA
A120: ED-16660 | B120: FORNECIMENTO E COLOCAÇÃO DE PLACA DE OBRA EM CHAPA GALVANIZADA #26, ESP. 0,45 MM, PLOTADA COM ADESIVO VINÍLICO, AFIXADA COM REBITES 4,8X40 MM, EM ESTRUTURA METÁLICA DE METALON 20X20 MM, ESP. 1,25 MM, INCLUSIVE SUPORTE EM EUCALIPTO AUTOCLAVADO PINTADO COM TINTA PVA DUAS (2) DEMÃOS | C120: m2 | D120: 317.71
A121: ED-28427 | B121: FORNECIMENTO E COLOCAÇÃO DE PLACA DE OBRA EM CHAPA GALVANIZADA #26, ESP. 0,45MM, DIMENSÃO (3X1,5)M, PLOTADA COM ADESIVO VINÍLICO, AFIXADA COM REBITES 4,8X40MM, EM ESTRUTURA METÁLICA DE METALON 20X20MM, ESP. 1,25MM, INCLUSIVE SUPORTE EM EUCALIPTO AUTOCLAVADO PINTADO COM TINTA PVA DUAS (2) DEMÃOS | C121: un | D121: 1429.69
A122: ED-28428 | B122: FORNECIMENTO E COLOCAÇÃO DE PLACA DE OBRA EM CHAPA GALVANIZADA #26, ESP. 0,45MM, DIMENSÃO (4X3)M, PLOTADA COM ADESIVO VINÍLICO, AFIXADA COM REBITES 4,8X40MM, EM ESTRUTURA METÁLICA DE METALON 20X20MM, ESP. 1,25MM, INCLUSIVE SUPORTE EM EUCALIPTO AUTOCLAVADO PINTADO COM TINTA PVA DUAS (2) DEMÃOS | C122: un | D122: 3812.52
A123: ED-28429 | B123: FORNECIMENTO E COLOCAÇÃO DE PLACA DE OBRA EM CHAPA GALVANIZADA #26, ESP. 0,45MM, DIMENSÃO (6X3)M, PLOTADA COM ADESIVO VINÍLICO, AFIXADA COM REBITES 4,8X40MM, EM ESTRUTURA METÁLICA DE METALON 20X20MM, ESP. 1,25MM, INCLUSIVE SUPORTE EM EUCALIPTO AUTOCLAVADO PINTADO COM TINTA PVA DUAS (2) DEMÃOS | C123: un | D123: 5718.78
A124: 8724 | B124: INSTALAÇÃO PROVISÓRIA ÁGUA E ENERGIA
A125: ED-50150 | B125: LIGAÇÃO DE ÁGUA PROVISÓRIA PARA CANTEIRO, INCLUSIVE HIDRÔMETRO E CAVALETE PARA MEDIÇÃO DE ÁGUA - ENTRADA PRINCIPAL, EM AÇO GALVANIZADO DN 20MM (1/2") - PADRÃO CONCESSIONÁRIA | C125: un | D125: 375.45
A126: ED-31745 | B126: LIGAÇÃO DE ESGOTO PARA BARRACÃO DE OBRA EM CANTEIRO, EXCLUSIVE FOSSA SÉPTICA | C126: un | D126: 752.33
A127: ED-50151 | B127: LIGAÇÃO PROVISÓRIA COM ENTRADA DE ENERGIA AÉREA, PADRÃO CEMIG, CARGA INSTALADA DE 15,1KVA ATÉ 30KVA, TRIFÁSICO, COM SAÍDA SUBTERRÂNEA, INCLUSIVE POSTE, CAIXA PARA MEDIDOR, DISJUNTOR, BARRAMENTO, ATERRAMENTO E ACESSÓRIOS | C127: un | D127: 1159.22
A128: 8725 | B128: ESCRITÓRIO DE OBRA
A129: ED-50125 | B129: ÁREA COBERTA EM TELHA FIBROCIMENTO PARA CENTRAL DE CORTE/DOBRA/MONTAGEM EM CANTEIRO DE OBRAS, INCLUSIVE BANCADA E INSTALAÇÕES ELÉTRICAS, EXCLUSIVE VEDAÇÕES LATERAIS | C129: m2 | D129: 121.35
A130: ED-50135 | B130: BARRACÃO DE OBRA, EM CHAPA DE COMPENSADO RESINADO, INCLUSIVE INSTALAÇÕES SANITÁRIAS E MOBILIÁRIO - PADRÃO DER-MG | C130: m2 | D130: 544.11
A131: ED-50128 | B131: BARRACÃO DE OBRA PARA DEPÓSITO E FERRAMENTARIA TIPO-I, ÁREA INTERNA 14,52M2, EM CHAPA DE COMPENSADO RESINADO, INCLUSIVE MOBILIÁRIO (OBRA DE PEQUENO PORTE, EFETIVO ATÉ 30 HOMENS), PADRÃO DER-MG | C131: un | D131: 7339.97
A132: ED-50129 | B132: BARRACÃO DE OBRA PARA DEPÓSITO E FERRAMENTARIA TIPO-II, ÁREA INTERNA 25,41M2, EM CHAPA DE COMPENSADO RESINADO, INCLUSIVE MOBILIÁRIO (OBRA DE MÉDIO PORTE, EFETIVO DE 30 A 60 HOMENS), PADRÃO DER-MG | C132: un | D132: 12129.53
A133: ED-50148 | B133: BARRACÃO DE OBRA PARA ESCRITÓRIO DA EMPREITEIRA TIPO-I, ÁREA INTERNA 18,15M2, EM CHAPA DE COMPENSADO RESINADO, INCLUSIVE MOBILIÁRIO (OBRA DE PEQUENO A MÉDIO PORTE, EFETIVO ATÉ 60 HOMENS) - PADRÃO DER-MG | C133: un | D133: 9643.06
A134: ED-50149 | B134: BARRACÃO DE OBRA PARA ESCRITÓRIO DA EMPREITEIRA TIPO-II, ÁREA INTERNA 21,78M2, EM CHAPA DE COMPENSADO RESINADO, INCLUSIVE MOBILIÁRIO (OBRA DE GRANDE PORTE, EFETIVO ACIMA 60 HOMENS) - PADRÃO DER-MG | C134: un | D134: 11163.52
A135: ED-50146 | B135: BARRACÃO DE OBRA PARA ESCRITÓRIO DA FISCALIZAÇÃO TIPO-I, ÁREA INTERNA 18,15M2, EM CHAPA DE COMPENSADO RESINADO, INCLUSIVE MOBILIÁRIO (OBRA DE PEQUENO A MÉDIO PORTE, EFETIVO ATÉ 60 HOMENS) - PADRÃO DER-MG | C135: un | D135: 9582.91
A136: ED-50147 | B136: BARRACÃO DE OBRA PARA ESCRITÓRIO DA FISCALIZAÇÃO TIPO-II, ÁREA INTERNA 21,78M2, EM CHAPA DE COMPENSADO RESINADO, INCLUSIVE MOBILIÁRIO (OBRA DE GRANDE PORTE, EFETIVO ACIMA 60 HOMENS) - PADRÃO DER-MG | C136: un | D136: 11103.37
A137: ED-50130 | B137: BARRACÃO DE OBRA PARA INSTALAÇÃO SANITÁRIA TIPO-I, ÁREA INTERNA 14,52M2, EM CHAPA DE COMPENSADO RESINADO (OBRA DE PEQUENO PORTE, EFETIVO ATÉ 30 HOMENS), PADRÃO DER-MG | C137: un | D137: 8230.83
A138: ED-50131 | B138: BARRACÃO DE OBRA PARA INSTALAÇÃO SANITÁRIA TIPO-II, ÁREA INTERNA 18,15M2, EM CHAPA DE COMPENSADO RESINADO (OBRA DE MÉDIO PORTE, EFETIVO DE 30 A 60 HOMENS), PADRÃO DER-MG | C138: un | D138: 10491.39
A139: ED-50132 | B139: BARRACÃO DE OBRA PARA INSTALAÇÃO SANITÁRIA TIPO-III, ÁREA INTERNA 25,41M2, EM CHAPA DE COMPENSADO RESINADO (OBRA DE GRANDE PORTE, EFETIVO ACIMA DE 60 HOMENS), PADRÃO DER-MG | C139: un | D139: 14803.16
A140: ED-50133 | B140: BARRACÃO DE OBRA PARA REFEITÓRIO TIPO-I, ÁREA INTERNA 18,15M2, EM CHAPA DE COMPENSADO RESINADO (OBRA DE MÉDIO PORTE, EFETIVO DE 30 A 60 HOMENS), PADRÃO DER-MG | C140: un | D140: 9191.24
A141: ED-50134 | B141: BARRACÃO DE OBRA PARA REFEITÓRIO TIPO-II, ÁREA INTERNA 25,41M2, EM CHAPA DE COMPENSADO RESINADO (OBRA DE GRANDE PORTE, EFETIVO ACIMA DE 60 HOMENS), PADRÃO DER-MG | C141: un | D141: 12402.53
A142: ED-50126 | B142: BARRACÃO DE OBRA PARA VESTIÁRIO TIPO-I, ÁREA INTERNA 25,41M2, EM CHAPA DE COMPENSADO RESINADO, INCLUSIVE MOBILIÁRIO (OBRA DE PEQUENO PORTE, EFETIVO ATÉ 30 HOMENS), PADRÃO DER-MG | C142: un | D142: 12643.09
A143: ED-50127 | B143: BARRACÃO DE OBRA PARA VESTIÁRIO TIPO-II, ÁREA INTERNA 67,76M2, EM CHAPA DE COMPENSADO RESINADO, INCLUSIVE MOBILIÁRIO (OBRA DE MÉDIO PORTE, EFETIVO DE 30 A 60 HOMENS), PADRÃO DER-MG | C143: un | D143: 24422.71
A144: ED-16341 | B144: LIGAÇÃO PROVISÓRIA DE ÁGUA E ESGOTO PARA CONTAINER (ESCRITÓRIO DE OBRA) | C144: un | D144: 287
A145: ED-16343 | B145: LIGAÇÃO PROVISÓRIA DE ÁGUA E ESGOTO PARA CONTAINER (VESTIÁRIO DE OBRA), EXCLUSIVE CHUVEIRO ELÉTRICO | C145: un | D145: 339.17
A146: ED-16342 | B146: LIGAÇÃO PROVISÓRIA DE ENERGIA ELÉTRICA PARA CONTAINER | C146: un | D146: 326.05
A147: ED-16356 | B147: LIGAÇÕES PROVISÓRIAS PARA CONTAINER TIPO 1 (CORRESPONDENTE AO CÓDIGO ED-16348) | C147: un | D147: 326.05
A148: ED-16357 | B148: LIGAÇÕES PROVISÓRIAS PARA CONTAINER TIPO 2 (CORRESPONDENTE AO CÓDIGO ED-16349) | C148: un | D148: 613.05
A149: ED-16358 | B149: LIGAÇÕES PROVISÓRIAS PARA CONTAINER TIPO 3 (CORRESPONDENTE AO CÓDIGO ED-16350) | C149: un | D149: 326.05
A150: ED-16359 | B150: LIGAÇÕES PROVISÓRIAS PARA CONTAINER TIPO 4 (CORRESPONDENTE AO CÓDIGO ED-16351) | C150: un | D150: 326.05
A151: ED-16360 | B151: LIGAÇÕES PROVISÓRIAS PARA CONTAINER TIPO 5 (CORRESPONDENTE AO CÓDIGO ED-16352) | C151: un | D151: 1040.59
A152: ED-16361 | B152: LIGAÇÕES PROVISÓRIAS PARA CONTAINER TIPO 6 (CORRESPONDENTE AO CÓDIGO ED-16353) | C152: un | D152: 665.22
A153: ED-16362 | B153: LIGAÇÕES PROVISÓRIAS PARA CONTAINER TIPO 7 (CORRESPONDENTE AO CÓDIGO ED-16354) | C153: un | D153: 879.72
A154: ED-16363 | B154: LIGAÇÕES PROVISÓRIAS PARA CONTAINER TIPO 8 (CORRESPONDENTE AO CÓDIGO ED-16355) | C154: un | D154: 326.05
A155: ED-50155 | B155: LOCAÇÃO DE BANHEIRO QUÍMICO, DIMENSÃO (110X120X230)CM, LINHA PADRÃO, CONTENDO UMA (1) PIA/HIGIENIZADOR DE MÃOS, INCLUSIVE MANUTENÇÃO E MOBILIZAÇÃO/DESMOBILIZAÇÃO | C155: mês | D155: 836.4
A156: ED-16348 | B156: LOCAÇÃO DE CONTAINER COM ISOLAMENTO TÉRMICO, TIPO 1, PARA ESCRITÓRIO DE OBRA, COM MEDIDAS REFERENCIAIS DE (6) METROS COMPRIMENTO, (2,3) METROS LARGURA E (2,5) METROS ALTURA ÚTIL INTERNA, INCLUSIVE AR CONDICIONADO E LIGAÇÕES ELÉTRICAS INTERNAS, EXCLUSIVE MOBILIZAÇÃO/DESMOBILIZAÇÃO E LIGAÇÕES PROVISÓRIAS EXTERNAS | C156: mês | D156: 869.66
A157: ED-16349 | B157: LOCAÇÃO DE CONTAINER COM ISOLAMENTO TÉRMICO, TIPO 2, PARA ESCRITÓRIO DE OBRA COM SANITÁRIO CONTENDO UM (1) VASO SANITÁRIO E UM (1) LAVATÓRIO, COM MEDIDAS REFERENCIAIS DE (6) METROS COMPRIMENTO, (2,3) METROS LARGURA E (2,5) METROS ALTURA ÚTIL INTERNA, INCLUSIVE AR CONDICIONADO E LIGAÇÕES ELÉTRICAS E HIDROSSANITÁRIAS INTERNAS, EXCLUSIVE MOBILIZAÇÃO/DESMOBILIZAÇÃO E LIGAÇÕES PROVISÓRIAS EXTERNAS | C157: mês | D157: 1036.88
A158: ED-16350 | B158: LOCAÇÃO DE CONTAINER COM ISOLAMENTO TÉRMICO, TIPO 3, PARA DEPÓSITO/FERRAMENTARIA DE OBRA, COM MEDIDAS REFERENCIAIS DE (6) METROS COMPRIMENTO, (2,3) METROS LARGURA E (2,5) METROS ALTURA ÚTIL INTERNA, INCLUSIVE LIGAÇÕES ELÉTRICAS INTERNAS, EXCLUSIVE MOBILIZAÇÃO/DESMOBILIZAÇÃO E LIGAÇÕES PROVISÓRIAS EXTERNAS | C158: mês | D158: 750.27
A159: ED-16351 | B159: LOCAÇÃO DE CONTAINER COM ISOLAMENTO TÉRMICO, TIPO 4, PARA REFEITÓRIO DE OBRA, COM MEDIDAS REFERENCIAIS DE (6) METROS COMPRIMENTO, (2,3) METROS LARGURA E (2,5) METROS ALTURA ÚTIL INTERNA, INCLUSIVE LIGAÇÕES ELÉTRICAS INTERNAS, EXCLUSIVE MOBILIZAÇÃO/DESMOBILIZAÇÃO E LIGAÇÕES PROVISÓRIAS EXTERNAS | C159: mês | D159: 665.3
A160: ED-16352 | B160: LOCAÇÃO DE CONTAINER COM ISOLAMENTO TÉRMICO, TIPO 5, PARA VESTIÁRIO DE OBRA COM SETE (7) CHUVEIROS E DOIS (2) LAVATÓRIOS, COM MEDIDAS REFERENCIAIS DE (6) METROS COMPRIMENTO, (2,3) METROS LARGURA E (2,5) METROS ALTURA ÚTIL INTERNA, INCLUSIVE LIGAÇÕES ELÉTRICAS E HIDROSSANITÁRIAS INTERNAS, EXCLUSIVE MOBILIZAÇÃO/DESMOBILIZAÇÃO E LIGAÇÕES PROVISÓRIAS EXTERNAS | C160: mês | D160: 913.49
A161: ED-16353 | B161: LOCAÇÃO DE CONTAINER COM ISOLAMENTO TÉRMICO, TIPO 6, PARA VESTIÁRIO DE OBRA COM SETE (7) VASOS SANITÁRIOS, UM (1) MICTÓRIO E UM (1) LAVATÓRIO, COM MEDIDAS REFERENCIAIS DE (6) METROS COMPRIMENTO, (2,3) METROS LARGURA E (2,5) METROS ALTURA ÚTIL INTERNA, INCLUSIVE LIGAÇÕES ELÉTRICAS E HIDROSSANITÁRIAS INTERNAS, EXCLUSIVE MOBILIZAÇÃO/DESMOBILIZAÇÃO E LIGAÇÕES PROVISÓRIAS EXTERNAS | C161: mês | D161: 879.14
A162: ED-16354 | B162: LOCAÇÃO DE CONTAINER COM ISOLAMENTO TÉRMICO, TIPO 7, PARA VESTIÁRIO DE OBRA COM QUATRO (4) CHUVEIROS, TRÊS (3) VASOS SANITÁRIOS, UM (1) MICTÓRIO E UM (1) LAVATÓRIO, COM MEDIDAS REFERENCIAIS DE (6) METROS COMPRIMENTO, (2,3) METROS LARGURA E (2,5) METROS ALTURA ÚTIL INTERNA, INCLUSIVE LIGAÇÕES ELÉTRICAS E HIDROSSANITÁRIAS INTERNAS, EXCLUSIVE MOBILIZAÇÃO/DESMOBILIZAÇÃO E LIGAÇÕES PROVISÓRIAS EXTERNAS | C162: mês | D162: 884.31
A163: ED-16355 | B163: LOCAÇÃO DE CONTAINER COM ISOLAMENTO TÉRMICO, TIPO 8, PARA VESTIÁRIO DE OBRA COM OITO (8) BANCOS E CINCO (5) ARMÁRIOS, COM MEDIDAS REFERENCIAIS DE (6) METROS COMPRIMENTO, (2,3) METROS LARGURA E (2,5) METROS ALTURA ÚTIL INTERNA, INCLUSIVE LIGAÇÕES ELÉTRICAS INTERNAS, EXCLUSIVE MOBILIZAÇÃO/DESMOBILIZAÇÃO E LIGAÇÕES PROVISÓRIAS EXTERNAS | C163: mês | D163: 689.83
A164: ED-50137 | B164: MOBILIZAÇÃO E DESMOBILIZAÇÃO DE CONTAINER, INCLUSIVE CARGA, DESCARGA E TRANSPORTE EM CAMINHÃO CARROCERIA COM GUINDAUTO (MUNCK), EXCLUSIVE LOCAÇÃO DO CONTAINER | C164: un | D164: 1431.98
A165: 8726 | B165: LOCAÇÃO DA OBRA
A166: ED-17989 | B166: LOCAÇÃO DE OBRA COM GABARITO DE TÁBUAS CORRIDAS PONTALETADAS A CADA 2,00M, REAPROVEITAMENTO (2X), INCLUSIVE ACOMPANHAMENTO DE EQUIPE TOPOGRÁFICA PARA MARCAÇÃO DE PONTO TOPOGRÁFICO | C166: m | D166: 49.69
A167: ED-50276 | B167: LOCAÇÃO TOPOGRÁFICA ACIMA DE CINQUENTA (50) PONTOS REFERENCIAIS, INCLUSIVE ESTACA (PIQUETE) DE MARCAÇÃO | C167: un | D167: 30.99
A168: ED-50275 | B168: LOCAÇÃO TOPOGRÁFICA DE VINTE UM (21) ATÉ CINQUENTA (50) PONTOS REFERENCIAIS, INCLUSIVE ESTACA (PIQUETE) DE MARCAÇÃO | C168: un | D168: 53.58
A169: ED-50274 | B169: LOCAÇÃO TOPOGRÁFICA PARA ATÉ VINTE (20) PONTOS REFERENCIAIS, INCLUSIVE ESTACA (PIQUETE) DE MARCAÇÃO | C169: un | D169: 71.14
A170: 8727 | B170: TAPUME E CERCA
A171: ED-50136 | B171: CERCA COM MOURÕES DE MADEIRA ROLIÇA, COM CINCO (5) FIOS DE ARAME FARPADO, BWG 14 (2,0MM), ALTURA DE 150CM, INCLUSIVE ESCAVAÇÃO, REATERRO COMPACTADO E FORNECIMENTO | C171: m | D171: 39.12
A172: ED-50162 | B172: PORTÃO PARA TAPUME FIXO DE PROTEÇÃO COM FECHAMENTO DE OBRA EM CHAPA DE COMPENSADO, ESP. 12MM, COM MÓDULO NA DIMENSÃO DE (110X220)CM, INCLUSIVE FERRAGENS E PINTURA LÁTEX (PVA) COM DUAS (2) DEMÃOS | C172: m2 | D172: 147.17
A173: ED-50166 | B173: REMANEJAMENTO DE TAPUME FIXO DE PROTEÇÃO PARA FECHAMENTO DE OBRA, INCLUSIVE ESCAVAÇÃO MANUAL E REATERRO COMPACTADO | C173: m2 | D173: 9.33
A174: ED-50163 | B174: TAPUME DE PROTEÇÃO PARA TRANSEUNTE EM TELA DE POLIETILENO, COM MÓDULO NA DIMENSÃO DE (150X150)CM, INCLUSIVE PONTALETE COM BASE DE APOIO EM CONCRETO MAGRO, FORNECIMENTO E MOVIMENTAÇÃO | C174: m | D174: 12.33
A175: ED-50159 | B175: TAPUME FIXO DE PROTEÇÃO PARA FECHAMENTO DE OBRA EM CHAPA DE COMPENSADO, ESP. 12MM, COM MÓDULO NA DIMENSÃO DE (110X220)CM, INCLUSIVE PINTURA LÁTEX (PVA) COM DUAS (2) DEMÃOS, EXCLUSIVE ABERTURA PARA PORTÃO | C175: m | D175: 197.19
A176: ED-50164 | B176: TAPUME FIXO DE PROTEÇÃO PARA FECHAMENTO DE OBRA EM TELA GALVANIZADA, COM TRAMA LOSANGULAR DE 2"X2", FIO BWG 14, COM MÓDULO NA DIMENSÃO DE (300X220)CM, INCLUSIVE PINTURA ESMALTE COM DUAS (2) DEMÃOS, EXCLUSIVE ABERTURA PARA PORTÃO | C176: m2 | D176: 77.22
A177: ED-29823 | B177: TAPUME FIXO DE PROTEÇÃO PARA FECHAMENTO DE OBRA EM TELHA METÁLICA GALVANIZADA, TIPO TRAPEZOIDAL, ESP. 0,5MM, COM MÓDULO NA DIMENSÃO DE (300X220)CM, COM REAPROVEITAMENTO, EXCLUSIVE PINTURA ESMALTE, INCLUSIVE PONTALETE E FIXAÇÃO | C177: m2 | D177: 57.93
A178: ED-50165 | B178: TAPUME REMOVÍVEL DE PROTEÇÃO PARA FECHAMENTO DE OBRA EM TELA GALVANIZADA, COM TRAMA LOSANGULAR DE 2"X2", FIO BWG 14, COM MÓDULO NA DIMENSÃO DE (300X220)CM, INCLUSIVE PONTALETE COM BASE DE APOIO EM CONCRETO MAGRO | C178: m2 | D178: 71.69
A179: 8728 | B179: PROTEÇÃO DE TRANSEUNTE
A180: ED-27006 | B180: CONE PARA SINALIZAÇÃO/ISOLAMENTO DE ÁREAS, ALTURA 75CM, INCLUSIVE FORNECIMENTO E MOVIMENTAÇÃO | C180: un | D180: 4.63
A181: ED-50157 | B181: FITA ZEBRADA AMARELA PARA SINALIZAÇÃO ISOLAMENTO DE ÁREA, EXCLUSIVE SUPORTE PARA SUSTENTAÇÃO, INCLUSIVE FIXAÇÃO E FORNECIMENTO | C181: m | D181: 2.5
A182: ED-50156 | B182: PROTEÇÃO PARA TRANSEUNTE OU ISOLAMENTO DE ÁREA COM FITA ZEBRADA AMARELA, INCLUSIVE PONTALETE COM BASE DE APOIO EM CONCRETO MAGRO, ALTURA DE 150CM, FORNECIMENTO E MOVIMENTAÇÃO | C182: m | D182: 10.22
A183: 8729 | B183: ANDAIME
A184: ED-28530 | B184: ANDAIME EM CAVALETE METÁLICO PARA ALVENARIA, COM CHAPA DE COMPENSADO E TÁBUA, COM REAPROVEITAMENTO, INCLUSIVE MONTAGEM/DESMONTAGEM E REMANEJAMENTO | C184: m | D184: 1.45
A185: ED-28533 | B185: ANDAIME EM CAVALETE METÁLICO PARA FORRO OU SERVIÇO EM ALTURA INTERNO, COM CHAPA DE COMPENSADO E TÁBUA, COM REAPROVEITAMENTO, INCLUSIVE MONTAGEM/DESMONTAGEM E REMANEJAMENTO | C185: m2 | D185: 1.32
A186: ED-48243 | B186: CONDUTOR/DUTO DE ENTULHO EM POLIETILENO, INCLUSIVE ACESSÓRIOS DE FIXAÇÃO, SUPORTES, MONTAGEM/DESMONTAGEM E REMANEJAMENTO | C186: mxmês | D186: 45.13
A187: ED-9075 | B187: FORNECIMENTO DE ANDAIME METÁLICO PARA FACHADA (LOCAÇÃO), INCLUSIVE PISO METÁLICO E SAPATAS, EXCLUSIVE MONTAGEM E DESMONTAGEM | C187: m2xmês | D187: 6.66
A188: ED-9076 | B188: FORNECIMENTO DE ANDAIME METÁLICO TUBULAR TIPO TORRE (LOCAÇÃO), INCLUSIVE RODÍZIOS, EXCLUSIVE MONTAGEM E DESMONTAGEM | C188: mxmês | D188: 20
A189: ED-48246 | B189: MONTAGEM E DESMONTAGEM DE ANDAIME METÁLICO PARA FACHADA COM PISO METÁLICO, EXCLUSIVE FORNECIMENTO DO ANDAIME E RODAPÉ/GUARDA-CORPO EM MADEIRA | C189: m2 | D189: 8.14
A190: ED-48245 | B190: MONTAGEM E DESMONTAGEM DE ANDAIME METÁLICO PARA FACHADA COM PISO METÁLICO, INCLUSIVE RODAPÉ/GUARDA-CORPO EM MADEIRA, EXCLUSIVE FORNECIMENTO DO ANDAIME | C190: m2 | D190: 11.35
A191: ED-9077 | B191: MONTAGEM E DESMONTAGEM DE ANDAIME METÁLICO TUBULAR TIPO TORRE, EXCLUSIVE FORNECIMENTO DO ANDAIME | C191: m | D191: 9.15
A192: ED-48249 | B192: TELA DE PROTEÇÃO, TIPO FACHADEIRA, INSTALADA EM ANDAIME METÁLICO PARA FACHADA, EXCLUSIVE ANDAIME METÁLICO, INCLUSIVE ACESSÓRIOS DE FIXAÇÃO | C192: m2 | D192: 11.85
A193: ED-48248 | B193: TELA PARA PROTEÇÃO DE FACHADA EM POLIETILENO, EXCLUSIVE BANDEJA SALVA VIDAS, INCLUSIVE ACESSÓRIOS DE FIXAÇÃO | C193: m2 | D193: 13.4
A194: 8730 | B194: BANDEJA DE PROTEÇÃO/SALVA VIDAS
A195: ED-28493 | B195: BANDEJA SALVA VIDAS, TIPO PRIMÁRIA, EM SUPORTE METÁLICO COM FORRO EM COMPENSADO RESINADO E TÁBUA, COMPRIMENTO DE 250CM COM COMPLEMENTO DE 80CM, INCLUSIVE ACESSÓRIOS DE FIXAÇÃO E INSTALAÇÃO | C195: m | D195: 206.47
A196: ED-28494 | B196: BANDEJA SALVA VIDAS, TIPO SECUNDÁRIA, EM SUPORTE METÁLICO COM FORRO EM COMPENSADO RESINADO E TÁBUA, COMPRIMENTO DE 140CM COM COMPLEMENTO DE 80CM, INCLUSIVE ACESSÓRIOS DE FIXAÇÃO E INSTALAÇÃO | C196: m | D196: 129.09
A197: 8665 | B197: TERRAPLENAGEM/TRABALHOS EM TERRA
A198: 8731 | B198: REGULARIZAÇÃO E COMPACTAÇÃO DE SOLO
A199: ED-51100 | B199: CORTE E DESATERRO MECÂNICO PARA REGULARIZAÇÃO, COM TRATOR DE ESTEIRA, INCLUSIVE ARRASTAMENTO NIVELADO, AFASTAMENTO E EMPILHAMENTO, EXCLUSIVE CARGA, TRANSPORTE E DESCARGA | C199: m3 | D199: 3.62
A200: ED-51122 | B200: REGULARIZAÇÃO E COMPACTAÇÃO DE TERRENO MANUAL COM SOQUETE, EXCLUSIVE DESMATAMENTO, DESTOCAMENTO, LIMPEZA/ROÇADA DO TERRENO | C200: m2 | D200: 8.72
... 4045 more rows

Sheet SICRO
B1: SICRO ABRIL 2023
A2: CÓDIGO | B2: DESCRIÇÃO | C2: UNIDADE | D2: PREÇO
A3: 307731 | B3: Aparelho de apoio de neoprene fretado para estruturas moldadas no local - fornecimento e instalação | C3: dm³ | D3: 108.98
A4: 307732 | B4: Aparelho de apoio de neoprene fretado para estruturas pré-moldadas - fornecimento e instalação | C4: dm³ | D4: 86.86
A5: 308308 | B5: Aparelho de apoio metálico elastomérico fixo com capacidade de 1.500 kN - fornecimento e instalação | C5: un | D5: 14203.59
A6: 308313 | B6: Aparelho de apoio metálico elastomérico fixo com capacidade de 10.000 kN - fornecimento e instalação | C6: un | D6: 93037.3
A7: 308309 | B7: Aparelho de apoio metálico elastomérico fixo com capacidade de 2.500 kN - fornecimento e instalação | C7: un | D7: 23200.26
A8: 308310 | B8: Aparelho de apoio metálico elastomérico fixo com capacidade de 4.000 kN - fornecimento e instalação | C8: un | D8: 37370.57
A9: 308311 | B9: Aparelho de apoio metálico elastomérico fixo com capacidade de 5.500 kN - fornecimento e instalação | C9: un | D9: 50149.62
A10: 308312 | B10: Aparelho de apoio metálico elastomérico fixo com capacidade de 7.500 kN - fornecimento e instalação | C10: un | D10: 68791.19
A11: 308307 | B11: Aparelho de apoio metálico elastomérico fixo com capacidade de 700 kN - fornecimento e instalação | C11: un | D11: 9547.1
A12: 308322 | B12: Aparelho de apoio metálico elastomérico multidirecional com capacidade de 1.500 kN - fornecimento e instalação | C12: un | D12: 8606.71
A13: 308327 | B13: Aparelho de apoio metálico elastomérico multidirecional com capacidade de 10.000 kN - fornecimento e instalação | C13: un | D13: 55949.37
A14: 308323 | B14: Aparelho de apoio metálico elastomérico multidirecional com capacidade de 2.500 kN - fornecimento e instalação | C14: un | D14: 11958.25
A15: 308324 | B15: Aparelho de apoio metálico elastomérico multidirecional com capacidade de 4.000 kN - fornecimento e instalação | C15: un | D15: 19919.18
A16: 308325 | B16: Aparelho de apoio metálico elastomérico multidirecional com capacidade de 5.500 kN - fornecimento e instalação | C16: un | D16: 28597.69
A17: 308326 | B17: Aparelho de apoio metálico elastomérico multidirecional com capacidade de 7.500 kN - fornecimento e instalação | C17: un | D17: 40440.61
A18: 308321 | B18: Aparelho de apoio metálico elastomérico multidirecional com capacidade de 700 kN - fornecimento e instalação | C18: un | D18: 4975.56
A19: 308315 | B19: Aparelho de apoio metálico elastomérico unidirecional com capacidade de 1.500 kN - fornecimento e instalação | C19: un | D19: 10180.31
A20: 308320 | B20: Aparelho de apoio metálico elastomérico unidirecional com capacidade de 10.000 kN - fornecimento e instalação | C20: un | D20: 59652.81
A21: 308316 | B21: Aparelho de apoio metálico elastomérico unidirecional com capacidade de 2.500 kN - fornecimento e instalação | C21: un | D21: 15085.02
A22: 308317 | B22: Aparelho de apoio metálico elastomérico unidirecional com capacidade de 4.000 kN - fornecimento e instalação | C22: un | D22: 24955.82
A23: 308318 | B23: Aparelho de apoio metálico elastomérico unidirecional com capacidade de 5.500 kN - fornecimento e instalação | C23: un | D23: 32429.51
A24: 308319 | B24: Aparelho de apoio metálico elastomérico unidirecional com capacidade de 7.500 kN - fornecimento e instalação | C24: un | D24: 44994.98
A25: 308314 | B25: Aparelho de apoio metálico elastomérico unidirecional com capacidade de 700 kN - fornecimento e instalação | C25: un | D25: 6900.66
A26: 308250 | B26: Aparelho de apoio metálico esférico fixo com capacidade de 1.000 kN - fornecimento e instalação | C26: un | D26: 5767
A27: 308251 | B27: Aparelho de apoio metálico esférico fixo com capacidade de 1.500 kN - fornecimento e instalação | C27: un | D27: 8586.58
A28: 308268 | B28: Aparelho de apoio metálico esférico fixo com capacidade de 10.000 kN - fornecimento e instalação | C28: un | D28: 128633
A29: 308252 | B29: Aparelho de apoio metálico esférico fixo com capacidade de 2.000 kN - fornecimento e instalação | C29: un | D29: 10861.27
A30: 308253 | B30: Aparelho de apoio metálico esférico fixo com capacidade de 2.500 kN - fornecimento e instalação | C30: un | D30: 13694.36
A31: 308254 | B31: Aparelho de apoio metálico esférico fixo com capacidade de 3.000 kN - fornecimento e instalação | C31: un | D31: 15726.08
A32: 308255 | B32: Aparelho de apoio metálico esférico fixo com capacidade de 3.500 kN - fornecimento e instalação | C32: un | D32: 18998.3
A33: 308256 | B33: Aparelho de apoio metálico esférico fixo com capacidade de 4.000 kN - fornecimento e instalação | C33: un | D33: 22394.93
A34: 308257 | B34: Aparelho de apoio metálico esférico fixo com capacidade de 4.500 kN - fornecimento e instalação | C34: un | D34: 56898.09
A35: 308258 | B35: Aparelho de apoio metálico esférico fixo com capacidade de 5.000 kN - fornecimento e instalação | C35: un | D35: 63262.03
A36: 308259 | B36: Aparelho de apoio metálico esférico fixo com capacidade de 5.500 kN - fornecimento e instalação | C36: un | D36: 68619.62
A37: 308260 | B37: Aparelho de apoio metálico esférico fixo com capacidade de 6.000 kN - fornecimento e instalação | C37: un | D37: 74025.83
A38: 308261 | B38: Aparelho de apoio metálico esférico fixo com capacidade de 6.500 kN - fornecimento e instalação | C38: un | D38: 84130.82
A39: 308262 | B39: Aparelho de apoio metálico esférico fixo com capacidade de 7.000 kN - fornecimento e instalação | C39: un | D39: 86808.49
A40: 308263 | B40: Aparelho de apoio metálico esférico fixo com capacidade de 7.500 kN - fornecimento e instalação | C40: un | D40: 96992.85
A41: 308264 | B41: Aparelho de apoio metálico esférico fixo com capacidade de 8.000 kN - fornecimento e instalação | C41: un | D41: 103686.24
A42: 308265 | B42: Aparelho de apoio metálico esférico fixo com capacidade de 8.500 kN - fornecimento e instalação | C42: un | D42: 106195.89
A43: 308266 | B43: Aparelho de apoio metálico esférico fixo com capacidade de 9.000 kN - fornecimento e instalação | C43: un | D43: 114762.28
A44: 308267 | B44: Aparelho de apoio metálico esférico fixo com capacidade de 9.500 kN - fornecimento e instalação | C44: un | D44: 121013.64
A45: 308288 | B45: Aparelho de apoio metálico esférico multidirecional com capacidade de 1.000 kN - fornecimento e instalação | C45: un | D45: 12153.74
A46: 308289 | B46: Aparelho de apoio metálico esférico multidirecional com capacidade de 1.500 kN - fornecimento e instalação | C46: un | D46: 17193.86
A47: 308306 | B47: Aparelho de apoio metálico esférico multidirecional com capacidade de 10.000 kN - fornecimento e instalação | C47: un | D47: 114201.61
A48: 308290 | B48: Aparelho de apoio metálico esférico multidirecional com capacidade de 2.000 kN - fornecimento e instalação | C48: un | D48: 22874.51
A49: 308291 | B49: Aparelho de apoio metálico esférico multidirecional com capacidade de 2.500 kN - fornecimento e instalação | C49: un | D49: 27252.42
A50: 308292 | B50: Aparelho de apoio metálico esférico multidirecional com capacidade de 3.000 kN - fornecimento e instalação | C50: un | D50: 31926.44
A51: 308293 | B51: Aparelho de apoio metálico esférico multidirecional com capacidade de 3.500 kN - fornecimento e instalação | C51: un | D51: 36283.14
A52: 308294 | B52: Aparelho de apoio metálico esférico multidirecional com capacidade de 4.000 kN - fornecimento e instalação | C52: un | D52: 41393.33
A53: 308295 | B53: Aparelho de apoio metálico esférico multidirecional com capacidade de 4.500 kN - fornecimento e instalação | C53: un | D53: 47964.9
A54: 308296 | B54: Aparelho de apoio metálico esférico multidirecional com capacidade de 5.000 kN - fornecimento e instalação | C54: un | D54: 53392.28
A55: 308297 | B55: Aparelho de apoio metálico esférico multidirecional com capacidade de 5.500 kN - fornecimento e instalação | C55: un | D55: 57819.27
A56: 308298 | B56: Aparelho de apoio metálico esférico multidirecional com capacidade de 6.000 kN - fornecimento e instalação | C56: un | D56: 65972.75
A57: 308299 | B57: Aparelho de apoio metálico esférico multidirecional com capacidade de 6.500 kN - fornecimento e instalação | C57: un | D57: 71300.89
A58: 308300 | B58: Aparelho de apoio metálico esférico multidirecional com capacidade de 7.000 kN - fornecimento e instalação | C58: un | D58: 76781.17
A59: 308301 | B59: Aparelho de apoio metálico esférico multidirecional com capacidade de 7.500 kN - fornecimento e instalação | C59: un | D59: 82861.21
A60: 308302 | B60: Aparelho de apoio metálico esférico multidirecional com capacidade de 8.000 kN - fornecimento e instalação | C60: un | D60: 88287.32
A61: 308303 | B61: Aparelho de apoio metálico esférico multidirecional com capacidade de 8.500 kN - fornecimento e instalação | C61: un | D61: 97140.91
A62: 308304 | B62: Aparelho de apoio metálico esférico multidirecional com capacidade de 9.000 kN - fornecimento e instalação | C62: un | D62: 102364.54
A63: 308305 | B63: Aparelho de apoio metálico esférico multidirecional com capacidade de 9.500 kN - fornecimento e instalação | C63: un | D63: 108746.04
A64: 308269 | B64: Aparelho de apoio metálico esférico unidirecional com capacidade de 1.000 kN - fornecimento e instalação | C64: un | D64: 6870.48
A65: 308270 | B65: Aparelho de apoio metálico esférico unidirecional com capacidade de 1.500 kN - fornecimento e instalação | C65: un | D65: 10768.04
A66: 308287 | B66: Aparelho de apoio metálico esférico unidirecional com capacidade de 10.000 kN - fornecimento e instalação | C66: un | D66: 127145.21
A67: 308271 | B67: Aparelho de apoio metálico esférico unidirecional com capacidade de 2.000 kN - fornecimento e instalação | C67: un | D67: 13054.82
A68: 308272 | B68: Aparelho de apoio metálico esférico unidirecional com capacidade de 2.500 kN - fornecimento e instalação | C68: un | D68: 16247.25
A69: 308273 | B69: Aparelho de apoio metálico esférico unidirecional com capacidade de 3.000 kN - fornecimento e instalação | C69: un | D69: 20010.65
A70: 308274 | B70: Aparelho de apoio metálico esférico unidirecional com capacidade de 3.500 kN - fornecimento e instalação | C70: un | D70: 22664.1
A71: 308275 | B71: Aparelho de apoio metálico esférico unidirecional com capacidade de 4.000 kN - fornecimento e instalação | C71: un | D71: 34034.03
A72: 308276 | B72: Aparelho de apoio metálico esférico unidirecional com capacidade de 4.500 kN - fornecimento e instalação | C72: un | D72: 56129.64
A73: 308277 | B73: Aparelho de apoio metálico esférico unidirecional com capacidade de 5.000 kN - fornecimento e instalação | C73: un | D73: 62163.3
A74: 308278 | B74: Aparelho de apoio metálico esférico unidirecional com capacidade de 5.500 kN - fornecimento e instalação | C74: un | D74: 67550.35
A75: 308279 | B75: Aparelho de apoio metálico esférico unidirecional com capacidade de 6.000 kN - fornecimento e instalação | C75: un | D75: 71036.49
A76: 308280 | B76: Aparelho de apoio metálico esférico unidirecional com capacidade de 6.500 kN - fornecimento e instalação | C76: un | D76: 81163.34
A77: 308281 | B77: Aparelho de apoio metálico esférico unidirecional com capacidade de 7.000 kN - fornecimento e instalação | C77: un | D77: 87171.06
A78: 308282 | B78: Aparelho de apoio metálico esférico unidirecional com capacidade de 7.500 kN - fornecimento e instalação | C78: un | D78: 93749.62
A79: 308283 | B79: Aparelho de apoio metálico esférico unidirecional com capacidade de 8.000 kN - fornecimento e instalação | C79: un | D79: 99575.54
A80: 308284 | B80: Aparelho de apoio metálico esférico unidirecional com capacidade de 8.500 kN - fornecimento e instalação | C80: un | D80: 107710.43
A81: 308285 | B81: Aparelho de apoio metálico esférico unidirecional com capacidade de 9.000 kN - fornecimento e instalação | C81: un | D81: 114359.57
A82: 308286 | B82: Aparelho de apoio metálico esférico unidirecional com capacidade de 9.500 kN - fornecimento e instalação | C82: un | D82: 121049.99
A83: 307733 | B83: Junta de dilatação em elastômero e perfil VV - L = 20 mm e H = 40 mm - fornecimento e instalação | C83: m | D83: 442.61
A84: 307734 | B84: Junta de dilatação em elastômero e perfil VV - L = 25 mm e H = 50 mm - fornecimento e instalação | C84: m | D84: 549.33
A85: 307735 | B85: Junta de dilatação em elastômero e perfil VV - L = 35 mm e H = 60 mm - fornecimento e instalação | C85: m | D85: 915.97
A86: 307736 | B86: Junta de dilatação em elastômero e perfil VV - L = 40 mm e H = 70 mm - fornecimento e instalação | C86: m | D86: 1258.24
A87: 307737 | B87: Junta de dilatação em elastômero e perfil VV - L = 50 mm e H = 80 mm - fornecimento e instalação | C87: m | D87: 1539.88
A88: 307730 | B88: Junta de dilatação em perfil extrudado de borracha vulcanizada | C88: m | D88: 0
A89: 307084 | B89: Lábios poliméricos em junta de pavimento de concreto - L = 20 mm e H = 30 mm - confecção e assentamento | C89: m | D89: 29.3
A90: 407818 | B90: Armação em aço CA-25 - fornecimento, preparo e colocação | C90: kg | D90: 12.68
A91: 407819 | B91: Armação em aço CA-50 - fornecimento, preparo e colocação | C91: kg | D91: 11.85
A92: 407820 | B92: Armação em aço CA-60 - fornecimento, preparo e colocação | C92: kg | D92: 12.97
A93: 407740 | B93: Chumbador tipo espera em aço CA-25 para fixação de estrutura metálica em concreto - fornecimento e instalação | C93: kg | D93: 14.96
A94: 408037 | B94: Luva de emenda com rosca cônica para aço CA-50 - D = 12,5 mm - fornecimento e instalação | C94: un | D94: 22.05
A95: 408038 | B95: Luva de emenda com rosca cônica para aço CA-50 - D = 16 mm - fornecimento e instalação | C95: un | D95: 30.43
A96: 408039 | B96: Luva de emenda com rosca cônica para aço CA-50 - D = 20 mm - fornecimento e instalação | C96: un | D96: 40.48
A97: 408041 | B97: Luva de emenda com rosca cônica para aço CA-50 - D = 25 mm - fornecimento e instalação | C97: un | D97: 57.66
A98: 408042 | B98: Luva de emenda com rosca cônica para aço CA-50 - D = 32 mm - fornecimento e instalação | C98: un | D98: 85.88
A99: 408031 | B99: Luva de emenda prensada para aço CA-50 - D = 12,5 mm - fornecimento e instalação | C99: un | D99: 20.22
A100: 408032 | B100: Luva de emenda prensada para aço CA-50 - D = 16 mm - fornecimento e instalação | C100: un | D100: 27.64
A101: 408033 | B101: Luva de emenda prensada para aço CA-50 - D = 20 mm - fornecimento e instalação | C101: un | D101: 39.45
A102: 408035 | B102: Luva de emenda prensada para aço CA-50 - D = 25 mm - fornecimento e instalação | C102: un | D102: 69.56
A103: 408036 | B103: Luva de emenda prensada para aço CA-50 - D = 32 mm - fornecimento e instalação | C103: un | D103: 135.93
A104: 408067 | B104: Tela de aço eletrossoldada - fornecimento, preparo e colocação | C104: kg | D104: 11.86
A105: 407743 | B105: Treliça nervurada três barras longitudinais interligadas por duas diagonais sinusoidal - fornecimento e instalação | C105: kg | D105: 12.07
A106: 607137 | B106: Arco metálico galvanizado tipo MP 152S - arco alto - vão = 10,08 m e altura = 6,12 m - aterro rodoviário mínimo = 0,90 m e máximo = 5,00 m - areia e brita comerciais | C106: m | D106: 59918.74
A107: 606785 | B107: Arco metálico galvanizado tipo MP 152S - arco alto - vão = 10,08 m e altura = 6,12 m - aterro rodoviário mínimo = 0,90 m e máximo = 5,00 m - areia extraída e brita produzida | C107: m | D107: 59110.02
A108: 607139 | B108: Arco metálico galvanizado tipo MP 152S - arco alto - vão = 10,31 m e altura = 6,17 m - aterro rodoviário mínimo = 0,90 m e máximo = 4,90 m - areia e brita comerciais | C108: m | D108: 60750.31
A109: 606787 | B109: Arco metálico galvanizado tipo MP 152S - arco alto - vão = 10,31 m e altura = 6,17 m - aterro rodoviário mínimo = 0,90 m e máximo = 4,90 m - areia extraída e brita produzida | C109: m | D109: 59624.81
A110: 607140 | B110: Arco metálico galvanizado tipo MP 152S - arco alto - vão = 10,36 m e altura = 5,38 m - aterro rodoviário mínimo = 1,20 m e máximo = 3,60 m - areia e brita comerciais | C110: m | D110: 55510.69
A111: 606788 | B111: Arco metálico galvanizado tipo MP 152S - arco alto - vão = 10,36 m e altura = 5,38 m - aterro rodoviário mínimo = 1,20 m e máximo = 3,60 m - areia extraída e brita produzida | C111: m | D111: 55061.6
A112: 607141 | B112: Arco metálico galvanizado tipo MP 152S - arco alto - vão = 10,54 m e altura = 6,05 m - aterro rodoviário mínimo = 1,20 m e máximo = 4,20 m - areia e brita comerciais | C112: m | D112: 61796.52
A113: 606789 | B113: Arco metálico galvanizado tipo MP 152S - arco alto - vão = 10,54 m e altura = 6,05 m - aterro rodoviário mínimo = 1,20 m e máximo = 4,20 m - areia extraída e brita produzida | C113: m | D113: 60956.24
A114: 607144 | B114: Arco metálico galvanizado tipo MP 152S - arco alto - vão = 10,57 m e altura = 5,41 m - aterro rodoviário mínimo = 1,20 m e máximo = 4,10 m - areia e brita comerciais | C114: m | D114: 72450.9
A115: 606792 | B115: Arco metálico galvanizado tipo MP 152S - arco alto - vão = 10,57 m e altura = 5,41 m - aterro rodoviário mínimo = 1,20 m e máximo = 4,10 m - areia extraída e brita produzida | C115: m | D115: 71681.95
A116: 607142 | B116: Arco metálico galvanizado tipo MP 152S - arco alto - vão = 10,74 m e altura = 6,48 m - aterro rodoviário mínimo = 1,20 m e máximo = 4,70 m - areia e brita comerciais | C116: m | D116: 64830.6
A117: 606790 | B117: Arco metálico galvanizado tipo MP 152S - arco alto - vão = 10,74 m e altura = 6,48 m - aterro rodoviário mínimo = 1,20 m e máximo = 4,70 m - areia extraída e brita produzida | C117: m | D117: 63923.17
A118: 607145 | B118: Arco metálico galvanizado tipo MP 152S - arco alto - vão = 10,77 m e altura = 6,10 m - aterro rodoviário mínimo = 1,20 m e máximo = 4,70 m - areia e brita comerciais | C118: m | D118: 80032.64
A119: 606793 | B119: Arco metálico galvanizado tipo MP 152S - arco alto - vão = 10,77 m e altura = 6,10 m - aterro rodoviário mínimo = 1,20 m e máximo = 4,70 m - areia extraída e brita produzida | C119: m | D119: 79166.58
A120: 607146 | B120: Arco metálico galvanizado tipo MP 152S - arco alto - vão = 10,97 m e altura = 6,53 m - aterro rodoviário mínimo = 1,20 m e máximo = 4,70 m - areia e brita comerciais | C120: m | D120: 83425.34
A121: 606794 | B121: Arco metálico galvanizado tipo MP 152S - arco alto - vão = 10,97 m e altura = 6,53 m - aterro rodoviário mínimo = 1,20 m e máximo = 4,70 m - areia extraída e brita produzida | C121: m | D121: 82491.33
A122: 607143 | B122: Arco metálico galvanizado tipo MP 152S - arco alto - vão = 11,35 m e altura = 7,12 m - aterro rodoviário mínimo = 1,20 m e máximo = 4,70 m - areia e brita comerciais | C122: m | D122: 70037.17
A123: 606791 | B123: Arco metálico galvanizado tipo MP 152S - arco alto - vão = 11,35 m e altura = 7,12 m - aterro rodoviário mínimo = 1,20 m e máximo = 4,70 m - areia extraída e brita produzida | C123: m | D123: 68991.64
A124: 607147 | B124: Arco metálico galvanizado tipo MP 152S - arco alto - vão = 11,58 m e altura = 7,16 m - aterro rodoviário mínimo = 1,20 m e máximo = 6,40 m - areia e brita comerciais | C124: m | D124: 89969.72
A125: 606795 | B125: Arco metálico galvanizado tipo MP 152S - arco alto - vão = 11,58 m e altura = 7,16 m - aterro rodoviário mínimo = 1,20 m e máximo = 6,40 m - areia extraída e brita produzida | C125: m | D125: 88896.67
A126: 607112 | B126: Arco metálico galvanizado tipo MP 152S - arco alto - vão = 6,12 m e altura = 2,77 m - aterro rodoviário mínimo = 0,75 m e máximo = 5,40 m - areia e brita comerciais | C126: m | D126: 29291.07
A127: 606760 | B127: Arco metálico galvanizado tipo MP 152S - arco alto - vão = 6,12 m e altura = 2,77 m - aterro rodoviário mínimo = 0,75 m e máximo = 5,40 m - areia extraída e brita produzida | C127: m | D127: 29008.1
A128: 607113 | B128: Arco metálico galvanizado tipo MP 152S - arco alto - vão = 6,30 m e altura = 3,68 m - aterro rodoviário mínimo = 0,75 m e máximo = 7,50 m - areia e brita comerciais | C128: m | D128: 34283.76
A129: 606761 | B129: Arco metálico galvanizado tipo MP 152S - arco alto - vão = 6,30 m e altura = 3,68 m - aterro rodoviário mínimo = 0,75 m e máximo = 7,50 m - areia extraída e brita produzida | C129: m | D129: 33959.27
A130: 606762 | B130: Arco metálico galvanizado tipo MP 152S - arco alto - vão = 6,55 m e altura = 3,56 m - aterro rodoviário mínimo = 0,75 m e máximo = 4,9 m - areia extraída e brita produzida | C130: m | D130: 33817.61
A131: 607114 | B131: Arco metálico galvanizado tipo MP 152S - arco alto - vão = 6,55 m e altura = 3,56 m - aterro rodoviário mínimo = 0,75 m e máximo = 4,90 m - areia e brita comerciais | C131: m | D131: 34145.86
A132: 607116 | B132: Arco metálico galvanizado tipo MP 152S - arco alto - vão = 6,78 m e altura = 3,61 m - aterro rodoviário mínimo = 0,75 m e máximo = 4,80 m - areia e brita comerciais | C132: m | D132: 36097.44
A133: 606764 | B133: Arco metálico galvanizado tipo MP 152S - arco alto - vão = 6,78 m e altura = 3,61 m - aterro rodoviário mínimo = 0,75 m e máximo = 4,80 m - areia extraída e brita produzida | C133: m | D133: 35752.11
A134: 607115 | B134: Arco metálico galvanizado tipo MP 152S - arco alto - vão = 6,96 m e altura = 4,42 m - aterro rodoviário mínimo = 0,75 m e máximo = 8,10 m - areia e brita comerciais | C134: m | D134: 40997.59
A135: 606763 | B135: Arco metálico galvanizado tipo MP 152S - arco alto - vão = 6,96 m e altura = 4,42 m - aterro rodoviário mínimo = 0,75 m e máximo = 8,10 m - areia extraída e brita produzida | C135: m | D135: 40580.61
A136: 607117 | B136: Arco metálico galvanizado tipo MP 152S - arco alto - vão = 6,99 m e altura = 4,27 m - aterro rodoviário mínimo = 0,75 m e máximo = 5,70 m - areia e brita comerciais | C136: m | D136: 40990.48
A137: 606765 | B137: Arco metálico galvanizado tipo MP 152S - arco alto - vão = 6,99 m e altura = 4,27 m - aterro rodoviário mínimo = 0,75 m e máximo = 5,70 m - areia extraída e brita produzida | C137: m | D137: 40584.61
A138: 607118 | B138: Arco metálico galvanizado tipo MP 152S - arco alto - vão = 7,01 m e altura = 3,63 m - aterro rodoviário mínimo = 0,75 m e máximo = 4,60 m - areia e brita comerciais | C138: m | D138: 36750.85
A139: 606766 | B139: Arco metálico galvanizado tipo MP 152S - arco alto - vão = 7,01 m e altura = 3,63 m - aterro rodoviário mínimo = 0,75 m e máximo = 4,60 m - areia extraída e brita produzida | C139: m | D139: 36391.69
A140: 607120 | B140: Arco metálico galvanizado tipo MP 152S - arco alto - vão = 7,24 m e altura = 3,68 m - aterro rodoviário mínimo = 0,90 m e máximo = 4,4 m - areia e brita comerciais | C140: m | D140: 37405.02
A141: 606768 | B141: Arco metálico galvanizado tipo MP 152S - arco alto - vão = 7,24 m e altura = 3,68 m - aterro rodoviário mínimo = 0,90 m e máximo = 4,40 m - areia extraída e brita produzida | C141: m | D141: 37029.56
A142: 607119 | B142: Arco metálico galvanizado tipo MP 152S - arco alto - vão = 7,42 m e altura = 4,52 m - aterro rodoviário mínimo = 0,90 m e máximo = 6,40 m - areia e brita comerciais | C142: m | D142: 42956.46
A143: 606767 | B143: Arco metálico galvanizado tipo MP 152S - arco alto - vão = 7,42 m e altura = 4,52 m - aterro rodoviário mínimo = 0,90 m e máximo = 6,40 m - areia extraída e brita produzida | C143: m | D143: 42502.69
A144: 607121 | B144: Arco metálico galvanizado tipo MP 152S - arco alto - vão = 7,47 m e altura = 4,19 m - aterro rodoviário mínimo = 0,90 m e máximo = 4,30 m - areia e brita comerciais | C144: m | D144: 40513.74
A145: 606769 | B145: Arco metálico galvanizado tipo MP 152S - arco alto - vão = 7,47 m e altura = 4,19 m - aterro rodoviário mínimo = 0,90 m e máximo = 4,30 m - areia extraída e brita produzida | C145: m | D145: 40083.74
A146: 607123 | B146: Arco metálico galvanizado tipo MP 152S - arco alto - vão = 7,67 m e altura = 3,99 m - aterro rodoviário mínimo = 0,90 m e máximo = 4,10 m - areia e brita comerciais | C146: m | D146: 39952.71
A147: 606771 | B147: Arco metálico galvanizado tipo MP 152S - arco alto - vão = 7,67 m e altura = 3,99 m - aterro rodoviário mínimo = 0,90 m e máximo = 4,10 m - areia extraída e brita produzida | C147: m | D147: 39527.48
A148: 607122 | B148: Arco metálico galvanizado tipo MP 152S - arco alto - vão = 7,85 m e altura = 4,60 m - aterro rodoviário mínimo = 0,90 m e máximo = 6,00 m - areia e brita comerciais | C148: m | D148: 44301.64
A149: 606770 | B149: Arco metálico galvanizado tipo MP 152S - arco alto - vão = 7,85 m e altura = 4,60 m - aterro rodoviário mínimo = 0,90 m e máximo = 6,00 m - areia extraída e brita produzida | C149: m | D149: 43812.63
A150: 607125 | B150: Arco metálico galvanizado tipo MP 152S - arco alto - vão = 7,90 m e altura = 4,04 m - aterro rodoviário mínimo = 0,90 m e máximo = 4,00 m - areia e brita comerciais | C150: m | D150: 41280.2
A151: 606773 | B151: Arco metálico galvanizado tipo MP 152S - arco alto - vão = 7,90 m e altura = 4,04 m - aterro rodoviário mínimo = 0,90 m e máximo = 4,00 m - areia extraída e brita produzida | C151: m | D151: 40835.7
A152: 607124 | B152: Arco metálico galvanizado tipo MP 152S - arco alto - vão = 8,08 m e altura = 4,65 m - aterro rodoviário mínimo = 0,90 m e máximo = 5,80 m - areia e brita comerciais | C152: m | D152: 44991.97
A153: 606772 | B153: Arco metálico galvanizado tipo MP 152S - arco alto - vão = 8,08 m e altura = 4,65 m - aterro rodoviário mínimo = 0,90 m e máximo = 5,80 m - areia extraída e brita produzida | C153: m | D153: 44483.53
A154: 607126 | B154: Arco metálico galvanizado tipo MP 152S - arco alto - vão = 8,31 m e altura = 4,70 m - aterro rodoviário mínimo = 0,90 m e máximo = 5,60 m - areia e brita comerciais | C154: m | D154: 46218
A155: 606774 | B155: Arco metálico galvanizado tipo MP 152S - arco alto - vão = 8,31 m e altura = 4,70 m - aterro rodoviário mínimo = 0,90 m e máximo = 5,60 m - areia extraída e brita produzida | C155: m | D155: 45688.23
A156: 607127 | B156: Arco metálico galvanizado tipo MP 152S - arco alto - vão = 8,36 m e altura = 4,11 m - aterro rodoviário mínimo = 0,90 m e máximo = 3,70 m - areia e brita comerciais | C156: m | D156: 42602.47
A157: 606775 | B157: Arco metálico galvanizado tipo MP 152S - arco alto - vão = 8,36 m e altura = 4,11 m - aterro rodoviário mínimo = 0,90 m e máximo = 3,70 m - areia extraída e brita produzida | C157: m | D157: 42124.13
A158: 607129 | B158: Arco metálico galvanizado tipo MP 152S - arco alto - vão = 8,59 m e altura = 4,39 m - aterro rodoviário mínimo = 0,90 m e máximo = 3,60 m - areia e brita comerciais | C158: m | D158: 44554.45
A159: 606777 | B159: Arco metálico galvanizado tipo MP 152S - arco alto - vão = 8,59 m e altura = 4,39 m - aterro rodoviário mínimo = 0,90 m e máximo = 3,60 m - areia extraída e brita produzida | C159: m | D159: 44034.89
A160: 607128 | B160: Arco metálico galvanizado tipo MP 152S - arco alto - vão = 8,97 m e altura = 5,00 m - aterro rodoviário mínimo = 0,90 m e máximo = 5,80 m - areia e brita comerciais | C160: m | D160: 48970.63
A161: 606776 | B161: Arco metálico galvanizado tipo MP 152S - arco alto - vão = 8,97 m e altura = 5,00 m - aterro rodoviário mínimo = 0,90 m e máximo = 5,80 m - areia extraída e brita produzida | C161: m | D161: 48365.22
A162: 607130 | B162: Arco metálico galvanizado tipo MP 152S - arco alto - vão = 9,17 m e altura = 5,49 m - aterro rodoviário mínimo = 0,90 m e máximo = 5,60 m - areia e brita comerciais | C162: m | D162: 52195.33
A163: 606778 | B163: Arco metálico galvanizado tipo MP 152S - arco alto - vão = 9,17 m e altura = 5,49 m - aterro rodoviário mínimo = 0,90 m e máximo = 5,60 m - areia extraída e brita produzida | C163: m | D163: 51528.62
A164: 607131 | B164: Arco metálico galvanizado tipo MP 152S - arco alto - vão = 9,22 m e altura = 4,70 m - aterro rodoviário mínimo = 0,90 m e máximo = 4,10 m - areia e brita comerciais | C164: m | D164: 48983.11
A165: 606779 | B165: Arco metálico galvanizado tipo MP 152S - arco alto - vão = 9,22 m e altura = 4,70 m - aterro rodoviário mínimo = 0,90 m e máximo = 4,10 m - areia extraída e brita produzida | C165: m | D165: 48394.18
A166: 607133 | B166: Arco metálico galvanizado tipo MP 152S - arco alto - vão = 9,45 m e altura = 4,75 m - aterro rodoviário mínimo = 0,90 m e máximo = 4,00 m - areia e brita comerciais | C166: m | D166: 49771.8
A167: 606781 | B167: Arco metálico galvanizado tipo MP 152S - arco alto - vão = 9,45 m e altura = 4,75 m - aterro rodoviário mínimo = 0,90 m e máximo = 4,00 m - areia extraída e brita produzida | C167: m | D167: 49158.6
A168: 607132 | B168: Arco metálico galvanizado tipo MP 152S - arco alto - vão = 9,63 m e altura = 5,59 m - aterro rodoviário mínimo = 0,90 m e máximo = 5,30 m - areia e brita comerciais | C168: m | D168: 54224.13
A169: 606780 | B169: Arco metálico galvanizado tipo MP 152S - arco alto - vão = 9,63 m e altura = 5,59 m - aterro rodoviário mínimo = 0,90 m e máximo = 5,30 m - areia extraída e brita produzida | C169: m | D169: 53509.8
A170: 607134 | B170: Arco metálico galvanizado tipo MP 152S - arco alto - vão = 9,65 m e altura = 5,41 m - aterro rodoviário mínimo = 0,90 m e máximo = 4,70 m - areia e brita comerciais | C170: m | D170: 53679.7
A171: 606782 | B171: Arco metálico galvanizado tipo MP 152S - arco alto - vão = 9,65 m e altura = 5,41 m - aterro rodoviário mínimo = 0,90 m e máximo = 4,70 m - areia extraída e brita produzida | C171: m | D171: 52982.62
A172: 607136 | B172: Arco metálico galvanizado tipo MP 152S - arco alto - vão = 9,68 m e altura = 5,23 m - aterro rodoviário mínimo = 0,90 m e máximo = 3,90 m - areia e brita comerciais | C172: m | D172: 53006.82
A173: 606784 | B173: Arco metálico galvanizado tipo MP 152S - arco alto - vão = 9,68 m e altura = 5,23 m - aterro rodoviário mínimo = 0,90 m e máximo = 3,90 m - areia extraída e brita produzida | C173: m | D173: 52326.51
A174: 607135 | B174: Arco metálico galvanizado tipo MP 152S - arco alto - vão = 9,86 m e altura = 6,07 m - aterro rodoviário mínimo = 0,90 m e máximo = 5,20 m - areia e brita comerciais | C174: m | D174: 59075.16
A175: 606783 | B175: Arco metálico galvanizado tipo MP 152S - arco alto - vão = 9,86 m e altura = 6,07 m - aterro rodoviário mínimo = 0,90 m e máximo = 5,20 m - areia extraída e brita produzida | C175: m | D175: 58292.41
A176: 607138 | B176: Arco metálico galvanizado tipo MP 152S - arco alto - vão = 9,91 m e altura = 5,28 m - aterro rodoviário mínimo = 0,90 m e máximo = 3,80 m - areia e brita comerciais | C176: m | D176: 53884.2
A177: 606786 | B177: Arco metálico galvanizado tipo MP 152S - arco alto - vão = 9,91 m e altura = 5,28 m - aterro rodoviário mínimo = 0,90 m e máximo = 3,80 m - areia extraída e brita produzida | C177: m | D177: 53163.31
A178: 606842 | B178: Arco metálico galvanizado tipo MP 152S - ovoide - vão = 7,21 m e altura = 7,82 m - aterro rodoviário mínimo = 0,75 m e máximo = 6,70 m - areia e brita comerciais | C178: m | D178: 67141.32
A179: 606832 | B179: Arco metálico galvanizado tipo MP 152S - ovoide - vão = 7,21 m e altura = 7,82 m - aterro rodoviário mínimo = 0,75 m e máximo = 6,70 m - areia extraída e brita produzida | C179: m | D179: 66758.95
A180: 606843 | B180: Arco metálico galvanizado tipo MP 152S - ovoide - vão = 7,31 m e altura = 7,87 m - aterro rodoviário mínimo = 0,90 m e máximo = 6,80 m - areia e brita comerciais | C180: m | D180: 69765.34
A181: 606833 | B181: Arco metálico galvanizado tipo MP 152S - ovoide - vão = 7,31 m e altura = 7,87 m - aterro rodoviário mínimo = 0,90 m e máximo = 6,80 m - areia extraída e brita produzida | C181: m | D181: 69362.67
A182: 606845 | B182: Arco metálico galvanizado tipo MP 152S - ovoide - vão = 7,57 m e altura = 8,44 m - aterro rodoviário mínimo = 0,90 m e máximo = 5,60 m - areia e brita comerciais | C182: m | D182: 72328.84
A183: 606835 | B183: Arco metálico galvanizado tipo MP 152S - ovoide - vão = 7,57 m e altura = 8,44 m - aterro rodoviário mínimo = 0,90 m e máximo = 5,60 m - areia extraída e brita produzida | C183: m | D183: 71928.73
A184: 606844 | B184: Arco metálico galvanizado tipo MP 152S - ovoide - vão = 7,77 m e altura = 7,90 m - aterro rodoviário mínimo = 0,90 m e máximo = 6,80 m - areia e brita comerciais | C184: m | D184: 70865.53
A185: 606834 | B185: Arco metálico galvanizado tipo MP 152S - ovoide - vão = 7,77 m e altura = 7,90 m - aterro rodoviário mínimo = 0,90 m e máximo = 6,80 m - areia extraída e brita produzida | C185: m | D185: 70451.93
A186: 606847 | B186: Arco metálico galvanizado tipo MP 152S - ovoide - vão = 8,13 m e altura = 8,01 m - aterro rodoviário mínimo = 0,90 m e máximo = 3,50 m - areia e brita comerciais | C186: m | D186: 75658.34
A187: 606837 | B187: Arco metálico galvanizado tipo MP 152S - ovoide - vão = 8,13 m e altura = 8,01 m - aterro rodoviário mínimo = 0,90 m e máximo = 3,50 m - areia extraída e brita produzida | C187: m | D187: 75204.36
A188: 606846 | B188: Arco metálico galvanizado tipo MP 152S - ovoide - vão = 8,36 m e altura = 8,23 m - aterro rodoviário mínimo = 0,90 m e máximo = 4,30 m - areia e brita comerciais | C188: m | D188: 76503.48
A189: 606836 | B189: Arco metálico galvanizado tipo MP 152S - ovoide - vão = 8,36 m e altura = 8,23 m - aterro rodoviário mínimo = 0,90 m e máximo = 4,30 m - areia extraída e brita produzida | C189: m | D189: 76046.31
A190: 606848 | B190: Arco metálico galvanizado tipo MP 152S - ovoide - vão = 8,56 m e altura = 8,48 m - aterro rodoviário mínimo = 0,90 m e máximo = 5,30 m - areia e brita comerciais | C190: m | D190: 76323.1
A191: 606838 | B191: Arco metálico galvanizado tipo MP 152S - ovoide - vão = 8,56 m e altura = 8,48 m - aterro rodoviário mínimo = 0,90 m e máximo = 5,30 m - areia extraída e brita produzida | C191: m | D191: 75846.56
A192: 606849 | B192: Arco metálico galvanizado tipo MP 152S - ovoide - vão = 8,71 m e altura = 9,32 m - aterro rodoviário mínimo = 0,90 m e máximo = 6,00 m - areia e brita comerciais | C192: m | D192: 82534.58
A193: 606839 | B193: Arco metálico galvanizado tipo MP 152S - ovoide - vão = 8,71 m e altura = 9,32 m - aterro rodoviário mínimo = 0,90 m e máximo = 6,00 m - areia extraída e brita produzida | C193: m | D193: 82071.98
A194: 606850 | B194: Arco metálico galvanizado tipo MP 152S - ovoide - vão = 9,15 m e altura = 9,04 m - aterro rodoviário mínimo = 0,90 m e máximo = 4,70 m - areia e brita comerciais | C194: m | D194: 83233.15
A195: 606840 | B195: Arco metálico galvanizado tipo MP 152S - ovoide - vão = 9,15 m e altura = 9,04 m - aterro rodoviário mínimo = 0,90 m e máximo = 4,70 m - areia extraída e brita produzida | C195: m | D195: 82724.63
A196: 606851 | B196: Arco metálico galvanizado tipo MP 152S - ovoide - vão = 9,15 m e altura = 9,50 m - aterro rodoviário mínimo = 0,90 m e máximo = 5,70 m - areia e brita comerciais | C196: m | D196: 83923.78
A197: 606841 | B197: Arco metálico galvanizado tipo MP 152S - ovoide - vão = 9,15 m e altura = 9,50 m - aterro rodoviário mínimo = 0,90 m e máximo = 5,70 m - areia extraída e brita produzida | C197: m | D197: 83437.91
A198: 605604 | B198: Argamassa de solo-cimento com 10% de cimento e material de jazida - preparo e injeção em tunnel liner | C198: m³ | D198: 275.12
A199: 605695 | B199: Bueiro metálico com chapas múltiplas MP 100 com revestimento em epóxi - D = 0,60 m - brita comercial | C199: m | D199: 1602.17
A200: 605607 | B200: Bueiro metálico com chapas múltiplas MP 100 com revestimento em epóxi - D = 0,60 m - brita produzida | C200: m | D200: 1571.87
... 7809 more rows

Sheet SUDECAP
B1: SUDECAP MAIO 2023
A2: CÓDIGO | B2: DESCRIÇÃO | C2: UNIDADE | D2: PREÇO
A3: 01 | B3: INSTALAÇAO DA OBRA
A4: 01.01 | B4: ESCRITORIO DE OBRA
A5: 01.01.07 | B5: ESCRITORIO DA FISCALIZAÇAO TIPO I | C5: UN | D5: 8003.82
A6: 01.01.09 | B6: ESCRITORIO DE FISCALIZAÇAO TIPO II | C6: UN | D6: 9417.66
A7: 01.01.12 | B7: ESCRITORIO DA EMPREITEIRA TIPO II | C7: UN | D7: 9417.66
A8: 01.02 | B8: BARRACAO DE OBRA
A9: 01.02.06 | B9: VESTIARIO TIPO I | C9: UN | D9: 6486.99
A10: 01.02.07 | B10: VESTIARIO TIPO II | C10: UN | D10: 13126.47
A11: 01.02.08 | B11: VESTIARIO TIPO III | C11: UN | D11: 17451.84
A12: 01.02.11 | B12: AREA COBERTA EM TELHA ONDULADA DE FIBROCIMENTO 4MM | C12: M2 | D12: 79.69
A13: 01.02.12 | B13: DEPOSITO E FERRAMENTARIA TIPO I | C13: UN | D13: 5483.3
A14: 01.02.13 | B14: DEPOSITO E FERRAMENTARIA TIPO II | C14: UN | D14: 8379.08
A15: 01.02.14 | B15: DEPOSITO E FERRAMENTARIA TIPO III | C15: UN | D15: 11339.93
A16: 01.02.15 | B16: DEPOSITO DE MATERIAIS ENSACADOS | C16: UN | D16: 3854.79
A17: 01.02.20 | B17: INSTALAÇAO SANITARIA TIPO I | C17: UN | D17: 6510.21
A18: 01.02.21 | B18: INSTALAÇAO SANITARIA TIPO II | C18: UN | D18: 8105.87
A19: 01.02.22 | B19: INSTALAÇAO SANITARIA TIPO III | C19: UN | D19: 11505.18
A20: 01.02.25 | B20: REFEITORIO TIPO I | C20: UN | D20: 5246.13
A21: 01.02.26 | B21: REFEITORIO TIPO II | C21: UN | D21: 5947.21
A22: 01.03 | B22: PLACA DE OBRA AFIXADA COM PEÇAS DE MADEIRA
A23: 01.03.01 | B23: 3,00 X 2,00 M EM LONA IMPRESSAO DIGITAL P.SUDECAP | C23: UN | D23: 1629.86
A24: 01.03.02 | B24: PLACA DE OBRA EM LONA IMPRESSAO DIGITAL P. SUDECAP | C24: M2 | D24: 211.96
A25: 01.03.03 | B25: PLACA DE OBRA EM CHAPA GALVANIZADA ADESIVADA, DIMENSÕES 2,40 X 1,20 M, PADRÃO CEF | C25: M2 | D25: 275.28
A26: 01.04 | B26: TAPUME PADRAO SUDECAP (TIPO I, II E III)
A27: 01.04.01 | B27: COMPENSADO 10MM FIXAÇAO ENTERRADA COM INFORME PBH | C27: M | D27: 105.29
A28: 01.04.02 | B28: COMPENSADO 10MM FIXAÇAO ENTERRADA SEM INFORME PBH | C28: M | D28: 105.29
A29: 01.04.03 | B29: COMPENSADO 10MM COM BASE DE CONCRETO C/INFORME PBH | C29: M | D29: 108.32
A30: 01.04.04 | B30: COMPENSADO 10MM COM BASE DE CONCRETO S/INFORME PBH | C30: M | D30: 108.32
A31: 01.04.05 | B31: INFORME PUBLIC.LONA IMP.DIGITAL APLICADO EM TAPUME | C31: M2 | D31: 58.28
A32: 01.04.06 | B32: DE TELA GALVANIZADA #2" FIO 14 C/FIXAÇAO ENTERRADA | C32: M | D32: 57.78
A33: 01.04.07 | B33: DE TELA GALVANIZADA #2" FIO 14 C/BASE DE CONCRETO | C33: M | D33: 62.98
A34: 01.04.09 | B34: TELA-TAPUME DE POLIPROPILENO H= 1,20 M, INCL. BASE | C34: M | D34: 11.67
A35: 01.04.10 | B35: PROTEÇAO COM FITA ZEBRADA AMARELA L=7CM E PEÇA 7X7 | C35: M | D35: 7.75
A36: 01.04.11 | B36: FITA ZEBRADA AMARELA PARA SINALIZAÇAO L= 7CM | C36: M | D36: 2.94
A37: 01.04.16 | B37: TAPUME METÁLICO COM BASE DE CONCRETO (M) | C37: M | D37: 112.62
A38: 01.04.17 | B38: TAPUME METÁLICO COM BASE ENTERRADA (M) | C38: M | D38: 99.43
A39: 01.04.18 | B39: TAPUME METÁLICO COM TELA E BASE DE CONCRETO (M) | C39: M | D39: 119.48
A40: 01.04.19 | B40: TAPUME METÁLICO COM TELA E BASE ENTERRADA (M) | C40: M | D40: 106.26
A41: 01.04.20 | B41: REMANEJAMENTO DE TAPUME | C41: M | D41: 7.56
A42: 01.05 | B42: CERCA PADRAO SUDECAP
A43: 01.05.05 | B43: TIPO 1 - PECA 8X8 CADA 2,00M E 5 FIOS ARAME GALVANIZADO | C43: M | D43: 18.24
A44: 01.06 | B44: INSTALAÇAO PROVISORIA - CONCESSIONARIA
A45: 01.06.01 | B45: PADRÃO CEMIG PROVISÓRIO TIPO C3, DEMANDA PROVÁVEL DE 23,1 ATÉ 27,0KW (3F+N) | C45: UN | D45: 681.94
A46: 01.06.05 | B46: PADRAO COPASA - KIT CAVALTE METAL E REGISTRO 3/4" | C46: UN | D46: 453.32
A47: 01.07 | B47: FOSSA E SUMIDOURO
A48: 01.07.02 | B48: FOSSA SEPTICA E SUMIDOURO DN=1,20M H=4,00M | C48: UN | D48: 7627.82
A49: 01.08 | B49: REDE INTERNA E PROVISORIA DE AGUA E ESGOTO
A50: 01.08.01 | B50: TUBO PVC D= 100 MM | C50: M | D50: 22.75
A51: 01.08.02 | B51: TUBO PVC D= 150 MM | C51: M | D51: 50.48
A52: 01.08.03 | B52: TUBO PVC D= 200 MM | C52: M | D52: 102.18
A53: 01.08.04 | B53: TUBO PVC D= 250 MM | C53: M | D53: 135.18
A54: 01.08.20 | B54: TUBO PVC AGUA SOLDA E CONEXOES D=20MM (1/2") | C54: M | D54: 6.83
A55: 01.08.21 | B55: TUBO PVC AGUA SOLDA E CONEXOES D=25MM (3/4") | C55: M | D55: 7.57
A56: 01.09 | B56: CONTAINER 6,0X2,30X2,82 M COM ISOLAMENTO TERMICO
A57: 01.09.01 | B57: MOBILIZACAO DE CONTAINER | C57: UN | D57: 1200
A58: 01.09.02 | B58: ESCRITORIO COM AR CONDICIONADO | C58: MES | D58: 900
A59: 01.09.03 | B59: ESCRITORIO COM AR CONDICIONADO E SANITARIO | C59: MES | D59: 1040
A60: 01.09.05 | B60: VESTIARIO COM 7 CHUVEIROS E 2 LAVATORIOS | C60: MES | D60: 1700
A61: 01.09.06 | B61: VESTIARIO BOX 7 SANIT. 2 LAVAT. 1 MICTORIO | C61: MES | D61: 1700
A62: 01.09.07 | B62: VESTIARIO 4 CHUV. 3 SANIT. 1LAVAT. 1 MICT. | C62: MES | D62: 1700
A63: 01.09.08 | B63: VESTIARIO | C63: MES | D63: 650
A64: 01.09.09 | B64: REFEITORIO | C64: MES | D64: 650
A65: 01.09.10 | B65: DEPOSITO E FERRAMENTARIA COM LAVATORIO | C65: MES | D65: 1400
A66: 01.09.11 | B66: DESMOBILIZAÇÃO DE CONTAINER | C66: UN | D66: 1200
A67: 01.09.12 | B67: INSTALAÇÕES PARA CONTAINERS TIPO ESCRITORIO | C67: UN | D67: 816.55
A68: 01.09.13 | B68: INSTALAÇÕES PARA CONTAINER VESTIARIO COM BANCO E ARMÁRIO | C68: UN | D68: 214.73
A69: 01.09.14 | B69: INSTALAÇÕES PARA CONTAINER REFEITORIO | C69: UN | D69: 293.91
A70: 01.09.15 | B70: INSTALAÇÕES PARA CONTAINER DEPOSITO E FERRAMENTARIA COM LAVATORIO | C70: UN | D70: 408.49
A71: 01.09.16 | B71: CAIXA DÁGUA DE 1000L PARA ABASTECIMENTO DE CONTAINERS | C71: UN | D71: 271.22
A72: 01.10 | B72: BANHEIRO QUIMICO
A73: 01.10.01 | B73: BANHEIRO QUIMICO 110X120X230CM COM MANUTENCAO | C73: MES | D73: 680
A74: 01.10.02 | B74: BANHEIRO QUÍMICO E REBOQUE PARA TRANSPORTE DE BANHEIRO QUÍMICO | C74: MES | D74: 1022.23
A75: 01.11 | B75: SINALIZAÇAO
A76: 01.11.01 | B76: PLACA 1,0X0,60M DUPLA FACE CH.GALV. 26 EM CAVALETE | C76: UNMES | D76: 14.98
A77: 01.11.02 | B77: PLACA 1,0X0,60M CH.26 EM CAVALETE METALON 20X20MM | C77: UNMES | D77: 13.78
A78: 01.11.03 | B78: PLACA 0,50X0,50M DUPLA FACE CH.GALV.22 EM CAVALETE | C78: UNMES | D78: 10.98
A79: 01.11.04 | B79: PLACA 0,50X0,50M CH.GALV.22 CAVALETE METALON 20X20 | C79: UNMES | D79: 9.98
A80: 01.11.05 | B80: INSTALAÇÃO DE FAIXA MORIM 6,00M X 0,80M EM TECIDO COMUM E EUCALIPTO | C80: UN | D80: 119.04
A81: 01.11.06 | B81: CONE MASTER 75CM BASE DE BORRACHA CORPO POLIETILEN | C81: UN | D81: 82.49
A82: 01.11.07 | B82: CONE EM PVC H= 75 CM | C82: UN | D82: 40.49
A83: 01.11.08 | B83: SINALIZADOR ELET.MONOLIGHT LED 60 A 70 FLASHES/MIN | C83: UN | D83: 146.6
A84: 01.12 | B84: VISTORIA CAUTELAR
A85: 01.12.01 | B85: VISTORIA CAUTELAR - ÁREA CONSTRUÍDA <= 100M2 | C85: UN | D85: 312.49
A86: 01.12.02 | B86: VISTORIA CAUTELAR - 101M2 < ÁREA CONSTRUÍDA <= 200M2 | C86: UN | D86: 393.52
A87: 01.12.03 | B87: VISTORIA CAUTELAR - 201M2 < ÁREA CONSTRUÍDA <= 500M2 | C87: UN | D87: 522.93
A88: 01.12.04 | B88: VISTORIA CAUTELAR - 501M2 < ÁREA CONSTRUÍDA <= 2000M2 | C88: UN | D88: 759.17
A89: 01.12.05 | B89: VISTORIA CAUTELAR - 2001M2 < ÁREA CONSTRUÍDA <= 7000M2 | C89: UN | D89: 1268.17
A90: 01.12.06 | B90: VISTORIA CAUTELAR - ÁREA CONSTRUÍDA > 7001M2 | C90: UN | D90: 1781.45
A91: 01.17 | B91: LOCAÇAO DE OBRA
A92: 01.17.01 | B92: GABARITO | C92: M | D92: 34.17
A93: 01.29 | B93: ANDAIME FACHADEIRO
A94: 01.29.01 | B94: ANDAIME FACHADEIRO INCLUSIVE FORRO METALICO | C94: M2MES | D94: 11
A95: 01.29.02 | B95: GUARDA CORPO MADEIRA L= 15 CM P/ ANDAIME FACHADEIRO | C95: M2 | D95: 10.63
A96: 01.29.03 | B96: MONTAGEM DE ANDAIME FACHADEIRO | C96: M2 | D96: 1.91
A97: 01.29.04 | B97: DESMONTAGEM DE ANDAIME FACHADEIRO | C97: M2 | D97: 1.91
A98: 01.30 | B98: MONTAGEM E DESMONTAGEM DE ANDAIME
A99: 01.30.02 | B99: ANDAIME INTERNO P/EXEC. DE ALVENARIA ALT. ATE 3,5M | C99: M2 | D99: 16.15
A100: 01.30.03 | B100: ANDAIME INTERNO DE MADEIRA P/ REVESTIMENTO DE TETO | C100: M2 | D100: 18.72
A101: 02 | B101: DEMOLIÇOES E REMOÇOES
A102: 02.01 | B102: REMOÇAO DE TELHA INCLUSIVE EMPILHAMENTO
A103: 02.01.01 | B103: METALICA OU PVC | C103: M2 | D103: 4.26
A104: 02.01.03 | B104: TIPO CALHA DE FIBROCIMENTO | C104: M2 | D104: 10.2
A105: 02.01.05 | B105: ONDULADA DE FIBROCIMENTO | C105: M2 | D105: 8.5
A106: 02.01.07 | B106: CERAMICA COLONIAL OU FRANCESA | C106: M2 | D106: 10.2
A107: 02.02 | B107: REMOÇAO DE CALHA, RUFO E CONDUTOR,INCL.AFASTAMENTO
A108: 02.02.01 | B108: DE CALHA GALVANIZADA OU PVC | C108: M | D108: 5.1
A109: 02.02.05 | B109: DE RUFO DE CHAPA GALVANIZADA | C109: M | D109: 3.4
A110: 02.02.10 | B110: DE CONDUTOR DE CHAPA GALVANIZADA OU PVC | C110: M | D110: 3.4
A111: 02.03 | B111: REMOÇAO DE ENGRADAMENTO DE TELHADO INCL.EMPILHAM.
A112: 02.03.01 | B112: DE TELHA METALICA OU PVC | C112: M2 | D112: 5.73
A113: 02.03.03 | B113: DE TELHA TIPO CALHA DE FIBROCIMENTO | C113: M2 | D113: 2.87
A114: 02.03.05 | B114: DE TELHA ONDULADA DE FIBROCIMENTO | C114: M2 | D114: 5.73
A115: 02.03.07 | B115: DE TELHA CERAMICA, COLONIAL OU FRANCESA | C115: M2 | D115: 8.07
A116: 02.04 | B116: REMOÇAO DE FORRO INCLUSIVE EMPILHAMENTO
A117: 02.04.01 | B117: DE PLACAS INCLUSIVE BARROTEAMENTO | C117: M2 | D117: 14.39
A118: 02.04.02 | B118: DE PLACAS EXCLUSIVE BARROTEAMENTO | C118: M2 | D118: 7.2
A119: 02.04.10 | B119: DE GESSO | C119: M2 | D119: 10.79
A120: 02.06 | B120: REMOÇAO DE ESQUADRIA DE MADEIRA INCL. EMPILHAMENTO
A121: 02.06.01 | B121: DE PORTA OU JANELA INCLUSIVE MARCO E ALIZAR | C121: M2 | D121: 10.18
A122: 02.06.02 | B122: DE FOLHA DE PORTA OU JANELA | C122: M2 | D122: 5.09
A123: 02.06.03 | B123: DE MARCO E ALIZAR | C123: UN | D123: 8.69
A124: 02.06.04 | B124: DE MARCO | C124: UN | D124: 6.14
A125: 02.06.05 | B125: DE ALIZAR | C125: CJ | D125: 2.54
A126: 02.07 | B126: REMOÇAO DE ESQUADRIA METALICA
A127: 02.07.01 | B127: DE PORTA OU JANELA | C127: M2 | D127: 12.72
A128: 02.09 | B128: DEMOLIÇAO DE REVESTIMENTO INCLUSIVE AFASTAMENTO
A129: 02.09.01 | B129: DE REBOCO | C129: M2 | D129: 2.36
A130: 02.09.03 | B130: CERAMICO, AZULEJO OU LADRILHO HIDRAULICO | C130: M2 | D130: 15.31
A131: 02.09.05 | B131: DE PEDRA (MARMORE, GRANITO, ARDOSIA, SAO TOME,ETC) | C131: M2 | D131: 17.01
A132: 02.09.06 | B132: DE FORMICA | C132: M2 | D132: 5.09
A133: 02.09.07 | B133: DE PEDRA ALMOFADADA | C133: M2 | D133: 35.98
A134: 02.10 | B134: DEMOLIÇAO DE PISO INCLUSIVE AFASTAMENTO
A135: 02.10.01 | B135: CIMENTADO OU CONTRAPISO DE ARGAMASSA | C135: M2 | D135: 2.36
A136: 02.10.03 | B136: CERAMICO OU LADRILHO HIDRAULICO | C136: M2 | D136: 11.91
A137: 02.10.05 | B137: DE PEDRA (MARMORE, GRANITO, ARDOSIA, SAO TOME,ETC) | C137: M2 | D137: 22.1
A138: 02.10.07 | B138: VINILICO | C138: M2 | D138: 5.96
A139: 02.10.08 | B139: DE MARMORITE | C139: M2 | D139: 14.03
A140: 02.10.09 | B140: DE TACO DE MADEIRA | C140: M2 | D140: 23.33
A141: 02.11 | B141: DEMOLIÇAO DE PASSEIO E PAVIMENTO
A142: 02.11.01 | B142: PASSEIO OU LAJE DE CONCRETO MANUALMENTE | C142: M2 | D142: 20.41
A143: 02.11.02 | B143: PASSEIO OU LAJE DE CONCRETO C/ EQUIP. PNEUMATICO | C143: M2 | D143: 13.41
A144: 02.11.03 | B144: CALÇADA PORTUGUESA | C144: M2 | D144: 4.78
A145: 02.11.04 | B145: PASSEIO OU LAJE DE CONCRETO C/EQUIPAMENTO ELETRICO | C145: M2 | D145: 5.97
A146: 02.11.05 | B146: MANUAL DE ALVENARIA POLIEDRICA | C146: M2 | D146: 5.96
A147: 02.11.07 | B147: DE REVESTIMENTO ASFALTICO COM EQUIP. PNEUMATICO | C147: M2 | D147: 13.41
A148: 02.12 | B148: CORTE MECANICO EM CONCRETO/ASFALTO
A149: 02.12.01 | B149: CORTE MECAN. C/ SERRA CIRCULAR EM CONCRETO/ASFALTO | C149: M | D149: 1.93
A150: 02.13 | B150: DEMOLIÇAO DE CONCRETO INCLUSIVE AFASTAMENTO
A151: 02.13.01 | B151: SIMPLES - MANUAL | C151: M3 | D151: 210.42
A152: 02.13.02 | B152: ARMADO - MANUAL | C152: M3 | D152: 289.14
A153: 02.13.03 | B153: SIMPLES - COM EQUIPAMENTO ELETRICO | C153: M3 | D153: 76.13
A154: 02.13.04 | B154: ARMADO - COM EQUIPAMENTO ELETRICO | C154: M3 | D154: 119.79
A155: 02.14 | B155: DEMOLIÇAO MANUAL, DE ALVENARIA INCL. AFASTAMENTO
A156: 02.14.01 | B156: DE ALVENARIA DE TIJOLOS E BLOCOS | C156: M3 | D156: 95.58
A157: 02.15 | B157: REMOÇAO DE MEIO-FIO
A158: 02.15.01 | B158: PREMOLDADO DE CONCRETO | C158: M | D158: 7.45
A159: 02.15.02 | B159: DE PEDRA (GNAISSE, BASALTO ETC.) | C159: M | D159: 22.35
A160: 02.16 | B160: DEMOLIÇAO, REMOÇAO E CARGA MECANICA
A161: 02.16.01 | B161: DE CONSTRUÇOES DE ALVENARIA | C161: M2 | D161: 7.41
A162: 02.16.04 | B162: DE GABIAO | C162: M3 | D162: 19.05
A163: 02.19 | B163: DEMOLIÇAO DE DIVISORIA INCLUSIVE AFASTAMENTO
A164: 02.19.01 | B164: DE PEDRA (MARMORE, ARDORSIA OU MARMORITE) | C164: M2 | D164: 35.98
A165: 02.19.03 | B165: DE MADEIRA | C165: M2 | D165: 13.16
A166: 02.19.05 | B166: DE ELEMENTOS VAZADOS (COBOGO, ETC) | C166: M2 | D166: 6.7
A167: 02.19.06 | B167: DE LAMINADO | C167: M2 | D167: 0.9
A168: 02.20 | B168: REMOÇAO DE QUADROS
A169: 02.20.01 | B169: NEGRO | C169: M2 | D169: 17.01
A170: 02.21 | B170: REMOÇAO DE PEÇAS DIVERSAS
A171: 02.21.01 | B171: LOUÇAS | C171: UN | D171: 53.97
A172: 02.21.02 | B172: FERRAGENS (DOBRADIÇAS, FECHADURAS, MAÇANETAS) | C172: UN | D172: 10.93
A173: 02.21.03 | B173: METAIS COMUNS(CONDUITE,SIFAO, REGISTRO, TORNEIRA) | C173: UN | D173: 11.67
A174: 02.21.04 | B174: METAIS ESPECIAIS(VALVULA DE DESCARGA, CAIXA SILEN) | C174: UN | D174: 11.66
A175: 02.21.05 | B175: REMOÇAO DE LUMINARIA FLUORESCENTE | C175: UN | D175: 2.86
A176: 02.21.06 | B176: REMOÇAO DE LUMNARIA INCANDESCENTE | C176: UN | D176: 0.75
A177: 02.21.20 | B177: REMOÇAO DE PADRAO CEMIG | C177: UN | D177: 71.96
A178: 02.21.21 | B178: REMOÇAO DE PADRAO COPASA | C178: UN | D178: 53.97
A179: 02.21.22 | B179: REMOÇAO DE INTERFONE | C179: UN | D179: 6.14
A180: 02.22 | B180: REMOÇAO DE BANCADA
A181: 02.22.01 | B181: DE PEDRA(MARMORE,GRANITO,ARDOSIA,MARMORITE, ETC) | C181: M2 | D181: 35.98
A182: 02.23 | B182: REMOÇAO DE CERCA E ALAMBRADO
A183: 02.23.01 | B183: CERCA DE ARAME | C183: M | D183: 9.24
A184: 02.23.03 | B184: ALAMBRADO | C184: M2 | D184: 12.72
A185: 02.26 | B185: TRANSPORTE DE MATERIAL DEMOLIDO EM CARRINHO DE MAO
A186: 02.26.01 | B186: DMT <= 50,0 M | C186: M3 | D186: 22.35
A187: 02.26.02 | B187: 50,0 M < DMT <= 100,0 M | C187: M3 | D187: 29.8
A188: 02.27 | B188: CARGA DE MATERIAL DEMOLIDO SOBRE CAMINHAO
A189: 02.27.01 | B189: MANUAL | C189: M3 | D189: 20.42
A190: 02.27.02 | B190: MECANICA | C190: M3 | D190: 2.97
A191: 02.28 | B191: TRANSPORTE DE MATERIAL DEMOLIDO EM CAMINHAO
A192: 02.28.01 | B192: DMT <= 1 KM | C192: M3 | D192: 3.79
A193: 02.28.02 | B193: 1 KM < DMT <= 2 KM | C193: M3 | D193: 7.25
A194: 02.28.03 | B194: 2 KM < DMT <= 5 KM | C194: M3KM | D194: 3.28
A195: 02.28.04 | B195: DMT > 5 KM | C195: M3KM | D195: 1.96
A196: 02.29 | B196: TRANSPORTE DE MAT.DE QUALQUER NATUREZA EM CAÇAMBA
A197: 02.29.01 | B197: CAÇAMBA 5m³ | C197: VG | D197: 280
A198: 02.30 | B198: LIMPEZA DO PAVIMENTO
A199: 02.30.01 | B199: CAPINA E VARRIÇAO DE PAVIMENTO EM ALVEN.POLIEDRICA | C199: M2 | D199: 2.48
A200: 03 | B200: TRABALHOS EM TERRA
... 4014 more rows

Sheet CRO 1 mes
A2: CRONOGRAMA FÍSICO-FINANCEIRO | K2: Revisão: | L2: =DADOS!D6 -> R00
K3: Data: | L3: =DADOS!D2 -> 2023-08-30
A4: Projeto: | D4: Responsável: | H4: Cliente: | K4: Bancos:
A5: =DADOS!D8 -> MANUTENÇÃO DA SUPERINTENDÊNCIA DE RECURSOS MATERIAIS | K5: =DADOS!D14 -> SINAPI: 07/2023 Minas Gerais SETOP: 04/2023 Minas Gerais SICRO : 04/2023 Minas Gerais SUDECAP: 05/2023 Minas Gerais
K8: BDI 1: | L8: =DADOS!D10 -> 0.2652
K9: BDI 2: | L9: =DADOS!D12 -> 0.2025
A11: =A2&" DE "&DADOS!D20&" - "&A5 -> CRONOGRAMA FÍSICO-FINANCEIRO DE PROJETO EXECUTIVO - MANUTENÇÃO DA SUPERINTENDÊNCIA DE RECURSOS MATERIAIS
A13: ITEM | B13: DESCRIÇÃO | F13: Unid. | G13: 30 DIAS | K13: Total por Etapa
A15: 1 | B15: =VLOOKUP(A15,ORC!$D:$N,2,0) -> CANTEIRO DE OBRA | F15: % | K15: =SUM(G15:J15) -> 0
A16: =IFERROR(IF(B15<>"",100,B15),"") -> 100 | F16: R$ | G16: =IF(G15="","",IFERROR(G15*$K16,"")) ->  | K16: =VLOOKUP(A15,ORC!$D:$N,11,0) -> 5071.97
A17: 2 | B17: =VLOOKUP(A17,ORC!$D:$N,2,0) -> SERVIÇOS PRELIMINARES | F17: % | K17: =SUM(G17:J17) -> 0
A18: =IFERROR(IF(B17<>"",100,B17),"") -> 100 | F18: R$ | G18: =IF(G17="","",IFERROR(G17*$K18,"")) ->  | K18: =VLOOKUP(A17,ORC!$D:$N,11,0) -> 1808.84
A19: 3 | B19: =VLOOKUP(A19,ORC!$D:$N,2,0) -> LIMPEZAS E DEMOLIÇÕES | F19: % | K19: =SUM(G19:J19) -> 0
A20: =IFERROR(IF(B19<>"",100,B19),"") -> 100 | F20: R$ | G20: =IF(G19="","",IFERROR(G19*$K20,"")) ->  | K20: =VLOOKUP(A19,ORC!$D:$N,11,0) -> 2229.47
A21: 4 | B21: =VLOOKUP(A21,ORC!$D:$N,2,0) -> SISTEMA DE COBERTURA | F21: % | K21: =SUM(G21:J21) -> 0
A22: =IFERROR(IF(B21<>"",100,B21),"") -> 100 | F22: R$ | G22: =IF(G21="","",IFERROR(G21*$K22,"")) ->  | K22: =VLOOKUP(A21,ORC!$D:$N,11,0) -> 69700.4
A23: 5 | B23: =VLOOKUP(A23,ORC!$D:$N,2,0) -> ACABAMENTOS | F23: % | K23: =SUM(G23:J23) -> 0
A24: =IFERROR(IF(B23<>"",100,B23),"") -> 100 | F24: R$ | G24: =IF(G23="","",IFERROR(G23*$K24,"")) ->  | K24: =VLOOKUP(A23,ORC!$D:$N,11,0) -> 42655.52
A25: 6 | B25: =VLOOKUP(A25,ORC!$D:$N,2,0) -> PINTURA | F25: % | K25: =SUM(G25:J25) -> 0
A26: =IFERROR(IF(B25<>"",100,B25),"") -> 100 | F26: R$ | G26: =IF(G25="","",IFERROR(G25*$K26,"")) ->  | K26: =VLOOKUP(A25,ORC!$D:$N,11,0) -> 5871.15
A27: 7 | B27: =VLOOKUP(A27,ORC!$D:$N,2,0) -> SERVIÇOS FINAIS | F27: % | K27: =SUM(G27:J27) -> 0
A28: =IFERROR(IF(B27<>"",100,B27),"") -> 100 | F28: R$ | G28: =IF(G27="","",IFERROR(G27*$K28,"")) ->  | K28: =VLOOKUP(A27,ORC!$D:$N,11,0) -> 950.27
A29: 8 | B29: =VLOOKUP(A29,ORC!$D:$N,2,0) ->  | F29: % | K29: =SUM(G29:J29) -> 0
A30: =IFERROR(IF(B29<>"",100,B29),"") ->  | F30: R$ | G30: =IF(G29="","",IFERROR(G29*$K30,"")) ->  | K30: =VLOOKUP(A29,ORC!$D:$N,11,0) -> 
A31: 9 | B31: =VLOOKUP(A31,ORC!$D:$N,2,0) ->  | F31: % | K31: =SUM(G31:J31) -> 0
A32: =IFERROR(IF(B31<>"",100,B31),"") ->  | F32: R$ | G32: =IF(G31="","",IFERROR(G31*$K32,"")) ->  | K32: =VLOOKUP(A31,ORC!$D:$N,11,0) -> 
A33: 10 | B33: =VLOOKUP(A33,ORC!$D:$N,2,0) ->  | F33: % | K33: =SUM(G33:J33) -> 0
A34: =IFERROR(IF(B33<>"",100,B33),"") ->  | F34: R$ | G34: =IF(G33="","",IFERROR(G33*$K34,"")) ->  | K34: =VLOOKUP(A33,ORC!$D:$N,11,0) -> 
A35: 11 | B35: =VLOOKUP(A35,ORC!$D:$N,2,0) ->  | F35: % | K35: =SUM(G35:J35) -> 0
A36: =IFERROR(IF(B35<>"",100,B35),"") ->  | F36: R$ | G36: =IF(G35="","",IFERROR(G35*$K36,"")) ->  | K36: =VLOOKUP(A35,ORC!$D:$N,11,0) -> 
A37: 12 | B37: =VLOOKUP(A37,ORC!$D:$N,2,0) ->  | F37: % | K37: =SUM(G37:J37) -> 0
A38: =IFERROR(IF(B37<>"",100,B37),"") ->  | F38: R$ | G38: =IF(G37="","",IFERROR(G37*$K38,"")) ->  | K38: =VLOOKUP(A37,ORC!$D:$N,11,0) -> 
A39: 13 | B39: =VLOOKUP(A39,ORC!$D:$N,2,0) ->  | F39: % | K39: =SUM(G39:J39) -> 0
A40: =IFERROR(IF(B39<>"",100,B39),"") ->  | F40: R$ | G40: =IF(G39="","",IFERROR(G39*$K40,"")) ->  | K40: =VLOOKUP(A39,ORC!$D:$N,11,0) -> 
A41: 14 | B41: =VLOOKUP(A41,ORC!$D:$N,2,0) ->  | F41: % | K41: =SUM(G41:J41) -> 0
A42: =IFERROR(IF(B41<>"",100,B41),"") ->  | F42: R$ | G42: =IF(G41="","",IFERROR(G41*$K42,"")) ->  | K42: =VLOOKUP(A41,ORC!$D:$N,11,0) -> 
A43: 15 | B43: =VLOOKUP(A43,ORC!$D:$N,2,0) ->  | F43: % | K43: =SUM(G43:J43) -> 0
A44: =IFERROR(IF(B43<>"",100,B43),"") ->  | F44: R$ | G44: =IF(G43="","",IFERROR(G43*$K44,"")) ->  | K44: =VLOOKUP(A43,ORC!$D:$N,11,0) -> 
A45: 16 | B45: =VLOOKUP(A45,ORC!$D:$N,2,0) ->  | F45: % | K45: =SUM(G45:J45) -> 0
A46: =IFERROR(IF(B45<>"",100,B45),"") ->  | F46: R$ | G46: =IF(G45="","",IFERROR(G45*$K46,"")) ->  | K46: =VLOOKUP(A45,ORC!$D:$N,11,0) -> 
A47: 17 | B47: =VLOOKUP(A47,ORC!$D:$N,2,0) ->  | F47: % | K47: =SUM(G47:J47) -> 0
A48: =IFERROR(IF(B47<>"",100,B47),"") ->  | F48: R$ | G48: =IF(G47="","",IFERROR(G47*$K48,"")) ->  | K48: =VLOOKUP(A47,ORC!$D:$N,11,0) -> 
A49: 18 | B49: =VLOOKUP(A49,ORC!$D:$N,2,0) ->  | F49: % | K49: =SUM(G49:J49) -> 0
A50: =IFERROR(IF(B49<>"",100,B49),"") ->  | F50: R$ | G50: =IF(G49="","",IFERROR(G49*$K50,"")) ->  | K50: =VLOOKUP(A49,ORC!$D:$N,11,0) -> 
A51: 19 | B51: =VLOOKUP(A51,ORC!$D:$N,2,0) ->  | F51: % | K51: =SUM(G51:J51) -> 0
A52: =IFERROR(IF(B51<>"",100,B51),"") ->  | F52: R$ | G52: =IF(G51="","",IFERROR(G51*$K52,"")) ->  | K52: =VLOOKUP(A51,ORC!$D:$N,11,0) -> 
A54: 20 | B54: =VLOOKUP(A54,ORC!$D:$N,2,0) ->  | F54: % | K54: =SUM(G54:J54) -> 0
A55: =IFERROR(IF(B54<>"",100,B54),"") ->  | F55: R$ | G55: =IF(G54="","",IFERROR(G54*$K55,"")) ->  | K55: =VLOOKUP(A54,ORC!$D:$N,11,0) -> 
A56: 21 | B56: =VLOOKUP(A56,ORC!$D:$N,2,0) ->  | F56: % | K56: =SUM(G56:J56) -> 0
A57: =IFERROR(IF(B56<>"",100,B56),"") ->  | F57: R$ | G57: =IF(G56="","",IFERROR(G56*$K57,"")) ->  | K57: =VLOOKUP(A56,ORC!$D:$N,11,0) -> 
A58: 22 | B58: =VLOOKUP(A58,ORC!$D:$N,2,0) ->  | F58: % | K58: =SUM(G58:J58) -> 0
A59: =IFERROR(IF(B58<>"",100,B58),"") ->  | F59: R$ | G59: =IF(G58="","",IFERROR(G58*$K59,"")) ->  | K59: =VLOOKUP(A58,ORC!$D:$N,11,0) -> 
A60: 23 | B60: =VLOOKUP(A60,ORC!$D:$N,2,0) ->  | F60: % | K60: =SUM(G60:J60) -> 0
A61: =IFERROR(IF(B60<>"",100,B60),"") ->  | F61: R$ | G61: =IF(G60="","",IFERROR(G60*$K61,"")) ->  | K61: =VLOOKUP(A60,ORC!$D:$N,11,0) -> 
A62: 24 | B62: =VLOOKUP(A62,ORC!$D:$N,2,0) ->  | F62: % | K62: =SUM(G62:J62) -> 0
A63: =IFERROR(IF(B62<>"",100,B62),"") ->  | F63: R$ | G63: =IF(G62="","",IFERROR(G62*$K63,"")) ->  | K63: =VLOOKUP(A62,ORC!$D:$N,11,0) -> 
A64: 25 | B64: =VLOOKUP(A64,ORC!$D:$N,2,0) ->  | F64: % | K64: =SUM(G64:J64) -> 0
A65: =IFERROR(IF(B64<>"",100,B64),"") ->  | F65: R$ | G65: =IF(G64="","",IFERROR(G64*$K65,"")) ->  | K65: =VLOOKUP(A64,ORC!$D:$N,11,0) -> 
A66: 26 | B66: =VLOOKUP(A66,ORC!$D:$N,2,0) ->  | F66: % | K66: =SUM(G66:J66) -> 0
A67: =IFERROR(IF(B66<>"",100,B66),"") ->  | F67: R$ | G67: =IF(G66="","",IFERROR(G66*$K67,"")) ->  | K67: =VLOOKUP(A66,ORC!$D:$N,11,0) -> 
A68: 27 | B68: =VLOOKUP(A68,ORC!$D:$N,2,0) ->  | F68: % | K68: =SUM(G68:J68) -> 0
A69: =IFERROR(IF(B68<>"",100,B68),"") ->  | F69: R$ | G69: =IF(G68="","",IFERROR(G68*$K69,"")) ->  | K69: =VLOOKUP(A68,ORC!$D:$N,11,0) -> 
A70: 28 | B70: =VLOOKUP(A70,ORC!$D:$N,2,0) ->  | F70: % | K70: =SUM(G70:J70) -> 0
A71: =IFERROR(IF(B70<>"",100,B70),"") ->  | F71: R$ | G71: =IF(G70="","",IFERROR(G70*$K71,"")) ->  | K71: =VLOOKUP(A70,ORC!$D:$N,11,0) -> 
A72: 29 | B72: =VLOOKUP(A72,ORC!$D:$N,2,0) ->  | F72: % | K72: =SUM(G72:J72) -> 0
A73: =IFERROR(IF(B72<>"",100,B72),"") ->  | F73: R$ | G73: =IF(G72="","",IFERROR(G72*$K73,"")) ->  | K73: =VLOOKUP(A72,ORC!$D:$N,11,0) -> 
A74: 30 | B74: =VLOOKUP(A74,ORC!$D:$N,2,0) ->  | F74: % | K74: =SUM(G74:J74) -> 0
A75: =IFERROR(IF(B74<>"",100,B74),"") ->  | F75: R$ | G75: =IF(G74="","",IFERROR(G74*$K75,"")) ->  | K75: =VLOOKUP(A74,ORC!$D:$N,11,0) -> 
F77: Porcentagem | G77: =G78/$G$80 -> 
F78: Custo | G78: =SUMIF($A:$A,100,G:G) -> 0
F79: Porcentagem Acumulada | G79: =I79 -> 0
F80: Custo Acumulado | G80: =IF(G78=ORC!M92,G78,"ERRO") -> ERRO
F84: RESPONSÁVEL TÉCNICO | G84: =DADOS!D16 -> FLÁVIA CRISTINA BARBOSA
G85: =DADOS!D18 -> CREA - MG 187.842/D

Sheet CRO 2 meses
A2: CRONOGRAMA FÍSICO-FINANCEIRO | K2: Revisão: | L2: =DADOS!D6 -> R00
K3: Data: | L3: =DADOS!D2 -> 2023-08-30
A4: Projeto: | D4: Responsável: | H4: Cliente: | K4: Bancos:
A5: =DADOS!D8 -> MANUTENÇÃO DA SUPERINTENDÊNCIA DE RECURSOS MATERIAIS | K5: =DADOS!D14 -> SINAPI: 07/2023 Minas Gerais SETOP: 04/2023 Minas Gerais SICRO : 04/2023 Minas Gerais SUDECAP: 05/2023 Minas Gerais
K8: BDI 1: | L8: =DADOS!D10 -> 0.2652
K9: BDI 2: | L9: =DADOS!D12 -> 0.2025
A11: =A2&" DE "&DADOS!D20&" - "&A5 -> CRONOGRAMA FÍSICO-FINANCEIRO DE PROJETO EXECUTIVO - MANUTENÇÃO DA SUPERINTENDÊNCIA DE RECURSOS MATERIAIS
A13: ITEM | B13: DESCRIÇÃO | F13: Unid. | G13: 30 DIAS | I13: 60 DIAS | K13: Total por Etapa
A15: 1 | B15: =VLOOKUP(A15,ORC!$D:$N,2,0) -> CANTEIRO DE OBRA | F15: % | G15: 0.1 | I15: 0.9 | K15: =SUM(G15:J15) -> 1
A16: =IFERROR(IF(B15<>"",100,B15),"") -> 100 | F16: R$ | G16: =IF(G15="","",IFERROR(G15*$K16,"")) -> 507.197 | I16: =IF(I15="","",IFERROR(I15*$K16,"")) -> 4564.773 | K16: =VLOOKUP(A15,ORC!$D:$N,11,0) -> 5071.97
A17: 2 | B17: =VLOOKUP(A17,ORC!$D:$N,2,0) -> SERVIÇOS PRELIMINARES | F17: % | K17: =SUM(G17:J17) -> 0
A18: =IFERROR(IF(B17<>"",100,B17),"") -> 100 | F18: R$ | G18: =IF(G17="","",IFERROR(G17*$K18,"")) ->  | I18: =IF(I17="","",IFERROR(I17*$K18,"")) ->  | K18: =VLOOKUP(A17,ORC!$D:$N,11,0) -> 1808.84
A19: 3 | B19: =VLOOKUP(A19,ORC!$D:$N,2,0) -> LIMPEZAS E DEMOLIÇÕES | F19: % | K19: =SUM(G19:J19) -> 0
A20: =IFERROR(IF(B19<>"",100,B19),"") -> 100 | F20: R$ | G20: =IF(G19="","",IFERROR(G19*$K20,"")) ->  | I20: =IF(I19="","",IFERROR(I19*$K20,"")) ->  | K20: =VLOOKUP(A19,ORC!$D:$N,11,0) -> 2229.47
A21: 4 | B21: =VLOOKUP(A21,ORC!$D:$N,2,0) -> SISTEMA DE COBERTURA | F21: % | K21: =SUM(G21:J21) -> 0
A22: =IFERROR(IF(B21<>"",100,B21),"") -> 100 | F22: R$ | G22: =IF(G21="","",IFERROR(G21*$K22,"")) ->  | I22: =IF(I21="","",IFERROR(I21*$K22,"")) ->  | K22: =VLOOKUP(A21,ORC!$D:$N,11,0) -> 69700.4
A23: 5 | B23: =VLOOKUP(A23,ORC!$D:$N,2,0) -> ACABAMENTOS | F23: % | K23: =SUM(G23:J23) -> 0
A24: =IFERROR(IF(B23<>"",100,B23),"") -> 100 | F24: R$ | G24: =IF(G23="","",IFERROR(G23*$K24,"")) ->  | I24: =IF(I23="","",IFERROR(I23*$K24,"")) ->  | K24: =VLOOKUP(A23,ORC!$D:$N,11,0) -> 42655.52
A25: 6 | B25: =VLOOKUP(A25,ORC!$D:$N,2,0) -> PINTURA | F25: % | K25: =SUM(G25:J25) -> 0
A26: =IFERROR(IF(B25<>"",100,B25),"") -> 100 | F26: R$ | G26: =IF(G25="","",IFERROR(G25*$K26,"")) ->  | I26: =IF(I25="","",IFERROR(I25*$K26,"")) ->  | K26: =VLOOKUP(A25,ORC!$D:$N,11,0) -> 5871.15
A27: 7 | B27: =VLOOKUP(A27,ORC!$D:$N,2,0) -> SERVIÇOS FINAIS | F27: % | K27: =SUM(G27:J27) -> 0
A28: =IFERROR(IF(B27<>"",100,B27),"") -> 100 | F28: R$ | G28: =IF(G27="","",IFERROR(G27*$K28,"")) ->  | I28: =IF(I27="","",IFERROR(I27*$K28,"")) ->  | K28: =VLOOKUP(A27,ORC!$D:$N,11,0) -> 950.27
A29: 8 | B29: =VLOOKUP(A29,ORC!$D:$N,2,0) ->  | F29: % | K29: =SUM(G29:J29) -> 0
A30: =IFERROR(IF(B29<>"",100,B29),"") ->  | F30: R$ | G30: =IF(G29="","",IFERROR(G29*$K30,"")) ->  | I30: =IF(I29="","",IFERROR(I29*$K30,"")) ->  | K30: =VLOOKUP(A29,ORC!$D:$N,11,0) -> 
A31: 9 | B31: =VLOOKUP(A31,ORC!$D:$N,2,0) ->  | F31: % | K31: =SUM(G31:J31) -> 0
A32: =IFERROR(IF(B31<>"",100,B31),"") ->  | F32: R$ | G32: =IF(G31="","",IFERROR(G31*$K32,"")) ->  | I32: =IF(I31="","",IFERROR(I31*$K32,"")) ->  | K32: =VLOOKUP(A31,ORC!$D:$N,11,0) -> 
A33: 10 | B33: =VLOOKUP(A33,ORC!$D:$N,2,0) ->  | F33: % | K33: =SUM(G33:J33) -> 0
A34: =IFERROR(IF(B33<>"",100,B33),"") ->  | F34: R$ | G34: =IF(G33="","",IFERROR(G33*$K34,"")) ->  | I34: =IF(I33="","",IFERROR(I33*$K34,"")) ->  | K34: =VLOOKUP(A33,ORC!$D:$N,11,0) -> 
A35: 11 | B35: =VLOOKUP(A35,ORC!$D:$N,2,0) ->  | F35: % | K35: =SUM(G35:J35) -> 0
A36: =IFERROR(IF(B35<>"",100,B35),"") ->  | F36: R$ | G36: =IF(G35="","",IFERROR(G35*$K36,"")) ->  | I36: =IF(I35="","",IFERROR(I35*$K36,"")) ->  | K36: =VLOOKUP(A35,ORC!$D:$N,11,0) -> 
A37: 12 | B37: =VLOOKUP(A37,ORC!$D:$N,2,0) ->  | F37: % | K37: =SUM(G37:J37) -> 0
A38: =IFERROR(IF(B37<>"",100,B37),"") ->  | F38: R$ | G38: =IF(G37="","",IFERROR(G37*$K38,"")) ->  | I38: =IF(I37="","",IFERROR(I37*$K38,"")) ->  | K38: =VLOOKUP(A37,ORC!$D:$N,11,0) -> 
A39: 13 | B39: =VLOOKUP(A39,ORC!$D:$N,2,0) ->  | F39: % | K39: =SUM(G39:J39) -> 0
A40: =IFERROR(IF(B39<>"",100,B39),"") ->  | F40: R$ | G40: =IF(G39="","",IFERROR(G39*$K40,"")) ->  | I40: =IF(I39="","",IFERROR(I39*$K40,"")) ->  | K40: =VLOOKUP(A39,ORC!$D:$N,11,0) -> 
A41: 14 | B41: =VLOOKUP(A41,ORC!$D:$N,2,0) ->  | F41: % | K41: =SUM(G41:J41) -> 0
A42: =IFERROR(IF(B41<>"",100,B41),"") ->  | F42: R$ | G42: =IF(G41="","",IFERROR(G41*$K42,"")) ->  | I42: =IF(I41="","",IFERROR(I41*$K42,"")) ->  | K42: =VLOOKUP(A41,ORC!$D:$N,11,0) -> 
A43: 15 | B43: =VLOOKUP(A43,ORC!$D:$N,2,0) ->  | F43: % | K43: =SUM(G43:J43) -> 0
A44: =IFERROR(IF(B43<>"",100,B43),"") ->  | F44: R$ | G44: =IF(G43="","",IFERROR(G43*$K44,"")) ->  | I44: =IF(I43="","",IFERROR(I43*$K44,"")) ->  | K44: =VLOOKUP(A43,ORC!$D:$N,11,0) -> 
A45: 16 | B45: =VLOOKUP(A45,ORC!$D:$N,2,0) ->  | F45: % | K45: =SUM(G45:J45) -> 0
A46: =IFERROR(IF(B45<>"",100,B45),"") ->  | F46: R$ | G46: =IF(G45="","",IFERROR(G45*$K46,"")) ->  | I46: =IF(I45="","",IFERROR(I45*$K46,"")) ->  | K46: =VLOOKUP(A45,ORC!$D:$N,11,0) -> 
A47: 17 | B47: =VLOOKUP(A47,ORC!$D:$N,2,0) ->  | F47: % | K47: =SUM(G47:J47) -> 0
A48: =IFERROR(IF(B47<>"",100,B47),"") ->  | F48: R$ | G48: =IF(G47="","",IFERROR(G47*$K48,"")) ->  | I48: =IF(I47="","",IFERROR(I47*$K48,"")) ->  | K48: =VLOOKUP(A47,ORC!$D:$N,11,0) -> 
A49: 18 | B49: =VLOOKUP(A49,ORC!$D:$N,2,0) ->  | F49: % | K49: =SUM(G49:J49) -> 0
A50: =IFERROR(IF(B49<>"",100,B49),"") ->  | F50: R$ | G50: =IF(G49="","",IFERROR(G49*$K50,"")) ->  | I50: =IF(I49="","",IFERROR(I49*$K50,"")) ->  | K50: =VLOOKUP(A49,ORC!$D:$N,11,0) -> 
A51: 19 | B51: =VLOOKUP(A51,ORC!$D:$N,2,0) ->  | F51: % | K51: =SUM(G51:J51) -> 0
A52: =IFERROR(IF(B51<>"",100,B51),"") ->  | F52: R$ | G52: =IF(G51="","",IFERROR(G51*$K52,"")) ->  | I52: =IF(I51="","",IFERROR(I51*$K52,"")) ->  | K52: =VLOOKUP(A51,ORC!$D:$N,11,0) -> 
A54: 20 | B54: =VLOOKUP(A54,ORC!$D:$N,2,0) ->  | F54: % | K54: =SUM(G54:J54) -> 0
A55: =IFERROR(IF(B54<>"",100,B54),"") ->  | F55: R$ | G55: =IF(G54="","",IFERROR(G54*$K55,"")) ->  | I55: =IF(I54="","",IFERROR(I54*$K55,"")) ->  | K55: =VLOOKUP(A54,ORC!$D:$N,11,0) -> 
A56: 21 | B56: =VLOOKUP(A56,ORC!$D:$N,2,0) ->  | F56: % | K56: =SUM(G56:J56) -> 0
A57: =IFERROR(IF(B56<>"",100,B56),"") ->  | F57: R$ | G57: =IF(G56="","",IFERROR(G56*$K57,"")) ->  | I57: =IF(I56="","",IFERROR(I56*$K57,"")) ->  | K57: =VLOOKUP(A56,ORC!$D:$N,11,0) -> 
A58: 22 | B58: =VLOOKUP(A58,ORC!$D:$N,2,0) ->  | F58: % | K58: =SUM(G58:J58) -> 0
A59: =IFERROR(IF(B58<>"",100,B58),"") ->  | F59: R$ | G59: =IF(G58="","",IFERROR(G58*$K59,"")) ->  | I59: =IF(I58="","",IFERROR(I58*$K59,"")) ->  | K59: =VLOOKUP(A58,ORC!$D:$N,11,0) -> 
A60: 23 | B60: =VLOOKUP(A60,ORC!$D:$N,2,0) ->  | F60: % | K60: =SUM(G60:J60) -> 0
A61: =IFERROR(IF(B60<>"",100,B60),"") ->  | F61: R$ | G61: =IF(G60="","",IFERROR(G60*$K61,"")) ->  | I61: =IF(I60="","",IFERROR(I60*$K61,"")) ->  | K61: =VLOOKUP(A60,ORC!$D:$N,11,0) -> 
A62: 24 | B62: =VLOOKUP(A62,ORC!$D:$N,2,0) ->  | F62: % | K62: =SUM(G62:J62) -> 0
A63: =IFERROR(IF(B62<>"",100,B62),"") ->  | F63: R$ | G63: =IF(G62="","",IFERROR(G62*$K63,"")) ->  | I63: =IF(I62="","",IFERROR(I62*$K63,"")) ->  | K63: =VLOOKUP(A62,ORC!$D:$N,11,0) -> 
A64: 25 | B64: =VLOOKUP(A64,ORC!$D:$N,2,0) ->  | F64: % | K64: =SUM(G64:J64) -> 0
A65: =IFERROR(IF(B64<>"",100,B64),"") ->  | F65: R$ | G65: =IF(G64="","",IFERROR(G64*$K65,"")) ->  | I65: =IF(I64="","",IFERROR(I64*$K65,"")) ->  | K65: =VLOOKUP(A64,ORC!$D:$N,11,0) -> 
A66: 26 | B66: =VLOOKUP(A66,ORC!$D:$N,2,0) ->  | F66: % | K66: =SUM(G66:J66) -> 0
A67: =IFERROR(IF(B66<>"",100,B66),"") ->  | F67: R$ | G67: =IF(G66="","",IFERROR(G66*$K67,"")) ->  | I67: =IF(I66="","",IFERROR(I66*$K67,"")) ->  | K67: =VLOOKUP(A66,ORC!$D:$N,11,0) -> 
A68: 27 | B68: =VLOOKUP(A68,ORC!$D:$N,2,0) ->  | F68: % | K68: =SUM(G68:J68) -> 0
A69: =IFERROR(IF(B68<>"",100,B68),"") ->  | F69: R$ | G69: =IF(G68="","",IFERROR(G68*$K69,"")) ->  | I69: =IF(I68="","",IFERROR(I68*$K69,"")) ->  | K69: =VLOOKUP(A68,ORC!$D:$N,11,0) -> 
A70: 28 | B70: =VLOOKUP(A70,ORC!$D:$N,2,0) ->  | F70: % | K70: =SUM(G70:J70) -> 0
A71: =IFERROR(IF(B70<>"",100,B70),"") ->  | F71: R$ | G71: =IF(G70="","",IFERROR(G70*$K71,"")) ->  | I71: =IF(I70="","",IFERROR(I70*$K71,"")) ->  | K71: =VLOOKUP(A70,ORC!$D:$N,11,0) -> 
A72: 29 | B72: =VLOOKUP(A72,ORC!$D:$N,2,0) ->  | F72: % | K72: =SUM(G72:J72) -> 0
A73: =IFERROR(IF(B72<>"",100,B72),"") ->  | F73: R$ | G73: =IF(G72="","",IFERROR(G72*$K73,"")) ->  | I73: =IF(I72="","",IFERROR(I72*$K73,"")) ->  | K73: =VLOOKUP(A72,ORC!$D:$N,11,0) -> 
A74: 30 | B74: =VLOOKUP(A74,ORC!$D:$N,2,0) ->  | F74: % | K74: =SUM(G74:J74) -> 0
A75: =IFERROR(IF(B74<>"",100,B74),"") ->  | F75: R$ | G75: =IF(G74="","",IFERROR(G74*$K75,"")) ->  | I75: =IF(I74="","",IFERROR(I74*$K75,"")) ->  | K75: =VLOOKUP(A74,ORC!$D:$N,11,0) -> 
F77: Porcentagem | G77: =G78/$I$80 ->  | I77: =I78/$I$80 -> 
F78: Custo | G78: =SUMIF($A:$A,100,G:G) -> 507.197 | I78: =SUMIF($A:$A,100,I:I) -> 4564.773
F79: Porcentagem Acumulada | G79: =G77 ->  | I79: =G79+I77 -> 
F80: Custo Acumulado | G80: =G78 -> 507.197 | I80: =IF(I78+G80=ORC!M92,I78+G80,"ERRO") -> ERRO
F84: RESPONSÁVEL TÉCNICO | G84: =DADOS!D16 -> FLÁVIA CRISTINA BARBOSA
G85: =DADOS!D18 -> CREA - MG 187.842/D

Sheet CRO 3 meses
A2: CRONOGRAMA FÍSICO-FINANCEIRO | M2: Revisão: | N2: =DADOS!D6 -> R00
M3: Data: | N3: =DADOS!D2 -> 2023-08-30
A4: Projeto: | D4: Responsável: | I4: Cliente: | M4: Bancos:
A5: =DADOS!D8 -> MANUTENÇÃO DA SUPERINTENDÊNCIA DE RECURSOS MATERIAIS | M5: =DADOS!D14 -> SINAPI: 07/2023 Minas Gerais SETOP: 04/2023 Minas Gerais SICRO : 04/2023 Minas Gerais SUDECAP: 05/2023 Minas Gerais
M8: BDI 1: | N8: =DADOS!D10 -> 0.2652
M9: BDI 2: | N9: =DADOS!D12 -> 0.2025
A11: =A2&" DE "&DADOS!D20&" - "&A5 -> CRONOGRAMA FÍSICO-FINANCEIRO DE PROJETO EXECUTIVO - MANUTENÇÃO DA SUPERINTENDÊNCIA DE RECURSOS MATERIAIS
A13: ITEM | B13: DESCRIÇÃO | F13: Unid. | G13: 30 DIAS | I13: 60 DIAS | K13: 90 DIAS | M13: Total por Etapa
A15: 1 | B15: =VLOOKUP(A15,ORC!$D:$N,2,0) -> CANTEIRO DE OBRA | F15: % | G15: 0.3334 | I15: 0.3333 | K15: 0.3333 | M15: =SUM(G15:L15) -> 1
A16: =IFERROR(IF(B15<>"",100,B15),"") -> 100 | F16: R$ | G16: =IF(G15="","",IFERROR(G15*$M16,"")) -> 1690.994798 | I16: =IF(I15="","",IFERROR(I15*$M16,"")) -> 1690.487601 | K16: =IF(K15="","",IFERROR(K15*$M16,"")) -> 1690.487601 | M16: =VLOOKUP(A15,ORC!$D:$N,11,0) -> 5071.97
A17: 2 | B17: =VLOOKUP(A17,ORC!$D:$N,2,0) -> SERVIÇOS PRELIMINARES | F17: % | G17: 1 | M17: =SUM(G17:L17) -> 1
A18: =IFERROR(IF(B17<>"",100,B17),"") -> 100 | F18: R$ | G18: =IF(G17="","",IFERROR(G17*$M18,"")) -> 1808.84 | I18: =IF(I17="","",IFERROR(I17*$M18,"")) ->  | K18: =IF(K17="","",IFERROR(K17*$M18,"")) ->  | M18: =VLOOKUP(A17,ORC!$D:$N,11,0) -> 1808.84
A19: 3 | B19: =VLOOKUP(A19,ORC!$D:$N,2,0) -> LIMPEZAS E DEMOLIÇÕES | F19: % | G19: 1 | M19: =SUM(G19:L19) -> 1
A20: =IFERROR(IF(B19<>"",100,B19),"") -> 100 | F20: R$ | G20: =IF(G19="","",IFERROR(G19*$M20,"")) -> 2229.47 | I20: =IF(I19="","",IFERROR(I19*$M20,"")) ->  | K20: =IF(K19="","",IFERROR(K19*$M20,"")) ->  | M20: =VLOOKUP(A19,ORC!$D:$N,11,0) -> 2229.47
A21: 4 | B21: =VLOOKUP(A21,ORC!$D:$N,2,0) -> SISTEMA DE COBERTURA | F21: % | I21: 1 | M21: =SUM(G21:L21) -> 1
A22: =IFERROR(IF(B21<>"",100,B21),"") -> 100 | F22: R$ | G22: =IF(G21="","",IFERROR(G21*$M22,"")) ->  | I22: =IF(I21="","",IFERROR(I21*$M22,"")) -> 69700.4 | K22: =IF(K21="","",IFERROR(K21*$M22,"")) ->  | M22: =VLOOKUP(A21,ORC!$D:$N,11,0) -> 69700.4
A23: 5 | B23: =VLOOKUP(A23,ORC!$D:$N,2,0) -> ACABAMENTOS | F23: % | K23: 1 | M23: =SUM(G23:L23) -> 1
A24: =IFERROR(IF(B23<>"",100,B23),"") -> 100 | F24: R$ | G24: =IF(G23="","",IFERROR(G23*$M24,"")) ->  | I24: =IF(I23="","",IFERROR(I23*$M24,"")) ->  | K24: =IF(K23="","",IFERROR(K23*$M24,"")) -> 42655.52 | M24: =VLOOKUP(A23,ORC!$D:$N,11,0) -> 42655.52
A25: 6 | B25: =VLOOKUP(A25,ORC!$D:$N,2,0) -> PINTURA | F25: % | K25: 1 | M25: =SUM(G25:L25) -> 1
A26: =IFERROR(IF(B25<>"",100,B25),"") -> 100 | F26: R$ | G26: =IF(G25="","",IFERROR(G25*$M26,"")) ->  | I26: =IF(I25="","",IFERROR(I25*$M26,"")) ->  | K26: =IF(K25="","",IFERROR(K25*$M26,"")) -> 5871.15 | M26: =VLOOKUP(A25,ORC!$D:$N,11,0) -> 5871.15
A27: 7 | B27: =VLOOKUP(A27,ORC!$D:$N,2,0) -> SERVIÇOS FINAIS | F27: % | K27: 1 | M27: =SUM(G27:L27) -> 1
A28: =IFERROR(IF(B27<>"",100,B27),"") -> 100 | F28: R$ | G28: =IF(G27="","",IFERROR(G27*$M28,"")) ->  | I28: =IF(I27="","",IFERROR(I27*$M28,"")) ->  | K28: =IF(K27="","",IFERROR(K27*$M28,"")) -> 950.27 | M28: =VLOOKUP(A27,ORC!$D:$N,11,0) -> 950.27
A29: 8 | B29: =VLOOKUP(A29,ORC!$D:$N,2,0) ->  | F29: % | M29: =SUM(G29:L29) -> 0
A30: =IFERROR(IF(B29<>"",100,B29),"") ->  | F30: R$ | G30: =IF(G29="","",IFERROR(G29*$M30,"")) ->  | I30: =IF(I29="","",IFERROR(I29*$M30,"")) ->  | K30: =IF(K29="","",IFERROR(K29*$M30,"")) ->  | M30: =VLOOKUP(A29,ORC!$D:$N,11,0) -> 
A32: 9 | B32: =VLOOKUP(A32,ORC!$D:$N,2,0) ->  | F32: % | M32: =SUM(G32:L32) -> 0
A33: =IFERROR(IF(B32<>"",100,B32),"") ->  | F33: R$ | G33: =IF(G32="","",IFERROR(G32*$M33,"")) ->  | I33: =IF(I32="","",IFERROR(I32*$M33,"")) ->  | K33: =IF(K32="","",IFERROR(K32*$M33,"")) ->  | M33: =VLOOKUP(A32,ORC!$D:$N,11,0) -> 
A34: 10 | B34: =VLOOKUP(A34,ORC!$D:$N,2,0) ->  | F34: % | M34: =SUM(G34:L34) -> 0
A35: =IFERROR(IF(B34<>"",100,B34),"") ->  | F35: R$ | G35: =IF(G34="","",IFERROR(G34*$M35,"")) ->  | I35: =IF(I34="","",IFERROR(I34*$M35,"")) ->  | K35: =IF(K34="","",IFERROR(K34*$M35,"")) ->  | M35: =VLOOKUP(A34,ORC!$D:$N,11,0) -> 
A36: 11 | B36: =VLOOKUP(A36,ORC!$D:$N,2,0) ->  | F36: % | M36: =SUM(G36:L36) -> 0
A37: =IFERROR(IF(B36<>"",100,B36),"") ->  | F37: R$ | G37: =IF(G36="","",IFERROR(G36*$M37,"")) ->  | I37: =IF(I36="","",IFERROR(I36*$M37,"")) ->  | K37: =IF(K36="","",IFERROR(K36*$M37,"")) ->  | M37: =VLOOKUP(A36,ORC!$D:$N,11,0) -> 
A38: 12 | B38: =VLOOKUP(A38,ORC!$D:$N,2,0) ->  | F38: % | M38: =SUM(G38:L38) -> 0
A39: =IFERROR(IF(B38<>"",100,B38),"") ->  | F39: R$ | G39: =IF(G38="","",IFERROR(G38*$M39,"")) ->  | I39: =IF(I38="","",IFERROR(I38*$M39,"")) ->  | K39: =IF(K38="","",IFERROR(K38*$M39,"")) ->  | M39: =VLOOKUP(A38,ORC!$D:$N,11,0) -> 
A40: 13 | B40: =VLOOKUP(A40,ORC!$D:$N,2,0) ->  | F40: % | M40: =SUM(G40:L40) -> 0
A41: =IFERROR(IF(B40<>"",100,B40),"") ->  | F41: R$ | G41: =IF(G40="","",IFERROR(G40*$M41,"")) ->  | I41: =IF(I40="","",IFERROR(I40*$M41,"")) ->  | K41: =IF(K40="","",IFERROR(K40*$M41,"")) ->  | M41: =VLOOKUP(A40,ORC!$D:$N,11,0) -> 
A42: 14 | B42: =VLOOKUP(A42,ORC!$D:$N,2,0) ->  | F42: % | M42: =SUM(G42:L42) -> 0
A43: =IFERROR(IF(B42<>"",100,B42),"") ->  | F43: R$ | G43: =IF(G42="","",IFERROR(G42*$M43,"")) ->  | I43: =IF(I42="","",IFERROR(I42*$M43,"")) ->  | K43: =IF(K42="","",IFERROR(K42*$M43,"")) ->  | M43: =VLOOKUP(A42,ORC!$D:$N,11,0) -> 
A44: 15 | B44: =VLOOKUP(A44,ORC!$D:$N,2,0) ->  | F44: % | M44: =SUM(G44:L44) -> 0
A45: =IFERROR(IF(B44<>"",100,B44),"") ->  | F45: R$ | G45: =IF(G44="","",IFERROR(G44*$M45,"")) ->  | I45: =IF(I44="","",IFERROR(I44*$M45,"")) ->  | K45: =IF(K44="","",IFERROR(K44*$M45,"")) ->  | M45: =VLOOKUP(A44,ORC!$D:$N,11,0) -> 
A46: 16 | B46: =VLOOKUP(A46,ORC!$D:$N,2,0) ->  | F46: % | M46: =SUM(G46:L46) -> 0
A47: =IFERROR(IF(B46<>"",100,B46),"") ->  | F47: R$ | G47: =IF(G46="","",IFERROR(G46*$M47,"")) ->  | I47: =IF(I46="","",IFERROR(I46*$M47,"")) ->  | K47: =IF(K46="","",IFERROR(K46*$M47,"")) ->  | M47: =VLOOKUP(A46,ORC!$D:$N,11,0) -> 
A48: 17 | B48: =VLOOKUP(A48,ORC!$D:$N,2,0) ->  | F48: % | M48: =SUM(G48:L48) -> 0
A49: =IFERROR(IF(B48<>"",100,B48),"") ->  | F49: R$ | G49: =IF(G48="","",IFERROR(G48*$M49,"")) ->  | I49: =IF(I48="","",IFERROR(I48*$M49,"")) ->  | K49: =IF(K48="","",IFERROR(K48*$M49,"")) ->  | M49: =VLOOKUP(A48,ORC!$D:$N,11,0) -> 
A50: 18 | B50: =VLOOKUP(A50,ORC!$D:$N,2,0) ->  | F50: % | M50: =SUM(G50:L50) -> 0
A51: =IFERROR(IF(B50<>"",100,B50),"") ->  | F51: R$ | G51: =IF(G50="","",IFERROR(G50*$M51,"")) ->  | I51: =IF(I50="","",IFERROR(I50*$M51,"")) ->  | K51: =IF(K50="","",IFERROR(K50*$M51,"")) ->  | M51: =VLOOKUP(A50,ORC!$D:$N,11,0) -> 
A52: 19 | B52: =VLOOKUP(A52,ORC!$D:$N,2,0) ->  | F52: % | M52: =SUM(G52:L52) -> 0
A53: =IFERROR(IF(B52<>"",100,B52),"") ->  | F53: R$ | G53: =IF(G52="","",IFERROR(G52*$M53,"")) ->  | I53: =IF(I52="","",IFERROR(I52*$M53,"")) ->  | K53: =IF(K52="","",IFERROR(K52*$M53,"")) ->  | M53: =VLOOKUP(A52,ORC!$D:$N,11,0) -> 
A55: 20 | B55: =VLOOKUP(A55,ORC!$D:$N,2,0) ->  | F55: % | M55: =SUM(G55:L55) -> 0
A56: =IFERROR(IF(B55<>"",100,B55),"") ->  | F56: R$ | G56: =IF(G55="","",IFERROR(G55*$M56,"")) ->  | I56: =IF(I55="","",IFERROR(I55*$M56,"")) ->  | K56: =IF(K55="","",IFERROR(K55*$M56,"")) ->  | M56: =VLOOKUP(A55,ORC!$D:$N,11,0) -> 
A57: 21 | B57: =VLOOKUP(A57,ORC!$D:$N,2,0) ->  | F57: % | M57: =SUM(G57:L57) -> 0
A58: =IFERROR(IF(B57<>"",100,B57),"") ->  | F58: R$ | G58: =IF(G57="","",IFERROR(G57*$M58,"")) ->  | I58: =IF(I57="","",IFERROR(I57*$M58,"")) ->  | K58: =IF(K57="","",IFERROR(K57*$M58,"")) ->  | M58: =VLOOKUP(A57,ORC!$D:$N,11,0) -> 
A59: 22 | B59: =VLOOKUP(A59,ORC!$D:$N,2,0) ->  | F59: % | M59: =SUM(G59:L59) -> 0
A60: =IFERROR(IF(B59<>"",100,B59),"") ->  | F60: R$ | G60: =IF(G59="","",IFERROR(G59*$M60,"")) ->  | I60: =IF(I59="","",IFERROR(I59*$M60,"")) ->  | K60: =IF(K59="","",IFERROR(K59*$M60,"")) ->  | M60: =VLOOKUP(A59,ORC!$D:$N,11,0) -> 
A61: 23 | B61: =VLOOKUP(A61,ORC!$D:$N,2,0) ->  | F61: % | M61: =SUM(G61:L61) -> 0
A62: =IFERROR(IF(B61<>"",100,B61),"") ->  | F62: R$ | G62: =IF(G61="","",IFERROR(G61*$M62,"")) ->  | I62: =IF(I61="","",IFERROR(I61*$M62,"")) ->  | K62: =IF(K61="","",IFERROR(K61*$M62,"")) ->  | M62: =VLOOKUP(A61,ORC!$D:$N,11,0) -> 
A63: 24 | B63: =VLOOKUP(A63,ORC!$D:$N,2,0) ->  | F63: % | M63: =SUM(G63:L63) -> 0
A64: =IFERROR(IF(B63<>"",100,B63),"") ->  | F64: R$ | G64: =IF(G63="","",IFERROR(G63*$M64,"")) ->  | I64: =IF(I63="","",IFERROR(I63*$M64,"")) ->  | K64: =IF(K63="","",IFERROR(K63*$M64,"")) ->  | M64: =VLOOKUP(A63,ORC!$D:$N,11,0) -> 
A65: 25 | B65: =VLOOKUP(A65,ORC!$D:$N,2,0) ->  | F65: % | M65: =SUM(G65:L65) -> 0
A66: =IFERROR(IF(B65<>"",100,B65),"") ->  | F66: R$ | G66: =IF(G65="","",IFERROR(G65*$M66,"")) ->  | I66: =IF(I65="","",IFERROR(I65*$M66,"")) ->  | K66: =IF(K65="","",IFERROR(K65*$M66,"")) ->  | M66: =VLOOKUP(A65,ORC!$D:$N,11,0) -> 
A67: 26 | B67: =VLOOKUP(A67,ORC!$D:$N,2,0) ->  | F67: % | M67: =SUM(G67:L67) -> 0
A68: =IFERROR(IF(B67<>"",100,B67),"") ->  | F68: R$ | G68: =IF(G67="","",IFERROR(G67*$M68,"")) ->  | I68: =IF(I67="","",IFERROR(I67*$M68,"")) ->  | K68: =IF(K67="","",IFERROR(K67*$M68,"")) ->  | M68: =VLOOKUP(A67,ORC!$D:$N,11,0) -> 
A69: 27 | B69: =VLOOKUP(A69,ORC!$D:$N,2,0) ->  | F69: % | M69: =SUM(G69:L69) -> 0
A70: =IFERROR(IF(B69<>"",100,B69),"") ->  | F70: R$ | G70: =IF(G69="","",IFERROR(G69*$M70,"")) ->  | I70: =IF(I69="","",IFERROR(I69*$M70,"")) ->  | K70: =IF(K69="","",IFERROR(K69*$M70,"")) ->  | M70: =VLOOKUP(A69,ORC!$D:$N,11,0) -> 
A71: 28 | B71: =VLOOKUP(A71,ORC!$D:$N,2,0) ->  | F71: % | M71: =SUM(G71:L71) -> 0
A72: =IFERROR(IF(B71<>"",100,B71),"") ->  | F72: R$ | G72: =IF(G71="","",IFERROR(G71*$M72,"")) ->  | I72: =IF(I71="","",IFERROR(I71*$M72,"")) ->  | K72: =IF(K71="","",IFERROR(K71*$M72,"")) ->  | M72: =VLOOKUP(A71,ORC!$D:$N,11,0) -> 
A73: 29 | B73: =VLOOKUP(A73,ORC!$D:$N,2,0) ->  | F73: % | M73: =SUM(G73:L73) -> 0
A74: =IFERROR(IF(B73<>"",100,B73),"") ->  | F74: R$ | G74: =IF(G73="","",IFERROR(G73*$M74,"")) ->  | I74: =IF(I73="","",IFERROR(I73*$M74,"")) ->  | K74: =IF(K73="","",IFERROR(K73*$M74,"")) ->  | M74: =VLOOKUP(A73,ORC!$D:$N,11,0) -> 
A75: 30 | B75: =VLOOKUP(A75,ORC!$D:$N,2,0) ->  | F75: % | M75: =SUM(G75:L75) -> 0
A76: =IFERROR(IF(B75<>"",100,B75),"") ->  | F76: R$ | G76: =IF(G75="","",IFERROR(G75*$M76,"")) ->  | I76: =IF(I75="","",IFERROR(I75*$M76,"")) ->  | K76: =IF(K75="","",IFERROR(K75*$M76,"")) ->  | M76: =VLOOKUP(A75,ORC!$D:$N,11,0) -> 
F79: Porcentagem | G79: =G80/$K$82 -> 0.04465984167 | I79: =I80/$K$82 -> 0.556490857 | K79: =K80/$K$82 -> 0.3988493013
F80: Custo | G80: =SUMIF($A:$A,100,G:G) -> 5729.304798 | I80: =SUMIF($A:$A,100,I:I) -> 71390.8876 | K80: =SUMIF($A:$A,100,K:K) -> 51167.4276
F81: Porcentagem Acumulada | G81: =G79 -> 0.04465984167 | I81: =I79+G81 -> 0.6011506987 | K81: =K79+I81 -> 1
F82: Custo Acumulado | G82: =G80 -> 5729.304798 | I82: =I80+G82 -> 77120.1924 | K82: =IF(K80+I82=ORC!M92,K80+I82,"ERRO") -> 128287.62
F86: RESPONSÁVEL TÉCNICO | G86: =DADOS!D16 -> FLÁVIA CRISTINA BARBOSA
G87: =DADOS!D18 -> CREA - MG 187.842/D

Sheet CRO 4 meses
A2: CRONOGRAMA FÍSICO-FINANCEIRO | K2: Revisão: | L2: =DADOS!D6 -> R00
K3: Data: | L3: =DADOS!D2 -> 2023-08-30
A4: Projeto: | D4: Responsável: | H4: Cliente: | K4: Bancos:
A5: =DADOS!D8 -> MANUTENÇÃO DA SUPERINTENDÊNCIA DE RECURSOS MATERIAIS | K5: =DADOS!D14 -> SINAPI: 07/2023 Minas Gerais SETOP: 04/2023 Minas Gerais SICRO : 04/2023 Minas Gerais SUDECAP: 05/2023 Minas Gerais
K8: BDI 1: | L8: =DADOS!D10 -> 0.2652
K9: BDI 2: | L9: =DADOS!D12 -> 0.2025
A11: =A2&" DE "&DADOS!D20&" - "&A5 -> CRONOGRAMA FÍSICO-FINANCEIRO DE PROJETO EXECUTIVO - MANUTENÇÃO DA SUPERINTENDÊNCIA DE RECURSOS MATERIAIS
A13: ITEM | B13: DESCRIÇÃO | F13: Unid. | G13: 30 DIAS | H13: 60 DIAS | I13: 90 DIAS | J13: 120 DIAS | K13: Total por Etapa
A15: 1 | B15: =VLOOKUP(A15,ORC!$D:$N,2,0) -> CANTEIRO DE OBRA | F15: % | G15: 0.1 | H15: 0.2 | I15: 0.3 | J15: 0.4 | K15: =SUM(G15:J15) -> 1
A16: =IFERROR(IF(B15<>"",100,B15),"") -> 100 | F16: R$ | G16: =IF(G15="","",IFERROR(G15*$K16,"")) -> 507.197 | H16: =IF(H15="","",IFERROR(H15*$K16,"")) -> 1014.394 | I16: 1521.591 | J16: 2028.788 | K16: =VLOOKUP(A15,ORC!$D:$N,11,0) -> 5071.97
A17: 2 | B17: =VLOOKUP(A17,ORC!$D:$N,2,0) -> SERVIÇOS PRELIMINARES | F17: % | K17: =SUM(G17:J17) -> 0
A18: =IFERROR(IF(B17<>"",100,B17),"") -> 100 | F18: R$ | G18: =IF(G17="","",IFERROR(G17*$K18,"")) ->  | H18: =IF(H17="","",IFERROR(H17*$K18,"")) ->  | I18: =IF(I17="","",IFERROR(I17*$K18,"")) ->  | J18: =IF(J17="","",IFERROR(J17*$K18,"")) ->  | K18: =VLOOKUP(A17,ORC!$D:$N,11,0) -> 1808.84
A19: 3 | B19: =VLOOKUP(A19,ORC!$D:$N,2,0) -> LIMPEZAS E DEMOLIÇÕES | F19: % | K19: =SUM(G19:J19) -> 0
A20: =IFERROR(IF(B19<>"",100,B19),"") -> 100 | F20: R$ | G20: =IF(G19="","",IFERROR(G19*$K20,"")) ->  | H20: =IF(H19="","",IFERROR(H19*$K20,"")) ->  | I20: =IF(I19="","",IFERROR(I19*$K20,"")) ->  | J20: =IF(J19="","",IFERROR(J19*$K20,"")) ->  | K20: =VLOOKUP(A19,ORC!$D:$N,11,0) -> 2229.47
A21: 4 | B21: =VLOOKUP(A21,ORC!$D:$N,2,0) -> SISTEMA DE COBERTURA | F21: % | K21: =SUM(G21:J21) -> 0
A22: =IFERROR(IF(B21<>"",100,B21),"") -> 100 | F22: R$ | G22: =IF(G21="","",IFERROR(G21*$K22,"")) ->  | H22: =IF(H21="","",IFERROR(H21*$K22,"")) ->  | I22: =IF(I21="","",IFERROR(I21*$K22,"")) ->  | J22: =IF(J21="","",IFERROR(J21*$K22,"")) ->  | K22: =VLOOKUP(A21,ORC!$D:$N,11,0) -> 69700.4
A23: 5 | B23: =VLOOKUP(A23,ORC!$D:$N,2,0) -> ACABAMENTOS | F23: % | K23: =SUM(G23:J23) -> 0
A24: =IFERROR(IF(B23<>"",100,B23),"") -> 100 | F24: R$ | G24: =IF(G23="","",IFERROR(G23*$K24,"")) ->  | H24: =IF(H23="","",IFERROR(H23*$K24,"")) ->  | I24: =IF(I23="","",IFERROR(I23*$K24,"")) ->  | J24: =IF(J23="","",IFERROR(J23*$K24,"")) ->  | K24: =VLOOKUP(A23,ORC!$D:$N,11,0) -> 42655.52
A25: 6 | B25: =VLOOKUP(A25,ORC!$D:$N,2,0) -> PINTURA | F25: % | K25: =SUM(G25:J25) -> 0
A26: =IFERROR(IF(B25<>"",100,B25),"") -> 100 | F26: R$ | G26: =IF(G25="","",IFERROR(G25*$K26,"")) ->  | H26: =IF(H25="","",IFERROR(H25*$K26,"")) ->  | I26: =IF(I25="","",IFERROR(I25*$K26,"")) ->  | J26: =IF(J25="","",IFERROR(J25*$K26,"")) ->  | K26: =VLOOKUP(A25,ORC!$D:$N,11,0) -> 5871.15
A27: 7 | B27: =VLOOKUP(A27,ORC!$D:$N,2,0) -> SERVIÇOS FINAIS | F27: % | K27: =SUM(G27:J27) -> 0
A28: =IFERROR(IF(B27<>"",100,B27),"") -> 100 | F28: R$ | G28: =IF(G27="","",IFERROR(G27*$K28,"")) ->  | H28: =IF(H27="","",IFERROR(H27*$K28,"")) ->  | I28: =IF(I27="","",IFERROR(I27*$K28,"")) ->  | J28: =IF(J27="","",IFERROR(J27*$K28,"")) ->  | K28: =VLOOKUP(A27,ORC!$D:$N,11,0) -> 950.27
A29: 8 | B29: =VLOOKUP(A29,ORC!$D:$N,2,0) ->  | F29: % | K29: =SUM(G29:J29) -> 0
A30: =IFERROR(IF(B29<>"",100,B29),"") ->  | F30: R$ | G30: =IF(G29="","",IFERROR(G29*$K30,"")) ->  | H30: =IF(H29="","",IFERROR(H29*$K30,"")) ->  | I30: =IF(I29="","",IFERROR(I29*$K30,"")) ->  | J30: =IF(J29="","",IFERROR(J29*$K30,"")) ->  | K30: =VLOOKUP(A29,ORC!$D:$N,11,0) -> 
A31: 9 | B31: =VLOOKUP(A31,ORC!$D:$N,2,0) ->  | F31: % | K31: =SUM(G31:J31) -> 0
A32: =IFERROR(IF(B31<>"",100,B31),"") ->  | F32: R$ | G32: =IF(G31="","",IFERROR(G31*$K32,"")) ->  | H32: =IF(H31="","",IFERROR(H31*$K32,"")) ->  | I32: =IF(I31="","",IFERROR(I31*$K32,"")) ->  | J32: =IF(J31="","",IFERROR(J31*$K32,"")) ->  | K32: =VLOOKUP(A31,ORC!$D:$N,11,0) -> 
A33: 10 | B33: =VLOOKUP(A33,ORC!$D:$N,2,0) ->  | F33: % | K33: =SUM(G33:J33) -> 0
A34: =IFERROR(IF(B33<>"",100,B33),"") ->  | F34: R$ | G34: =IF(G33="","",IFERROR(G33*$K34,"")) ->  | H34: =IF(H33="","",IFERROR(H33*$K34,"")) ->  | I34: =IF(I33="","",IFERROR(I33*$K34,"")) ->  | J34: =IF(J33="","",IFERROR(J33*$K34,"")) ->  | K34: =VLOOKUP(A33,ORC!$D:$N,11,0) -> 
A35: 11 | B35: =VLOOKUP(A35,ORC!$D:$N,2,0) ->  | F35: % | K35: =SUM(G35:J35) -> 0
A36: =IFERROR(IF(B35<>"",100,B35),"") ->  | F36: R$ | G36: =IF(G35="","",IFERROR(G35*$K36,"")) ->  | H36: =IF(H35="","",IFERROR(H35*$K36,"")) ->  | I36: =IF(I35="","",IFERROR(I35*$K36,"")) ->  | J36: =IF(J35="","",IFERROR(J35*$K36,"")) ->  | K36: =VLOOKUP(A35,ORC!$D:$N,11,0) -> 
A37: 12 | B37: =VLOOKUP(A37,ORC!$D:$N,2,0) ->  | F37: % | K37: =SUM(G37:J37) -> 0
A38: =IFERROR(IF(B37<>"",100,B37),"") ->  | F38: R$ | G38: =IF(G37="","",IFERROR(G37*$K38,"")) ->  | H38: =IF(H37="","",IFERROR(H37*$K38,"")) ->  | I38: =IF(I37="","",IFERROR(I37*$K38,"")) ->  | J38: =IF(J37="","",IFERROR(J37*$K38,"")) ->  | K38: =VLOOKUP(A37,ORC!$D:$N,11,0) -> 
A39: 13 | B39: =VLOOKUP(A39,ORC!$D:$N,2,0) ->  | F39: % | K39: =SUM(G39:J39) -> 0
A40: =IFERROR(IF(B39<>"",100,B39),"") ->  | F40: R$ | G40: =IF(G39="","",IFERROR(G39*$K40,"")) ->  | H40: =IF(H39="","",IFERROR(H39*$K40,"")) ->  | I40: =IF(I39="","",IFERROR(I39*$K40,"")) ->  | J40: =IF(J39="","",IFERROR(J39*$K40,"")) ->  | K40: =VLOOKUP(A39,ORC!$D:$N,11,0) -> 
A41: 14 | B41: =VLOOKUP(A41,ORC!$D:$N,2,0) ->  | F41: % | K41: =SUM(G41:J41) -> 0
A42: =IFERROR(IF(B41<>"",100,B41),"") ->  | F42: R$ | G42: =IF(G41="","",IFERROR(G41*$K42,"")) ->  | H42: =IF(H41="","",IFERROR(H41*$K42,"")) ->  | I42: =IF(I41="","",IFERROR(I41*$K42,"")) ->  | J42: =IF(J41="","",IFERROR(J41*$K42,"")) ->  | K42: =VLOOKUP(A41,ORC!$D:$N,11,0) -> 
A43: 15 | B43: =VLOOKUP(A43,ORC!$D:$N,2,0) ->  | F43: % | K43: =SUM(G43:J43) -> 0
A44: =IFERROR(IF(B43<>"",100,B43),"") ->  | F44: R$ | G44: =IF(G43="","",IFERROR(G43*$K44,"")) ->  | H44: =IF(H43="","",IFERROR(H43*$K44,"")) ->  | I44: =IF(I43="","",IFERROR(I43*$K44,"")) ->  | J44: =IF(J43="","",IFERROR(J43*$K44,"")) ->  | K44: =VLOOKUP(A43,ORC!$D:$N,11,0) -> 
A45: 16 | B45: =VLOOKUP(A45,ORC!$D:$N,2,0) ->  | F45: % | K45: =SUM(G45:J45) -> 0
A46: =IFERROR(IF(B45<>"",100,B45),"") ->  | F46: R$ | G46: =IF(G45="","",IFERROR(G45*$K46,"")) ->  | H46: =IF(H45="","",IFERROR(H45*$K46,"")) ->  | I46: =IF(I45="","",IFERROR(I45*$K46,"")) ->  | J46: =IF(J45="","",IFERROR(J45*$K46,"")) ->  | K46: =VLOOKUP(A45,ORC!$D:$N,11,0) -> 
A47: 17 | B47: =VLOOKUP(A47,ORC!$D:$N,2,0) ->  | F47: % | K47: =SUM(G47:J47) -> 0
A48: =IFERROR(IF(B47<>"",100,B47),"") ->  | F48: R$ | G48: =IF(G47="","",IFERROR(G47*$K48,"")) ->  | H48: =IF(H47="","",IFERROR(H47*$K48,"")) ->  | I48: =IF(I47="","",IFERROR(I47*$K48,"")) ->  | J48: =IF(J47="","",IFERROR(J47*$K48,"")) ->  | K48: =VLOOKUP(A47,ORC!$D:$N,11,0) -> 
A49: 18 | B49: =VLOOKUP(A49,ORC!$D:$N,2,0) ->  | F49: % | K49: =SUM(G49:J49) -> 0
A50: =IFERROR(IF(B49<>"",100,B49),"") ->  | F50: R$ | G50: =IF(G49="","",IFERROR(G49*$K50,"")) ->  | H50: =IF(H49="","",IFERROR(H49*$K50,"")) ->  | I50: =IF(I49="","",IFERROR(I49*$K50,"")) ->  | J50: =IF(J49="","",IFERROR(J49*$K50,"")) ->  | K50: =VLOOKUP(A49,ORC!$D:$N,11,0) -> 
A51: 19 | B51: =VLOOKUP(A51,ORC!$D:$N,2,0) ->  | F51: % | K51: =SUM(G51:J51) -> 0
A52: =IFERROR(IF(B51<>"",100,B51),"") ->  | F52: R$ | G52: =IF(G51="","",IFERROR(G51*$K52,"")) ->  | H52: =IF(H51="","",IFERROR(H51*$K52,"")) ->  | I52: =IF(I51="","",IFERROR(I51*$K52,"")) ->  | J52: =IF(J51="","",IFERROR(J51*$K52,"")) ->  | K52: =VLOOKUP(A51,ORC!$D:$N,11,0) -> 
A54: 20 | B54: =VLOOKUP(A54,ORC!$D:$N,2,0) ->  | F54: % | K54: =SUM(G54:J54) -> 0
A55: =IFERROR(IF(B54<>"",100,B54),"") ->  | F55: R$ | G55: =IF(G54="","",IFERROR(G54*$K55,"")) ->  | H55: =IF(H54="","",IFERROR(H54*$K55,"")) ->  | I55: =IF(I54="","",IFERROR(I54*$K55,"")) ->  | J55: =IF(J54="","",IFERROR(J54*$K55,"")) ->  | K55: =VLOOKUP(A54,ORC!$D:$N,11,0) -> 
A56: 21 | B56: =VLOOKUP(A56,ORC!$D:$N,2,0) ->  | F56: % | K56: =SUM(G56:J56) -> 0
A57: =IFERROR(IF(B56<>"",100,B56),"") ->  | F57: R$ | G57: =IF(G56="","",IFERROR(G56*$K57,"")) ->  | H57: =IF(H56="","",IFERROR(H56*$K57,"")) ->  | I57: =IF(I56="","",IFERROR(I56*$K57,"")) ->  | J57: =IF(J56="","",IFERROR(J56*$K57,"")) ->  | K57: =VLOOKUP(A56,ORC!$D:$N,11,0) -> 
A58: 22 | B58: =VLOOKUP(A58,ORC!$D:$N,2,0) ->  | F58: % | K58: =SUM(G58:J58) -> 0
A59: =IFERROR(IF(B58<>"",100,B58),"") ->  | F59: R$ | G59: =IF(G58="","",IFERROR(G58*$K59,"")) ->  | H59: =IF(H58="","",IFERROR(H58*$K59,"")) ->  | I59: =IF(I58="","",IFERROR(I58*$K59,"")) ->  | J59: =IF(J58="","",IFERROR(J58*$K59,"")) ->  | K59: =VLOOKUP(A58,ORC!$D:$N,11,0) -> 
A60: 23 | B60: =VLOOKUP(A60,ORC!$D:$N,2,0) ->  | F60: % | K60: =SUM(G60:J60) -> 0
A61: =IFERROR(IF(B60<>"",100,B60),"") ->  | F61: R$ | G61: =IF(G60="","",IFERROR(G60*$K61,"")) ->  | H61: =IF(H60="","",IFERROR(H60*$K61,"")) ->  | I61: =IF(I60="","",IFERROR(I60*$K61,"")) ->  | J61: =IF(J60="","",IFERROR(J60*$K61,"")) ->  | K61: =VLOOKUP(A60,ORC!$D:$N,11,0) -> 
A62: 24 | B62: =VLOOKUP(A62,ORC!$D:$N,2,0) ->  | F62: % | K62: =SUM(G62:J62) -> 0
A63: =IFERROR(IF(B62<>"",100,B62),"") ->  | F63: R$ | G63: =IF(G62="","",IFERROR(G62*$K63,"")) ->  | H63: =IF(H62="","",IFERROR(H62*$K63,"")) ->  | K63: =VLOOKUP(A62,ORC!$D:$N,11,0) -> 
A64: 25 | B64: =VLOOKUP(A64,ORC!$D:$N,2,0) ->  | F64: % | K64: =SUM(G64:J64) -> 0
A65: =IFERROR(IF(B64<>"",100,B64),"") ->  | F65: R$ | G65: =IF(G64="","",IFERROR(G64*$K65,"")) ->  | H65: =IF(H64="","",IFERROR(H64*$K65,"")) ->  | K65: =VLOOKUP(A64,ORC!$D:$N,11,0) -> 
A66: 26 | B66: =VLOOKUP(A66,ORC!$D:$N,2,0) ->  | F66: % | K66: =SUM(G66:J66) -> 0
A67: =IFERROR(IF(B66<>"",100,B66),"") ->  | F67: R$ | G67: =IF(G66="","",IFERROR(G66*$K67,"")) ->  | H67: =IF(H66="","",IFERROR(H66*$K67,"")) ->  | K67: =VLOOKUP(A66,ORC!$D:$N,11,0) -> 
A68: 27 | B68: =VLOOKUP(A68,ORC!$D:$N,2,0) ->  | F68: % | K68: =SUM(G68:J68) -> 0
A69: =IFERROR(IF(B68<>"",100,B68),"") ->  | F69: R$ | G69: =IF(G68="","",IFERROR(G68*$K69,"")) ->  | H69: =IF(H68="","",IFERROR(H68*$K69,"")) ->  | K69: =VLOOKUP(A68,ORC!$D:$N,11,0) -> 
A70: 28 | B70: =VLOOKUP(A70,ORC!$D:$N,2,0) ->  | F70: % | K70: =SUM(G70:J70) -> 0
A71: =IFERROR(IF(B70<>"",100,B70),"") ->  | F71: R$ | G71: =IF(G70="","",IFERROR(G70*$K71,"")) ->  | H71: =IF(H70="","",IFERROR(H70*$K71,"")) ->  | K71: =VLOOKUP(A70,ORC!$D:$N,11,0) -> 
A72: 29 | B72: =VLOOKUP(A72,ORC!$D:$N,2,0) ->  | F72: % | K72: =SUM(G72:J72) -> 0
A73: =IFERROR(IF(B72<>"",100,B72),"") ->  | F73: R$ | G73: =IF(G72="","",IFERROR(G72*$K73,"")) ->  | H73: =IF(H72="","",IFERROR(H72*$K73,"")) ->  | K73: =VLOOKUP(A72,ORC!$D:$N,11,0) -> 
A74: 30 | B74: =VLOOKUP(A74,ORC!$D:$N,2,0) ->  | F74: % | K74: =SUM(G74:J74) -> 0
A75: =IFERROR(IF(B74<>"",100,B74),"") ->  | F75: R$ | G75: =IF(G74="","",IFERROR(G74*$K75,"")) ->  | H75: =IF(H74="","",IFERROR(H74*$K75,"")) ->  | K75: =VLOOKUP(A74,ORC!$D:$N,11,0) -> 
F77: Porcentagem | G77: =G78/$J$80 ->  | H77: =H78/$J$80 ->  | I77: =I78/$J$80 ->  | J77: =J78/$J$80 -> 
F78: Custo | G78: =SUMIF($A:$A,100,G:G) -> 507.197 | H78: =SUMIF($A:$A,100,H:H) -> 1014.394 | I78: =SUMIF($A:$A,100,I:I) -> 1521.591 | J78: =SUMIF($A:$A,100,J:J) -> 2028.788
F79: Porcentagem Acumulada | G79: =G77 ->  | H79: =G79+H77 ->  | I79: =H79+I77 -> 
F80: Custo Acumulado | G80: =G78 -> 507.197 | H80: =H78+G80 -> 1521.591 | I80: =I78+H80 -> 3043.182 | J80: =IF(J78+I80=ORC!M92,J78+I80,"ERRO") -> ERRO
F84: RESPONSÁVEL TÉCNICO | G84: =DADOS!D16 -> FLÁVIA CRISTINA BARBOSA
G85: =DADOS!D18 -> CREA - MG 187.842/D

Sheet CRO 5 meses
A2: CRONOGRAMA FÍSICO-FINANCEIRO | L2: Revisão: | M2: =DADOS!D6 -> R00
L3: Data: | M3: =DADOS!D2 -> 2023-08-30
A4: Projeto: | D4: Responsável: | I4: Cliente: | L4: Bancos:
A5: =DADOS!D8 -> MANUTENÇÃO DA SUPERINTENDÊNCIA DE RECURSOS MATERIAIS | L5: =DADOS!D14 -> SINAPI: 07/2023 Minas Gerais SETOP: 04/2023 Minas Gerais SICRO : 04/2023 Minas Gerais SUDECAP: 05/2023 Minas Gerais
L8: BDI 1: | M8: =DADOS!D10 -> 0.2652
L9: BDI 2: | M9: =DADOS!D12 -> 0.2025
A11: =A2&" DE "&DADOS!D20&" - "&A5 -> CRONOGRAMA FÍSICO-FINANCEIRO DE PROJETO EXECUTIVO - MANUTENÇÃO DA SUPERINTENDÊNCIA DE RECURSOS MATERIAIS
A13: ITEM | B13: DESCRIÇÃO | F13: Unid. | G13: 30 DIAS | H13: 60 DIAS | I13: 90 DIAS | J13: 120 DIAS | K13: 150 DIAS | L13: Total por Etapa
A15: 1 | B15: =VLOOKUP(A15,ORC!$D:$N,2,0) -> CANTEIRO DE OBRA | F15: % | G15: 0.1 | H15: 0.2 | I15: 0.3 | J15: 0.4 | L15: =SUM(G15:K15) -> 1
A16: =IFERROR(IF(B15<>"",100,B15),"") -> 100 | F16: R$ | G16: =IF(G15="","",IFERROR(G15*$L16,"")) -> 507.197 | H16: =IF(H15="","",IFERROR(H15*$L16,"")) -> 1014.394 | I16: 1521.591 | J16: 2028.788 | L16: =VLOOKUP(A15,ORC!$D:$N,11,0) -> 5071.97
A17: 2 | B17: =VLOOKUP(A17,ORC!$D:$N,2,0) -> SERVIÇOS PRELIMINARES | F17: % | L17: =SUM(G17:K17) -> 0
A18: =IFERROR(IF(B17<>"",100,B17),"") -> 100 | F18: R$ | G18: =IF(G17="","",IFERROR(G17*$L18,"")) ->  | H18: =IF(H17="","",IFERROR(H17*$L18,"")) ->  | I18: =IF(I17="","",IFERROR(I17*$L18,"")) ->  | J18: =IF(J17="","",IFERROR(J17*$L18,"")) ->  | K18: =IF(K17="","",IFERROR(K17*$L18,"")) ->  | L18: =VLOOKUP(A17,ORC!$D:$N,11,0) -> 1808.84
A19: 3 | B19: =VLOOKUP(A19,ORC!$D:$N,2,0) -> LIMPEZAS E DEMOLIÇÕES | F19: % | L19: =SUM(G19:K19) -> 0
A20: =IFERROR(IF(B19<>"",100,B19),"") -> 100 | F20: R$ | G20: =IF(G19="","",IFERROR(G19*$L20,"")) ->  | H20: =IF(H19="","",IFERROR(H19*$L20,"")) ->  | I20: =IF(I19="","",IFERROR(I19*$L20,"")) ->  | J20: =IF(J19="","",IFERROR(J19*$L20,"")) ->  | K20: =IF(K19="","",IFERROR(K19*$L20,"")) ->  | L20: =VLOOKUP(A19,ORC!$D:$N,11,0) -> 2229.47
A21: 4 | B21: =VLOOKUP(A21,ORC!$D:$N,2,0) -> SISTEMA DE COBERTURA | F21: % | L21: =SUM(G21:K21) -> 0
A22: =IFERROR(IF(B21<>"",100,B21),"") -> 100 | F22: R$ | G22: =IF(G21="","",IFERROR(G21*$L22,"")) ->  | H22: =IF(H21="","",IFERROR(H21*$L22,"")) ->  | I22: =IF(I21="","",IFERROR(I21*$L22,"")) ->  | J22: =IF(J21="","",IFERROR(J21*$L22,"")) ->  | K22: =IF(K21="","",IFERROR(K21*$L22,"")) ->  | L22: =VLOOKUP(A21,ORC!$D:$N,11,0) -> 69700.4
A23: 5 | B23: =VLOOKUP(A23,ORC!$D:$N,2,0) -> ACABAMENTOS | F23: % | L23: =SUM(G23:K23) -> 0
A24: =IFERROR(IF(B23<>"",100,B23),"") -> 100 | F24: R$ | G24: =IF(G23="","",IFERROR(G23*$L24,"")) ->  | H24: =IF(H23="","",IFERROR(H23*$L24,"")) ->  | I24: =IF(I23="","",IFERROR(I23*$L24,"")) ->  | J24: =IF(J23="","",IFERROR(J23*$L24,"")) ->  | K24: =IF(K23="","",IFERROR(K23*$L24,"")) ->  | L24: =VLOOKUP(A23,ORC!$D:$N,11,0) -> 42655.52
A25: 6 | B25: =VLOOKUP(A25,ORC!$D:$N,2,0) -> PINTURA | F25: % | L25: =SUM(G25:K25) -> 0
A26: =IFERROR(IF(B25<>"",100,B25),"") -> 100 | F26: R$ | G26: =IF(G25="","",IFERROR(G25*$L26,"")) ->  | H26: =IF(H25="","",IFERROR(H25*$L26,"")) ->  | I26: =IF(I25="","",IFERROR(I25*$L26,"")) ->  | J26: =IF(J25="","",IFERROR(J25*$L26,"")) ->  | K26: =IF(K25="","",IFERROR(K25*$L26,"")) ->  | L26: =VLOOKUP(A25,ORC!$D:$N,11,0) -> 5871.15
A27: 7 | B27: =VLOOKUP(A27,ORC!$D:$N,2,0) -> SERVIÇOS FINAIS | F27: % | L27: =SUM(G27:K27) -> 0
A28: =IFERROR(IF(B27<>"",100,B27),"") -> 100 | F28: R$ | G28: =IF(G27="","",IFERROR(G27*$L28,"")) ->  | H28: =IF(H27="","",IFERROR(H27*$L28,"")) ->  | I28: =IF(I27="","",IFERROR(I27*$L28,"")) ->  | J28: =IF(J27="","",IFERROR(J27*$L28,"")) ->  | K28: =IF(K27="","",IFERROR(K27*$L28,"")) ->  | L28: =VLOOKUP(A27,ORC!$D:$N,11,0) -> 950.27
A29: 8 | B29: =VLOOKUP(A29,ORC!$D:$N,2,0) ->  | F29: % | L29: =SUM(G29:K29) -> 0
A30: =IFERROR(IF(B29<>"",100,B29),"") ->  | F30: R$ | G30: =IF(G29="","",IFERROR(G29*$L30,"")) ->  | H30: =IF(H29="","",IFERROR(H29*$L30,"")) ->  | I30: =IF(I29="","",IFERROR(I29*$L30,"")) ->  | J30: =IF(J29="","",IFERROR(J29*$L30,"")) ->  | K30: =IF(K29="","",IFERROR(K29*$L30,"")) ->  | L30: =VLOOKUP(A29,ORC!$D:$N,11,0) -> 
A32: 9 | B32: =VLOOKUP(A32,ORC!$D:$N,2,0) ->  | F32: % | L32: =SUM(G32:K32) -> 0
A33: =IFERROR(IF(B32<>"",100,B32),"") ->  | F33: R$ | G33: =IF(G32="","",IFERROR(G32*$L33,"")) ->  | H33: =IF(H32="","",IFERROR(H32*$L33,"")) ->  | I33: =IF(I32="","",IFERROR(I32*$L33,"")) ->  | J33: =IF(J32="","",IFERROR(J32*$L33,"")) ->  | K33: =IF(K32="","",IFERROR(K32*$L33,"")) ->  | L33: =VLOOKUP(A32,ORC!$D:$N,11,0) -> 
A34: 10 | B34: =VLOOKUP(A34,ORC!$D:$N,2,0) ->  | F34: % | L34: =SUM(G34:K34) -> 0
A35: =IFERROR(IF(B34<>"",100,B34),"") ->  | F35: R$ | G35: =IF(G34="","",IFERROR(G34*$L35,"")) ->  | H35: =IF(H34="","",IFERROR(H34*$L35,"")) ->  | I35: =IF(I34="","",IFERROR(I34*$L35,"")) ->  | J35: =IF(J34="","",IFERROR(J34*$L35,"")) ->  | K35: =IF(K34="","",IFERROR(K34*$L35,"")) ->  | L35: =VLOOKUP(A34,ORC!$D:$N,11,0) -> 
A36: 11 | B36: =VLOOKUP(A36,ORC!$D:$N,2,0) ->  | F36: % | L36: =SUM(G36:K36) -> 0
A37: =IFERROR(IF(B36<>"",100,B36),"") ->  | F37: R$ | G37: =IF(G36="","",IFERROR(G36*$L37,"")) ->  | H37: =IF(H36="","",IFERROR(H36*$L37,"")) ->  | I37: =IF(I36="","",IFERROR(I36*$L37,"")) ->  | J37: =IF(J36="","",IFERROR(J36*$L37,"")) ->  | K37: =IF(K36="","",IFERROR(K36*$L37,"")) ->  | L37: =VLOOKUP(A36,ORC!$D:$N,11,0) -> 
A38: 12 | B38: =VLOOKUP(A38,ORC!$D:$N,2,0) ->  | F38: % | L38: =SUM(G38:K38) -> 0
A39: =IFERROR(IF(B38<>"",100,B38),"") ->  | F39: R$ | G39: =IF(G38="","",IFERROR(G38*$L39,"")) ->  | H39: =IF(H38="","",IFERROR(H38*$L39,"")) ->  | I39: =IF(I38="","",IFERROR(I38*$L39,"")) ->  | J39: =IF(J38="","",IFERROR(J38*$L39,"")) ->  | K39: =IF(K38="","",IFERROR(K38*$L39,"")) ->  | L39: =VLOOKUP(A38,ORC!$D:$N,11,0) -> 
A40: 13 | B40: =VLOOKUP(A40,ORC!$D:$N,2,0) ->  | F40: % | L40: =SUM(G40:K40) -> 0
A41: =IFERROR(IF(B40<>"",100,B40),"") ->  | F41: R$ | G41: =IF(G40="","",IFERROR(G40*$L41,"")) ->  | H41: =IF(H40="","",IFERROR(H40*$L41,"")) ->  | I41: =IF(I40="","",IFERROR(I40*$L41,"")) ->  | J41: =IF(J40="","",IFERROR(J40*$L41,"")) ->  | K41: =IF(K40="","",IFERROR(K40*$L41,"")) ->  | L41: =VLOOKUP(A40,ORC!$D:$N,11,0) -> 
A42: 14 | B42: =VLOOKUP(A42,ORC!$D:$N,2,0) ->  | F42: % | L42: =SUM(G42:K42) -> 0
A43: =IFERROR(IF(B42<>"",100,B42),"") ->  | F43: R$ | G43: =IF(G42="","",IFERROR(G42*$L43,"")) ->  | H43: =IF(H42="","",IFERROR(H42*$L43,"")) ->  | I43: =IF(I42="","",IFERROR(I42*$L43,"")) ->  | J43: =IF(J42="","",IFERROR(J42*$L43,"")) ->  | K43: =IF(K42="","",IFERROR(K42*$L43,"")) ->  | L43: =VLOOKUP(A42,ORC!$D:$N,11,0) -> 
A44: 15 | B44: =VLOOKUP(A44,ORC!$D:$N,2,0) ->  | F44: % | L44: =SUM(G44:K44) -> 0
A45: =IFERROR(IF(B44<>"",100,B44),"") ->  | F45: R$ | G45: =IF(G44="","",IFERROR(G44*$L45,"")) ->  | H45: =IF(H44="","",IFERROR(H44*$L45,"")) ->  | I45: =IF(I44="","",IFERROR(I44*$L45,"")) ->  | J45: =IF(J44="","",IFERROR(J44*$L45,"")) ->  | K45: =IF(K44="","",IFERROR(K44*$L45,"")) ->  | L45: =VLOOKUP(A44,ORC!$D:$N,11,0) -> 
A46: 16 | B46: =VLOOKUP(A46,ORC!$D:$N,2,0) ->  | F46: % | L46: =SUM(G46:K46) -> 0
A47: =IFERROR(IF(B46<>"",100,B46),"") ->  | F47: R$ | G47: =IF(G46="","",IFERROR(G46*$L47,"")) ->  | H47: =IF(H46="","",IFERROR(H46*$L47,"")) ->  | I47: =IF(I46="","",IFERROR(I46*$L47,"")) ->  | J47: =IF(J46="","",IFERROR(J46*$L47,"")) ->  | K47: =IF(K46="","",IFERROR(K46*$L47,"")) ->  | L47: =VLOOKUP(A46,ORC!$D:$N,11,0) -> 
A48: 17 | B48: =VLOOKUP(A48,ORC!$D:$N,2,0) ->  | F48: % | L48: =SUM(G48:K48) -> 0
A49: =IFERROR(IF(B48<>"",100,B48),"") ->  | F49: R$ | G49: =IF(G48="","",IFERROR(G48*$L49,"")) ->  | H49: =IF(H48="","",IFERROR(H48*$L49,"")) ->  | I49: =IF(I48="","",IFERROR(I48*$L49,"")) ->  | J49: =IF(J48="","",IFERROR(J48*$L49,"")) ->  | K49: =IF(K48="","",IFERROR(K48*$L49,"")) ->  | L49: =VLOOKUP(A48,ORC!$D:$N,11,0) -> 
A50: 18 | B50: =VLOOKUP(A50,ORC!$D:$N,2,0) ->  | F50: % | L50: =SUM(G50:K50) -> 0
A51: =IFERROR(IF(B50<>"",100,B50),"") ->  | F51: R$ | G51: =IF(G50="","",IFERROR(G50*$L51,"")) ->  | H51: =IF(H50="","",IFERROR(H50*$L51,"")) ->  | I51: =IF(I50="","",IFERROR(I50*$L51,"")) ->  | J51: =IF(J50="","",IFERROR(J50*$L51,"")) ->  | K51: =IF(K50="","",IFERROR(K50*$L51,"")) ->  | L51: =VLOOKUP(A50,ORC!$D:$N,11,0) -> 
A52: 19 | B52: =VLOOKUP(A52,ORC!$D:$N,2,0) ->  | F52: % | L52: =SUM(G52:K52) -> 0
A53: =IFERROR(IF(B52<>"",100,B52),"") ->  | F53: R$ | G53: =IF(G52="","",IFERROR(G52*$L53,"")) ->  | H53: =IF(H52="","",IFERROR(H52*$L53,"")) ->  | I53: =IF(I52="","",IFERROR(I52*$L53,"")) ->  | J53: =IF(J52="","",IFERROR(J52*$L53,"")) ->  | K53: =IF(K52="","",IFERROR(K52*$L53,"")) ->  | L53: =VLOOKUP(A52,ORC!$D:$N,11,0) -> 
A55: 20 | B55: =VLOOKUP(A55,ORC!$D:$N,2,0) ->  | F55: % | L55: =SUM(G55:K55) -> 0
A56: =IFERROR(IF(B55<>"",100,B55),"") ->  | F56: R$ | G56: =IF(G55="","",IFERROR(G55*$L56,"")) ->  | H56: =IF(H55="","",IFERROR(H55*$L56,"")) ->  | I56: =IF(I55="","",IFERROR(I55*$L56,"")) ->  | J56: =IF(J55="","",IFERROR(J55*$L56,"")) ->  | K56: =IF(K55="","",IFERROR(K55*$L56,"")) ->  | L56: =VLOOKUP(A55,ORC!$D:$N,11,0) -> 
A57: 21 | B57: =VLOOKUP(A57,ORC!$D:$N,2,0) ->  | F57: % | L57: =SUM(G57:K57) -> 0
A58: =IFERROR(IF(B57<>"",100,B57),"") ->  | F58: R$ | G58: =IF(G57="","",IFERROR(G57*$L58,"")) ->  | H58: =IF(H57="","",IFERROR(H57*$L58,"")) ->  | I58: =IF(I57="","",IFERROR(I57*$L58,"")) ->  | J58: =IF(J57="","",IFERROR(J57*$L58,"")) ->  | K58: =IF(K57="","",IFERROR(K57*$L58,"")) ->  | L58: =VLOOKUP(A57,ORC!$D:$N,11,0) -> 
A59: 22 | B59: =VLOOKUP(A59,ORC!$D:$N,2,0) ->  | F59: % | L59: =SUM(G59:K59) -> 0
A60: =IFERROR(IF(B59<>"",100,B59),"") ->  | F60: R$ | G60: =IF(G59="","",IFERROR(G59*$L60,"")) ->  | H60: =IF(H59="","",IFERROR(H59*$L60,"")) ->  | I60: =IF(I59="","",IFERROR(I59*$L60,"")) ->  | J60: =IF(J59="","",IFERROR(J59*$L60,"")) ->  | K60: =IF(K59="","",IFERROR(K59*$L60,"")) ->  | L60: =VLOOKUP(A59,ORC!$D:$N,11,0) -> 
A61: 23 | B61: =VLOOKUP(A61,ORC!$D:$N,2,0) ->  | F61: % | L61: =SUM(G61:K61) -> 0
A62: =IFERROR(IF(B61<>"",100,B61),"") ->  | F62: R$ | G62: =IF(G61="","",IFERROR(G61*$L62,"")) ->  | H62: =IF(H61="","",IFERROR(H61*$L62,"")) ->  | I62: =IF(I61="","",IFERROR(I61*$L62,"")) ->  | J62: =IF(J61="","",IFERROR(J61*$L62,"")) ->  | K62: =IF(K61="","",IFERROR(K61*$L62,"")) ->  | L62: =VLOOKUP(A61,ORC!$D:$N,11,0) -> 
A63: 24 | B63: =VLOOKUP(A63,ORC!$D:$N,2,0) ->  | F63: % | L63: =SUM(G63:K63) -> 0
A64: =IFERROR(IF(B63<>"",100,B63),"") ->  | F64: R$ | G64: =IF(G63="","",IFERROR(G63*$L64,"")) ->  | H64: =IF(H63="","",IFERROR(H63*$L64,"")) ->  | L64: =VLOOKUP(A63,ORC!$D:$N,11,0) -> 
A65: 25 | B65: =VLOOKUP(A65,ORC!$D:$N,2,0) ->  | F65: % | L65: =SUM(G65:K65) -> 0
A66: =IFERROR(IF(B65<>"",100,B65),"") ->  | F66: R$ | G66: =IF(G65="","",IFERROR(G65*$L66,"")) ->  | H66: =IF(H65="","",IFERROR(H65*$L66,"")) ->  | L66: =VLOOKUP(A65,ORC!$D:$N,11,0) -> 
A67: 26 | B67: =VLOOKUP(A67,ORC!$D:$N,2,0) ->  | F67: % | L67: =SUM(G67:K67) -> 0
A68: =IFERROR(IF(B67<>"",100,B67),"") ->  | F68: R$ | G68: =IF(G67="","",IFERROR(G67*$L68,"")) ->  | H68: =IF(H67="","",IFERROR(H67*$L68,"")) ->  | L68: =VLOOKUP(A67,ORC!$D:$N,11,0) -> 
A69: 27 | B69: =VLOOKUP(A69,ORC!$D:$N,2,0) ->  | F69: % | L69: =SUM(G69:K69) -> 0
A70: =IFERROR(IF(B69<>"",100,B69),"") ->  | F70: R$ | G70: =IF(G69="","",IFERROR(G69*$L70,"")) ->  | H70: =IF(H69="","",IFERROR(H69*$L70,"")) ->  | L70: =VLOOKUP(A69,ORC!$D:$N,11,0) -> 
A71: 28 | B71: =VLOOKUP(A71,ORC!$D:$N,2,0) ->  | F71: % | L71: =SUM(G71:K71) -> 0
A72: =IFERROR(IF(B71<>"",100,B71),"") ->  | F72: R$ | G72: =IF(G71="","",IFERROR(G71*$L72,"")) ->  | H72: =IF(H71="","",IFERROR(H71*$L72,"")) ->  | L72: =VLOOKUP(A71,ORC!$D:$N,11,0) -> 
A73: 29 | B73: =VLOOKUP(A73,ORC!$D:$N,2,0) ->  | F73: % | L73: =SUM(G73:K73) -> 0
A74: =IFERROR(IF(B73<>"",100,B73),"") ->  | F74: R$ | G74: =IF(G73="","",IFERROR(G73*$L74,"")) ->  | H74: =IF(H73="","",IFERROR(H73*$L74,"")) ->  | L74: =VLOOKUP(A73,ORC!$D:$N,11,0) -> 
A75: 30 | B75: =VLOOKUP(A75,ORC!$D:$N,2,0) ->  | F75: % | L75: =SUM(G75:K75) -> 0
A76: =IFERROR(IF(B75<>"",100,B75),"") ->  | F76: R$ | G76: =IF(G75="","",IFERROR(G75*$L76,"")) ->  | H76: =IF(H75="","",IFERROR(H75*$L76,"")) ->  | L76: =VLOOKUP(A75,ORC!$D:$N,11,0) -> 
F78: Porcentagem | G78: =G79/$K$81 ->  | K78: =K79/$K$81 -> 
F79: Custo | G79: =SUMIF($A:$A,100,G:G) -> 507.197 | H79: =SUMIF($A:$A,100,H:H) -> 1014.394 | I79: =SUMIF($A:$A,100,I:I) -> 1521.591 | J79: =SUMIF($A:$A,100,J:J) -> 2028.788 | K79: =SUMIF($A:$A,100,K:K) -> 0
F80: Porcentagem Acumulada | G80: =G78 ->  | H80: =G80+H78 ->  | I80: =H80+I78 -> 
F81: Custo Acumulado | G81: =G79 -> 507.197 | H81: =H79+G81 -> 1521.591 | I81: =I79+H81 -> 3043.182 | J81: 5071.97 | K81: =IF(K79+J81=ORC!M92,K79+J81,"ERRO") -> ERRO
F85: RESPONSÁVEL TÉCNICO | G85: =DADOS!D16 -> FLÁVIA CRISTINA BARBOSA
G86: =DADOS!D18 -> CREA - MG 187.842/D

Sheet CRO 6 meses
A2: CRONOGRAMA FÍSICO-FINANCEIRO | M2: Revisão: | N2: =DADOS!D6 -> R00
M3: Data: | N3: =DADOS!D2 -> 2023-08-30
A4: Projeto: | D4: Responsável: | I4: Cliente: | M4: Bancos:
A5: =DADOS!D8 -> MANUTENÇÃO DA SUPERINTENDÊNCIA DE RECURSOS MATERIAIS | M5: =DADOS!D14 -> SINAPI: 07/2023 Minas Gerais SETOP: 04/2023 Minas Gerais SICRO : 04/2023 Minas Gerais SUDECAP: 05/2023 Minas Gerais
M8: BDI 1: | N8: =DADOS!D10 -> 0.2652
M9: BDI 2: | N9: =DADOS!D12 -> 0.2025
A11: =A2&" DE "&DADOS!D20&" - "&A5 -> CRONOGRAMA FÍSICO-FINANCEIRO DE PROJETO EXECUTIVO - MANUTENÇÃO DA SUPERINTENDÊNCIA DE RECURSOS MATERIAIS
A13: ITEM | B13: DESCRIÇÃO | F13: Unid. | G13: 30 DIAS | H13: 60 DIAS | I13: 90 DIAS | J13: 120 DIAS | K13: 150 DIAS | L13: 180 DIAS | M13: Total por Etapa
A15: 1 | B15: =VLOOKUP(A15,ORC!$D:$N,2,0) -> CANTEIRO DE OBRA | F15: % | G15: 0.1 | H15: 0.2 | I15: 0.3 | J15: 0.4 | M15: =SUM(G15:L15) -> 1
A16: =IFERROR(IF(B15<>"",100,B15),"") -> 100 | F16: R$ | G16: =IF(G15="","",IFERROR(G15*$M16,"")) -> 507.197 | H16: =IF(H15="","",IFERROR(H15*$M16,"")) -> 1014.394 | I16: 1521.591 | J16: 2028.788 | M16: =VLOOKUP(A15,ORC!$D:$N,11,0) -> 5071.97
A17: 2 | B17: =VLOOKUP(A17,ORC!$D:$N,2,0) -> SERVIÇOS PRELIMINARES | F17: % | M17: =SUM(G17:L17) -> 0
A18: =IFERROR(IF(B17<>"",100,B17),"") -> 100 | F18: R$ | G18: =IF(G17="","",IFERROR(G17*$M18,"")) ->  | H18: =IF(H17="","",IFERROR(H17*$M18,"")) ->  | I18: =IF(I17="","",IFERROR(I17*$M18,"")) ->  | J18: =IF(J17="","",IFERROR(J17*$M18,"")) ->  | K18: =IF(K17="","",IFERROR(K17*$M18,"")) ->  | L18: =IF(L17="","",IFERROR(L17*$M18,"")) ->  | M18: =VLOOKUP(A17,ORC!$D:$N,11,0) -> 1808.84
A19: 3 | B19: =VLOOKUP(A19,ORC!$D:$N,2,0) -> LIMPEZAS E DEMOLIÇÕES | F19: % | M19: =SUM(G19:L19) -> 0
A20: =IFERROR(IF(B19<>"",100,B19),"") -> 100 | F20: R$ | G20: =IF(G19="","",IFERROR(G19*$M20,"")) ->  | H20: =IF(H19="","",IFERROR(H19*$M20,"")) ->  | I20: =IF(I19="","",IFERROR(I19*$M20,"")) ->  | J20: =IF(J19="","",IFERROR(J19*$M20,"")) ->  | K20: =IF(K19="","",IFERROR(K19*$M20,"")) ->  | L20: =IF(L19="","",IFERROR(L19*$M20,"")) ->  | M20: =VLOOKUP(A19,ORC!$D:$N,11,0) -> 2229.47
A21: 4 | B21: =VLOOKUP(A21,ORC!$D:$N,2,0) -> SISTEMA DE COBERTURA | F21: % | M21: =SUM(G21:L21) -> 0
A22: =IFERROR(IF(B21<>"",100,B21),"") -> 100 | F22: R$ | G22: =IF(G21="","",IFERROR(G21*$M22,"")) ->  | H22: =IF(H21="","",IFERROR(H21*$M22,"")) ->  | I22: =IF(I21="","",IFERROR(I21*$M22,"")) ->  | J22: =IF(J21="","",IFERROR(J21*$M22,"")) ->  | K22: =IF(K21="","",IFERROR(K21*$M22,"")) ->  | L22: =IF(L21="","",IFERROR(L21*$M22,"")) ->  | M22: =VLOOKUP(A21,ORC!$D:$N,11,0) -> 69700.4
A23: 5 | B23: =VLOOKUP(A23,ORC!$D:$N,2,0) -> ACABAMENTOS | F23: % | M23: =SUM(G23:L23) -> 0
A24: =IFERROR(IF(B23<>"",100,B23),"") -> 100 | F24: R$ | G24: =IF(G23="","",IFERROR(G23*$M24,"")) ->  | H24: =IF(H23="","",IFERROR(H23*$M24,"")) ->  | I24: =IF(I23="","",IFERROR(I23*$M24,"")) ->  | J24: =IF(J23="","",IFERROR(J23*$M24,"")) ->  | K24: =IF(K23="","",IFERROR(K23*$M24,"")) ->  | L24: =IF(L23="","",IFERROR(L23*$M24,"")) ->  | M24: =VLOOKUP(A23,ORC!$D:$N,11,0) -> 42655.52
A25: 6 | B25: =VLOOKUP(A25,ORC!$D:$N,2,0) -> PINTURA | F25: % | M25: =SUM(G25:L25) -> 0
A26: =IFERROR(IF(B25<>"",100,B25),"") -> 100 | F26: R$ | G26: =IF(G25="","",IFERROR(G25*$M26,"")) ->  | H26: =IF(H25="","",IFERROR(H25*$M26,"")) ->  | I26: =IF(I25="","",IFERROR(I25*$M26,"")) ->  | J26: =IF(J25="","",IFERROR(J25*$M26,"")) ->  | K26: =IF(K25="","",IFERROR(K25*$M26,"")) ->  | L26: =IF(L25="","",IFERROR(L25*$M26,"")) ->  | M26: =VLOOKUP(A25,ORC!$D:$N,11,0) -> 5871.15
A27: 7 | B27: =VLOOKUP(A27,ORC!$D:$N,2,0) -> SERVIÇOS FINAIS | F27: % | M27: =SUM(G27:L27) -> 0
A28: =IFERROR(IF(B27<>"",100,B27),"") -> 100 | F28: R$ | G28: =IF(G27="","",IFERROR(G27*$M28,"")) ->  | H28: =IF(H27="","",IFERROR(H27*$M28,"")) ->  | I28: =IF(I27="","",IFERROR(I27*$M28,"")) ->  | J28: =IF(J27="","",IFERROR(J27*$M28,"")) ->  | K28: =IF(K27="","",IFERROR(K27*$M28,"")) ->  | L28: =IF(L27="","",IFERROR(L27*$M28,"")) ->  | M28: =VLOOKUP(A27,ORC!$D:$N,11,0) -> 950.27
A29: 8 | B29: =VLOOKUP(A29,ORC!$D:$N,2,0) ->  | F29: % | M29: =SUM(G29:L29) -> 0
A30: =IFERROR(IF(B29<>"",100,B29),"") ->  | F30: R$ | G30: =IF(G29="","",IFERROR(G29*$M30,"")) ->  | H30: =IF(H29="","",IFERROR(H29*$M30,"")) ->  | I30: =IF(I29="","",IFERROR(I29*$M30,"")) ->  | J30: =IF(J29="","",IFERROR(J29*$M30,"")) ->  | K30: =IF(K29="","",IFERROR(K29*$M30,"")) ->  | L30: =IF(L29="","",IFERROR(L29*$M30,"")) ->  | M30: =VLOOKUP(A29,ORC!$D:$N,11,0) -> 
A32: 9 | B32: =VLOOKUP(A32,ORC!$D:$N,2,0) ->  | F32: % | M32: =SUM(G32:L32) -> 0
A33: =IFERROR(IF(B32<>"",100,B32),"") ->  | F33: R$ | G33: =IF(G32="","",IFERROR(G32*$M33,"")) ->  | H33: =IF(H32="","",IFERROR(H32*$M33,"")) ->  | I33: =IF(I32="","",IFERROR(I32*$M33,"")) ->  | J33: =IF(J32="","",IFERROR(J32*$M33,"")) ->  | K33: =IF(K32="","",IFERROR(K32*$M33,"")) ->  | L33: =IF(L32="","",IFERROR(L32*$M33,"")) ->  | M33: =VLOOKUP(A32,ORC!$D:$N,11,0) -> 
A34: 10 | B34: =VLOOKUP(A34,ORC!$D:$N,2,0) ->  | F34: % | M34: =SUM(G34:L34) -> 0
A35: =IFERROR(IF(B34<>"",100,B34),"") ->  | F35: R$ | G35: =IF(G34="","",IFERROR(G34*$M35,"")) ->  | H35: =IF(H34="","",IFERROR(H34*$M35,"")) ->  | I35: =IF(I34="","",IFERROR(I34*$M35,"")) ->  | J35: =IF(J34="","",IFERROR(J34*$M35,"")) ->  | K35: =IF(K34="","",IFERROR(K34*$M35,"")) ->  | L35: =IF(L34="","",IFERROR(L34*$M35,"")) ->  | M35: =VLOOKUP(A34,ORC!$D:$N,11,0) -> 
A36: 11 | B36: =VLOOKUP(A36,ORC!$D:$N,2,0) ->  | F36: % | M36: =SUM(G36:L36) -> 0
A37: =IFERROR(IF(B36<>"",100,B36),"") ->  | F37: R$ | G37: =IF(G36="","",IFERROR(G36*$M37,"")) ->  | H37: =IF(H36="","",IFERROR(H36*$M37,"")) ->  | I37: =IF(I36="","",IFERROR(I36*$M37,"")) ->  | J37: =IF(J36="","",IFERROR(J36*$M37,"")) ->  | K37: =IF(K36="","",IFERROR(K36*$M37,"")) ->  | L37: =IF(L36="","",IFERROR(L36*$M37,"")) ->  | M37: =VLOOKUP(A36,ORC!$D:$N,11,0) -> 
A38: 12 | B38: =VLOOKUP(A38,ORC!$D:$N,2,0) ->  | F38: % | M38: =SUM(G38:L38) -> 0
A39: =IFERROR(IF(B38<>"",100,B38),"") ->  | F39: R$ | G39: =IF(G38="","",IFERROR(G38*$M39,"")) ->  | H39: =IF(H38="","",IFERROR(H38*$M39,"")) ->  | I39: =IF(I38="","",IFERROR(I38*$M39,"")) ->  | J39: =IF(J38="","",IFERROR(J38*$M39,"")) ->  | K39: =IF(K38="","",IFERROR(K38*$M39,"")) ->  | L39: =IF(L38="","",IFERROR(L38*$M39,"")) ->  | M39: =VLOOKUP(A38,ORC!$D:$N,11,0) -> 
A40: 13 | B40: =VLOOKUP(A40,ORC!$D:$N,2,0) ->  | F40: % | M40: =SUM(G40:L40) -> 0
A41: =IFERROR(IF(B40<>"",100,B40),"") ->  | F41: R$ | G41: =IF(G40="","",IFERROR(G40*$M41,"")) ->  | H41: =IF(H40="","",IFERROR(H40*$M41,"")) ->  | I41: =IF(I40="","",IFERROR(I40*$M41,"")) ->  | J41: =IF(J40="","",IFERROR(J40*$M41,"")) ->  | K41: =IF(K40="","",IFERROR(K40*$M41,"")) ->  | L41: =IF(L40="","",IFERROR(L40*$M41,"")) ->  | M41: =VLOOKUP(A40,ORC!$D:$N,11,0) -> 
A42: 14 | B42: =VLOOKUP(A42,ORC!$D:$N,2,0) ->  | F42: % | M42: =SUM(G42:L42) -> 0
A43: =IFERROR(IF(B42<>"",100,B42),"") ->  | F43: R$ | G43: =IF(G42="","",IFERROR(G42*$M43,"")) ->  | H43: =IF(H42="","",IFERROR(H42*$M43,"")) ->  | I43: =IF(I42="","",IFERROR(I42*$M43,"")) ->  | J43: =IF(J42="","",IFERROR(J42*$M43,"")) ->  | K43: =IF(K42="","",IFERROR(K42*$M43,"")) ->  | L43: =IF(L42="","",IFERROR(L42*$M43,"")) ->  | M43: =VLOOKUP(A42,ORC!$D:$N,11,0) -> 
A44: 15 | B44: =VLOOKUP(A44,ORC!$D:$N,2,0) ->  | F44: % | M44: =SUM(G44:L44) -> 0
A45: =IFERROR(IF(B44<>"",100,B44),"") ->  | F45: R$ | G45: =IF(G44="","",IFERROR(G44*$M45,"")) ->  | H45: =IF(H44="","",IFERROR(H44*$M45,"")) ->  | I45: =IF(I44="","",IFERROR(I44*$M45,"")) ->  | J45: =IF(J44="","",IFERROR(J44*$M45,"")) ->  | K45: =IF(K44="","",IFERROR(K44*$M45,"")) ->  | L45: =IF(L44="","",IFERROR(L44*$M45,"")) ->  | M45: =VLOOKUP(A44,ORC!$D:$N,11,0) -> 
A46: 16 | B46: =VLOOKUP(A46,ORC!$D:$N,2,0) ->  | F46: % | M46: =SUM(G46:L46) -> 0
A47: =IFERROR(IF(B46<>"",100,B46),"") ->  | F47: R$ | G47: =IF(G46="","",IFERROR(G46*$M47,"")) ->  | H47: =IF(H46="","",IFERROR(H46*$M47,"")) ->  | I47: =IF(I46="","",IFERROR(I46*$M47,"")) ->  | J47: =IF(J46="","",IFERROR(J46*$M47,"")) ->  | K47: =IF(K46="","",IFERROR(K46*$M47,"")) ->  | L47: =IF(L46="","",IFERROR(L46*$M47,"")) ->  | M47: =VLOOKUP(A46,ORC!$D:$N,11,0) -> 
A48: 17 | B48: =VLOOKUP(A48,ORC!$D:$N,2,0) ->  | F48: % | M48: =SUM(G48:L48) -> 0
A49: =IFERROR(IF(B48<>"",100,B48),"") ->  | F49: R$ | G49: =IF(G48="","",IFERROR(G48*$M49,"")) ->  | H49: =IF(H48="","",IFERROR(H48*$M49,"")) ->  | I49: =IF(I48="","",IFERROR(I48*$M49,"")) ->  | J49: =IF(J48="","",IFERROR(J48*$M49,"")) ->  | K49: =IF(K48="","",IFERROR(K48*$M49,"")) ->  | L49: =IF(L48="","",IFERROR(L48*$M49,"")) ->  | M49: =VLOOKUP(A48,ORC!$D:$N,11,0) -> 
A50: 18 | B50: =VLOOKUP(A50,ORC!$D:$N,2,0) ->  | F50: % | M50: =SUM(G50:L50) -> 0
A51: =IFERROR(IF(B50<>"",100,B50),"") ->  | F51: R$ | G51: =IF(G50="","",IFERROR(G50*$M51,"")) ->  | H51: =IF(H50="","",IFERROR(H50*$M51,"")) ->  | I51: =IF(I50="","",IFERROR(I50*$M51,"")) ->  | J51: =IF(J50="","",IFERROR(J50*$M51,"")) ->  | K51: =IF(K50="","",IFERROR(K50*$M51,"")) ->  | L51: =IF(L50="","",IFERROR(L50*$M51,"")) ->  | M51: =VLOOKUP(A50,ORC!$D:$N,11,0) -> 
A52: 19 | B52: =VLOOKUP(A52,ORC!$D:$N,2,0) ->  | F52: % | M52: =SUM(G52:L52) -> 0
A53: =IFERROR(IF(B52<>"",100,B52),"") ->  | F53: R$ | G53: =IF(G52="","",IFERROR(G52*$M53,"")) ->  | H53: =IF(H52="","",IFERROR(H52*$M53,"")) ->  | I53: =IF(I52="","",IFERROR(I52*$M53,"")) ->  | J53: =IF(J52="","",IFERROR(J52*$M53,"")) ->  | K53: =IF(K52="","",IFERROR(K52*$M53,"")) ->  | L53: =IF(L52="","",IFERROR(L52*$M53,"")) ->  | M53: =VLOOKUP(A52,ORC!$D:$N,11,0) -> 
A55: 20 | B55: =VLOOKUP(A55,ORC!$D:$N,2,0) ->  | F55: % | M55: =SUM(G55:L55) -> 0
A56: =IFERROR(IF(B55<>"",100,B55),"") ->  | F56: R$ | G56: =IF(G55="","",IFERROR(G55*$M56,"")) ->  | H56: =IF(H55="","",IFERROR(H55*$M56,"")) ->  | I56: =IF(I55="","",IFERROR(I55*$M56,"")) ->  | J56: =IF(J55="","",IFERROR(J55*$M56,"")) ->  | K56: =IF(K55="","",IFERROR(K55*$M56,"")) ->  | L56: =IF(L55="","",IFERROR(L55*$M56,"")) ->  | M56: =VLOOKUP(A55,ORC!$D:$N,11,0) -> 
A57: 21 | B57: =VLOOKUP(A57,ORC!$D:$N,2,0) ->  | F57: % | M57: =SUM(G57:L57) -> 0
A58: =IFERROR(IF(B57<>"",100,B57),"") ->  | F58: R$ | G58: =IF(G57="","",IFERROR(G57*$M58,"")) ->  | H58: =IF(H57="","",IFERROR(H57*$M58,"")) ->  | I58: =IF(I57="","",IFERROR(I57*$M58,"")) ->  | J58: =IF(J57="","",IFERROR(J57*$M58,"")) ->  | K58: =IF(K57="","",IFERROR(K57*$M58,"")) ->  | L58: =IF(L57="","",IFERROR(L57*$M58,"")) ->  | M58: =VLOOKUP(A57,ORC!$D:$N,11,0) -> 
A59: 22 | B59: =VLOOKUP(A59,ORC!$D:$N,2,0) ->  | F59: % | M59: =SUM(G59:L59) -> 0
A60: =IFERROR(IF(B59<>"",100,B59),"") ->  | F60: R$ | G60: =IF(G59="","",IFERROR(G59*$M60,"")) ->  | H60: =IF(H59="","",IFERROR(H59*$M60,"")) ->  | I60: =IF(I59="","",IFERROR(I59*$M60,"")) ->  | J60: =IF(J59="","",IFERROR(J59*$M60,"")) ->  | K60: =IF(K59="","",IFERROR(K59*$M60,"")) ->  | L60: =IF(L59="","",IFERROR(L59*$M60,"")) ->  | M60: =VLOOKUP(A59,ORC!$D:$N,11,0) -> 
A61: 23 | B61: =VLOOKUP(A61,ORC!$D:$N,2,0) ->  | F61: % | M61: =SUM(G61:L61) -> 0
A62: =IFERROR(IF(B61<>"",100,B61),"") ->  | F62: R$ | G62: =IF(G61="","",IFERROR(G61*$M62,"")) ->  | H62: =IF(H61="","",IFERROR(H61*$M62,"")) ->  | I62: =IF(I61="","",IFERROR(I61*$M62,"")) ->  | J62: =IF(J61="","",IFERROR(J61*$M62,"")) ->  | K62: =IF(K61="","",IFERROR(K61*$M62,"")) ->  | L62: =IF(L61="","",IFERROR(L61*$M62,"")) ->  | M62: =VLOOKUP(A61,ORC!$D:$N,11,0) -> 
A63: 24 | B63: =VLOOKUP(A63,ORC!$D:$N,2,0) ->  | F63: % | M63: =SUM(G63:L63) -> 0
A64: =IFERROR(IF(B63<>"",100,B63),"") ->  | F64: R$ | G64: =IF(G63="","",IFERROR(G63*$M64,"")) ->  | H64: =IF(H63="","",IFERROR(H63*$M64,"")) ->  | M64: =VLOOKUP(A63,ORC!$D:$N,11,0) -> 
A65: 25 | B65: =VLOOKUP(A65,ORC!$D:$N,2,0) ->  | F65: % | M65: =SUM(G65:L65) -> 0
A66: =IFERROR(IF(B65<>"",100,B65),"") ->  | F66: R$ | G66: =IF(G65="","",IFERROR(G65*$M66,"")) ->  | H66: =IF(H65="","",IFERROR(H65*$M66,"")) ->  | M66: =VLOOKUP(A65,ORC!$D:$N,11,0) -> 
A67: 26 | B67: =VLOOKUP(A67,ORC!$D:$N,2,0) ->  | F67: % | M67: =SUM(G67:L67) -> 0
A68: =IFERROR(IF(B67<>"",100,B67),"") ->  | F68: R$ | G68: =IF(G67="","",IFERROR(G67*$M68,"")) ->  | H68: =IF(H67="","",IFERROR(H67*$M68,"")) ->  | M68: =VLOOKUP(A67,ORC!$D:$N,11,0) -> 
A69: 27 | B69: =VLOOKUP(A69,ORC!$D:$N,2,0) ->  | F69: % | M69: =SUM(G69:L69) -> 0
A70: =IFERROR(IF(B69<>"",100,B69),"") ->  | F70: R$ | G70: =IF(G69="","",IFERROR(G69*$M70,"")) ->  | H70: =IF(H69="","",IFERROR(H69*$M70,"")) ->  | M70: =VLOOKUP(A69,ORC!$D:$N,11,0) -> 
A71: 28 | B71: =VLOOKUP(A71,ORC!$D:$N,2,0) ->  | F71: % | M71: =SUM(G71:L71) -> 0
A72: =IFERROR(IF(B71<>"",100,B71),"") ->  | F72: R$ | G72: =IF(G71="","",IFERROR(G71*$M72,"")) ->  | H72: =IF(H71="","",IFERROR(H71*$M72,"")) ->  | M72: =VLOOKUP(A71,ORC!$D:$N,11,0) -> 
A73: 29 | B73: =VLOOKUP(A73,ORC!$D:$N,2,0) ->  | F73: % | M73: =SUM(G73:L73) -> 0
A74: =IFERROR(IF(B73<>"",100,B73),"") ->  | F74: R$ | G74: =IF(G73="","",IFERROR(G73*$M74,"")) ->  | H74: =IF(H73="","",IFERROR(H73*$M74,"")) ->  | M74: =VLOOKUP(A73,ORC!$D:$N,11,0) -> 
A75: 30 | B75: =VLOOKUP(A75,ORC!$D:$N,2,0) ->  | F75: % | M75: =SUM(G75:L75) -> 0
A76: =IFERROR(IF(B75<>"",100,B75),"") ->  | F76: R$ | G76: =IF(G75="","",IFERROR(G75*$M76,"")) ->  | H76: =IF(H75="","",IFERROR(H75*$M76,"")) ->  | M76: =VLOOKUP(A75,ORC!$D:$N,11,0) -> 
F79: Porcentagem | G79: =G80/$L$82 -> 
F80: Custo | G80: =SUMIF($A:$A,100,G:G) -> 507.197 | H80: 1014.394 | I80: 1521.591 | J80: 2028.788 | K80: 0 | L80: 0
F81: Porcentagem Acumulada | G81: =G79 ->  | H81: =G81+H79 ->  | I81: =H81+I79 -> 
F82: Custo Acumulado | G82: =G80 -> 507.197 | H82: =H80+G82 -> 1521.591 | I82: =I80+H82 -> 3043.182 | J82: 5071.97 | K82: 5071.97 | L82: =IF(L80+K82=ORC!M92,L80+K82,"ERRO") -> ERRO
F86: RESPONSÁVEL TÉCNICO | G86: =DADOS!D16 -> FLÁVIA CRISTINA BARBOSA
G87: =DADOS!D18 -> CREA - MG 187.842/D

Sheet CRO 7 meses
A2: CRONOGRAMA FÍSICO-FINANCEIRO | K2: Revisão: | L2: =DADOS!D6 -> R00 | M2: CRONOGRAMA FÍSICO-FINANCEIRO | Y2: Revisão: | Z2: =DADOS!$D$6 -> R00
K3: Data: | L3: =DADOS!D2 -> 2023-08-30 | Y3: Data: | Z3: =DADOS!$D$2 -> 2023-08-30
A4: Projeto: | D4: Responsável: | H4: Cliente: | K4: Bancos: | M4: Projeto: | P4: Responsável: | U4: Cliente: | Y4: Bancos:
A5: =DADOS!D8 -> MANUTENÇÃO DA SUPERINTENDÊNCIA DE RECURSOS MATERIAIS | K5: =DADOS!D14 -> SINAPI: 07/2023 Minas Gerais SETOP: 04/2023 Minas Gerais SICRO : 04/2023 Minas Gerais SUDECAP: 05/2023 Minas Gerais | M5: =DADOS!$D$8 -> MANUTENÇÃO DA SUPERINTENDÊNCIA DE RECURSOS MATERIAIS | Y5: =DADOS!$D$14 -> SINAPI: 07/2023 Minas Gerais SETOP: 04/2023 Minas Gerais SICRO : 04/2023 Minas Gerais SUDECAP: 05/2023 Minas Gerais
K8: BDI 1: | L8: =DADOS!D10 -> 0.2652 | Y8: BDI 1: | Z8: =DADOS!$D$10 -> 0.2652
K9: BDI 2: | L9: =DADOS!D12 -> 0.2025 | Y9: BDI 2: | Z9: =DADOS!$D$12 -> 0.2025
A11: =A2&" DE "&DADOS!D20&" - "&A5 -> CRONOGRAMA FÍSICO-FINANCEIRO DE PROJETO EXECUTIVO - MANUTENÇÃO DA SUPERINTENDÊNCIA DE RECURSOS MATERIAIS | M11: =M2&" DE "&DADOS!$D$20&" - "&M5 -> CRONOGRAMA FÍSICO-FINANCEIRO DE PROJETO EXECUTIVO - MANUTENÇÃO DA SUPERINTENDÊNCIA DE RECURSOS MATERIAIS
A13: ITEM | B13: DESCRIÇÃO | F13: Unid. | G13: 30 DIAS | H13: 60 DIAS | I13: 90 DIAS | J13: 120 DIAS | K13: Total por Etapa | M13: ITEM | N13: DESCRIÇÃO | R13: Unid. | S13: 150 DIAS | U13: 180 DIAS | W13: 210 DIAS | Y13: Total por Etapa
A15: 1 | B15: =VLOOKUP(A15,ORC!$D:$N,2,0) -> CANTEIRO DE OBRA | F15: % | G15: 0.28 | H15: 0.12 | I15: 0.12 | J15: 0.12 | K15: =SUM(G15:J15)+SUM(S15:X15) -> 1 | M15: 1 | N15: =VLOOKUP(M15,ORC!$D:$N,2,0) -> CANTEIRO DE OBRA | R15: % | S15: 0.12 | U15: 0.12 | W15: 0.12 | Y15: =K15 -> 1
A16: =IFERROR(IF(B15<>"",100,B15),"") -> 100 | F16: R$ | G16: =IF(G15="","",IFERROR(G15*$K16,"")) -> 1420.1516 | H16: =IF(H15="","",IFERROR(H15*$K16,"")) -> 608.6364 | I16: 608.6364 | J16: 608.6364 | K16: =VLOOKUP(A15,ORC!$D:$N,11,0) -> 5071.97 | M16: =IFERROR(IF(N15<>"",100,N15),"") -> 100 | R16: R$ | S16: =IF(S15="","",IFERROR(S15*$K16,"")) -> 608.6364 | U16: =IF(U15="","",IFERROR(U15*$K16,"")) -> 608.6364 | W16: =IF(W15="","",IFERROR(W15*$K16,"")) -> 608.6364 | Y16: 5071.97
A17: 2 | B17: =VLOOKUP(A17,ORC!$D:$N,2,0) -> SERVIÇOS PRELIMINARES | F17: % | K17: =SUM(G17:J17)+SUM(S17:X17) -> 0 | M17: 2 | N17: =VLOOKUP(M17,ORC!$D:$N,2,0) -> SERVIÇOS PRELIMINARES | R17: % | Y17: 0
A18: =IFERROR(IF(B17<>"",100,B17),"") -> 100 | F18: R$ | G18: =IF(G17="","",IFERROR(G17*$K18,"")) ->  | H18: =IF(H17="","",IFERROR(H17*$K18,"")) ->  | K18: =VLOOKUP(A17,ORC!$D:$N,11,0) -> 1808.84 | M18: =IFERROR(IF(N17<>"",100,N17),"") -> 100 | R18: R$ | S18: =IF(S17="","",IFERROR(S17*$K18,"")) ->  | U18: =IF(U17="","",IFERROR(U17*$K18,"")) ->  | W18: =IF(W17="","",IFERROR(W17*$K18,"")) ->  | Y18: 1808.84
A19: 3 | B19: =VLOOKUP(A19,ORC!$D:$N,2,0) -> LIMPEZAS E DEMOLIÇÕES | F19: % | K19: =SUM(G19:J19)+SUM(S19:X19) -> 0 | M19: 3 | N19: =VLOOKUP(M19,ORC!$D:$N,2,0) -> LIMPEZAS E DEMOLIÇÕES | R19: % | Y19: 0
A20: =IFERROR(IF(B19<>"",100,B19),"") -> 100 | F20: R$ | G20: =IF(G19="","",IFERROR(G19*$K20,"")) ->  | H20: =IF(H19="","",IFERROR(H19*$K20,"")) ->  | K20: =VLOOKUP(A19,ORC!$D:$N,11,0) -> 2229.47 | M20: =IFERROR(IF(N19<>"",100,N19),"") -> 100 | R20: R$ | S20: =IF(S19="","",IFERROR(S19*$K20,"")) ->  | U20: =IF(U19="","",IFERROR(U19*$K20,"")) ->  | W20: =IF(W19="","",IFERROR(W19*$K20,"")) ->  | Y20: 2229.47
A21: 4 | B21: =VLOOKUP(A21,ORC!$D:$N,2,0) -> SISTEMA DE COBERTURA | F21: % | K21: =SUM(G21:J21)+SUM(S21:X21) -> 0 | M21: 4 | N21: =VLOOKUP(M21,ORC!$D:$N,2,0) -> SISTEMA DE COBERTURA | R21: % | Y21: 0
A22: =IFERROR(IF(B21<>"",100,B21),"") -> 100 | F22: R$ | G22: =IF(G21="","",IFERROR(G21*$K22,"")) ->  | H22: =IF(H21="","",IFERROR(H21*$K22,"")) ->  | K22: =VLOOKUP(A21,ORC!$D:$N,11,0) -> 69700.4 | M22: =IFERROR(IF(N21<>"",100,N21),"") -> 100 | R22: R$ | S22: =IF(S21="","",IFERROR(S21*$K22,"")) ->  | U22: =IF(U21="","",IFERROR(U21*$K22,"")) ->  | W22: =IF(W21="","",IFERROR(W21*$K22,"")) ->  | Y22: 69700.4
A23: 5 | B23: =VLOOKUP(A23,ORC!$D:$N,2,0) -> ACABAMENTOS | F23: % | K23: =SUM(G23:J23)+SUM(S23:X23) -> 0 | M23: 5 | N23: =VLOOKUP(M23,ORC!$D:$N,2,0) -> ACABAMENTOS | R23: % | Y23: 0
A24: =IFERROR(IF(B23<>"",100,B23),"") -> 100 | F24: R$ | G24: =IF(G23="","",IFERROR(G23*$K24,"")) ->  | H24: =IF(H23="","",IFERROR(H23*$K24,"")) ->  | K24: =VLOOKUP(A23,ORC!$D:$N,11,0) -> 42655.52 | M24: =IFERROR(IF(N23<>"",100,N23),"") -> 100 | R24: R$ | S24: =IF(S23="","",IFERROR(S23*$K24,"")) ->  | U24: =IF(U23="","",IFERROR(U23*$K24,"")) ->  | W24: =IF(W23="","",IFERROR(W23*$K24,"")) ->  | Y24: 42655.52
A25: 6 | B25: =VLOOKUP(A25,ORC!$D:$N,2,0) -> PINTURA | F25: % | K25: =SUM(G25:J25)+SUM(S25:X25) -> 0 | M25: 6 | N25: =VLOOKUP(M25,ORC!$D:$N,2,0) -> PINTURA | R25: % | Y25: 0
A26: =IFERROR(IF(B25<>"",100,B25),"") -> 100 | F26: R$ | G26: =IF(G25="","",IFERROR(G25*$K26,"")) ->  | H26: =IF(H25="","",IFERROR(H25*$K26,"")) ->  | K26: =VLOOKUP(A25,ORC!$D:$N,11,0) -> 5871.15 | M26: =IFERROR(IF(N25<>"",100,N25),"") -> 100 | R26: R$ | S26: =IF(S25="","",IFERROR(S25*$K26,"")) ->  | U26: =IF(U25="","",IFERROR(U25*$K26,"")) ->  | W26: =IF(W25="","",IFERROR(W25*$K26,"")) ->  | Y26: 5871.15
A27: 7 | B27: =VLOOKUP(A27,ORC!$D:$N,2,0) -> SERVIÇOS FINAIS | F27: % | K27: =SUM(G27:J27)+SUM(S27:X27) -> 0 | M27: 7 | N27: =VLOOKUP(M27,ORC!$D:$N,2,0) -> SERVIÇOS FINAIS | R27: % | Y27: 0
A28: =IFERROR(IF(B27<>"",100,B27),"") -> 100 | F28: R$ | G28: =IF(G27="","",IFERROR(G27*$K28,"")) ->  | H28: =IF(H27="","",IFERROR(H27*$K28,"")) ->  | K28: =VLOOKUP(A27,ORC!$D:$N,11,0) -> 950.27 | M28: =IFERROR(IF(N27<>"",100,N27),"") -> 100 | R28: R$ | S28: =IF(S27="","",IFERROR(S27*$K28,"")) ->  | U28: =IF(U27="","",IFERROR(U27*$K28,"")) ->  | W28: =IF(W27="","",IFERROR(W27*$K28,"")) ->  | Y28: 950.27
A29: 8 | B29: =VLOOKUP(A29,ORC!$D:$N,2,0) ->  | F29: % | K29: =SUM(G29:J29)+SUM(S29:X29) -> 0 | M29: 8 | N29: =VLOOKUP(M29,ORC!$D:$N,2,0) ->  | R29: % | Y29: 0
A30: =IFERROR(IF(B29<>"",100,B29),"") ->  | F30: R$ | G30: =IF(G29="","",IFERROR(G29*$K30,"")) ->  | H30: =IF(H29="","",IFERROR(H29*$K30,"")) ->  | K30: =VLOOKUP(A29,ORC!$D:$N,11,0) ->  | M30: =IFERROR(IF(N29<>"",100,N29),"") ->  | R30: R$ | S30: =IF(S29="","",IFERROR(S29*$K30,"")) ->  | U30: =IF(U29="","",IFERROR(U29*$K30,"")) ->  | W30: =IF(W29="","",IFERROR(W29*$K30,"")) -> 
A31: 9 | B31: =VLOOKUP(A31,ORC!$D:$N,2,0) ->  | F31: % | K31: =SUM(G31:J31)+SUM(S31:X31) -> 0 | M31: 9 | N31: =VLOOKUP(M31,ORC!$D:$N,2,0) ->  | R31: % | Y31: 0
A32: =IFERROR(IF(B31<>"",100,B31),"") ->  | F32: R$ | G32: =IF(G31="","",IFERROR(G31*$K32,"")) ->  | H32: =IF(H31="","",IFERROR(H31*$K32,"")) ->  | K32: =VLOOKUP(A31,ORC!$D:$N,11,0) ->  | M32: =IFERROR(IF(N31<>"",100,N31),"") ->  | R32: R$ | S32: =IF(S31="","",IFERROR(S31*$K32,"")) ->  | U32: =IF(U31="","",IFERROR(U31*$K32,"")) ->  | W32: =IF(W31="","",IFERROR(W31*$K32,"")) -> 
A33: 10 | B33: =VLOOKUP(A33,ORC!$D:$N,2,0) ->  | F33: % | K33: =SUM(G33:J33)+SUM(S33:X33) -> 0 | M33: 10 | N33: =VLOOKUP(M33,ORC!$D:$N,2,0) ->  | R33: % | Y33: 0
A34: =IFERROR(IF(B33<>"",100,B33),"") ->  | F34: R$ | G34: =IF(G33="","",IFERROR(G33*$K34,"")) ->  | H34: =IF(H33="","",IFERROR(H33*$K34,"")) ->  | K34: =VLOOKUP(A33,ORC!$D:$N,11,0) ->  | M34: =IFERROR(IF(N33<>"",100,N33),"") ->  | R34: R$ | S34: =IF(S33="","",IFERROR(S33*$K34,"")) ->  | U34: =IF(U33="","",IFERROR(U33*$K34,"")) ->  | W34: =IF(W33="","",IFERROR(W33*$K34,"")) -> 
A35: 11 | B35: =VLOOKUP(A35,ORC!$D:$N,2,0) ->  | F35: % | K35: =SUM(G35:J35)+SUM(S35:X35) -> 0 | M35: 11 | N35: =VLOOKUP(M35,ORC!$D:$N,2,0) ->  | R35: % | Y35: 0
A36: =IFERROR(IF(B35<>"",100,B35),"") ->  | F36: R$ | G36: =IF(G35="","",IFERROR(G35*$K36,"")) ->  | H36: =IF(H35="","",IFERROR(H35*$K36,"")) ->  | K36: =VLOOKUP(A35,ORC!$D:$N,11,0) ->  | M36: =IFERROR(IF(N35<>"",100,N35),"") ->  | R36: R$ | S36: =IF(S35="","",IFERROR(S35*$K36,"")) ->  | U36: =IF(U35="","",IFERROR(U35*$K36,"")) ->  | W36: =IF(W35="","",IFERROR(W35*$K36,"")) -> 
A37: 12 | B37: =VLOOKUP(A37,ORC!$D:$N,2,0) ->  | F37: % | K37: =SUM(G37:J37)+SUM(S37:X37) -> 0 | M37: 12 | N37: =VLOOKUP(M37,ORC!$D:$N,2,0) ->  | R37: % | Y37: 0
A38: =IFERROR(IF(B37<>"",100,B37),"") ->  | F38: R$ | G38: =IF(G37="","",IFERROR(G37*$K38,"")) ->  | H38: =IF(H37="","",IFERROR(H37*$K38,"")) ->  | K38: =VLOOKUP(A37,ORC!$D:$N,11,0) ->  | M38: =IFERROR(IF(N37<>"",100,N37),"") ->  | R38: R$ | S38: =IF(S37="","",IFERROR(S37*$K38,"")) ->  | U38: =IF(U37="","",IFERROR(U37*$K38,"")) ->  | W38: =IF(W37="","",IFERROR(W37*$K38,"")) -> 
A39: 13 | B39: =VLOOKUP(A39,ORC!$D:$N,2,0) ->  | F39: % | K39: =SUM(G39:J39)+SUM(S39:X39) -> 0 | M39: 13 | N39: =VLOOKUP(M39,ORC!$D:$N,2,0) ->  | R39: % | Y39: 0
A40: =IFERROR(IF(B39<>"",100,B39),"") ->  | F40: R$ | G40: =IF(G39="","",IFERROR(G39*$K40,"")) ->  | H40: =IF(H39="","",IFERROR(H39*$K40,"")) ->  | K40: =VLOOKUP(A39,ORC!$D:$N,11,0) ->  | M40: =IFERROR(IF(N39<>"",100,N39),"") ->  | R40: R$ | S40: =IF(S39="","",IFERROR(S39*$M40,"")) ->  | U40: =IF(U39="","",IFERROR(U39*$M40,"")) ->  | W40: =IF(W39="","",IFERROR(W39*$M40,"")) -> 
A41: 14 | B41: =VLOOKUP(A41,ORC!$D:$N,2,0) ->  | F41: % | K41: =SUM(G41:J41)+SUM(S41:X41) -> 0 | M41: 14 | N41: =VLOOKUP(M41,ORC!$D:$N,2,0) ->  | R41: % | Y41: 0
A42: =IFERROR(IF(B41<>"",100,B41),"") ->  | F42: R$ | G42: =IF(G41="","",IFERROR(G41*$K42,"")) ->  | H42: =IF(H41="","",IFERROR(H41*$K42,"")) ->  | K42: =VLOOKUP(A41,ORC!$D:$N,11,0) ->  | M42: =IFERROR(IF(N41<>"",100,N41),"") ->  | R42: R$ | S42: =IF(S41="","",IFERROR(S41*$M42,"")) -> 
A43: 15 | B43: =VLOOKUP(A43,ORC!$D:$N,2,0) ->  | F43: % | K43: =SUM(G43:J43)+SUM(S43:X43) -> 0 | M43: 15 | N43: =VLOOKUP(M43,ORC!$D:$N,2,0) ->  | R43: % | Y43: 0
A44: =IFERROR(IF(B43<>"",100,B43),"") ->  | F44: R$ | G44: =IF(G43="","",IFERROR(G43*$K44,"")) ->  | H44: =IF(H43="","",IFERROR(H43*$K44,"")) ->  | K44: =VLOOKUP(A43,ORC!$D:$N,11,0) ->  | M44: =IFERROR(IF(N43<>"",100,N43),"") ->  | R44: R$ | S44: =IF(S43="","",IFERROR(S43*$M44,"")) -> 
A45: 16 | B45: =VLOOKUP(A45,ORC!$D:$N,2,0) ->  | F45: % | K45: =SUM(G45:J45)+SUM(S45:X45) -> 0 | M45: 16 | N45: =VLOOKUP(M45,ORC!$D:$N,2,0) ->  | R45: % | Y45: 0
A46: =IFERROR(IF(B45<>"",100,B45),"") ->  | F46: R$ | G46: =IF(G45="","",IFERROR(G45*$K46,"")) ->  | H46: =IF(H45="","",IFERROR(H45*$K46,"")) ->  | K46: =VLOOKUP(A45,ORC!$D:$N,11,0) ->  | M46: =IFERROR(IF(N45<>"",100,N45),"") ->  | R46: R$ | S46: =IF(S45="","",IFERROR(S45*$M46,"")) -> 
A47: 17 | B47: =VLOOKUP(A47,ORC!$D:$N,2,0) ->  | F47: % | K47: =SUM(G47:J47)+SUM(S47:X47) -> 0 | M47: 17 | N47: =VLOOKUP(M47,ORC!$D:$N,2,0) ->  | R47: % | Y47: 0
A48: =IFERROR(IF(B47<>"",100,B47),"") ->  | F48: R$ | G48: =IF(G47="","",IFERROR(G47*$K48,"")) ->  | H48: =IF(H47="","",IFERROR(H47*$K48,"")) ->  | K48: =VLOOKUP(A47,ORC!$D:$N,11,0) ->  | M48: =IFERROR(IF(N47<>"",100,N47),"") ->  | R48: R$ | S48: =IF(S47="","",IFERROR(S47*$M48,"")) -> 
A49: 18 | B49: =VLOOKUP(A49,ORC!$D:$N,2,0) ->  | F49: % | K49: =SUM(G49:J49)+SUM(S49:X49) -> 0 | M49: 18 | N49: =VLOOKUP(M49,ORC!$D:$N,2,0) ->  | R49: % | Y49: 0
A50: =IFERROR(IF(B49<>"",100,B49),"") ->  | F50: R$ | G50: =IF(G49="","",IFERROR(G49*$K50,"")) ->  | H50: =IF(H49="","",IFERROR(H49*$K50,"")) ->  | K50: =VLOOKUP(A49,ORC!$D:$N,11,0) ->  | M50: =IFERROR(IF(N49<>"",100,N49),"") ->  | R50: R$ | S50: =IF(S49="","",IFERROR(S49*$M50,"")) -> 
A51: 19 | B51: =VLOOKUP(A51,ORC!$D:$N,2,0) ->  | F51: % | K51: =SUM(G51:J51)+SUM(S51:X51) -> 0 | M51: 19 | N51: =VLOOKUP(M51,ORC!$D:$N,2,0) ->  | R51: % | Y51: 0
A52: =IFERROR(IF(B51<>"",100,B51),"") ->  | F52: R$ | G52: =IF(G51="","",IFERROR(G51*$K52,"")) ->  | H52: =IF(H51="","",IFERROR(H51*$K52,"")) ->  | K52: =VLOOKUP(A51,ORC!$D:$N,11,0) ->  | M52: =IFERROR(IF(N51<>"",100,N51),"") ->  | R52: R$ | S52: =IF(S51="","",IFERROR(S51*$M52,"")) -> 
A54: 20 | B54: =VLOOKUP(A54,ORC!$D:$N,2,0) ->  | F54: % | K54: =SUM(G54:J54)+SUM(S54:X54) -> 0 | M54: 20 | N54: =VLOOKUP(M54,ORC!$D:$N,2,0) ->  | R54: % | Y54: =K54 -> 0
A55: =IFERROR(IF(B54<>"",100,B54),"") ->  | F55: R$ | G55: =IF(G54="","",IFERROR(G54*$K55,"")) ->  | H55: =IF(H54="","",IFERROR(H54*$K55,"")) ->  | K55: =VLOOKUP(A54,ORC!$D:$N,11,0) ->  | M55: =IFERROR(IF(N54<>"",100,N54),"") ->  | R55: R$ | S55: =IF(S54="","",IFERROR(S54*$M55,"")) ->  | U55: =IF(U54="","",IFERROR(U54*$M55,"")) ->  | W55: =IF(W54="","",IFERROR(W54*$M55,"")) -> 
A56: 21 | B56: =VLOOKUP(A56,ORC!$D:$N,2,0) ->  | F56: % | K56: =SUM(G56:J56)+SUM(S56:X56) -> 0 | M56: 21 | N56: =VLOOKUP(M56,ORC!$D:$N,2,0) ->  | R56: % | Y56: 0
A57: =IFERROR(IF(B56<>"",100,B56),"") ->  | F57: R$ | G57: =IF(G56="","",IFERROR(G56*$K57,"")) ->  | H57: =IF(H56="","",IFERROR(H56*$K57,"")) ->  | K57: =VLOOKUP(A56,ORC!$D:$N,11,0) ->  | M57: =IFERROR(IF(N56<>"",100,N56),"") ->  | R57: R$ | S57: =IF(S56="","",IFERROR(S56*$M57,"")) ->  | U57: =IF(U56="","",IFERROR(U56*$M57,"")) ->  | W57: =IF(W56="","",IFERROR(W56*$M57,"")) -> 
A58: 22 | B58: =VLOOKUP(A58,ORC!$D:$N,2,0) ->  | F58: % | K58: =SUM(G58:J58)+SUM(S58:X58) -> 0 | M58: 22 | N58: =VLOOKUP(M58,ORC!$D:$N,2,0) ->  | R58: % | Y58: 0
A59: =IFERROR(IF(B58<>"",100,B58),"") ->  | F59: R$ | G59: =IF(G58="","",IFERROR(G58*$K59,"")) ->  | H59: =IF(H58="","",IFERROR(H58*$K59,"")) ->  | K59: =VLOOKUP(A58,ORC!$D:$N,11,0) ->  | M59: =IFERROR(IF(N58<>"",100,N58),"") ->  | R59: R$ | S59: =IF(S58="","",IFERROR(S58*$M59,"")) ->  | U59: =IF(U58="","",IFERROR(U58*$M59,"")) ->  | W59: =IF(W58="","",IFERROR(W58*$M59,"")) -> 
A60: 23 | B60: =VLOOKUP(A60,ORC!$D:$N,2,0) ->  | F60: % | K60: =SUM(G60:J60)+SUM(S60:X60) -> 0 | M60: 23 | N60: =VLOOKUP(M60,ORC!$D:$N,2,0) ->  | R60: % | Y60: 0
A61: =IFERROR(IF(B60<>"",100,B60),"") ->  | F61: R$ | G61: =IF(G60="","",IFERROR(G60*$K61,"")) ->  | H61: =IF(H60="","",IFERROR(H60*$K61,"")) ->  | K61: =VLOOKUP(A60,ORC!$D:$N,11,0) ->  | M61: =IFERROR(IF(N60<>"",100,N60),"") ->  | R61: R$ | S61: =IF(S60="","",IFERROR(S60*$M61,"")) ->  | U61: =IF(U60="","",IFERROR(U60*$M61,"")) ->  | W61: =IF(W60="","",IFERROR(W60*$M61,"")) -> 
A62: 24 | B62: =VLOOKUP(A62,ORC!$D:$N,2,0) ->  | F62: % | K62: =SUM(G62:J62)+SUM(S62:X62) -> 0 | M62: 24 | N62: =VLOOKUP(M62,ORC!$D:$N,2,0) ->  | R62: % | Y62: =K62 -> 0
A63: =IFERROR(IF(B62<>"",100,B62),"") ->  | F63: R$ | G63: =IF(G62="","",IFERROR(G62*$K63,"")) ->  | H63: =IF(H62="","",IFERROR(H62*$K63,"")) ->  | K63: =VLOOKUP(A62,ORC!$D:$N,11,0) ->  | M63: =IFERROR(IF(N62<>"",100,N62),"") ->  | R63: R$ | S63: =IF(S62="","",IFERROR(S62*$M63,"")) ->  | U63: =IF(U62="","",IFERROR(U62*$M63,"")) ->  | W63: =IF(W62="","",IFERROR(W62*$M63,"")) -> 
A64: 25 | B64: =VLOOKUP(A64,ORC!$D:$N,2,0) ->  | F64: % | K64: =SUM(G64:J64)+SUM(S64:X64) -> 0 | M64: 25 | N64: =VLOOKUP(M64,ORC!$D:$N,2,0) ->  | R64: % | Y64: 0
A65: =IFERROR(IF(B64<>"",100,B64),"") ->  | F65: R$ | G65: =IF(G64="","",IFERROR(G64*$K65,"")) ->  | H65: =IF(H64="","",IFERROR(H64*$K65,"")) ->  | K65: =VLOOKUP(A64,ORC!$D:$N,11,0) ->  | M65: =IFERROR(IF(N64<>"",100,N64),"") ->  | R65: R$ | S65: =IF(S64="","",IFERROR(S64*$M65,"")) ->  | U65: =IF(U64="","",IFERROR(U64*$M65,"")) ->  | W65: =IF(W64="","",IFERROR(W64*$M65,"")) -> 
A66: 26 | B66: =VLOOKUP(A66,ORC!$D:$N,2,0) ->  | F66: % | K66: =SUM(G66:J66)+SUM(S66:X66) -> 0 | M66: 26 | N66: =VLOOKUP(M66,ORC!$D:$N,2,0) ->  | R66: % | Y66: 0
A67: =IFERROR(IF(B66<>"",100,B66),"") ->  | F67: R$ | G67: =IF(G66="","",IFERROR(G66*$K67,"")) ->  | H67: =IF(H66="","",IFERROR(H66*$K67,"")) ->  | K67: =VLOOKUP(A66,ORC!$D:$N,11,0) ->  | M67: =IFERROR(IF(N66<>"",100,N66),"") ->  | R67: R$ | S67: =IF(S66="","",IFERROR(S66*$M67,"")) ->  | U67: =IF(U66="","",IFERROR(U66*$M67,"")) ->  | W67: =IF(W66="","",IFERROR(W66*$M67,"")) -> 
A68: 27 | B68: =VLOOKUP(A68,ORC!$D:$N,2,0) ->  | F68: % | K68: =SUM(G68:J68)+SUM(S68:X68) -> 0 | M68: 27 | N68: =VLOOKUP(M68,ORC!$D:$N,2,0) ->  | R68: % | Y68: 0
A69: =IFERROR(IF(B68<>"",100,B68),"") ->  | F69: R$ | G69: =IF(G68="","",IFERROR(G68*$K69,"")) ->  | H69: =IF(H68="","",IFERROR(H68*$K69,"")) ->  | K69: =VLOOKUP(A68,ORC!$D:$N,11,0) ->  | M69: =IFERROR(IF(N68<>"",100,N68),"") ->  | R69: R$ | S69: =IF(S68="","",IFERROR(S68*$M69,"")) ->  | U69: =IF(U68="","",IFERROR(U68*$M69,"")) ->  | W69: =IF(W68="","",IFERROR(W68*$M69,"")) -> 
A70: 28 | B70: =VLOOKUP(A70,ORC!$D:$N,2,0) ->  | F70: % | K70: =SUM(G70:J70)+SUM(S70:X70) -> 0 | M70: 28 | N70: =VLOOKUP(M70,ORC!$D:$N,2,0) ->  | R70: % | Y70: =K70 -> 0
A71: =IFERROR(IF(B70<>"",100,B70),"") ->  | F71: R$ | G71: =IF(G70="","",IFERROR(G70*$K71,"")) ->  | H71: =IF(H70="","",IFERROR(H70*$K71,"")) ->  | K71: =VLOOKUP(A70,ORC!$D:$N,11,0) ->  | M71: =IFERROR(IF(N70<>"",100,N70),"") ->  | R71: R$ | S71: =IF(S70="","",IFERROR(S70*$M71,"")) ->  | U71: =IF(U70="","",IFERROR(U70*$M71,"")) ->  | W71: =IF(W70="","",IFERROR(W70*$M71,"")) -> 
A72: 29 | B72: =VLOOKUP(A72,ORC!$D:$N,2,0) ->  | F72: % | K72: =SUM(G72:J72)+SUM(S72:X72) -> 0 | M72: 29 | N72: =VLOOKUP(M72,ORC!$D:$N,2,0) ->  | R72: % | Y72: 0
A73: =IFERROR(IF(B72<>"",100,B72),"") ->  | F73: R$ | G73: =IF(G72="","",IFERROR(G72*$K73,"")) ->  | H73: =IF(H72="","",IFERROR(H72*$K73,"")) ->  | K73: =VLOOKUP(A72,ORC!$D:$N,11,0) ->  | M73: =IFERROR(IF(N72<>"",100,N72),"") ->  | R73: R$ | S73: =IF(S72="","",IFERROR(S72*$M73,"")) ->  | U73: =IF(U72="","",IFERROR(U72*$M73,"")) ->  | W73: =IF(W72="","",IFERROR(W72*$M73,"")) -> 
A74: 30 | B74: =VLOOKUP(A74,ORC!$D:$N,2,0) ->  | F74: % | K74: =SUM(G74:J74)+SUM(S74:X74) -> 0 | M74: 30 | N74: =VLOOKUP(M74,ORC!$D:$N,2,0) ->  | R74: % | Y74: 0
A75: =IFERROR(IF(B74<>"",100,B74),"") ->  | F75: R$ | G75: =IF(G74="","",IFERROR(G74*$K75,"")) ->  | H75: =IF(H74="","",IFERROR(H74*$K75,"")) ->  | K75: =VLOOKUP(A74,ORC!$D:$N,11,0) ->  | M75: =IFERROR(IF(N74<>"",100,N74),"") ->  | R75: R$ | S75: =IF(S74="","",IFERROR(S74*$M75,"")) ->  | U75: =IF(U74="","",IFERROR(U74*$M75,"")) ->  | W75: =IF(W74="","",IFERROR(W74*$M75,"")) -> 
F77: Porcentagem | G77: =G78/$W$80 ->  | H77: =H78/$W$80 ->  | R77: Porcentagem | S77: =S78/$W$80 ->  | U77: =U78/$W$80 ->  | W77: =W78/$W$80 -> 
F78: Custo | G78: =SUMIF($A:$A,100,G:G) -> 1420.1516 | H78: =SUMIF($A:$A,100,H:H) -> 608.6364 | I78: =SUMIF($A:$A,100,I:I) -> 608.6364 | J78: =SUMIF($A:$A,100,J:J) -> 608.6364 | R78: Custo | S78: =SUMIF($A:$A,100,S:S) -> 608.6364 | U78: =SUMIF($A:$A,100,U:U) -> 608.6364 | W78: =SUMIF($A:$A,100,W:W) -> 608.6364
F79: Porcentagem Acumulada | G79: =G77 ->  | H79: =G79+H77 ->  | I79: =H79+I77 ->  | R79: Porcentagem Acumulada | S79: =S77+J79 ->  | U79: =U77+S79 ->  | W79: =W77+U79 -> 
F80: Custo Acumulado | G80: =G78 -> 1420.1516 | H80: =H78+G80 -> 2028.788 | I80: =I78+H80 -> 2637.4244 | J80: =J78+I80 -> 3246.0608 | R80: Custo Acumulado | S80: =S78+J80 -> 3854.6972 | U80: =U78+S80 -> 4463.3336 | W80: =IF(W78+U80=ORC!M92,W78+U80,"ERRO") -> ERRO
F84: RESPONSÁVEL TÉCNICO | G84: =DADOS!D16 -> FLÁVIA CRISTINA BARBOSA | R84: RESPONSÁVEL TÉCNICO | S84: =DADOS!$D$16 -> FLÁVIA CRISTINA BARBOSA
G85: =DADOS!D18 -> CREA - MG 187.842/D | S85: =DADOS!$D$18 -> CREA - MG 187.842/D

Sheet CRO 8 meses
A2: CRONOGRAMA FÍSICO-FINANCEIRO | K2: Revisão: | L2: =DADOS!D6 -> R00 | M2: CRONOGRAMA FÍSICO-FINANCEIRO | W2: Revisão: | X2: =DADOS!D6 -> R00
K3: Data: | L3: =DADOS!D2 -> 2023-08-30 | W3: Data: | X3: =DADOS!D2 -> 2023-08-30
A4: Projeto: | D4: Responsável: | H4: Cliente: | K4: Bancos: | M4: Projeto: | P4: Responsável: | T4: Cliente: | W4: Bancos:
A5: =DADOS!D8 -> MANUTENÇÃO DA SUPERINTENDÊNCIA DE RECURSOS MATERIAIS | K5: =DADOS!D14 -> SINAPI: 07/2023 Minas Gerais SETOP: 04/2023 Minas Gerais SICRO : 04/2023 Minas Gerais SUDECAP: 05/2023 Minas Gerais | M5: =DADOS!D8 -> MANUTENÇÃO DA SUPERINTENDÊNCIA DE RECURSOS MATERIAIS | W5: =DADOS!D14 -> SINAPI: 07/2023 Minas Gerais SETOP: 04/2023 Minas Gerais SICRO : 04/2023 Minas Gerais SUDECAP: 05/2023 Minas Gerais
K8: BDI 1: | L8: =DADOS!D10 -> 0.2652 | W8: BDI 1: | X8: =DADOS!D10 -> 0.2652
K9: BDI 2: | L9: =DADOS!D12 -> 0.2025 | W9: BDI 2: | X9: =DADOS!D12 -> 0.2025
A11: =A2&" DE "&DADOS!D20&" - "&A5 -> CRONOGRAMA FÍSICO-FINANCEIRO DE PROJETO EXECUTIVO - MANUTENÇÃO DA SUPERINTENDÊNCIA DE RECURSOS MATERIAIS | M11: =M2&" DE "&DADOS!D20&" - "&M5 -> CRONOGRAMA FÍSICO-FINANCEIRO DE PROJETO EXECUTIVO - MANUTENÇÃO DA SUPERINTENDÊNCIA DE RECURSOS MATERIAIS
A13: ITEM | B13: DESCRIÇÃO | F13: Unid. | G13: 30 DIAS | H13: 60 DIAS | I13: 90 DIAS | J13: 120 DIAS | K13: Total por Etapa | M13: ITEM | N13: DESCRIÇÃO | R13: Unid. | S13: 150 DIAS | T13: 180 DIAS | U13: 210 DIAS | V13: 240 DIAS | W13: Total por Etapa
A15: 1 | B15: =VLOOKUP(A15,ORC!$D:$N,2,0) -> CANTEIRO DE OBRA | F15: % | G15: 0.1 | H15: 0.1 | I15: 0.1 | J15: 0.1 | K15: =SUM(G15:J15)+SUM(S15:V15) -> 1 | M15: 1 | N15: =VLOOKUP(M15,ORC!$D:$N,2,0) -> CANTEIRO DE OBRA | R15: % | S15: 0.05 | T15: 0.15 | U15: 0.05 | V15: 0.35 | W15: =K15 -> 1
A16: =IFERROR(IF(B15<>"",100,B15),"") -> 100 | F16: R$ | G16: =IF(G15="","",IFERROR(G15*$K16,"")) -> 507.197 | H16: =IF(H15="","",IFERROR(H15*$K16,"")) -> 507.197 | I16: 507.197 | J16: 507.197 | K16: =VLOOKUP(A15,ORC!$D:$N,11,0) -> 5071.97 | M16: =IFERROR(IF(N15<>"",100,N15),"") -> 100 | R16: R$ | S16: =IF(S15="","",IFERROR(S15*$K16,"")) -> 253.5985 | T16: =IF(T15="","",IFERROR(T15*$K16,"")) -> 760.7955 | U16: 253.5985 | V16: 1775.1895 | W16: 5071.97
A17: 2 | B17: =VLOOKUP(A17,ORC!$D:$N,2,0) -> SERVIÇOS PRELIMINARES | F17: % | K17: =SUM(G17:J17)+SUM(S17:V17) -> 0 | M17: 2 | N17: =VLOOKUP(M17,ORC!$D:$N,2,0) -> SERVIÇOS PRELIMINARES | R17: % | W17: 0
A18: =IFERROR(IF(B17<>"",100,B17),"") -> 100 | F18: R$ | G18: =IF(G17="","",IFERROR(G17*$K18,"")) ->  | H18: =IF(H17="","",IFERROR(H17*$K18,"")) ->  | K18: =VLOOKUP(A17,ORC!$D:$N,11,0) -> 1808.84 | M18: =IFERROR(IF(N17<>"",100,N17),"") -> 100 | R18: R$ | S18: =IF(S17="","",IFERROR(S17*$K18,"")) ->  | T18: =IF(T17="","",IFERROR(T17*$K18,"")) ->  | W18: 1808.84
A19: 3 | B19: =VLOOKUP(A19,ORC!$D:$N,2,0) -> LIMPEZAS E DEMOLIÇÕES | F19: % | K19: =SUM(G19:J19)+SUM(S19:V19) -> 0 | M19: 3 | N19: =VLOOKUP(M19,ORC!$D:$N,2,0) -> LIMPEZAS E DEMOLIÇÕES | R19: % | W19: 0
A20: =IFERROR(IF(B19<>"",100,B19),"") -> 100 | F20: R$ | G20: =IF(G19="","",IFERROR(G19*$K20,"")) ->  | H20: =IF(H19="","",IFERROR(H19*$K20,"")) ->  | K20: =VLOOKUP(A19,ORC!$D:$N,11,0) -> 2229.47 | M20: =IFERROR(IF(N19<>"",100,N19),"") -> 100 | R20: R$ | S20: =IF(S19="","",IFERROR(S19*$K20,"")) ->  | T20: =IF(T19="","",IFERROR(T19*$K20,"")) ->  | W20: 2229.47
A21: 4 | B21: =VLOOKUP(A21,ORC!$D:$N,2,0) -> SISTEMA DE COBERTURA | F21: % | K21: =SUM(G21:J21)+SUM(S21:V21) -> 0 | M21: 4 | N21: =VLOOKUP(M21,ORC!$D:$N,2,0) -> SISTEMA DE COBERTURA | R21: % | W21: 0
A22: =IFERROR(IF(B21<>"",100,B21),"") -> 100 | F22: R$ | G22: =IF(G21="","",IFERROR(G21*$K22,"")) ->  | H22: =IF(H21="","",IFERROR(H21*$K22,"")) ->  | K22: =VLOOKUP(A21,ORC!$D:$N,11,0) -> 69700.4 | M22: =IFERROR(IF(N21<>"",100,N21),"") -> 100 | R22: R$ | S22: =IF(S21="","",IFERROR(S21*$K22,"")) ->  | T22: =IF(T21="","",IFERROR(T21*$K22,"")) ->  | W22: 69700.4
A23: 5 | B23: =VLOOKUP(A23,ORC!$D:$N,2,0) -> ACABAMENTOS | F23: % | K23: =SUM(G23:J23)+SUM(S23:V23) -> 0 | M23: 5 | N23: =VLOOKUP(M23,ORC!$D:$N,2,0) -> ACABAMENTOS | R23: % | W23: 0
A24: =IFERROR(IF(B23<>"",100,B23),"") -> 100 | F24: R$ | G24: =IF(G23="","",IFERROR(G23*$K24,"")) ->  | H24: =IF(H23="","",IFERROR(H23*$K24,"")) ->  | K24: =VLOOKUP(A23,ORC!$D:$N,11,0) -> 42655.52 | M24: =IFERROR(IF(N23<>"",100,N23),"") -> 100 | R24: R$ | S24: =IF(S23="","",IFERROR(S23*$K24,"")) ->  | T24: =IF(T23="","",IFERROR(T23*$K24,"")) ->  | W24: 42655.52
A25: 6 | B25: =VLOOKUP(A25,ORC!$D:$N,2,0) -> PINTURA | F25: % | K25: =SUM(G25:J25)+SUM(S25:V25) -> 0 | M25: 6 | N25: =VLOOKUP(M25,ORC!$D:$N,2,0) -> PINTURA | R25: % | W25: 0
A26: =IFERROR(IF(B25<>"",100,B25),"") -> 100 | F26: R$ | G26: =IF(G25="","",IFERROR(G25*$K26,"")) ->  | H26: =IF(H25="","",IFERROR(H25*$K26,"")) ->  | K26: =VLOOKUP(A25,ORC!$D:$N,11,0) -> 5871.15 | M26: =IFERROR(IF(N25<>"",100,N25),"") -> 100 | R26: R$ | S26: =IF(S25="","",IFERROR(S25*$K26,"")) ->  | T26: =IF(T25="","",IFERROR(T25*$K26,"")) ->  | W26: 5871.15
A27: 7 | B27: =VLOOKUP(A27,ORC!$D:$N,2,0) -> SERVIÇOS FINAIS | F27: % | K27: =SUM(G27:J27)+SUM(S27:V27) -> 0 | M27: 7 | N27: =VLOOKUP(M27,ORC!$D:$N,2,0) -> SERVIÇOS FINAIS | R27: % | W27: 0
A28: =IFERROR(IF(B27<>"",100,B27),"") -> 100 | F28: R$ | G28: =IF(G27="","",IFERROR(G27*$K28,"")) ->  | H28: =IF(H27="","",IFERROR(H27*$K28,"")) ->  | K28: =VLOOKUP(A27,ORC!$D:$N,11,0) -> 950.27 | M28: =IFERROR(IF(N27<>"",100,N27),"") -> 100 | R28: R$ | S28: =IF(S27="","",IFERROR(S27*$K28,"")) ->  | T28: =IF(T27="","",IFERROR(T27*$K28,"")) ->  | W28: 950.27
A29: 8 | B29: =VLOOKUP(A29,ORC!$D:$N,2,0) ->  | F29: % | K29: =SUM(G29:J29)+SUM(S29:V29) -> 0 | M29: 8 | N29: =VLOOKUP(M29,ORC!$D:$N,2,0) ->  | R29: % | W29: 0
A30: =IFERROR(IF(B29<>"",100,B29),"") ->  | F30: R$ | G30: =IF(G29="","",IFERROR(G29*$K30,"")) ->  | H30: =IF(H29="","",IFERROR(H29*$K30,"")) ->  | K30: =VLOOKUP(A29,ORC!$D:$N,11,0) ->  | M30: =IFERROR(IF(N29<>"",100,N29),"") ->  | R30: R$ | S30: =IF(S29="","",IFERROR(S29*$K30,"")) ->  | T30: =IF(T29="","",IFERROR(T29*$K30,"")) -> 
A31: 9 | B31: =VLOOKUP(A31,ORC!$D:$N,2,0) ->  | F31: % | K31: =SUM(G31:J31)+SUM(S31:V31) -> 0 | M31: 9 | N31: =VLOOKUP(M31,ORC!$D:$N,2,0) ->  | R31: % | W31: 0
A32: =IFERROR(IF(B31<>"",100,B31),"") ->  | F32: R$ | G32: =IF(G31="","",IFERROR(G31*$K32,"")) ->  | H32: =IF(H31="","",IFERROR(H31*$K32,"")) ->  | K32: =VLOOKUP(A31,ORC!$D:$N,11,0) ->  | M32: =IFERROR(IF(N31<>"",100,N31),"") ->  | R32: R$ | S32: =IF(S31="","",IFERROR(S31*$K32,"")) ->  | T32: =IF(T31="","",IFERROR(T31*$K32,"")) -> 
A33: 10 | B33: =VLOOKUP(A33,ORC!$D:$N,2,0) ->  | F33: % | K33: =SUM(G33:J33)+SUM(S33:V33) -> 0 | M33: 10 | N33: =VLOOKUP(M33,ORC!$D:$N,2,0) ->  | R33: % | W33: 0
A34: =IFERROR(IF(B33<>"",100,B33),"") ->  | F34: R$ | G34: =IF(G33="","",IFERROR(G33*$K34,"")) ->  | H34: =IF(H33="","",IFERROR(H33*$K34,"")) ->  | K34: =VLOOKUP(A33,ORC!$D:$N,11,0) ->  | M34: =IFERROR(IF(N33<>"",100,N33),"") ->  | R34: R$ | S34: =IF(S33="","",IFERROR(S33*$K34,"")) ->  | T34: =IF(T33="","",IFERROR(T33*$K34,"")) -> 
A35: 11 | B35: =VLOOKUP(A35,ORC!$D:$N,2,0) ->  | F35: % | K35: =SUM(G35:J35)+SUM(S35:V35) -> 0 | M35: 11 | N35: =VLOOKUP(M35,ORC!$D:$N,2,0) ->  | R35: % | W35: 0
A36: =IFERROR(IF(B35<>"",100,B35),"") ->  | F36: R$ | G36: =IF(G35="","",IFERROR(G35*$K36,"")) ->  | H36: =IF(H35="","",IFERROR(H35*$K36,"")) ->  | K36: =VLOOKUP(A35,ORC!$D:$N,11,0) ->  | M36: =IFERROR(IF(N35<>"",100,N35),"") ->  | R36: R$ | S36: =IF(S35="","",IFERROR(S35*$K36,"")) ->  | T36: =IF(T35="","",IFERROR(T35*$K36,"")) -> 
A37: 12 | B37: =VLOOKUP(A37,ORC!$D:$N,2,0) ->  | F37: % | K37: =SUM(G37:J37)+SUM(S37:V37) -> 0 | M37: 12 | N37: =VLOOKUP(M37,ORC!$D:$N,2,0) ->  | R37: % | W37: 0
A38: =IFERROR(IF(B37<>"",100,B37),"") ->  | F38: R$ | G38: =IF(G37="","",IFERROR(G37*$K38,"")) ->  | H38: =IF(H37="","",IFERROR(H37*$K38,"")) ->  | K38: =VLOOKUP(A37,ORC!$D:$N,11,0) ->  | M38: =IFERROR(IF(N37<>"",100,N37),"") ->  | R38: R$ | S38: =IF(S37="","",IFERROR(S37*$K38,"")) ->  | T38: =IF(T37="","",IFERROR(T37*$K38,"")) -> 
A39: 13 | B39: =VLOOKUP(A39,ORC!$D:$N,2,0) ->  | F39: % | K39: =SUM(G39:J39)+SUM(S39:V39) -> 0 | M39: 13 | N39: =VLOOKUP(M39,ORC!$D:$N,2,0) ->  | R39: % | W39: 0
A40: =IFERROR(IF(B39<>"",100,B39),"") ->  | F40: R$ | G40: =IF(G39="","",IFERROR(G39*$K40,"")) ->  | H40: =IF(H39="","",IFERROR(H39*$K40,"")) ->  | K40: =VLOOKUP(A39,ORC!$D:$N,11,0) ->  | M40: =IFERROR(IF(N39<>"",100,N39),"") ->  | R40: R$ | S40: =IF(S39="","",IFERROR(S39*$K40,"")) ->  | T40: =IF(T39="","",IFERROR(T39*$K40,"")) -> 
A41: 14 | B41: =VLOOKUP(A41,ORC!$D:$N,2,0) ->  | F41: % | K41: =SUM(G41:J41)+SUM(S41:V41) -> 0 | M41: 14 | N41: =VLOOKUP(M41,ORC!$D:$N,2,0) ->  | R41: % | W41: 0
A42: =IFERROR(IF(B41<>"",100,B41),"") ->  | F42: R$ | G42: =IF(G41="","",IFERROR(G41*$K42,"")) ->  | H42: =IF(H41="","",IFERROR(H41*$K42,"")) ->  | K42: =VLOOKUP(A41,ORC!$D:$N,11,0) ->  | M42: =IFERROR(IF(N41<>"",100,N41),"") ->  | R42: R$ | S42: =IF(S41="","",IFERROR(S41*$K42,"")) ->  | T42: =IF(T41="","",IFERROR(T41*$K42,"")) -> 
A43: 15 | B43: =VLOOKUP(A43,ORC!$D:$N,2,0) ->  | F43: % | K43: =SUM(G43:J43)+SUM(S43:V43) -> 0 | M43: 15 | N43: =VLOOKUP(M43,ORC!$D:$N,2,0) ->  | R43: % | W43: 0
A44: =IFERROR(IF(B43<>"",100,B43),"") ->  | F44: R$ | G44: =IF(G43="","",IFERROR(G43*$K44,"")) ->  | H44: =IF(H43="","",IFERROR(H43*$K44,"")) ->  | K44: =VLOOKUP(A43,ORC!$D:$N,11,0) ->  | M44: =IFERROR(IF(N43<>"",100,N43),"") ->  | R44: R$ | S44: =IF(S43="","",IFERROR(S43*$K44,"")) ->  | T44: =IF(T43="","",IFERROR(T43*$K44,"")) -> 
A45: 16 | B45: =VLOOKUP(A45,ORC!$D:$N,2,0) ->  | F45: % | K45: =SUM(G45:J45)+SUM(S45:V45) -> 0 | M45: 16 | N45: =VLOOKUP(M45,ORC!$D:$N,2,0) ->  | R45: % | W45: 0
A46: =IFERROR(IF(B45<>"",100,B45),"") ->  | F46: R$ | G46: =IF(G45="","",IFERROR(G45*$K46,"")) ->  | H46: =IF(H45="","",IFERROR(H45*$K46,"")) ->  | K46: =VLOOKUP(A45,ORC!$D:$N,11,0) ->  | M46: =IFERROR(IF(N45<>"",100,N45),"") ->  | R46: R$ | S46: =IF(S45="","",IFERROR(S45*$K46,"")) ->  | T46: =IF(T45="","",IFERROR(T45*$K46,"")) -> 
A47: 17 | B47: =VLOOKUP(A47,ORC!$D:$N,2,0) ->  | F47: % | K47: =SUM(G47:J47)+SUM(S47:V47) -> 0 | M47: 17 | N47: =VLOOKUP(M47,ORC!$D:$N,2,0) ->  | R47: % | W47: 0
A48: =IFERROR(IF(B47<>"",100,B47),"") ->  | F48: R$ | G48: =IF(G47="","",IFERROR(G47*$K48,"")) ->  | H48: =IF(H47="","",IFERROR(H47*$K48,"")) ->  | K48: =VLOOKUP(A47,ORC!$D:$N,11,0) ->  | M48: =IFERROR(IF(N47<>"",100,N47),"") ->  | R48: R$ | S48: =IF(S47="","",IFERROR(S47*$K48,"")) ->  | T48: =IF(T47="","",IFERROR(T47*$K48,"")) -> 
A49: 18 | B49: =VLOOKUP(A49,ORC!$D:$N,2,0) ->  | F49: % | K49: =SUM(G49:J49)+SUM(S49:V49) -> 0 | M49: 18 | N49: =VLOOKUP(M49,ORC!$D:$N,2,0) ->  | R49: % | W49: 0
A50: =IFERROR(IF(B49<>"",100,B49),"") ->  | F50: R$ | G50: =IF(G49="","",IFERROR(G49*$K50,"")) ->  | H50: =IF(H49="","",IFERROR(H49*$K50,"")) ->  | K50: =VLOOKUP(A49,ORC!$D:$N,11,0) ->  | M50: =IFERROR(IF(N49<>"",100,N49),"") ->  | R50: R$ | S50: =IF(S49="","",IFERROR(S49*$K50,"")) ->  | T50: =IF(T49="","",IFERROR(T49*$K50,"")) -> 
A51: 19 | B51: =VLOOKUP(A51,ORC!$D:$N,2,0) ->  | F51: % | K51: =SUM(G51:J51)+SUM(S51:V51) -> 0 | M51: 19 | N51: =VLOOKUP(M51,ORC!$D:$N,2,0) ->  | R51: % | W51: 0
A52: =IFERROR(IF(B51<>"",100,B51),"") ->  | F52: R$ | G52: =IF(G51="","",IFERROR(G51*$K52,"")) ->  | H52: =IF(H51="","",IFERROR(H51*$K52,"")) ->  | K52: =VLOOKUP(A51,ORC!$D:$N,11,0) ->  | M52: =IFERROR(IF(N51<>"",100,N51),"") ->  | R52: R$ | S52: =IF(S51="","",IFERROR(S51*$K52,"")) ->  | T52: =IF(T51="","",IFERROR(T51*$K52,"")) -> 
A54: 20 | B54: =VLOOKUP(A54,ORC!$D:$N,2,0) ->  | F54: % | K54: =SUM(G54:J54)+SUM(S54:V54) -> 0 | M54: 20 | N54: =VLOOKUP(M54,ORC!$D:$N,2,0) ->  | R54: % | W54: =K54 -> 0
A55: =IFERROR(IF(B54<>"",100,B54),"") ->  | F55: R$ | G55: =IF(G54="","",IFERROR(G54*$K55,"")) ->  | H55: =IF(H54="","",IFERROR(H54*$K55,"")) ->  | K55: =VLOOKUP(A54,ORC!$D:$N,11,0) ->  | M55: =IFERROR(IF(N54<>"",100,N54),"") ->  | R55: R$ | S55: =IF(S54="","",IFERROR(S54*$K55,"")) ->  | T55: =IF(T54="","",IFERROR(T54*$K55,"")) -> 
A56: 21 | B56: =VLOOKUP(A56,ORC!$D:$N,2,0) ->  | F56: % | K56: =SUM(G56:J56)+SUM(S56:V56) -> 0 | M56: 21 | N56: =VLOOKUP(M56,ORC!$D:$N,2,0) ->  | R56: % | W56: 0
A57: =IFERROR(IF(B56<>"",100,B56),"") ->  | F57: R$ | G57: =IF(G56="","",IFERROR(G56*$K57,"")) ->  | H57: =IF(H56="","",IFERROR(H56*$K57,"")) ->  | K57: =VLOOKUP(A56,ORC!$D:$N,11,0) ->  | M57: =IFERROR(IF(N56<>"",100,N56),"") ->  | R57: R$ | S57: =IF(S56="","",IFERROR(S56*$K57,"")) ->  | T57: =IF(T56="","",IFERROR(T56*$K57,"")) -> 
A58: 22 | B58: =VLOOKUP(A58,ORC!$D:$N,2,0) ->  | F58: % | K58: =SUM(G58:J58)+SUM(S58:V58) -> 0 | M58: 22 | N58: =VLOOKUP(M58,ORC!$D:$N,2,0) ->  | R58: % | W58: 0
A59: =IFERROR(IF(B58<>"",100,B58),"") ->  | F59: R$ | G59: =IF(G58="","",IFERROR(G58*$K59,"")) ->  | H59: =IF(H58="","",IFERROR(H58*$K59,"")) ->  | K59: =VLOOKUP(A58,ORC!$D:$N,11,0) ->  | M59: =IFERROR(IF(N58<>"",100,N58),"") ->  | R59: R$ | S59: =IF(S58="","",IFERROR(S58*$K59,"")) ->  | T59: =IF(T58="","",IFERROR(T58*$K59,"")) -> 
A60: 23 | B60: =VLOOKUP(A60,ORC!$D:$N,2,0) ->  | F60: % | K60: =SUM(G60:J60)+SUM(S60:V60) -> 0 | M60: 23 | N60: =VLOOKUP(M60,ORC!$D:$N,2,0) ->  | R60: % | W60: 0
A61: =IFERROR(IF(B60<>"",100,B60),"") ->  | F61: R$ | G61: =IF(G60="","",IFERROR(G60*$K61,"")) ->  | H61: =IF(H60="","",IFERROR(H60*$K61,"")) ->  | K61: =VLOOKUP(A60,ORC!$D:$N,11,0) ->  | M61: =IFERROR(IF(N60<>"",100,N60),"") ->  | R61: R$ | S61: =IF(S60="","",IFERROR(S60*$K61,"")) ->  | T61: =IF(T60="","",IFERROR(T60*$K61,"")) -> 
A62: 24 | B62: =VLOOKUP(A62,ORC!$D:$N,2,0) ->  | F62: % | K62: =SUM(G62:J62)+SUM(S62:V62) -> 0 | M62: 24 | N62: =VLOOKUP(M62,ORC!$D:$N,2,0) ->  | R62: % | W62: =K62 -> 0
A63: =IFERROR(IF(B62<>"",100,B62),"") ->  | F63: R$ | G63: =IF(G62="","",IFERROR(G62*$K63,"")) ->  | H63: =IF(H62="","",IFERROR(H62*$K63,"")) ->  | K63: =VLOOKUP(A62,ORC!$D:$N,11,0) ->  | M63: =IFERROR(IF(N62<>"",100,N62),"") ->  | R63: R$ | S63: =IF(S62="","",IFERROR(S62*$K63,"")) ->  | T63: =IF(T62="","",IFERROR(T62*$K63,"")) -> 
A64: 25 | B64: =VLOOKUP(A64,ORC!$D:$N,2,0) ->  | F64: % | K64: =SUM(G64:J64)+SUM(S64:V64) -> 0 | M64: 25 | N64: =VLOOKUP(M64,ORC!$D:$N,2,0) ->  | R64: % | W64: 0
A65: =IFERROR(IF(B64<>"",100,B64),"") ->  | F65: R$ | G65: =IF(G64="","",IFERROR(G64*$K65,"")) ->  | H65: =IF(H64="","",IFERROR(H64*$K65,"")) ->  | K65: =VLOOKUP(A64,ORC!$D:$N,11,0) ->  | M65: =IFERROR(IF(N64<>"",100,N64),"") ->  | R65: R$ | S65: =IF(S64="","",IFERROR(S64*$K65,"")) ->  | T65: =IF(T64="","",IFERROR(T64*$K65,"")) -> 
A66: 26 | B66: =VLOOKUP(A66,ORC!$D:$N,2,0) ->  | F66: % | K66: =SUM(G66:J66)+SUM(S66:V66) -> 0 | M66: 26 | N66: =VLOOKUP(M66,ORC!$D:$N,2,0) ->  | R66: % | W66: 0
A67: =IFERROR(IF(B66<>"",100,B66),"") ->  | F67: R$ | G67: =IF(G66="","",IFERROR(G66*$K67,"")) ->  | H67: =IF(H66="","",IFERROR(H66*$K67,"")) ->  | K67: =VLOOKUP(A66,ORC!$D:$N,11,0) ->  | M67: =IFERROR(IF(N66<>"",100,N66),"") ->  | R67: R$ | S67: =IF(S66="","",IFERROR(S66*$K67,"")) ->  | T67: =IF(T66="","",IFERROR(T66*$K67,"")) -> 
A68: 27 | B68: =VLOOKUP(A68,ORC!$D:$N,2,0) ->  | F68: % | K68: =SUM(G68:J68)+SUM(S68:V68) -> 0 | M68: 27 | N68: =VLOOKUP(M68,ORC!$D:$N,2,0) ->  | R68: % | W68: 0
A69: =IFERROR(IF(B68<>"",100,B68),"") ->  | F69: R$ | G69: =IF(G68="","",IFERROR(G68*$K69,"")) ->  | H69: =IF(H68="","",IFERROR(H68*$K69,"")) ->  | K69: =VLOOKUP(A68,ORC!$D:$N,11,0) ->  | M69: =IFERROR(IF(N68<>"",100,N68),"") ->  | R69: R$ | S69: =IF(S68="","",IFERROR(S68*$K69,"")) ->  | T69: =IF(T68="","",IFERROR(T68*$K69,"")) -> 
A70: 28 | B70: =VLOOKUP(A70,ORC!$D:$N,2,0) ->  | F70: % | K70: =SUM(G70:J70)+SUM(S70:V70) -> 0 | M70: 28 | N70: =VLOOKUP(M70,ORC!$D:$N,2,0) ->  | R70: % | W70: =K70 -> 0
A71: =IFERROR(IF(B70<>"",100,B70),"") ->  | F71: R$ | G71: =IF(G70="","",IFERROR(G70*$K71,"")) ->  | H71: =IF(H70="","",IFERROR(H70*$K71,"")) ->  | K71: =VLOOKUP(A70,ORC!$D:$N,11,0) ->  | M71: =IFERROR(IF(N70<>"",100,N70),"") ->  | R71: R$ | S71: =IF(S70="","",IFERROR(S70*$K71,"")) ->  | T71: =IF(T70="","",IFERROR(T70*$K71,"")) -> 
A72: 29 | B72: =VLOOKUP(A72,ORC!$D:$N,2,0) ->  | F72: % | K72: =SUM(G72:J72)+SUM(S72:V72) -> 0 | M72: 29 | N72: =VLOOKUP(M72,ORC!$D:$N,2,0) ->  | R72: % | W72: 0
A73: =IFERROR(IF(B72<>"",100,B72),"") ->  | F73: R$ | G73: =IF(G72="","",IFERROR(G72*$K73,"")) ->  | H73: =IF(H72="","",IFERROR(H72*$K73,"")) ->  | K73: =VLOOKUP(A72,ORC!$D:$N,11,0) ->  | M73: =IFERROR(IF(N72<>"",100,N72),"") ->  | R73: R$ | S73: =IF(S72="","",IFERROR(S72*$K73,"")) ->  | T73: =IF(T72="","",IFERROR(T72*$K73,"")) -> 
A74: 30 | B74: =VLOOKUP(A74,ORC!$D:$N,2,0) ->  | F74: % | K74: =SUM(G74:J74)+SUM(S74:V74) -> 0 | M74: 30 | N74: =VLOOKUP(M74,ORC!$D:$N,2,0) ->  | R74: % | W74: 0
A75: =IFERROR(IF(B74<>"",100,B74),"") ->  | F75: R$ | G75: =IF(G74="","",IFERROR(G74*$K75,"")) ->  | H75: =IF(H74="","",IFERROR(H74*$K75,"")) ->  | K75: =VLOOKUP(A74,ORC!$D:$N,11,0) ->  | M75: =IFERROR(IF(N74<>"",100,N74),"") ->  | R75: R$ | S75: =IF(S74="","",IFERROR(S74*$K75,"")) ->  | T75: =IF(T74="","",IFERROR(T74*$K75,"")) -> 
F77: Porcentagem | G77: =G78/$V$80 ->  | H77: =H78/$V$80 ->  | R77: Porcentagem | S77: =S78/$V$80 ->  | T77: =T78/$V$80 -> 
F78: Custo | G78: =SUMIF($A:$A,100,G:G) -> 507.197 | H78: =SUMIF($A:$A,100,H:H) -> 507.197 | I78: =SUMIF($A:$A,100,I:I) -> 507.197 | J78: =SUMIF($A:$A,100,J:J) -> 507.197 | R78: Custo | S78: =SUMIF($A:$A,100,S:S) -> 253.5985 | T78: =SUMIF($A:$A,100,T:T) -> 760.7955 | U78: =SUMIF($A:$A,100,U:U) -> 253.5985 | V78: =SUMIF($A:$A,100,V:V) -> 1775.1895
F79: Porcentagem Acumulada | G79: =G77 ->  | H79: =G79+H77 ->  | I79: =H79+I77 ->  | R79: Porcentagem Acumulada | S79: =S77+J79 ->  | T79: =S79+T77 ->  | U79: =T79+U77 ->  | V79: =U79+V77 -> 
F80: Custo Acumulado | G80: =G78 -> 507.197 | H80: =H78+G80 -> 1014.394 | I80: =I78+H80 -> 1521.591 | J80: =J78+I80 -> 2028.788 | R80: Custo Acumulado | S80: =S78+J80 -> 2282.3865 | T80: =T78+S80 -> 3043.182 | U80: =U78+T80 -> 3296.7805 | V80: =IF(V78+U80=ORC!M92,V78+U80,"ERRO") -> ERRO
F84: RESPONSÁVEL TÉCNICO | G84: =DADOS!D16 -> FLÁVIA CRISTINA BARBOSA | R84: RESPONSÁVEL TÉCNICO | S84: =DADOS!D16 -> FLÁVIA CRISTINA BARBOSA
G85: =DADOS!D18 -> CREA - MG 187.842/D | S85: =DADOS!D18 -> CREA - MG 187.842/D

Sheet CRO 9 meses
A2: CRONOGRAMA FÍSICO-FINANCEIRO | L2: Revisão: | M2: =DADOS!D6 -> R00 | N2: CRONOGRAMA FÍSICO-FINANCEIRO | X2: Revisão: | Y2: =DADOS!$D$6 -> R00
L3: Data: | M3: =DADOS!D2 -> 2023-08-30 | X3: Data: | Y3: =DADOS!$D$2 -> 2023-08-30
A4: Projeto: | D4: Responsável: | I4: Cliente: | L4: Bancos: | N4: Projeto: | Q4: Responsável: | U4: Cliente: | X4: Bancos:
A5: =DADOS!D8 -> MANUTENÇÃO DA SUPERINTENDÊNCIA DE RECURSOS MATERIAIS | L5: =DADOS!D14 -> SINAPI: 07/2023 Minas Gerais SETOP: 04/2023 Minas Gerais SICRO : 04/2023 Minas Gerais SUDECAP: 05/2023 Minas Gerais | N5: =DADOS!$D$8 -> MANUTENÇÃO DA SUPERINTENDÊNCIA DE RECURSOS MATERIAIS | X5: =DADOS!$D$14 -> SINAPI: 07/2023 Minas Gerais SETOP: 04/2023 Minas Gerais SICRO : 04/2023 Minas Gerais SUDECAP: 05/2023 Minas Gerais
L8: BDI 1: | M8: =DADOS!D10 -> 0.2652 | X8: BDI 1: | Y8: =DADOS!$D$10 -> 0.2652
L9: BDI 2: | M9: =DADOS!D12 -> 0.2025 | X9: BDI 2: | Y9: =DADOS!$D$12 -> 0.2025
A11: =A2&" DE "&DADOS!D20&" - "&A5 -> CRONOGRAMA FÍSICO-FINANCEIRO DE PROJETO EXECUTIVO - MANUTENÇÃO DA SUPERINTENDÊNCIA DE RECURSOS MATERIAIS | N11: =N2&" DE "&DADOS!$D$20&" - "&N5 -> CRONOGRAMA FÍSICO-FINANCEIRO DE PROJETO EXECUTIVO - MANUTENÇÃO DA SUPERINTENDÊNCIA DE RECURSOS MATERIAIS
A13: ITEM | B13: DESCRIÇÃO | F13: Unid. | G13: 30 DIAS | H13: 60 DIAS | I13: 90 DIAS | J13: 120 DIAS | K13: 150 DIAS | L13: Total por Etapa | N13: ITEM | O13: DESCRIÇÃO | S13: Unid. | T13: 180 DIAS | U13: 210 DIAS | V13: 240 DIAS | W13: 270 DIAS | X13: Total por Etapa
A15: 1 | B15: =VLOOKUP(A15,ORC!$D:$N,2,0) -> CANTEIRO DE OBRA | F15: % | G15: 0.2 | H15: 0.1 | I15: 0.1 | J15: 0.1 | K15: 0.1 | L15: =SUM(G15:K15)+SUM(T15:W15) -> 1 | N15: =A15 -> 1 | O15: =VLOOKUP(N15,ORC!$D:$N,2,0) -> CANTEIRO DE OBRA | S15: % | T15: 0.1 | U15: 0.1 | V15: 0.1 | W15: 0.1 | X15: =L15 -> 1
A16: =IFERROR(IF(B15<>"",100,B15),"") -> 100 | F16: R$ | G16: =IF(G15="","",IFERROR(G15*$L16,"")) -> 1014.394 | H16: =IF(H15="","",IFERROR(H15*$L16,"")) -> 507.197 | I16: 507.197 | J16: 507.197 | K16: 507.197 | L16: =VLOOKUP(A15,ORC!$D:$N,11,0) -> 5071.97 | N16: =IFERROR(IF(O15<>"",100,O15),"") -> 100 | S16: R$ | T16: =IF(T15="","",IFERROR(T15*$L16,"")) -> 507.197 | U16: =IF(U15="","",IFERROR(U15*$L16,"")) -> 507.197 | V16: 507.197 | W16: 507.197 | X16: 5071.97
A17: 2 | B17: =VLOOKUP(A17,ORC!$D:$N,2,0) -> SERVIÇOS PRELIMINARES | F17: % | L17: =SUM(G17:K17)+SUM(T17:W17) -> 0 | N17: =A17 -> 2 | O17: =VLOOKUP(N17,ORC!$D:$N,2,0) -> SERVIÇOS PRELIMINARES | S17: % | X17: 0
A18: =IFERROR(IF(B17<>"",100,B17),"") -> 100 | F18: R$ | G18: =IF(G17="","",IFERROR(G17*$L18,"")) ->  | H18: =IF(H17="","",IFERROR(H17*$L18,"")) ->  | L18: =VLOOKUP(A17,ORC!$D:$N,11,0) -> 1808.84 | N18: =IFERROR(IF(O17<>"",100,O17),"") -> 100 | S18: R$ | T18: =IF(T17="","",IFERROR(T17*$L18,"")) ->  | U18: =IF(U17="","",IFERROR(U17*$L18,"")) ->  | V18: =IF(V17="","",IFERROR(V17*$L18,"")) ->  | W18: =IF(W17="","",IFERROR(W17*$L18,"")) ->  | X18: 1808.84
A19: 3 | B19: =VLOOKUP(A19,ORC!$D:$N,2,0) -> LIMPEZAS E DEMOLIÇÕES | F19: % | L19: =SUM(G19:K19)+SUM(T19:W19) -> 0 | N19: =A19 -> 3 | O19: =VLOOKUP(N19,ORC!$D:$N,2,0) -> LIMPEZAS E DEMOLIÇÕES | S19: % | X19: 0
A20: =IFERROR(IF(B19<>"",100,B19),"") -> 100 | F20: R$ | G20: =IF(G19="","",IFERROR(G19*$L20,"")) ->  | H20: =IF(H19="","",IFERROR(H19*$L20,"")) ->  | L20: =VLOOKUP(A19,ORC!$D:$N,11,0) -> 2229.47 | N20: =IFERROR(IF(O19<>"",100,O19),"") -> 100 | S20: R$ | T20: =IF(T19="","",IFERROR(T19*$L20,"")) ->  | U20: =IF(U19="","",IFERROR(U19*$L20,"")) ->  | V20: =IF(V19="","",IFERROR(V19*$L20,"")) ->  | W20: =IF(W19="","",IFERROR(W19*$L20,"")) ->  | X20: 2229.47
A21: 4 | B21: =VLOOKUP(A21,ORC!$D:$N,2,0) -> SISTEMA DE COBERTURA | F21: % | L21: =SUM(G21:K21)+SUM(T21:W21) -> 0 | N21: =A21 -> 4 | O21: =VLOOKUP(N21,ORC!$D:$N,2,0) -> SISTEMA DE COBERTURA | S21: % | X21: 0
A22: =IFERROR(IF(B21<>"",100,B21),"") -> 100 | F22: R$ | G22: =IF(G21="","",IFERROR(G21*$L22,"")) ->  | H22: =IF(H21="","",IFERROR(H21*$L22,"")) ->  | L22: =VLOOKUP(A21,ORC!$D:$N,11,0) -> 69700.4 | N22: =IFERROR(IF(O21<>"",100,O21),"") -> 100 | S22: R$ | T22: =IF(T21="","",IFERROR(T21*$L22,"")) ->  | U22: =IF(U21="","",IFERROR(U21*$L22,"")) ->  | V22: =IF(V21="","",IFERROR(V21*$L22,"")) ->  | W22: =IF(W21="","",IFERROR(W21*$L22,"")) ->  | X22: 69700.4
A23: 5 | B23: =VLOOKUP(A23,ORC!$D:$N,2,0) -> ACABAMENTOS | F23: % | L23: =SUM(G23:K23)+SUM(T23:W23) -> 0 | N23: =A23 -> 5 | O23: =VLOOKUP(N23,ORC!$D:$N,2,0) -> ACABAMENTOS | S23: % | X23: 0
A24: =IFERROR(IF(B23<>"",100,B23),"") -> 100 | F24: R$ | G24: =IF(G23="","",IFERROR(G23*$L24,"")) ->  | H24: =IF(H23="","",IFERROR(H23*$L24,"")) ->  | L24: =VLOOKUP(A23,ORC!$D:$N,11,0) -> 42655.52 | N24: =IFERROR(IF(O23<>"",100,O23),"") -> 100 | S24: R$ | T24: =IF(T23="","",IFERROR(T23*$L24,"")) ->  | U24: =IF(U23="","",IFERROR(U23*$L24,"")) ->  | V24: =IF(V23="","",IFERROR(V23*$L24,"")) ->  | W24: =IF(W23="","",IFERROR(W23*$L24,"")) ->  | X24: 42655.52
A25: 6 | B25: =VLOOKUP(A25,ORC!$D:$N,2,0) -> PINTURA | F25: % | L25: =SUM(G25:K25)+SUM(T25:W25) -> 0 | N25: =A25 -> 6 | O25: =VLOOKUP(N25,ORC!$D:$N,2,0) -> PINTURA | S25: % | X25: 0
A26: =IFERROR(IF(B25<>"",100,B25),"") -> 100 | F26: R$ | G26: =IF(G25="","",IFERROR(G25*$L26,"")) ->  | H26: =IF(H25="","",IFERROR(H25*$L26,"")) ->  | L26: =VLOOKUP(A25,ORC!$D:$N,11,0) -> 5871.15 | N26: =IFERROR(IF(O25<>"",100,O25),"") -> 100 | S26: R$ | T26: =IF(T25="","",IFERROR(T25*$L26,"")) ->  | U26: =IF(U25="","",IFERROR(U25*$L26,"")) ->  | V26: =IF(V25="","",IFERROR(V25*$L26,"")) ->  | W26: =IF(W25="","",IFERROR(W25*$L26,"")) ->  | X26: 5871.15
A27: 7 | B27: =VLOOKUP(A27,ORC!$D:$N,2,0) -> SERVIÇOS FINAIS | F27: % | L27: =SUM(G27:K27)+SUM(T27:W27) -> 0 | N27: =A27 -> 7 | O27: =VLOOKUP(N27,ORC!$D:$N,2,0) -> SERVIÇOS FINAIS | S27: % | X27: 0
A28: =IFERROR(IF(B27<>"",100,B27),"") -> 100 | F28: R$ | G28: =IF(G27="","",IFERROR(G27*$L28,"")) ->  | H28: =IF(H27="","",IFERROR(H27*$L28,"")) ->  | L28: =VLOOKUP(A27,ORC!$D:$N,11,0) -> 950.27 | N28: =IFERROR(IF(O27<>"",100,O27),"") -> 100 | S28: R$ | T28: =IF(T27="","",IFERROR(T27*$L28,"")) ->  | U28: =IF(U27="","",IFERROR(U27*$L28,"")) ->  | V28: =IF(V27="","",IFERROR(V27*$L28,"")) ->  | W28: =IF(W27="","",IFERROR(W27*$L28,"")) ->  | X28: 950.27
A29: 8 | B29: =VLOOKUP(A29,ORC!$D:$N,2,0) ->  | F29: % | L29: =SUM(G29:K29)+SUM(T29:W29) -> 0 | N29: =A29 -> 8 | O29: =VLOOKUP(N29,ORC!$D:$N,2,0) ->  | S29: % | X29: 0
A30: =IFERROR(IF(B29<>"",100,B29),"") ->  | F30: R$ | G30: =IF(G29="","",IFERROR(G29*$L30,"")) ->  | H30: =IF(H29="","",IFERROR(H29*$L30,"")) ->  | L30: =VLOOKUP(A29,ORC!$D:$N,11,0) ->  | N30: =IFERROR(IF(O29<>"",100,O29),"") ->  | S30: R$ | T30: =IF(T29="","",IFERROR(T29*$L30,"")) ->  | U30: =IF(U29="","",IFERROR(U29*$L30,"")) ->  | V30: =IF(V29="","",IFERROR(V29*$L30,"")) ->  | W30: =IF(W29="","",IFERROR(W29*$L30,"")) -> 
A32: 9 | B32: =VLOOKUP(A32,ORC!$D:$N,2,0) ->  | F32: % | L32: =SUM(G32:K32)+SUM(T33:W33) -> 0 | N32: =A32 -> 9 | O32: =VLOOKUP(N32,ORC!$D:$N,2,0) ->  | S32: % | X32: =L32 -> 0
A33: =IFERROR(IF(B32<>"",100,B32),"") ->  | F33: R$ | G33: =IF(G32="","",IFERROR(G32*$L33,"")) ->  | H33: =IF(H32="","",IFERROR(H32*$L33,"")) ->  | L33: =VLOOKUP(A32,ORC!$D:$N,11,0) ->  | N33: =IFERROR(IF(O32<>"",100,O32),"") ->  | S33: R$ | T33: =IF(T32="","",IFERROR(T32*$L33,"")) ->  | U33: =IF(U32="","",IFERROR(U32*$L33,"")) ->  | V33: =IF(V32="","",IFERROR(V32*$L33,"")) ->  | W33: =IF(W32="","",IFERROR(W32*$L33,"")) -> 
A34: 10 | B34: =VLOOKUP(A34,ORC!$D:$N,2,0) ->  | F34: % | L34: =SUM(G34:K34)+SUM(T35:W35) -> 0 | N34: =A34 -> 10 | O34: =VLOOKUP(N34,ORC!$D:$N,2,0) ->  | S34: % | X34: 0
A35: =IFERROR(IF(B34<>"",100,B34),"") ->  | F35: R$ | G35: =IF(G34="","",IFERROR(G34*$L35,"")) ->  | H35: =IF(H34="","",IFERROR(H34*$L35,"")) ->  | L35: =VLOOKUP(A34,ORC!$D:$N,11,0) ->  | N35: =IFERROR(IF(O34<>"",100,O34),"") ->  | S35: R$ | T35: =IF(T34="","",IFERROR(T34*$L35,"")) ->  | U35: =IF(U34="","",IFERROR(U34*$L35,"")) ->  | V35: =IF(V34="","",IFERROR(V34*$L35,"")) ->  | W35: =IF(W34="","",IFERROR(W34*$L35,"")) -> 
A36: 11 | B36: =VLOOKUP(A36,ORC!$D:$N,2,0) ->  | F36: % | L36: =SUM(G36:K36)+SUM(T37:W37) -> 0 | N36: =A36 -> 11 | O36: =VLOOKUP(N36,ORC!$D:$N,2,0) ->  | S36: % | X36: 0
A37: =IFERROR(IF(B36<>"",100,B36),"") ->  | F37: R$ | G37: =IF(G36="","",IFERROR(G36*$L37,"")) ->  | H37: =IF(H36="","",IFERROR(H36*$L37,"")) ->  | L37: =VLOOKUP(A36,ORC!$D:$N,11,0) ->  | N37: =IFERROR(IF(O36<>"",100,O36),"") ->  | S37: R$ | T37: =IF(T36="","",IFERROR(T36*$L37,"")) ->  | U37: =IF(U36="","",IFERROR(U36*$L37,"")) ->  | V37: =IF(V36="","",IFERROR(V36*$L37,"")) ->  | W37: =IF(W36="","",IFERROR(W36*$L37,"")) -> 
A38: 12 | B38: =VLOOKUP(A38,ORC!$D:$N,2,0) ->  | F38: % | L38: =SUM(G38:K38)+SUM(T39:W39) -> 0 | N38: =A38 -> 12 | O38: =VLOOKUP(N38,ORC!$D:$N,2,0) ->  | S38: % | X38: 0
A39: =IFERROR(IF(B38<>"",100,B38),"") ->  | F39: R$ | G39: =IF(G38="","",IFERROR(G38*$L39,"")) ->  | H39: =IF(H38="","",IFERROR(H38*$L39,"")) ->  | L39: =VLOOKUP(A38,ORC!$D:$N,11,0) ->  | N39: =IFERROR(IF(O38<>"",100,O38),"") ->  | S39: R$ | T39: =IF(T38="","",IFERROR(T38*$L39,"")) ->  | U39: =IF(U38="","",IFERROR(U38*$L39,"")) ->  | V39: =IF(V38="","",IFERROR(V38*$L39,"")) ->  | W39: =IF(W38="","",IFERROR(W38*$L39,"")) -> 
A40: 13 | B40: =VLOOKUP(A40,ORC!$D:$N,2,0) ->  | F40: % | L40: =SUM(G40:K40)+SUM(T41:W41) -> 0 | N40: =A40 -> 13 | O40: =VLOOKUP(N40,ORC!$D:$N,2,0) ->  | S40: % | X40: 0
A41: =IFERROR(IF(B40<>"",100,B40),"") ->  | F41: R$ | G41: =IF(G40="","",IFERROR(G40*$L41,"")) ->  | H41: =IF(H40="","",IFERROR(H40*$L41,"")) ->  | L41: =VLOOKUP(A40,ORC!$D:$N,11,0) ->  | N41: =IFERROR(IF(O40<>"",100,O40),"") ->  | S41: R$ | T41: =IF(T40="","",IFERROR(T40*$L41,"")) ->  | U41: =IF(U40="","",IFERROR(U40*$L41,"")) ->  | V41: =IF(V40="","",IFERROR(V40*$L41,"")) ->  | W41: =IF(W40="","",IFERROR(W40*$L41,"")) -> 
A42: 14 | B42: =VLOOKUP(A42,ORC!$D:$N,2,0) ->  | F42: % | L42: =SUM(G42:K42)+SUM(T43:W43) -> 0 | N42: =A42 -> 14 | O42: =VLOOKUP(N42,ORC!$D:$N,2,0) ->  | S42: % | X42: 0
A43: =IFERROR(IF(B42<>"",100,B42),"") ->  | F43: R$ | G43: =IF(G42="","",IFERROR(G42*$L43,"")) ->  | H43: =IF(H42="","",IFERROR(H42*$L43,"")) ->  | L43: =VLOOKUP(A42,ORC!$D:$N,11,0) ->  | N43: =IFERROR(IF(O42<>"",100,O42),"") ->  | S43: R$ | T43: =IF(T42="","",IFERROR(T42*$L43,"")) ->  | U43: =IF(U42="","",IFERROR(U42*$L43,"")) ->  | V43: =IF(V42="","",IFERROR(V42*$L43,"")) ->  | W43: =IF(W42="","",IFERROR(W42*$L43,"")) -> 
A44: 15 | B44: =VLOOKUP(A44,ORC!$D:$N,2,0) ->  | F44: % | L44: =SUM(G44:K44)+SUM(T45:W45) -> 0 | N44: =A44 -> 15 | O44: =VLOOKUP(N44,ORC!$D:$N,2,0) ->  | S44: % | X44: 0
A45: =IFERROR(IF(B44<>"",100,B44),"") ->  | F45: R$ | G45: =IF(G44="","",IFERROR(G44*$L45,"")) ->  | H45: =IF(H44="","",IFERROR(H44*$L45,"")) ->  | L45: =VLOOKUP(A44,ORC!$D:$N,11,0) ->  | N45: =IFERROR(IF(O44<>"",100,O44),"") ->  | S45: R$ | T45: =IF(T44="","",IFERROR(T44*$L45,"")) ->  | U45: =IF(U44="","",IFERROR(U44*$L45,"")) ->  | V45: =IF(V44="","",IFERROR(V44*$L45,"")) ->  | W45: =IF(W44="","",IFERROR(W44*$L45,"")) -> 
A46: 16 | B46: =VLOOKUP(A46,ORC!$D:$N,2,0) ->  | F46: % | L46: =SUM(G46:K46)+SUM(T47:W47) -> 0 | N46: =A46 -> 16 | O46: =VLOOKUP(N46,ORC!$D:$N,2,0) ->  | S46: % | X46: 0
A47: =IFERROR(IF(B46<>"",100,B46),"") ->  | F47: R$ | G47: =IF(G46="","",IFERROR(G46*$L47,"")) ->  | H47: =IF(H46="","",IFERROR(H46*$L47,"")) ->  | L47: =VLOOKUP(A46,ORC!$D:$N,11,0) ->  | N47: =IFERROR(IF(O46<>"",100,O46),"") ->  | S47: R$ | T47: =IF(T46="","",IFERROR(T46*$L47,"")) ->  | U47: =IF(U46="","",IFERROR(U46*$L47,"")) ->  | V47: =IF(V46="","",IFERROR(V46*$L47,"")) ->  | W47: =IF(W46="","",IFERROR(W46*$L47,"")) -> 
A48: 17 | B48: =VLOOKUP(A48,ORC!$D:$N,2,0) ->  | F48: % | L48: =SUM(G48:K48)+SUM(T49:W49) -> 0 | N48: =A48 -> 17 | O48: =VLOOKUP(N48,ORC!$D:$N,2,0) ->  | S48: % | X48: 0
A49: =IFERROR(IF(B48<>"",100,B48),"") ->  | F49: R$ | G49: =IF(G48="","",IFERROR(G48*$L49,"")) ->  | H49: =IF(H48="","",IFERROR(H48*$L49,"")) ->  | L49: =VLOOKUP(A48,ORC!$D:$N,11,0) ->  | N49: =IFERROR(IF(O48<>"",100,O48),"") ->  | S49: R$ | T49: =IF(T48="","",IFERROR(T48*$L49,"")) ->  | U49: =IF(U48="","",IFERROR(U48*$L49,"")) ->  | V49: =IF(V48="","",IFERROR(V48*$L49,"")) ->  | W49: =IF(W48="","",IFERROR(W48*$L49,"")) -> 
A50: 18 | B50: =VLOOKUP(A50,ORC!$D:$N,2,0) ->  | F50: % | L50: =SUM(G50:K50)+SUM(T51:W51) -> 0 | N50: =A50 -> 18 | O50: =VLOOKUP(N50,ORC!$D:$N,2,0) ->  | S50: % | X50: 0
A51: =IFERROR(IF(B50<>"",100,B50),"") ->  | F51: R$ | G51: =IF(G50="","",IFERROR(G50*$L51,"")) ->  | H51: =IF(H50="","",IFERROR(H50*$L51,"")) ->  | L51: =VLOOKUP(A50,ORC!$D:$N,11,0) ->  | N51: =IFERROR(IF(O50<>"",100,O50),"") ->  | S51: R$ | T51: =IF(T50="","",IFERROR(T50*$L51,"")) ->  | U51: =IF(U50="","",IFERROR(U50*$L51,"")) ->  | V51: =IF(V50="","",IFERROR(V50*$L51,"")) ->  | W51: =IF(W50="","",IFERROR(W50*$L51,"")) -> 
A52: 19 | B52: =VLOOKUP(A52,ORC!$D:$N,2,0) ->  | F52: % | L52: =SUM(G52:K52)+SUM(T53:W53) -> 0 | N52: =A52 -> 19 | O52: =VLOOKUP(N52,ORC!$D:$N,2,0) ->  | S52: % | X52: 0
A53: =IFERROR(IF(B52<>"",100,B52),"") ->  | F53: R$ | G53: =IF(G52="","",IFERROR(G52*$L53,"")) ->  | H53: =IF(H52="","",IFERROR(H52*$L53,"")) ->  | L53: =VLOOKUP(A52,ORC!$D:$N,11,0) ->  | N53: =IFERROR(IF(O52<>"",100,O52),"") ->  | S53: R$ | T53: =IF(T52="","",IFERROR(T52*$L53,"")) ->  | U53: =IF(U52="","",IFERROR(U52*$L53,"")) ->  | V53: =IF(V52="","",IFERROR(V52*$L53,"")) ->  | W53: =IF(W52="","",IFERROR(W52*$L53,"")) -> 
A55: 20 | B55: =VLOOKUP(A55,ORC!$D:$N,2,0) ->  | F55: % | L55: =SUM(G55:K55)+SUM(T56:W56) -> 0 | N55: =A55 -> 20 | O55: =VLOOKUP(N55,ORC!$D:$N,2,0) ->  | S55: % | X55: =L55 -> 0
A56: =IFERROR(IF(B55<>"",100,B55),"") ->  | F56: R$ | G56: =IF(G55="","",IFERROR(G55*$L56,"")) ->  | H56: =IF(H55="","",IFERROR(H55*$L56,"")) ->  | L56: =VLOOKUP(A55,ORC!$D:$N,11,0) ->  | N56: =IFERROR(IF(O55<>"",100,O55),"") ->  | S56: R$ | T56: =IF(T55="","",IFERROR(T55*$L56,"")) ->  | U56: =IF(U55="","",IFERROR(U55*$L56,"")) ->  | V56: =IF(V55="","",IFERROR(V55*$L56,"")) ->  | W56: =IF(W55="","",IFERROR(W55*$L56,"")) -> 
A57: 21 | B57: =VLOOKUP(A57,ORC!$D:$N,2,0) ->  | F57: % | L57: =SUM(G57:K57)+SUM(T58:W58) -> 0 | N57: =A57 -> 21 | O57: =VLOOKUP(N57,ORC!$D:$N,2,0) ->  | S57: % | X57: 0
A58: =IFERROR(IF(B57<>"",100,B57),"") ->  | F58: R$ | G58: =IF(G57="","",IFERROR(G57*$L58,"")) ->  | H58: =IF(H57="","",IFERROR(H57*$L58,"")) ->  | L58: =VLOOKUP(A57,ORC!$D:$N,11,0) ->  | N58: =IFERROR(IF(O57<>"",100,O57),"") ->  | S58: R$ | T58: =IF(T57="","",IFERROR(T57*$L58,"")) ->  | U58: =IF(U57="","",IFERROR(U57*$L58,"")) ->  | V58: =IF(V57="","",IFERROR(V57*$L58,"")) ->  | W58: =IF(W57="","",IFERROR(W57*$L58,"")) -> 
A59: 22 | B59: =VLOOKUP(A59,ORC!$D:$N,2,0) ->  | F59: % | L59: =SUM(G59:K59)+SUM(T60:W60) -> 0 | N59: =A59 -> 22 | O59: =VLOOKUP(N59,ORC!$D:$N,2,0) ->  | S59: % | X59: 0
A60: =IFERROR(IF(B59<>"",100,B59),"") ->  | F60: R$ | G60: =IF(G59="","",IFERROR(G59*$L60,"")) ->  | H60: =IF(H59="","",IFERROR(H59*$L60,"")) ->  | L60: =VLOOKUP(A59,ORC!$D:$N,11,0) ->  | N60: =IFERROR(IF(O59<>"",100,O59),"") ->  | S60: R$ | T60: =IF(T59="","",IFERROR(T59*$L60,"")) ->  | U60: =IF(U59="","",IFERROR(U59*$L60,"")) ->  | V60: =IF(V59="","",IFERROR(V59*$L60,"")) ->  | W60: =IF(W59="","",IFERROR(W59*$L60,"")) -> 
A61: 23 | B61: =VLOOKUP(A61,ORC!$D:$N,2,0) ->  | F61: % | L61: =SUM(G61:K61)+SUM(T62:W62) -> 0 | N61: =A61 -> 23 | O61: =VLOOKUP(N61,ORC!$D:$N,2,0) ->  | S61: % | X61: 0
A62: =IFERROR(IF(B61<>"",100,B61),"") ->  | F62: R$ | G62: =IF(G61="","",IFERROR(G61*$L62,"")) ->  | H62: =IF(H61="","",IFERROR(H61*$L62,"")) ->  | L62: =VLOOKUP(A61,ORC!$D:$N,11,0) ->  | N62: =IFERROR(IF(O61<>"",100,O61),"") ->  | S62: R$ | T62: =IF(T61="","",IFERROR(T61*$L62,"")) ->  | U62: =IF(U61="","",IFERROR(U61*$L62,"")) ->  | V62: =IF(V61="","",IFERROR(V61*$L62,"")) ->  | W62: =IF(W61="","",IFERROR(W61*$L62,"")) -> 
A63: 24 | B63: =VLOOKUP(A63,ORC!$D:$N,2,0) ->  | F63: % | L63: =SUM(G63:K63)+SUM(T64:W64) -> 0 | N63: =A63 -> 24 | O63: =VLOOKUP(N63,ORC!$D:$N,2,0) ->  | S63: % | X63: =L63 -> 0
A64: =IFERROR(IF(B63<>"",100,B63),"") ->  | F64: R$ | G64: =IF(G63="","",IFERROR(G63*$L64,"")) ->  | H64: =IF(H63="","",IFERROR(H63*$L64,"")) ->  | L64: =VLOOKUP(A63,ORC!$D:$N,11,0) ->  | N64: =IFERROR(IF(O63<>"",100,O63),"") ->  | S64: R$ | T64: =IF(T63="","",IFERROR(T63*$L64,"")) ->  | U64: =IF(U63="","",IFERROR(U63*$L64,"")) -> 
A65: 25 | B65: =VLOOKUP(A65,ORC!$D:$N,2,0) ->  | F65: % | L65: =SUM(G65:K65)+SUM(T66:W66) -> 0 | N65: =A65 -> 25 | O65: =VLOOKUP(N65,ORC!$D:$N,2,0) ->  | S65: % | X65: 0
A66: =IFERROR(IF(B65<>"",100,B65),"") ->  | F66: R$ | G66: =IF(G65="","",IFERROR(G65*$L66,"")) ->  | H66: =IF(H65="","",IFERROR(H65*$L66,"")) ->  | L66: =VLOOKUP(A65,ORC!$D:$N,11,0) ->  | N66: =IFERROR(IF(O65<>"",100,O65),"") ->  | S66: R$ | T66: =IF(T65="","",IFERROR(T65*$L66,"")) ->  | U66: =IF(U65="","",IFERROR(U65*$L66,"")) -> 
A67: 26 | B67: =VLOOKUP(A67,ORC!$D:$N,2,0) ->  | F67: % | L67: =SUM(G67:K67)+SUM(T68:W68) -> 0 | N67: =A67 -> 26 | O67: =VLOOKUP(N67,ORC!$D:$N,2,0) ->  | S67: % | X67: 0
A68: =IFERROR(IF(B67<>"",100,B67),"") ->  | F68: R$ | G68: =IF(G67="","",IFERROR(G67*$L68,"")) ->  | H68: =IF(H67="","",IFERROR(H67*$L68,"")) ->  | L68: =VLOOKUP(A67,ORC!$D:$N,11,0) ->  | N68: =IFERROR(IF(O67<>"",100,O67),"") ->  | S68: R$ | T68: =IF(T67="","",IFERROR(T67*$L68,"")) ->  | U68: =IF(U67="","",IFERROR(U67*$L68,"")) -> 
A69: 27 | B69: =VLOOKUP(A69,ORC!$D:$N,2,0) ->  | F69: % | L69: =SUM(G69:K69)+SUM(T70:W70) -> 0 | N69: =A69 -> 27 | O69: =VLOOKUP(N69,ORC!$D:$N,2,0) ->  | S69: % | X69: 0
A70: =IFERROR(IF(B69<>"",100,B69),"") ->  | F70: R$ | G70: =IF(G69="","",IFERROR(G69*$L70,"")) ->  | H70: =IF(H69="","",IFERROR(H69*$L70,"")) ->  | L70: =VLOOKUP(A69,ORC!$D:$N,11,0) ->  | N70: =IFERROR(IF(O69<>"",100,O69),"") ->  | S70: R$ | T70: =IF(T69="","",IFERROR(T69*$L70,"")) ->  | U70: =IF(U69="","",IFERROR(U69*$L70,"")) -> 
A71: 28 | B71: =VLOOKUP(A71,ORC!$D:$N,2,0) ->  | F71: % | L71: =SUM(G71:K71)+SUM(T72:W72) -> 0 | N71: =A71 -> 28 | O71: =VLOOKUP(N71,ORC!$D:$N,2,0) ->  | S71: % | X71: =L71 -> 0
A72: =IFERROR(IF(B71<>"",100,B71),"") ->  | F72: R$ | G72: =IF(G71="","",IFERROR(G71*$L72,"")) ->  | H72: =IF(H71="","",IFERROR(H71*$L72,"")) ->  | L72: =VLOOKUP(A71,ORC!$D:$N,11,0) ->  | N72: =IFERROR(IF(O71<>"",100,O71),"") ->  | S72: R$ | T72: =IF(T71="","",IFERROR(T71*$L72,"")) ->  | U72: =IF(U71="","",IFERROR(U71*$L72,"")) -> 
A73: 29 | B73: =VLOOKUP(A73,ORC!$D:$N,2,0) ->  | F73: % | L73: =SUM(G73:K73)+SUM(T74:W74) -> 0 | N73: =A73 -> 29 | O73: =VLOOKUP(N73,ORC!$D:$N,2,0) ->  | S73: % | X73: 0
A74: =IFERROR(IF(B73<>"",100,B73),"") ->  | F74: R$ | G74: =IF(G73="","",IFERROR(G73*$L74,"")) ->  | H74: =IF(H73="","",IFERROR(H73*$L74,"")) ->  | L74: =VLOOKUP(A73,ORC!$D:$N,11,0) ->  | N74: =IFERROR(IF(O73<>"",100,O73),"") ->  | S74: R$ | T74: =IF(T73="","",IFERROR(T73*$L74,"")) ->  | U74: =IF(U73="","",IFERROR(U73*$L74,"")) -> 
A75: 30 | B75: =VLOOKUP(A75,ORC!$D:$N,2,0) ->  | F75: % | L75: =SUM(G75:K75)+SUM(T76:W76) -> 0 | N75: =A75 -> 30 | O75: =VLOOKUP(N75,ORC!$D:$N,2,0) ->  | S75: % | X75: 0
A76: =IFERROR(IF(B75<>"",100,B75),"") ->  | F76: R$ | G76: =IF(G75="","",IFERROR(G75*$L76,"")) ->  | H76: =IF(H75="","",IFERROR(H75*$L76,"")) ->  | L76: =VLOOKUP(A75,ORC!$D:$N,11,0) ->  | N76: =IFERROR(IF(O75<>"",100,O75),"") ->  | S76: R$ | T76: =IF(T75="","",IFERROR(T75*$L76,"")) ->  | U76: =IF(U75="","",IFERROR(U75*$L76,"")) -> 
F79: Porcentagem | G79: =G80/$W$82 ->  | H79: =H80/$W$82 ->  | S79: Porcentagem | T79: =T80/$W$82 ->  | U79: =U80/$W$82 -> 
F80: Custo | G80: =SUMIF($A:$A,100,G:G) -> 1014.394 | H80: =SUMIF($A:$A,100,H:H) -> 507.197 | I80: =SUMIF($A:$A,100,I:I) -> 507.197 | J80: =SUMIF($A:$A,100,J:J) -> 507.197 | K80: =SUMIF($A:$A,100,K:K) -> 507.197 | S80: Custo | T80: =SUMIF($A:$A,100,T:T) -> 507.197 | U80: =SUMIF($A:$A,100,U:U) -> 507.197 | V80: =SUMIF($A:$A,100,V:V) -> 507.197 | W80: =SUMIF($A:$A,100,W:W) -> 507.197
F81: Porcentagem Acumulada | G81: =G79 ->  | H81: =G81+H79 ->  | I81: =H81+I79 ->  | S81: Porcentagem Acumulada | T81: =T79+K81 ->  | U81: =T81+U79 ->  | V81: =U81+V79 -> 
F82: Custo Acumulado | G82: =G80 -> 1014.394 | H82: =H80+G82 -> 1521.591 | I82: =I80+H82 -> 2028.788 | J82: 2535.985 | K82: =K80+J82 -> 3043.182 | S82: Custo Acumulado | T82: =K82+T80 -> 3550.379 | U82: =U80+T82 -> 4057.576 | V82: =V80+U82 -> 4564.773 | W82: =IF(W80+V82=ORC!M92,W80+V82,"ERRO") -> ERRO
F86: RESPONSÁVEL TÉCNICO | G86: =DADOS!D16 -> FLÁVIA CRISTINA BARBOSA | S86: RESPONSÁVEL TÉCNICO | T86: =DADOS!$D$16 -> FLÁVIA CRISTINA BARBOSA
G87: =DADOS!D18 -> CREA - MG 187.842/D | T87: =DADOS!$D$18 -> CREA - MG 187.842/D

Sheet CRO 10 meses
A2: CRONOGRAMA FÍSICO-FINANCEIRO | L2: Revisão: | M2: =DADOS!D6 -> R00 | N2: CRONOGRAMA FÍSICO-FINANCEIRO | Y2: Revisão: | Z2: =DADOS!D6 -> R00
L3: Data: | M3: =DADOS!D2 -> 2023-08-30 | Y3: Data: | Z3: =DADOS!D2 -> 2023-08-30
A4: Projeto: | D4: Responsável: | I4: Cliente: | L4: Bancos: | N4: Projeto: | Q4: Responsável: | V4: Cliente: | Y4: Bancos:
A5: =DADOS!D8 -> MANUTENÇÃO DA SUPERINTENDÊNCIA DE RECURSOS MATERIAIS | L5: =DADOS!D14 -> SINAPI: 07/2023 Minas Gerais SETOP: 04/2023 Minas Gerais SICRO : 04/2023 Minas Gerais SUDECAP: 05/2023 Minas Gerais | N5: =DADOS!D8 -> MANUTENÇÃO DA SUPERINTENDÊNCIA DE RECURSOS MATERIAIS | Y5: =DADOS!D14 -> SINAPI: 07/2023 Minas Gerais SETOP: 04/2023 Minas Gerais SICRO : 04/2023 Minas Gerais SUDECAP: 05/2023 Minas Gerais
L8: BDI 1: | M8: =DADOS!D10 -> 0.2652 | Y8: BDI 1: | Z8: =DADOS!D10 -> 0.2652
L9: BDI 2: | M9: =DADOS!D12 -> 0.2025 | Y9: BDI 2: | Z9: =DADOS!D12 -> 0.2025
A11: =A2&" DE "&DADOS!D20&" - "&A5 -> CRONOGRAMA FÍSICO-FINANCEIRO DE PROJETO EXECUTIVO - MANUTENÇÃO DA SUPERINTENDÊNCIA DE RECURSOS MATERIAIS | N11: =N2&" DE "&DADOS!D20&" - "&N5 -> CRONOGRAMA FÍSICO-FINANCEIRO DE PROJETO EXECUTIVO - MANUTENÇÃO DA SUPERINTENDÊNCIA DE RECURSOS MATERIAIS
A13: ITEM | B13: DESCRIÇÃO | F13: Unid. | G13: 30 DIAS | H13: 60 DIAS | I13: 90 DIAS | J13: 120 DIAS | K13: 150 DIAS | L13: Total por Etapa | N13: ITEM | O13: DESCRIÇÃO | S13: Unid. | T13: 180 DIAS | U13: 210 DIAS | V13: 240 DIAS | W13: 270 DIAS | X13: 300 DIAS | Y13: Total por Etapa
A15: 1 | B15: =VLOOKUP(A15,ORC!$D:$N,2,0) -> CANTEIRO DE OBRA | F15: % | G15: 0.05 | H15: 0.1 | I15: 0.1 | J15: 0.1 | K15: 0.1 | L15: =SUM(G15:K15)+SUM(T15:X15) -> 1 | N15: 1 | O15: =VLOOKUP(N15,ORC!$D:$N,2,0) -> CANTEIRO DE OBRA | S15: % | T15: 0.1 | U15: 0.1 | V15: 0.1 | W15: 0.1 | X15: 0.15 | Y15: =L15 -> 1
A16: =IFERROR(IF(B15<>"",100,B15),"") -> 100 | F16: R$ | G16: =IF(G15="","",IFERROR(G15*$L16,"")) -> 253.5985 | H16: =IF(H15="","",IFERROR(H15*$L16,"")) -> 507.197 | I16: 507.197 | J16: 507.197 | K16: 507.197 | L16: =VLOOKUP(A15,ORC!$D:$N,11,0) -> 5071.97 | N16: =IFERROR(IF(O15<>"",100,O15),"") -> 100 | S16: R$ | T16: =IF(T15="","",IFERROR(T15*$L16,"")) -> 507.197 | U16: =IF(U15="","",IFERROR(U15*$L16,"")) -> 507.197 | V16: 507.197 | W16: 507.197 | X16: 760.7955 | Y16: 5071.97
A17: 2 | B17: =VLOOKUP(A17,ORC!$D:$N,2,0) -> SERVIÇOS PRELIMINARES | F17: % | L17: =SUM(G17:K17)+SUM(T17:X17) -> 0 | N17: 2 | O17: =VLOOKUP(N17,ORC!$D:$N,2,0) -> SERVIÇOS PRELIMINARES | S17: % | Y17: 0
A18: =IFERROR(IF(B17<>"",100,B17),"") -> 100 | F18: R$ | G18: =IF(G17="","",IFERROR(G17*$L18,"")) ->  | H18: =IF(H17="","",IFERROR(H17*$L18,"")) ->  | L18: =VLOOKUP(A17,ORC!$D:$N,11,0) -> 1808.84 | N18: =IFERROR(IF(O17<>"",100,O17),"") -> 100 | S18: R$ | T18: =IF(T17="","",IFERROR(T17*$L18,"")) ->  | U18: =IF(U17="","",IFERROR(U17*$L18,"")) ->  | Y18: 1808.84
A19: 3 | B19: =VLOOKUP(A19,ORC!$D:$N,2,0) -> LIMPEZAS E DEMOLIÇÕES | F19: % | L19: =SUM(G19:K19)+SUM(T19:X19) -> 0 | N19: 3 | O19: =VLOOKUP(N19,ORC!$D:$N,2,0) -> LIMPEZAS E DEMOLIÇÕES | S19: % | Y19: 0
A20: =IFERROR(IF(B19<>"",100,B19),"") -> 100 | F20: R$ | G20: =IF(G19="","",IFERROR(G19*$L20,"")) ->  | H20: =IF(H19="","",IFERROR(H19*$L20,"")) ->  | L20: =VLOOKUP(A19,ORC!$D:$N,11,0) -> 2229.47 | N20: =IFERROR(IF(O19<>"",100,O19),"") -> 100 | S20: R$ | T20: =IF(T19="","",IFERROR(T19*$L20,"")) ->  | U20: =IF(U19="","",IFERROR(U19*$L20,"")) ->  | Y20: 2229.47
A21: 4 | B21: =VLOOKUP(A21,ORC!$D:$N,2,0) -> SISTEMA DE COBERTURA | F21: % | L21: =SUM(G21:K21)+SUM(T21:X21) -> 0 | N21: 4 | O21: =VLOOKUP(N21,ORC!$D:$N,2,0) -> SISTEMA DE COBERTURA | S21: % | Y21: 0
A22: =IFERROR(IF(B21<>"",100,B21),"") -> 100 | F22: R$ | G22: =IF(G21="","",IFERROR(G21*$L22,"")) ->  | H22: =IF(H21="","",IFERROR(H21*$L22,"")) ->  | L22: =VLOOKUP(A21,ORC!$D:$N,11,0) -> 69700.4 | N22: =IFERROR(IF(O21<>"",100,O21),"") -> 100 | S22: R$ | T22: =IF(T21="","",IFERROR(T21*$L22,"")) ->  | U22: =IF(U21="","",IFERROR(U21*$L22,"")) ->  | Y22: 69700.4
A23: 5 | B23: =VLOOKUP(A23,ORC!$D:$N,2,0) -> ACABAMENTOS | F23: % | L23: =SUM(G23:K23)+SUM(T23:X23) -> 0 | N23: 5 | O23: =VLOOKUP(N23,ORC!$D:$N,2,0) -> ACABAMENTOS | S23: % | Y23: 0
A24: =IFERROR(IF(B23<>"",100,B23),"") -> 100 | F24: R$ | G24: =IF(G23="","",IFERROR(G23*$L24,"")) ->  | H24: =IF(H23="","",IFERROR(H23*$L24,"")) ->  | L24: =VLOOKUP(A23,ORC!$D:$N,11,0) -> 42655.52 | N24: =IFERROR(IF(O23<>"",100,O23),"") -> 100 | S24: R$ | T24: =IF(T23="","",IFERROR(T23*$L24,"")) ->  | U24: =IF(U23="","",IFERROR(U23*$L24,"")) ->  | Y24: 42655.52
A25: 6 | B25: =VLOOKUP(A25,ORC!$D:$N,2,0) -> PINTURA | F25: % | L25: =SUM(G25:K25)+SUM(T25:X25) -> 0 | N25: 6 | O25: =VLOOKUP(N25,ORC!$D:$N,2,0) -> PINTURA | S25: % | Y25: 0
A26: =IFERROR(IF(B25<>"",100,B25),"") -> 100 | F26: R$ | G26: =IF(G25="","",IFERROR(G25*$L26,"")) ->  | H26: =IF(H25="","",IFERROR(H25*$L26,"")) ->  | L26: =VLOOKUP(A25,ORC!$D:$N,11,0) -> 5871.15 | N26: =IFERROR(IF(O25<>"",100,O25),"") -> 100 | S26: R$ | T26: =IF(T25="","",IFERROR(T25*$L26,"")) ->  | U26: =IF(U25="","",IFERROR(U25*$L26,"")) ->  | Y26: 5871.15
A27: 7 | B27: =VLOOKUP(A27,ORC!$D:$N,2,0) -> SERVIÇOS FINAIS | F27: % | L27: =SUM(G27:K27)+SUM(T27:X27) -> 0 | N27: 7 | O27: =VLOOKUP(N27,ORC!$D:$N,2,0) -> SERVIÇOS FINAIS | S27: % | Y27: 0
A28: =IFERROR(IF(B27<>"",100,B27),"") -> 100 | F28: R$ | G28: =IF(G27="","",IFERROR(G27*$L28,"")) ->  | H28: =IF(H27="","",IFERROR(H27*$L28,"")) ->  | L28: =VLOOKUP(A27,ORC!$D:$N,11,0) -> 950.27 | N28: =IFERROR(IF(O27<>"",100,O27),"") -> 100 | S28: R$ | T28: =IF(T27="","",IFERROR(T27*$L28,"")) ->  | U28: =IF(U27="","",IFERROR(U27*$L28,"")) ->  | Y28: 950.27
A29: 8 | B29: =VLOOKUP(A29,ORC!$D:$N,2,0) ->  | F29: % | L29: =SUM(G29:K29)+SUM(T29:X29) -> 0 | N29: 8 | O29: =VLOOKUP(N29,ORC!$D:$N,2,0) ->  | S29: % | Y29: 0
A30: =IFERROR(IF(B29<>"",100,B29),"") ->  | F30: R$ | G30: =IF(G29="","",IFERROR(G29*$L30,"")) ->  | H30: =IF(H29="","",IFERROR(H29*$L30,"")) ->  | L30: =VLOOKUP(A29,ORC!$D:$N,11,0) ->  | N30: =IFERROR(IF(O29<>"",100,O29),"") ->  | S30: R$ | T30: =IF(T29="","",IFERROR(T29*$L30,"")) ->  | U30: =IF(U29="","",IFERROR(U29*$L30,"")) -> 
A32: 9 | B32: =VLOOKUP(A32,ORC!$D:$N,2,0) ->  | F32: % | L32: =SUM(G32:K32)+SUM(T32:X32) -> 0 | N32: 9 | O32: =VLOOKUP(N32,ORC!$D:$N,2,0) ->  | S32: % | Y32: =L32 -> 0
A33: =IFERROR(IF(B32<>"",100,B32),"") ->  | F33: R$ | G33: =IF(G32="","",IFERROR(G32*$L33,"")) ->  | H33: =IF(H32="","",IFERROR(H32*$L33,"")) ->  | L33: =VLOOKUP(A32,ORC!$D:$N,11,0) ->  | N33: =IFERROR(IF(O32<>"",100,O32),"") ->  | S33: R$ | T33: =IF(T32="","",IFERROR(T32*$L33,"")) ->  | U33: =IF(U32="","",IFERROR(U32*$L33,"")) -> 
A34: 10 | B34: =VLOOKUP(A34,ORC!$D:$N,2,0) ->  | F34: % | L34: =SUM(G34:K34)+SUM(T34:X34) -> 0 | N34: 10 | O34: =VLOOKUP(N34,ORC!$D:$N,2,0) ->  | S34: % | Y34: 0
A35: =IFERROR(IF(B34<>"",100,B34),"") ->  | F35: R$ | G35: =IF(G34="","",IFERROR(G34*$L35,"")) ->  | H35: =IF(H34="","",IFERROR(H34*$L35,"")) ->  | L35: =VLOOKUP(A34,ORC!$D:$N,11,0) ->  | N35: =IFERROR(IF(O34<>"",100,O34),"") ->  | S35: R$ | T35: =IF(T34="","",IFERROR(T34*$L35,"")) ->  | U35: =IF(U34="","",IFERROR(U34*$L35,"")) -> 
A36: 11 | B36: =VLOOKUP(A36,ORC!$D:$N,2,0) ->  | F36: % | L36: =SUM(G36:K36)+SUM(T36:X36) -> 0 | N36: 11 | O36: =VLOOKUP(N36,ORC!$D:$N,2,0) ->  | S36: % | Y36: 0
A37: =IFERROR(IF(B36<>"",100,B36),"") ->  | F37: R$ | G37: =IF(G36="","",IFERROR(G36*$L37,"")) ->  | H37: =IF(H36="","",IFERROR(H36*$L37,"")) ->  | L37: =VLOOKUP(A36,ORC!$D:$N,11,0) ->  | N37: =IFERROR(IF(O36<>"",100,O36),"") ->  | S37: R$ | T37: =IF(T36="","",IFERROR(T36*$L37,"")) ->  | U37: =IF(U36="","",IFERROR(U36*$L37,"")) -> 
A38: 12 | B38: =VLOOKUP(A38,ORC!$D:$N,2,0) ->  | F38: % | L38: =SUM(G38:K38)+SUM(T38:X38) -> 0 | N38: 12 | O38: =VLOOKUP(N38,ORC!$D:$N,2,0) ->  | S38: % | Y38: 0
A39: =IFERROR(IF(B38<>"",100,B38),"") ->  | F39: R$ | G39: =IF(G38="","",IFERROR(G38*$L39,"")) ->  | H39: =IF(H38="","",IFERROR(H38*$L39,"")) ->  | L39: =VLOOKUP(A38,ORC!$D:$N,11,0) ->  | N39: =IFERROR(IF(O38<>"",100,O38),"") ->  | S39: R$ | T39: =IF(T38="","",IFERROR(T38*$L39,"")) ->  | U39: =IF(U38="","",IFERROR(U38*$L39,"")) -> 
A40: 13 | B40: =VLOOKUP(A40,ORC!$D:$N,2,0) ->  | F40: % | L40: =SUM(G40:K40)+SUM(T40:X40) -> 0 | N40: 13 | O40: =VLOOKUP(N40,ORC!$D:$N,2,0) ->  | S40: % | Y40: 0
A41: =IFERROR(IF(B40<>"",100,B40),"") ->  | F41: R$ | G41: =IF(G40="","",IFERROR(G40*$L41,"")) ->  | H41: =IF(H40="","",IFERROR(H40*$L41,"")) ->  | L41: =VLOOKUP(A40,ORC!$D:$N,11,0) ->  | N41: =IFERROR(IF(O40<>"",100,O40),"") ->  | S41: R$ | T41: =IF(T40="","",IFERROR(T40*$L41,"")) ->  | U41: =IF(U40="","",IFERROR(U40*$L41,"")) -> 
A42: 14 | B42: =VLOOKUP(A42,ORC!$D:$N,2,0) ->  | F42: % | L42: =SUM(G42:K42)+SUM(T42:X42) -> 0 | N42: 14 | O42: =VLOOKUP(N42,ORC!$D:$N,2,0) ->  | S42: % | Y42: 0
A43: =IFERROR(IF(B42<>"",100,B42),"") ->  | F43: R$ | G43: =IF(G42="","",IFERROR(G42*$L43,"")) ->  | H43: =IF(H42="","",IFERROR(H42*$L43,"")) ->  | L43: =VLOOKUP(A42,ORC!$D:$N,11,0) ->  | N43: =IFERROR(IF(O42<>"",100,O42),"") ->  | S43: R$ | T43: =IF(T42="","",IFERROR(T42*$L43,"")) ->  | U43: =IF(U42="","",IFERROR(U42*$L43,"")) -> 
A44: 15 | B44: =VLOOKUP(A44,ORC!$D:$N,2,0) ->  | F44: % | L44: =SUM(G44:K44)+SUM(T44:X44) -> 0 | N44: 15 | O44: =VLOOKUP(N44,ORC!$D:$N,2,0) ->  | S44: % | Y44: 0
A45: =IFERROR(IF(B44<>"",100,B44),"") ->  | F45: R$ | G45: =IF(G44="","",IFERROR(G44*$L45,"")) ->  | H45: =IF(H44="","",IFERROR(H44*$L45,"")) ->  | L45: =VLOOKUP(A44,ORC!$D:$N,11,0) ->  | N45: =IFERROR(IF(O44<>"",100,O44),"") ->  | S45: R$ | T45: =IF(T44="","",IFERROR(T44*$L45,"")) ->  | U45: =IF(U44="","",IFERROR(U44*$L45,"")) -> 
A46: 16 | B46: =VLOOKUP(A46,ORC!$D:$N,2,0) ->  | F46: % | L46: =SUM(G46:K46)+SUM(T46:X46) -> 0 | N46: 16 | O46: =VLOOKUP(N46,ORC!$D:$N,2,0) ->  | S46: % | Y46: 0
A47: =IFERROR(IF(B46<>"",100,B46),"") ->  | F47: R$ | G47: =IF(G46="","",IFERROR(G46*$L47,"")) ->  | H47: =IF(H46="","",IFERROR(H46*$L47,"")) ->  | L47: =VLOOKUP(A46,ORC!$D:$N,11,0) ->  | N47: =IFERROR(IF(O46<>"",100,O46),"") ->  | S47: R$ | T47: =IF(T46="","",IFERROR(T46*$L47,"")) ->  | U47: =IF(U46="","",IFERROR(U46*$L47,"")) -> 
A48: 17 | B48: =VLOOKUP(A48,ORC!$D:$N,2,0) ->  | F48: % | L48: =SUM(G48:K48)+SUM(T48:X48) -> 0 | N48: 17 | O48: =VLOOKUP(N48,ORC!$D:$N,2,0) ->  | S48: % | Y48: 0
A49: =IFERROR(IF(B48<>"",100,B48),"") ->  | F49: R$ | G49: =IF(G48="","",IFERROR(G48*$L49,"")) ->  | H49: =IF(H48="","",IFERROR(H48*$L49,"")) ->  | L49: =VLOOKUP(A48,ORC!$D:$N,11,0) ->  | N49: =IFERROR(IF(O48<>"",100,O48),"") ->  | S49: R$ | T49: =IF(T48="","",IFERROR(T48*$L49,"")) ->  | U49: =IF(U48="","",IFERROR(U48*$L49,"")) -> 
A50: 18 | B50: =VLOOKUP(A50,ORC!$D:$N,2,0) ->  | F50: % | L50: =SUM(G50:K50)+SUM(T50:X50) -> 0 | N50: 18 | O50: =VLOOKUP(N50,ORC!$D:$N,2,0) ->  | S50: % | Y50: 0
A51: =IFERROR(IF(B50<>"",100,B50),"") ->  | F51: R$ | G51: =IF(G50="","",IFERROR(G50*$L51,"")) ->  | H51: =IF(H50="","",IFERROR(H50*$L51,"")) ->  | L51: =VLOOKUP(A50,ORC!$D:$N,11,0) ->  | N51: =IFERROR(IF(O50<>"",100,O50),"") ->  | S51: R$ | T51: =IF(T50="","",IFERROR(T50*$L51,"")) ->  | U51: =IF(U50="","",IFERROR(U50*$L51,"")) -> 
A52: 19 | B52: =VLOOKUP(A52,ORC!$D:$N,2,0) ->  | F52: % | L52: =SUM(G52:K52)+SUM(T52:X52) -> 0 | N52: 19 | O52: =VLOOKUP(N52,ORC!$D:$N,2,0) ->  | S52: % | Y52: 0
A53: =IFERROR(IF(B52<>"",100,B52),"") ->  | F53: R$ | G53: =IF(G52="","",IFERROR(G52*$L53,"")) ->  | H53: =IF(H52="","",IFERROR(H52*$L53,"")) ->  | L53: =VLOOKUP(A52,ORC!$D:$N,11,0) ->  | N53: =IFERROR(IF(O52<>"",100,O52),"") ->  | S53: R$ | T53: =IF(T52="","",IFERROR(T52*$L53,"")) ->  | U53: =IF(U52="","",IFERROR(U52*$L53,"")) -> 
A55: 20 | B55: =VLOOKUP(A55,ORC!$D:$N,2,0) ->  | F55: % | L55: =SUM(G55:K55)+SUM(T55:X55) -> 0 | N55: 20 | O55: =VLOOKUP(N55,ORC!$D:$N,2,0) ->  | S55: % | Y55: =L55 -> 0
A56: =IFERROR(IF(B55<>"",100,B55),"") ->  | F56: R$ | G56: =IF(G55="","",IFERROR(G55*$L56,"")) ->  | H56: =IF(H55="","",IFERROR(H55*$L56,"")) ->  | L56: =VLOOKUP(A55,ORC!$D:$N,11,0) ->  | N56: =IFERROR(IF(O55<>"",100,O55),"") ->  | S56: R$ | T56: =IF(T55="","",IFERROR(T55*$L56,"")) ->  | U56: =IF(U55="","",IFERROR(U55*$L56,"")) -> 
A57: 21 | B57: =VLOOKUP(A57,ORC!$D:$N,2,0) ->  | F57: % | L57: =SUM(G57:K57)+SUM(T57:X57) -> 0 | N57: 21 | O57: =VLOOKUP(N57,ORC!$D:$N,2,0) ->  | S57: % | Y57: 0
A58: =IFERROR(IF(B57<>"",100,B57),"") ->  | F58: R$ | G58: =IF(G57="","",IFERROR(G57*$L58,"")) ->  | H58: =IF(H57="","",IFERROR(H57*$L58,"")) ->  | L58: =VLOOKUP(A57,ORC!$D:$N,11,0) ->  | N58: =IFERROR(IF(O57<>"",100,O57),"") ->  | S58: R$ | T58: =IF(T57="","",IFERROR(T57*$L58,"")) ->  | U58: =IF(U57="","",IFERROR(U57*$L58,"")) -> 
A59: 22 | B59: =VLOOKUP(A59,ORC!$D:$N,2,0) ->  | F59: % | L59: =SUM(G59:K59)+SUM(T59:X59) -> 0 | N59: 22 | O59: =VLOOKUP(N59,ORC!$D:$N,2,0) ->  | S59: % | Y59: 0
A60: =IFERROR(IF(B59<>"",100,B59),"") ->  | F60: R$ | G60: =IF(G59="","",IFERROR(G59*$L60,"")) ->  | H60: =IF(H59="","",IFERROR(H59*$L60,"")) ->  | L60: =VLOOKUP(A59,ORC!$D:$N,11,0) ->  | N60: =IFERROR(IF(O59<>"",100,O59),"") ->  | S60: R$ | T60: =IF(T59="","",IFERROR(T59*$L60,"")) ->  | U60: =IF(U59="","",IFERROR(U59*$L60,"")) -> 
A61: 23 | B61: =VLOOKUP(A61,ORC!$D:$N,2,0) ->  | F61: % | L61: =SUM(G61:K61)+SUM(T61:X61) -> 0 | N61: 23 | O61: =VLOOKUP(N61,ORC!$D:$N,2,0) ->  | S61: % | Y61: 0
A62: =IFERROR(IF(B61<>"",100,B61),"") ->  | F62: R$ | G62: =IF(G61="","",IFERROR(G61*$L62,"")) ->  | H62: =IF(H61="","",IFERROR(H61*$L62,"")) ->  | L62: =VLOOKUP(A61,ORC!$D:$N,11,0) ->  | N62: =IFERROR(IF(O61<>"",100,O61),"") ->  | S62: R$ | T62: =IF(T61="","",IFERROR(T61*$L62,"")) ->  | U62: =IF(U61="","",IFERROR(U61*$L62,"")) -> 
A63: 24 | B63: =VLOOKUP(A63,ORC!$D:$N,2,0) ->  | F63: % | L63: =SUM(G63:K63)+SUM(T63:X63) -> 0 | N63: 24 | O63: =VLOOKUP(N63,ORC!$D:$N,2,0) ->  | S63: % | Y63: =L63 -> 0
A64: =IFERROR(IF(B63<>"",100,B63),"") ->  | F64: R$ | G64: =IF(G63="","",IFERROR(G63*$L64,"")) ->  | H64: =IF(H63="","",IFERROR(H63*$L64,"")) ->  | L64: =VLOOKUP(A63,ORC!$D:$N,11,0) ->  | N64: =IFERROR(IF(O63<>"",100,O63),"") ->  | S64: R$ | T64: =IF(T63="","",IFERROR(T63*$L64,"")) ->  | U64: =IF(U63="","",IFERROR(U63*$L64,"")) -> 
A65: 25 | B65: =VLOOKUP(A65,ORC!$D:$N,2,0) ->  | F65: % | L65: =SUM(G65:K65)+SUM(T65:X65) -> 0 | N65: 25 | O65: =VLOOKUP(N65,ORC!$D:$N,2,0) ->  | S65: % | Y65: 0
A66: =IFERROR(IF(B65<>"",100,B65),"") ->  | F66: R$ | G66: =IF(G65="","",IFERROR(G65*$L66,"")) ->  | H66: =IF(H65="","",IFERROR(H65*$L66,"")) ->  | L66: =VLOOKUP(A65,ORC!$D:$N,11,0) ->  | N66: =IFERROR(IF(O65<>"",100,O65),"") ->  | S66: R$ | T66: =IF(T65="","",IFERROR(T65*$L66,"")) ->  | U66: =IF(U65="","",IFERROR(U65*$L66,"")) -> 
A67: 26 | B67: =VLOOKUP(A67,ORC!$D:$N,2,0) ->  | F67: % | L67: =SUM(G67:K67)+SUM(T67:X67) -> 0 | N67: 26 | O67: =VLOOKUP(N67,ORC!$D:$N,2,0) ->  | S67: % | Y67: 0
A68: =IFERROR(IF(B67<>"",100,B67),"") ->  | F68: R$ | G68: =IF(G67="","",IFERROR(G67*$L68,"")) ->  | H68: =IF(H67="","",IFERROR(H67*$L68,"")) ->  | L68: =VLOOKUP(A67,ORC!$D:$N,11,0) ->  | N68: =IFERROR(IF(O67<>"",100,O67),"") ->  | S68: R$ | T68: =IF(T67="","",IFERROR(T67*$L68,"")) ->  | U68: =IF(U67="","",IFERROR(U67*$L68,"")) -> 
A69: 27 | B69: =VLOOKUP(A69,ORC!$D:$N,2,0) ->  | F69: % | L69: =SUM(G69:K69)+SUM(T69:X69) -> 0 | N69: 27 | O69: =VLOOKUP(N69,ORC!$D:$N,2,0) ->  | S69: % | Y69: 0
A70: =IFERROR(IF(B69<>"",100,B69),"") ->  | F70: R$ | G70: =IF(G69="","",IFERROR(G69*$L70,"")) ->  | H70: =IF(H69="","",IFERROR(H69*$L70,"")) ->  | L70: =VLOOKUP(A69,ORC!$D:$N,11,0) ->  | N70: =IFERROR(IF(O69<>"",100,O69),"") ->  | S70: R$ | T70: =IF(T69="","",IFERROR(T69*$L70,"")) ->  | U70: =IF(U69="","",IFERROR(U69*$L70,"")) -> 
A71: 28 | B71: =VLOOKUP(A71,ORC!$D:$N,2,0) ->  | F71: % | L71: =SUM(G71:K71)+SUM(T71:X71) -> 0 | N71: 28 | O71: =VLOOKUP(N71,ORC!$D:$N,2,0) ->  | S71: % | Y71: =L71 -> 0
A72: =IFERROR(IF(B71<>"",100,B71),"") ->  | F72: R$ | G72: =IF(G71="","",IFERROR(G71*$L72,"")) ->  | H72: =IF(H71="","",IFERROR(H71*$L72,"")) ->  | L72: =VLOOKUP(A71,ORC!$D:$N,11,0) ->  | N72: =IFERROR(IF(O71<>"",100,O71),"") ->  | S72: R$ | T72: =IF(T71="","",IFERROR(T71*$L72,"")) ->  | U72: =IF(U71="","",IFERROR(U71*$L72,"")) -> 
A73: 29 | B73: =VLOOKUP(A73,ORC!$D:$N,2,0) ->  | F73: % | L73: =SUM(G73:K73)+SUM(T73:X73) -> 0 | N73: 29 | O73: =VLOOKUP(N73,ORC!$D:$N,2,0) ->  | S73: % | Y73: 0
A74: =IFERROR(IF(B73<>"",100,B73),"") ->  | F74: R$ | G74: =IF(G73="","",IFERROR(G73*$L74,"")) ->  | H74: =IF(H73="","",IFERROR(H73*$L74,"")) ->  | L74: =VLOOKUP(A73,ORC!$D:$N,11,0) ->  | N74: =IFERROR(IF(O73<>"",100,O73),"") ->  | S74: R$ | T74: =IF(T73="","",IFERROR(T73*$L74,"")) ->  | U74: =IF(U73="","",IFERROR(U73*$L74,"")) -> 
A75: 30 | B75: =VLOOKUP(A75,ORC!$D:$N,2,0) ->  | F75: % | L75: =SUM(G75:K75)+SUM(T75:X75) -> 0 | N75: 30 | O75: =VLOOKUP(N75,ORC!$D:$N,2,0) ->  | S75: % | Y75: 0
A76: =IFERROR(IF(B75<>"",100,B75),"") ->  | F76: R$ | G76: =IF(G75="","",IFERROR(G75*$L76,"")) ->  | H76: =IF(H75="","",IFERROR(H75*$L76,"")) ->  | L76: =VLOOKUP(A75,ORC!$D:$N,11,0) ->  | N76: =IFERROR(IF(O75<>"",100,O75),"") ->  | S76: R$ | T76: =IF(T75="","",IFERROR(T75*$L76,"")) ->  | U76: =IF(U75="","",IFERROR(U75*$L76,"")) -> 
F78: Porcentagem | G78: =G79/$X$81 ->  | H78: =H79/$X$81 ->  | S78: Porcentagem | T78: =T79/$X$81 ->  | U78: =U79/$X$81 -> 
F79: Custo | G79: =SUMIF($A:$A,100,G:G) -> 253.5985 | H79: =SUMIF($A:$A,100,H:H) -> 507.197 | I79: =SUMIF($A:$A,100,I:I) -> 507.197 | J79: =SUMIF($A:$A,100,J:J) -> 507.197 | K79: =SUMIF($A:$A,100,K:K) -> 507.197 | S79: Custo | T79: =SUMIF($A:$A,100,T:T) -> 507.197 | U79: =SUMIF($A:$A,100,U:U) -> 507.197 | V79: =SUMIF($A:$A,100,V:V) -> 507.197 | W79: =SUMIF($A:$A,100,W:W) -> 507.197 | X79: =SUMIF($A:$A,100,X:X) -> 760.7955
F80: Porcentagem Acumulada | G80: =G78 ->  | H80: =G80+H78 ->  | I80: =H80+I78 ->  | S80: Porcentagem Acumulada | T80: =T78+K80 ->  | U80: =T80+U78 ->  | V80: =U80+V78 ->  | W80: =V80+W78 ->  | X80: =W80+X78 -> 
F81: Custo Acumulado | G81: =G79 -> 253.5985 | H81: =H79+G81 -> 760.7955 | I81: =I79+H81 -> 1267.9925 | J81: 1775.1895 | K81: 2282.3865 | S81: Custo Acumulado | T81: =T79+K81 -> 2789.5835 | U81: =U79+T81 -> 3296.7805 | V81: =V79+U81 -> 3803.9775 | W81: =W79+V81 -> 4311.1745 | X81: =IF(X79+W81=ORC!M92,X79+W81,"ERRO") -> ERRO
F85: RESPONSÁVEL TÉCNICO | G85: =DADOS!D16 -> FLÁVIA CRISTINA BARBOSA | S85: RESPONSÁVEL TÉCNICO | T85: =DADOS!D16 -> FLÁVIA CRISTINA BARBOSA
G86: =DADOS!D18 -> CREA - MG 187.842/D | T86: =DADOS!D18 -> CREA - MG 187.842/D

Sheet CRO 11 meses
A2: CRONOGRAMA FÍSICO-FINANCEIRO | M2: Revisão: | N2: =DADOS!D6 -> R00 | O2: CRONOGRAMA FÍSICO-FINANCEIRO | Z2: Revisão: | AA2: =DADOS!$D$6 -> R00
M3: Data: | N3: =DADOS!D2 -> 2023-08-30 | Z3: Data: | AA3: =DADOS!$D$2 -> 2023-08-30
A4: Projeto: | D4: Responsável: | I4: Cliente: | M4: Bancos: | O4: Projeto: | R4: Responsável: | W4: Cliente: | Z4: Bancos:
A5: =DADOS!D8 -> MANUTENÇÃO DA SUPERINTENDÊNCIA DE RECURSOS MATERIAIS | M5: =DADOS!D14 -> SINAPI: 07/2023 Minas Gerais SETOP: 04/2023 Minas Gerais SICRO : 04/2023 Minas Gerais SUDECAP: 05/2023 Minas Gerais | O5: =DADOS!$D$8 -> MANUTENÇÃO DA SUPERINTENDÊNCIA DE RECURSOS MATERIAIS | Z5: =DADOS!$D$14 -> SINAPI: 07/2023 Minas Gerais SETOP: 04/2023 Minas Gerais SICRO : 04/2023 Minas Gerais SUDECAP: 05/2023 Minas Gerais
M8: BDI 1: | N8: =DADOS!D10 -> 0.2652 | Z8: BDI 1: | AA8: =DADOS!$D$10 -> 0.2652
M9: BDI 2: | N9: =DADOS!D12 -> 0.2025 | Z9: BDI 2: | AA9: =DADOS!$D$12 -> 0.2025
A11: =A2&" DE "&DADOS!D20&" - "&A5 -> CRONOGRAMA FÍSICO-FINANCEIRO DE PROJETO EXECUTIVO - MANUTENÇÃO DA SUPERINTENDÊNCIA DE RECURSOS MATERIAIS | O11: =O2&" DE "&DADOS!$D$20&" - "&O5 -> CRONOGRAMA FÍSICO-FINANCEIRO DE PROJETO EXECUTIVO - MANUTENÇÃO DA SUPERINTENDÊNCIA DE RECURSOS MATERIAIS
A13: ITEM | B13: DESCRIÇÃO | F13: Unid. | G13: 30 DIAS | H13: 60 DIAS | I13: 90 DIAS | J13: 120 DIAS | K13: 150 DIAS | L13: 180 DIAS | M13: Total por Etapa | O13: ITEM | P13: DESCRIÇÃO | T13: Unid. | U13: 210 DIAS | V13: 240 DIAS | W13: 270 DIAS | X13: 300 DIAS | Y13: 330 DIAS | Z13: Total por Etapa
A15: 1 | B15: =VLOOKUP(A15,ORC!$D:$N,2,0) -> CANTEIRO DE OBRA | F15: % | G15: 0.1 | H15: 0.1 | I15: 0.1 | J15: 0.1 | K15: 0.1 | L15: 0.1 | M15: =SUM(G15:L15)+SUM(U15:Y15) -> 1 | O15: 1 | P15: =VLOOKUP(O15,ORC!$D:$N,2,0) -> CANTEIRO DE OBRA | T15: % | U15: 0.1 | V15: 0.1 | W15: 0.1 | X15: 0.05 | Y15: 0.05 | Z15: =M15 -> 1
A16: =IFERROR(IF(B15<>"",100,B15),"") -> 100 | F16: R$ | G16: =IF(G15="","",IFERROR(G15*$M16,"")) -> 507.197 | H16: =IF(H15="","",IFERROR(H15*$M16,"")) -> 507.197 | I16: 507.197 | J16: 507.197 | K16: 507.197 | L16: 507.197 | M16: =VLOOKUP(A15,ORC!$D:$N,11,0) -> 5071.97 | O16: =IFERROR(IF(P15<>"",100,P15),"") -> 100 | T16: R$ | U16: =IF(U15="","",IFERROR(U15*$M16,"")) -> 507.197 | V16: =IF(V15="","",IFERROR(V15*$M16,"")) -> 507.197 | W16: 507.197 | X16: 253.5985 | Y16: 253.5985 | Z16: 5071.97
A17: 2 | B17: =VLOOKUP(A17,ORC!$D:$N,2,0) -> SERVIÇOS PRELIMINARES | F17: % | M17: =SUM(G17:L17)+SUM(U17:Y17) -> 0 | O17: 2 | P17: =VLOOKUP(O17,ORC!$D:$N,2,0) -> SERVIÇOS PRELIMINARES | T17: % | Z17: 0
A18: =IFERROR(IF(B17<>"",100,B17),"") -> 100 | F18: R$ | G18: =IF(G17="","",IFERROR(G17*$M18,"")) ->  | H18: =IF(H17="","",IFERROR(H17*$M18,"")) ->  | M18: =VLOOKUP(A17,ORC!$D:$N,11,0) -> 1808.84 | O18: =IFERROR(IF(P17<>"",100,P17),"") -> 100 | T18: R$ | U18: =IF(U17="","",IFERROR(U17*$M18,"")) ->  | V18: =IF(V17="","",IFERROR(V17*$M18,"")) ->  | W18: =IF(W17="","",IFERROR(W17*$M18,"")) ->  | X18: =IF(X17="","",IFERROR(X17*$M18,"")) ->  | Y18: =IF(Y17="","",IFERROR(Y17*$M18,"")) ->  | Z18: 1808.84
A19: 3 | B19: =VLOOKUP(A19,ORC!$D:$N,2,0) -> LIMPEZAS E DEMOLIÇÕES | F19: % | M19: =SUM(G19:L19)+SUM(U19:Y19) -> 0 | O19: 3 | P19: =VLOOKUP(O19,ORC!$D:$N,2,0) -> LIMPEZAS E DEMOLIÇÕES | T19: % | Z19: 0
A20: =IFERROR(IF(B19<>"",100,B19),"") -> 100 | F20: R$ | G20: =IF(G19="","",IFERROR(G19*$M20,"")) ->  | H20: =IF(H19="","",IFERROR(H19*$M20,"")) ->  | M20: =VLOOKUP(A19,ORC!$D:$N,11,0) -> 2229.47 | O20: =IFERROR(IF(P19<>"",100,P19),"") -> 100 | T20: R$ | U20: =IF(U19="","",IFERROR(U19*$M20,"")) ->  | V20: =IF(V19="","",IFERROR(V19*$M20,"")) ->  | W20: =IF(W19="","",IFERROR(W19*$M20,"")) ->  | X20: =IF(X19="","",IFERROR(X19*$M20,"")) ->  | Y20: =IF(Y19="","",IFERROR(Y19*$M20,"")) ->  | Z20: 2229.47
A21: 4 | B21: =VLOOKUP(A21,ORC!$D:$N,2,0) -> SISTEMA DE COBERTURA | F21: % | M21: =SUM(G21:L21)+SUM(U21:Y21) -> 0 | O21: 4 | P21: =VLOOKUP(O21,ORC!$D:$N,2,0) -> SISTEMA DE COBERTURA | T21: % | Z21: 0
A22: =IFERROR(IF(B21<>"",100,B21),"") -> 100 | F22: R$ | G22: =IF(G21="","",IFERROR(G21*$M22,"")) ->  | H22: =IF(H21="","",IFERROR(H21*$M22,"")) ->  | I22: =IF(I21="","",IFERROR(I21*$M22,"")) ->  | J22: =IF(J21="","",IFERROR(J21*$M22,"")) ->  | M22: =VLOOKUP(A21,ORC!$D:$N,11,0) -> 69700.4 | O22: =IFERROR(IF(P21<>"",100,P21),"") -> 100 | T22: R$ | U22: =IF(U21="","",IFERROR(U21*$M22,"")) ->  | V22: =IF(V21="","",IFERROR(V21*$M22,"")) ->  | W22: =IF(W21="","",IFERROR(W21*$M22,"")) ->  | X22: =IF(X21="","",IFERROR(X21*$M22,"")) ->  | Y22: =IF(Y21="","",IFERROR(Y21*$M22,"")) ->  | Z22: 69700.4
A23: 5 | B23: =VLOOKUP(A23,ORC!$D:$N,2,0) -> ACABAMENTOS | F23: % | M23: =SUM(G23:L23)+SUM(U23:Y23) -> 0 | O23: 5 | P23: =VLOOKUP(O23,ORC!$D:$N,2,0) -> ACABAMENTOS | T23: % | Z23: 0
A24: =IFERROR(IF(B23<>"",100,B23),"") -> 100 | F24: R$ | G24: =IF(G23="","",IFERROR(G23*$M24,"")) ->  | H24: =IF(H23="","",IFERROR(H23*$M24,"")) ->  | M24: =VLOOKUP(A23,ORC!$D:$N,11,0) -> 42655.52 | O24: =IFERROR(IF(P23<>"",100,P23),"") -> 100 | T24: R$ | U24: =IF(U23="","",IFERROR(U23*$M24,"")) ->  | V24: =IF(V23="","",IFERROR(V23*$M24,"")) ->  | W24: =IF(W23="","",IFERROR(W23*$M24,"")) ->  | X24: =IF(X23="","",IFERROR(X23*$M24,"")) ->  | Y24: =IF(Y23="","",IFERROR(Y23*$M24,"")) ->  | Z24: 42655.52
A25: 6 | B25: =VLOOKUP(A25,ORC!$D:$N,2,0) -> PINTURA | F25: % | M25: =SUM(G25:L25)+SUM(U25:Y25) -> 0 | O25: 6 | P25: =VLOOKUP(O25,ORC!$D:$N,2,0) -> PINTURA | T25: % | Z25: 0
A26: =IFERROR(IF(B25<>"",100,B25),"") -> 100 | F26: R$ | G26: =IF(G25="","",IFERROR(G25*$M26,"")) ->  | H26: =IF(H25="","",IFERROR(H25*$M26,"")) ->  | M26: =VLOOKUP(A25,ORC!$D:$N,11,0) -> 5871.15 | O26: =IFERROR(IF(P25<>"",100,P25),"") -> 100 | T26: R$ | U26: =IF(U25="","",IFERROR(U25*$M26,"")) ->  | V26: =IF(V25="","",IFERROR(V25*$M26,"")) ->  | W26: =IF(W25="","",IFERROR(W25*$M26,"")) ->  | X26: =IF(X25="","",IFERROR(X25*$M26,"")) ->  | Y26: =IF(Y25="","",IFERROR(Y25*$M26,"")) ->  | Z26: 5871.15
A27: 7 | B27: =VLOOKUP(A27,ORC!$D:$N,2,0) -> SERVIÇOS FINAIS | F27: % | M27: =SUM(G27:L27)+SUM(U27:Y27) -> 0 | O27: 7 | P27: =VLOOKUP(O27,ORC!$D:$N,2,0) -> SERVIÇOS FINAIS | T27: % | Z27: 0
A28: =IFERROR(IF(B27<>"",100,B27),"") -> 100 | F28: R$ | G28: =IF(G27="","",IFERROR(G27*$M28,"")) ->  | H28: =IF(H27="","",IFERROR(H27*$M28,"")) ->  | M28: =VLOOKUP(A27,ORC!$D:$N,11,0) -> 950.27 | O28: =IFERROR(IF(P27<>"",100,P27),"") -> 100 | T28: R$ | U28: =IF(U27="","",IFERROR(U27*$M28,"")) ->  | V28: =IF(V27="","",IFERROR(V27*$M28,"")) ->  | W28: =IF(W27="","",IFERROR(W27*$M28,"")) ->  | X28: =IF(X27="","",IFERROR(X27*$M28,"")) ->  | Y28: =IF(Y27="","",IFERROR(Y27*$M28,"")) ->  | Z28: 950.27
A29: 8 | B29: =VLOOKUP(A29,ORC!$D:$N,2,0) ->  | F29: % | M29: =SUM(G29:L29)+SUM(U29:Y29) -> 0 | O29: 8 | P29: =VLOOKUP(O29,ORC!$D:$N,2,0) ->  | T29: % | Z29: 0
A30: =IFERROR(IF(B29<>"",100,B29),"") ->  | F30: R$ | G30: =IF(G29="","",IFERROR(G29*$M30,"")) ->  | H30: =IF(H29="","",IFERROR(H29*$M30,"")) ->  | M30: =VLOOKUP(A29,ORC!$D:$N,11,0) ->  | O30: =IFERROR(IF(P29<>"",100,P29),"") ->  | T30: R$ | U30: =IF(U29="","",IFERROR(U29*$M30,"")) ->  | V30: =IF(V29="","",IFERROR(V29*$M30,"")) ->  | W30: =IF(W29="","",IFERROR(W29*$M30,"")) ->  | X30: =IF(X29="","",IFERROR(X29*$M30,"")) ->  | Y30: =IF(Y29="","",IFERROR(Y29*$M30,"")) -> 
A32: 9 | B32: =VLOOKUP(A32,ORC!$D:$N,2,0) ->  | F32: % | M32: =SUM(G32:L32)+SUM(U32:Y32) -> 0 | O32: 9 | P32: =VLOOKUP(O32,ORC!$D:$N,2,0) ->  | T32: % | Z32: =M32 -> 0
A33: =IFERROR(IF(B32<>"",100,B32),"") ->  | F33: R$ | G33: =IF(G32="","",IFERROR(G32*$M33,"")) ->  | H33: =IF(H32="","",IFERROR(H32*$M33,"")) ->  | M33: =VLOOKUP(A32,ORC!$D:$N,11,0) ->  | O33: =IFERROR(IF(P32<>"",100,P32),"") ->  | T33: R$ | U33: =IF(U32="","",IFERROR(U32*$M33,"")) ->  | V33: =IF(V32="","",IFERROR(V32*$M33,"")) ->  | W33: =IF(W32="","",IFERROR(W32*$M33,"")) ->  | X33: =IF(X32="","",IFERROR(X32*$M33,"")) ->  | Y33: =IF(Y32="","",IFERROR(Y32*$M33,"")) -> 
A34: 10 | B34: =VLOOKUP(A34,ORC!$D:$N,2,0) ->  | F34: % | M34: =SUM(G34:L34)+SUM(U34:Y34) -> 0 | O34: 10 | P34: =VLOOKUP(O34,ORC!$D:$N,2,0) ->  | T34: % | Z34: 0
A35: =IFERROR(IF(B34<>"",100,B34),"") ->  | F35: R$ | G35: =IF(G34="","",IFERROR(G34*$M35,"")) ->  | H35: =IF(H34="","",IFERROR(H34*$M35,"")) ->  | M35: =VLOOKUP(A34,ORC!$D:$N,11,0) ->  | O35: =IFERROR(IF(P34<>"",100,P34),"") ->  | T35: R$ | U35: =IF(U34="","",IFERROR(U34*$M35,"")) ->  | V35: =IF(V34="","",IFERROR(V34*$M35,"")) ->  | W35: =IF(W34="","",IFERROR(W34*$M35,"")) ->  | X35: =IF(X34="","",IFERROR(X34*$M35,"")) ->  | Y35: =IF(Y34="","",IFERROR(Y34*$M35,"")) -> 
A36: 11 | B36: =VLOOKUP(A36,ORC!$D:$N,2,0) ->  | F36: % | M36: =SUM(G36:L36)+SUM(U36:Y36) -> 0 | O36: 11 | P36: =VLOOKUP(O36,ORC!$D:$N,2,0) ->  | T36: % | Z36: 0
